Workbook

Sheet PORTADA

Sheet PRESENTACIÓN
I1: Costo Unitario de Prestación de Servicio - CU | N1: Costo Unitario de Prestación de Servicio - CU
S3: Opción Tarifaria
S6: La opción tarifaria ofrece al comercializador la posibilidad de cambiar el CU cuando las condiciones del mercado presentan un impacto considerable para el usuario. No obstante, como la empresa deja de percibir parte de sus ingresos, debe aplicar la opción tarifaria hasta que se recupere el valor financiado, lo que se traduce en cobros relativamente elevados, pero con incrementos parciales para el usuario como se evidencia en la siguiente gráfica Regulación Vigente: Res. CREG 012 de 2020
I9: COMPONENTE | J9: RESOLUCIÓN | K9: DEFINICIÓN DEL COMPONENTE | L9: EXPLICACIÓN | M9: FACTORES DE VARIACIÓN | N9: COMPONENTE | O9: RESOLUCIÓN | P9: DEFINICIÓN DEL COMPONENTE | Q9: EXPLICACIÓN | R9: FACTORES DE VARIACIÓN
A10: La Superintendencia de Servicios Públicos Domiciliarios – SSPD presenta en este documento a todos los grupos de interés la información relacionada con el Costo Unitario de Prestación del Servicio (CU) y las tarifas de energía aplicadas por los comercializadores integrados a los Operadores de Red (OR) del nivel de tensión 1 con propiedad de activos del OR en una ventana de 12 meses. Lo anterior, permitirá realizar el seguimiento mensual del comportamiento del CU y la tarifa por cada uno de los interesados a la empresa de su interés. Costo Unitario de Prestación del Servicio: Es el costo económico eficiente de prestación del servicio al usuario final regulado. El Costo Unitario de Prestación del Servicio (CU) de energía eléctrica, de acuerdo con la regulación establecida por la Comisión de Regulación de Energía y Gas – CREG, está conformado por la suma de los componentes de generación (G), transmisión (T), distribución (D), comercialización (C), pérdidas (PR) y restricciones del sistema (R), cada uno de los cuales obedece a unas condiciones reguladas para la determinación de su valor. Tarifa: Es el valor resultante de aplicar al Costo Unitario de Prestación del Servicio el factor de subsidio o contribución autorizado legalmente. En el caso de los usuarios de estrato 4 y/o usuarios no residenciales que no son beneficiarios de subsidio, ni están sujetos al pago de contribución, la tarifa corresponde al Costo Unitario de Prestación del Servicio. | I10: Generación: Gm,i,j | J10: Resolución CREG 119 de 2007, modificada por la Resolución CREG 030 de 2018 y Resolución CREG 129 de 2019, Resolución CREG 101 002de 2022. | K10: Costo de compra de energía ($/kWh) para el mes m, del comercializador minorista | L10: Costo de compra de energía en bolsa o por medio de contratos a largo plazo. | M10: Contratos: Indexación por medio de IPC Bolsa: Varia hora a hora de acuerdo con las condiciones del mercado | N10: Comercialización: Cvm,i,j | O10: Resoluciones CREG 180, modificada por la Resolución CREG 019 de 2018 y resolución CREG 191 de 2014 | P10: Margen de comercialización correspondiente al mes m, del comercializador minorista. ($/kWh) | Q10: Remunera costos asociados a la comercialización: margen de la actividad, riesgo de cartera, contribuciones, pagos al administrador del mercado. | R10: La actualización se realiza con el índice de Precios al Consumidor (IPC). Varía mensualmente.
I11: Trasmisión: Tm | J11: Resolución CREG 011 de 2009 | K11: Costo por uso del Sistema Nacional de Trasmisión (STN) ($/kWh) para el mes m. Liquidado por LAC | L11: Es el valor único para todos los comercializadores con el cual se paga el transporte de energía de las plantas generadoras hasta las redes del STR | M11: La actualización se realiza con el índice de Precios al Productor (IPP). Varía mensualmente por las variaciones en la demanda. | N11: Restricciones: Rm,i | O11: Resolución CREG 119 de 2007 | P11: Costo de restricciones y de Servicios asociados con generación asignados al Comercializador Minorista i en el mes m. ($/kWh) | Q11: Corresponde a los costos de la generación más costosa que debió utilizarse para que el STN opere de manera segura y/o por las limitaciones de su red. | R11: Es variable por cuanto depende principalmente de la magnitud de la disponibilidad de los activos de trasmisión. Varía mensualmente.
I12: Distribución: Dn,m | J12: Resolución CREG 015 de 2018, para los agentes que no tienen ingresos regulados con esta resolución les aplica la Resolución CREG 097 de 2008 | K12: Costo por uso del Sistema de Distribución (STR) ($/kWh) correspondiente al nivel de tensión n para el mes m. Los cargos para remunerar los define la LAC. | L12: Corresponde al valor que se paga por transportar la energía desde el STN hasta el usuario final a través del STR. El Ministerio de Minas y Energía junto con la CREG definieron la conformación de las ADD que agrupan el cargo de Distribución de empresas que comparten ciertas características a través de un cargo unificado denominado DtUN. | M12: La actualización se realiza con el índice de Precios al Productor (IPP). Varía mensualmente | N12: Perdidas: PRn,m,i,j | O12: Resolución CREG 119 de 20017 modificada por la Resolución CREG 173 de 2011 | P12: Costo de compra, transporte y reducción de pérdidas de energía acumuladas hasta el nivel de tensión n, para el mes m, del comercializador minorista. | Q12: Corresponde al costo reconocido de pérdidas de energía que por razones técnicas o no técnicas se pierden en el STN, STR, SDL; así como los costos de los programas de reducción de pérdidas no técnicas que se realicen por mercado de comercialización | R12: Varía por empresa de acuerdo al costo aprobado. | S12: Tarifas de Energía Eléctrica La tarifa de energía eléctrica es el resultado de aplicar al Costo Unitario de Prestación del Servicio, los principios del Fondo de Solidaridad para Subsidios y Redistribución de Ingreso (FSSRI) donde dependiendo el estrato socioeconómico se aplica un subsidio o una contribución. Como resultado de lo anterior, los usuarios de los estratos 1, 2 y 3 (usuarios de menores ingresos), reciben subsidios por concepto del FSSRI de hasta el 60%, 50% y hasta 15% respectivamente, sobre el CU, aplicables al denominado Consumo de Subsistencia (CS). En línea de lo anterior, el valor del porcentaje aplicado a cada estrato es el resultado de aplicar la metodologia respetando los rangos descritos anteriormente y solo hasta el consumo de subsistencia, es decir que, si un usuario con derecho al subsidio consumió en el mes un valor por encima del CS, a partir del CS se le cobrará la energía con la tarifa plena correspondiente a la definida para el estrato 4. Los usuarios de los estratos 5 y 6 (usuarios residenciales de mayores ingresos), así como los usuarios pertenecientes al sector comercial e industrial, pagan una contribución del 20% sobre el CU, con destino a cubrir los subsidios otorgados a los usuarios de los estratos 1, 2 y 3. Consumo de Subsistencia definido en la Resolución UPME 0355/04. Hasta 130 kWh/mes para usuarios ubicados a un altura superior a los 1.000 m.s.n.m y hasta 173 kWh/mes para usuarios ubicados a un altura inferior a los 1.000 m.s.n.m. Regulación Vigente: Res. CREG 003 de 2021.

Sheet INDICE
A7: Información tarifaria del servicio público de energía eléctrica | G7: MEDIDAS TRANSITORIAS RESOLUCIONES CREG 101 027 de 2022 y CREG 101 031 de 2022
A8: para el comercializador integrado al operador de red
A9: Fecha de publicación del documento: Corte a diciembre 2023
A10: Este documento presenta la información reportada por las empresas prestadoras del servicio de energía eléctrica en el Sistema Único de Información. No implica validación de la Superservicios. A continuación encontrará el listado de las empresas sobre las cuales puede consultar el costo unitario y la tarifa de prestación del servicio.
B13: No. | C13: Empresa | D13: Mercado de Comercialización | E13: ADD
B14: 1 | C14: CEDENAR S.A. E.S.P. | D14: NARIÑO | E14: OCCIDENTE | H14: Componente de Transmisión
B15: 2 | C15: CELSIA COLOMBIA S.A. E.S.P. | D15: CELSIA VALLE DEL CAUCA | E15: OCCIDENTE | H15: Componente de Distribución
B16: 3 | C16: CELSIA COLOMBIA S.A. E.S.P. | D16: TOLIMA | E16: ORIENTE | H16: Evolución ADD
B17: 4 | C17: CENS S.A. E.S.P. | D17: NORTE DE SANTANDER | E17: CENTRO | H17: Variaciones CU
B18: 5 | C18: CEO S.A.S. E.S.P. | D18: CAUCA | E18: OCCIDENTE | H18: Variaciones Tarifas
B19: 6 | C19: CETSA S.A. E.S.P. | D19: TULUA | E19: OCCIDENTE | H19: Alfas
B20: 7 | C20: CHEC S.A. E.S.P. | D20: CALDAS | E20: CENTRO
B21: 8 | C21: ENEL COLOMBIA S.A. E.S.P. | D21: BOGOTÁ - CUNDINAMARCA CREG 199/16 | E21: ORIENTE
B22: 9 | C22: DISPAC S.A. E.S.P. | D22: CHOCO | E22: SIN ADD
B23: 10 | C23: EBSA S.A. E.S.P. | D23: BOYACA | E23: ORIENTE
B24: 11 | C24: EDEQ S.A. E.S.P. | D24: QUINDIO | E24: CENTRO
B25: 12 | C25: EE PUTUMAYO S.A. E.S.P. | D25: PUTUMAYO | E25: SUR
B26: 13 | C26: EEBP S.A. E.S.P. | D26: BAJO PUTUMAYO | E26: SUR
B27: 14 | C27: EEP S.A. E.S.P. (Pereira) | D27: PEREIRA | E27: CENTRO
B28: 15 | C28: AIR-E S.A.S. E.S.P. | D28: CARIBE SOL | E28: SIN ADD
B29: 16 | C29: CARIBEMAR DE LA COSTA S.A.S. E.S.P. (AFINIA) | D29: CARIBE MAR | E29: SIN ADD
B30: 17 | C30: ELECTROCAQUETÁ S.A. E.S.P. | D30: CAQUETÁ | E30: SUR
B31: 18 | C31: ELECTROHUILA S.A. E.S.P. | D31: HUILA | E31: ORIENTE
B32: 19 | C32: EMCALI E.I.C.E. E.S.P. | D32: CALI - YUMBO - PUERTO TEJADA | E32: OCCIDENTE
B33: 20 | C33: EEP S.A. E.S.P. (Cartago) | D33: CARTAGO | E33: OCCIDENTE
B34: 21 | C34: EMEESA S.A. E.S.P. | D34: POPAYÁN - PURACÉ | E34: OCCIDENTE
B35: 22 | C35: EMEVASI S.A. E.S.P. | D35: SIBUNDOY | E35: SUR
B36: 23 | C36: EMSA S.A. E.S.P. | D36: META | E36: SUR
B37: 24 | C37: ENELAR S.A. E.S.P. | D37: ARAUCA | E37: ORIENTE
B38: 25 | C38: ENERCA S.A. E.S.P. | D38: CASANARE | E38: SUR
B39: 26 | C39: ENERGUVIARE E.S.P. | D39: GUAVIARE | E39: SIN ADD
B40: 27 | C40: EPM E.S.P. | D40: ANTIOQUIA CREG 078/07 | E40: CENTRO
B41: 28 | C41: ESSA S.A. E.S.P. | D41: SANTANDER | E41: CENTRO
B42: 29 | C42: RUITOQUE S.A. E.S.P. | D42: RUITOQUE | E42: CENTRO

Sheet 1. CEDENAR
J1: REGRESAR
B2: EMPRESA: | D2: CENTRALES ELÉCTRICAS DE NARIÑO S.A. E.S.P. (ID 520)
B3: MERCADO: | D3: NARIÑO
B5: 1. COSTO UNITARIO DE PRESTACIÓN DEL SERVICIO Nivel de Tensión 1, Propiedad de Activos del OR | O5: 2. TARIFA AL USUARIO FINAL Nivel de Tensión 1, Propiedad de Activos del OR (estrato 1, 2 y 3 hasta el CS) | Y5: 3. OPCIÓN TARIFARIA Nivel de Tensión 1, Propiedad de Activos del OR
C6: AÑO | D6: PERIODO | E6: GM | F6: TM | G6: PR | H6: D | I6: CV | J6: RM | K6: CUV_119 | L6: CUV_Op | P6: AÑO | Q6: PERIODO | R6: ESTRATO 1 | S6: ESTRATO 2 | T6: ESTRATO 3 | U6: ESTRATO 4 | V6: ESTRATO 5 y 6, Ind y Com
B7: Ene-23 | C7: 2023 | D7: 1 | E7: 299.19 | F7: 51.97 | G7: 56.92 | H7: 268.32 | I7: 145.99 | J7: 22.79 | K7: 845.19 | L7: 817.46 | O7: Ene-23 | P7: 2023 | Q7: 1 | R7: 327.39 | S7: 409.23 | T7: 694.84 | U7: 817.46 | V7: 980.95
B8: Feb-23 | C8: 2023 | D8: 2 | E8: 324.66 | F8: 48.71 | G8: 72.81 | H8: 276.7 | I8: 148.25 | J8: 21.44 | K8: 892.56 | L8: 828.33 | O8: Feb-23 | P8: 2023 | Q8: 2 | R8: 333.2 | S8: 416.5 | T8: 704.08 | U8: 828.33 | V8: 994
B9: Mar-23 | C9: 2023 | D9: 3 | E9: 377.45 | F9: 52.3669 | G9: 81.73 | H9: 279.31 | I9: 152.91 | J9: 17.48 | K9: 961.26 | L9: 842.08 | O9: Mar-23 | P9: 2023 | Q9: 3 | R9: 338.74 | S9: 423.42 | T9: 715.77 | U9: 842.08 | V9: 1010.5
B10: Abr-23 | C10: 2023 | D10: 4 | E10: 338.12 | F10: 53.52 | G10: 75.57 | H10: 266.48 | I10: 157.77 | J10: 40.99 | K10: 932.46 | L10: 853.45 | O10: Abr-23 | P10: 2023 | Q10: 4 | R10: 342.3 | S10: 427.87 | T10: 725.43 | U10: 853.45 | V10: 1024.14
B11: May-23 | C11: 2023 | D11: 5 | E11: 266.07 | F11: 48.53 | G11: 63.26 | H11: 262.12 | I11: 165.29 | J11: 39.12 | K11: 844.4 | L11: 862.67 | O11: May-23 | P11: 2023 | Q11: 5 | R11: 347.45 | S11: 434.31 | T11: 733.27 | U11: 862.67 | V11: 1035.2
B12: Jun-23 | C12: 2023 | D12: 6 | E12: 362.01131 | F12: 50.70291 | G12: 77.92814 | H12: 263.88393 | I12: 152.13947 | J12: 16.47208 | K12: 923.13784 | L12: 869.05135 | O12: Jun-23 | P12: 2023 | Q12: 6 | R12: 348.9644 | S12: 436.20551 | T12: 738.69364 | U12: 869.05135 | V12: 1042.86162
B13: Jul-23 | C13: 2023 | D13: 7 | E13: 326.27 | F13: 40.87 | G13: 71.79 | H13: 267.66 | I13: 160.36 | J13: 24.47 | K13: 891.42 | L13: 874.27 | O13: Jul-23 | P13: 2023 | Q13: 7 | R13: 350.01 | S13: 437.51 | T13: 743.13 | U13: 874.27 | V13: 1049.12
B14: Ago-23 | C14: 2023 | D14: 8 | E14: 317.27 | F14: 46.96 | G14: 71.17 | H14: 259.75 | I14: 152.83 | J14: 13.32 | K14: 861.3 | L14: 881.26 | O14: Ago-23 | P14: 2023 | Q14: 8 | R14: 352.5 | S14: 440.63 | T14: 749.07 | U14: 881.26 | V14: 1057.51
B15: Sep-23 | C15: 2023 | D15: 9 | E15: 313.34272 | F15: 47.01951 | G15: 69.57982 | H15: 258.13007 | I15: 156.57109 | J15: 18.36862 | K15: 863.01183 | L15: 890.07238 | O15: Sep-23 | P15: 2023 | Q15: 9 | R15: 356.02895 | S15: 445.03619 | T15: 756.56152 | U15: 890.07238 | V15: 1068.08685
B16: Oct-23 | C16: 2023 | D16: 10 | E16: 287.08 | F16: 48.6 | G16: 65.98 | H16: 277.34 | I16: 155.98 | J16: 0.44 | K16: 835.42 | L16: 916.77 | O16: Oct-23 | P16: 2023 | Q16: 10 | R16: 366.71 | S16: 458.39 | T16: 779.26 | U16: 916.77 | V16: 1100.13
B17: Nov-23 | C17: 2023 | D17: 11 | E17: 291.41 | F17: 46.25 | G17: 56.47 | H17: 276.75 | I17: 153.66 | J17: 3.11 | K17: 827.65 | L17: 925.94 | O17: Nov-23 | P17: 2023 | Q17: 11 | R17: 370.38 | S17: 462.97 | T17: 787.05 | U17: 925.94 | V17: 1111.13
B18: Dic-23 | C18: 2023 | D18: 12 | E18: 284.6 | F18: 51.24 | G18: 57.29 | H18: 267.32 | I18: 158.09 | J18: 20.81 | K18: 839.33 | L18: 931.5 | O18: Dic-23 | P18: 2023 | Q18: 12 | R18: 372.6 | S18: 465.75 | T18: 791.77 | U18: 931.5 | V18: 1117.8
B19: * Pesos corrientes | E19: =+(E18-E17)/E17 -> -0.02336913627 | F19: 0.1078918919 | G19: 0.01452098459 | H19: -0.03407407407 | I19: 0.02882988416 | J19: =+(J18-J17)/J17 -> 5.691318328 | K19: 0.01411224551 | L19: 0.006004708728 | O19: * Pesos corrientes | R19: =+(R18-R17)/R17 -> 0.00599384416 | S19: =+(S18-S17)/S17 -> 0.006004708728 | T19: =+(T18-T17)/T17 -> 0.005997077695 | U19: =+(U18-U17)/U17 -> 0.006004708728 | V19: =+(V18-V17)/V17 -> 0.006002897951
Y26: CUV_119 | Z26: Costo Unitario de Prestación del Servicio resultado de aplicar la metodología establecida en la Res. CREG 119 de 2007.
Y29: CUV_Op | Z29: Costo Unitario de Prestación del Servicio resultado de aplicar la metodología establecida en la Res. CREG 012 de 2020. Opción Tarifaria

Sheet 2. CELSIA COLOMBIA Valle
I1: REGRESAR
A2: EMPRESA: | C2: CELSIA COLOMBIA S.A. E.S.P. (536)
A3: MERCADO: | C3: CELSIA VALLE DEL CAUCA
A5: 1. COSTO UNITARIO DE PRESTACIÓN DEL SERVICIO Nivel de Tensión 1, Propiedad de Activos del OR | M5: 2. TARIFA AL USUARIO FINAL Nivel de Tensión 1, Propiedad de Activos del OR (estrato 1, 2 y 3 hasta el CS) | X5: 3. OPCIÓN TARIFARIA Nivel de Tensión 1, Propiedad de Activos del OR
B6: AÑO | C6: PERIODO | D6: GM | E6: TM | F6: PR | G6: D | H6: CV | I6: RM | J6: CUV_119 | K6: CUV_Op | N6: AÑO | O6: PERIODO | P6: ESTRATO 1 | Q6: ESTRATO 2 | R6: ESTRATO 3 | S6: ESTRATO 4 | T6: ESTRATO 5 y 6, Ind y Com
A7: Ene-23 | B7: 2023 | C7: 1 | D7: 297.88 | E7: 51.97 | F7: 59.41 | G7: 268.32 | H7: 110.11 | I7: 19.93 | J7: 807.62 | K7: 799 | M7: Ene-23 | N7: 2023 | O7: 1 | P7: 319.6 | Q7: 399.5 | R7: 679.15 | S7: 799 | T7: 958.8
A8: Feb-23 | B8: 2023 | C8: 2 | D8: 291.56 | E8: 48.71 | F8: 58.08 | G8: 276.7 | H8: 108.35 | I8: 19 | J8: 802.4 | K8: 815.6 | M8: Feb-23 | N8: 2023 | O8: 2 | P8: 326.24 | Q8: 407.8 | R8: 693.26 | S8: 815.6 | T8: 978.72
A9: Mar-23 | B9: 2023 | C9: 3 | D9: 303.12 | E9: 52.37 | F9: 60.12 | G9: 279.31 | H9: 114.79 | I9: 16.46 | J9: 826.17 | K9: 831.59 | M9: Mar-23 | N9: 2023 | O9: 3 | P9: 332.64 | Q9: 415.79 | R9: 706.85 | S9: 831.59 | T9: 997.908
A10: Abr-23 | B10: 2023 | C10: 4 | D10: 288.48 | E10: 53.52 | F10: 57.95 | G10: 266.48 | H10: 117.37 | I10: 34.83 | J10: 818.6 | K10: 842.82 | M10: Abr-23 | N10: 2023 | O10: 4 | P10: 337.13 | Q10: 421.41 | R10: 716.4 | S10: 842.82 | T10: 1011.384
A11: May-23 | B11: 2023 | C11: 5 | D11: 277.73 | E11: 48.53 | F11: 55.55 | G11: 262.12 | H11: 115.25 | I11: 34.92 | J11: 794.1 | K11: 851.94 | M11: May-23 | N11: 2023 | O11: 5 | P11: 340.78 | Q11: 425.97 | R11: 724.15 | S11: 851.94 | T11: =+S11*1.2 -> 1022.328
A12: Jun-23 | B12: 2023 | C12: 6 | D12: 327.28 | E12: 50.7 | F12: 62.18 | G12: 263.88 | H12: 116.72 | I12: 16.22 | J12: 836.98 | K12: 858.22 | M12: Jun-23 | N12: 2023 | O12: 6 | P12: 343.29 | Q12: 429.11 | R12: 729.49 | S12: 858.22 | T12: 1029.86
A13: Jul-23 | B13: 2023 | C13: 7 | D13: 294.59 | E13: 40.87 | F13: 57.17 | G13: 267.66 | H13: 113.63 | I13: 21.42 | J13: 795.34 | K13: 863.37 | M13: Jul-23 | N13: 2023 | O13: 7 | P13: 345.35 | Q13: 431.68 | R13: 733.86 | S13: 863.37 | T13: 1036.044
A14: Agos-23 | B14: 2023 | C14: 8 | D14: 297.68 | E14: 46.96 | F14: 58.63 | G14: 259.75 | H14: 108.26 | I14: 12.27 | J14: 783.55 | K14: 870.28 | M14: Ago-23 | N14: 2023 | O14: 8 | P14: 348.11 | Q14: 435.14 | R14: 739.74 | S14: 870.28 | T14: 1044.336
A15: Sep-23 | B15: 2023 | C15: 9 | D15: 312.04 | E15: 47.02 | F15: 60.06 | G15: 258.13 | H15: 110.83 | I15: 16.48 | J15: 804.56 | K15: 878.98 | M15: Sep-23 | N15: 2023 | O15: 9 | P15: 351.59 | Q15: 439.49 | R15: 747.13 | S15: 878.98 | T15: 1054.78
A16: Oct-23** | B16: 2023 | C16: 10 | D16: 366.73 | E16: 48.6 | F16: 69.2 | G16: 277.34 | H16: 108.66 | I16: -1.96 | J16: 868.57 | K16: 898.32 | M16: Oct-23 | N16: 2023 | O16: 10 | P16: 359.33 | Q16: 449.16 | R16: 763.57 | S16: 898.32 | T16: =+S16*1.2 -> 1077.984
A17: Nov-23 | B17: 2023 | C17: 11 | D17: 371.28 | E17: 46.25 | F17: 68.98 | G17: 276.75 | H17: 108.05 | I17: 1.94 | J17: 873.25 | K17: 918.98 | M17: Nov-23 | N17: 2023 | O17: 11 | P17: 367.59 | Q17: 459.49 | R17: 781.13 | S17: 918.98 | T17: =+S17*1.2 -> 1102.776
A18: Dic-23 | B18: 2023 | C18: 12 | D18: 349.34 | E18: 51.24 | F18: 67.75 | G18: 267.32 | H18: 165.9 | I18: 20.1 | J18: 921.65 | M18: Dic-23 | N18: 2023 | O18: 12 | P18: 369.31 | Q18: 461.65 | R18: 783.4 | S18: 921.65 | T18: =+S18*1.2 -> 1105.98
A19: * Pesos corrientes | D19: =+(D18-D17)/D17 -> -0.05909286792 | E19: =+(E18-E17)/E17 -> 0.1078918919 | F19: -0.01783125544 | G19: -0.03407407407 | H19: 0.5354002776 | I19: 9.360824742 | J19: 0.05542513599 | K19: -1 | M19: * Pesos corrientes | P19: =+(P18-P17)/P17 -> 0.0046791262 | Q19: 0.004700864001 | R19: 0.002906046369 | S19: 0.002905395112 | T19: 0.002905395112
A20: ** Republicación
V25: CUV_119 | W25: Costo Unitario de Prestación del Servicio resultado de aplicar la metodología establecida en la Res. CREG 119 de 2007.
V28: CUV_Op | W28: Costo Unitario de Prestación del Servicio resultado de aplicar la metodología establecida en la Res. CREG 012 de 2020. Opción Tarifaria

Sheet 3. CELSIA COLOMBIA Tolima
I1: REGRESAR
A2: EMPRESA: | C2: CELSIA COLOMBIA S.A. E.S.P. (536)
A3: MERCADO: | C3: TOLIMA
A5: 1. COSTO UNITARIO DE PRESTACIÓN DEL SERVICIO Nivel de Tensión 1, Propiedad de Activos del OR | N5: 2. TARIFA AL USUARIO FINAL Nivel de Tensión 1, Propiedad de Activos del OR (estrato 1, 2 y 3 hasta el CS) | W5: 3. OPCIÓN TARIFARIA Nivel de Tensión 1, Propiedad de Activos del OR
B6: AÑO | C6: PERIODO | D6: GM | E6: TM | F6: PR | G6: D | H6: CV | I6: RM | J6: CUV_119 | K6: CUV_Op | O6: AÑO | P6: PERIODO | Q6: ESTRATO 1 | R6: ESTRATO 2 | S6: ESTRATO 3 | T6: ESTRATO 4 | U6: ESTRATO 5 y 6, Ind y Com
A7: Ene-23 | B7: 2023 | C7: 1 | D7: 297.11 | E7: 51.97 | F7: 89.89 | G7: 244.9 | H7: 91.74 | I7: 19.93 | J7: 795.54 | K7: 779.93 | N7: Ene-23 | O7: 2023 | P7: 1 | Q7: 311.97 | R7: 389.97 | S7: 662.94 | T7: 779.93 | U7: 935.916
A8: Feb-23 | B8: 2023 | C8: 2 | D8: 291.76 | E8: 48.71 | F8: 88.13 | G8: 248.76 | H8: 92.97 | I8: 19 | J8: 789.33 | K8: 796.13 | N8: Feb-23 | O8: 2023 | P8: 2 | Q8: 318.45 | R8: 398.07 | S8: 676.71 | T8: 796.13 | U8: 955.356
A9: Mar-23 | B9: 2023 | C9: 3 | D9: 303.32 | E9: 52.37 | F9: 91.46 | G9: 265.99 | H9: 92.07 | I9: 16.46 | J9: 821.67 | K9: 811.74 | N9: Mar-23 | O9: 2023 | P9: 3 | Q9: 324.7 | R9: 405.87 | S9: 689.98 | T9: 811.74 | U9: 974.088
A10: Abr-23 | B10: 2023 | C10: 4 | D10: 288.45 | E10: 53.52 | F10: 83.9 | G10: 263.18 | H10: 95.51 | I10: 34.83 | J10: 819.6 | K10: 822.7 | N10: Abr-23 | O10: 2023 | P10: 4 | Q10: 329.08 | R10: 411.35 | S10: 699.29 | T10: 822.7 | U10: 987.24
A11: May-23 | B11: 2023 | C11: 5 | D11: 278 | E11: 48.53 | F11: 80.43 | G11: 253.4 | H11: 97.76 | I11: 34.92 | J11: 793.04 | K11: 831.6 | N11: May-23 | O11: 2023 | P11: 5 | Q11: 332.64 | R11: 415.8 | S11: 706.86 | T11: 831.6 | U11: 997.92
A12: Jun-23 | B12: 2023 | C12: 6 | D12: 327.63 | E12: 50.7 | F12: 90.26 | G12: 254.33 | H12: 97.26 | I12: 16.22 | J12: 836.4 | K12: 837.73 | N12: Jun-23 | O12: 2023 | P12: 6 | Q12: 335.09 | R12: 418.86 | S12: 712.07 | T12: 837.73 | U12: 1005.28
A13: Jul-23 | B13: 2023 | C13: 7 | D13: 295.02 | E13: 40.87 | F13: 82.78 | G13: 258.28 | H13: 97.47 | I13: 21.42 | J13: 795.84 | K13: 842.76 | N13: Jul-23 | O13: 2023 | P13: 7 | Q13: 337.1 | R13: 421.38 | S13: 716.35 | T13: 842.76 | U13: 1011.312
A14: Ago-23 | B14: 2023 | C14: 8 | D14: 298.27 | E14: 46.96 | F14: 85 | G14: 252.14 | H14: 92.74 | I14: 12.27 | J14: 787.38 | K14: 849.51 | N14: Ago-23 | O14: 2023 | P14: 8 | Q14: 339.8 | R14: 424.76 | S14: 722.08 | T14: 849.51 | U14: 1019.412
A15: Sep-23 | B15: 2023 | C15: 9 | D15: 312.61 | E15: 47.02 | F15: 87.26 | G15: 250.01 | H15: 90.96 | I15: 16.48 | J15: 804.34 | K15: 858 | N15: Sep-23 | O15: 2023 | P15: 9 | Q15: 343.2 | R15: 429 | S15: 729.3 | T15: 858 | U15: 1029.6
A16: Oct-23 | B16: 2023 | C16: 10 | D16: 367.51 | E16: 48.6 | F16: 100.35 | G16: 263.05 | H16: 91.9 | I16: -1.96 | J16: 869.45 | K16: 899.18 | N16: Oct-23 | O16: 2023 | P16: 10 | Q16: 359.67 | R16: 449.59 | S16: 764.3 | T16: 899.18 | U16: =+T16*1.2 -> 1079.016
A17: Nov-23 | B17: 2023 | C17: 11 | D17: 371.88 | E17: 46.25 | F17: 100.13 | G17: 261.68 | H17: 92.87 | I17: 1.94 | J17: 874.75 | K17: 939.64 | N17: Nov-23 | O17: 2023 | P17: 11 | Q17: 375.86 | R17: 469.82 | S17: 798.69 | T17: 939.64 | U17: =+T17*1.2 -> 1127.568
A18: Dic-23 | B18: 2023 | C18: 12 | D18: 347.83 | E18: 51.24 | F18: 97.36 | G18: 266.43 | H18: 184.57 | I18: 20.1 | J18: 967.53 | N18: Dic-23 | O18: 2023 | P18: 12 | Q18: 387.01 | R18: 483.77 | S18: 822.4 | T18: 967.53 | U18: =+T18*1.2 -> 1161.036
A19: * Pesos corrientes | D19: =+(D18-D17)/D17 -> -0.06467139938 | E19: =+(E18-E17)/E17 -> 0.1078918919 | F19: -0.02766403675 | G19: 0.0181519413 | H19: 0.9874017444 | I19: 9.360824742 | J19: 0.1060645899 | K19: -1 | N19: * Pesos corrientes | Q19: =+(Q18-Q17)/Q17 -> 0.02966530091 | R19: =+(R18-R17)/R17 -> 0.02969222255 | S19: =+(S18-S17)/S17 -> 0.02968611101 | T19: =+(T18-T17)/T17 -> 0.02968158018 | U19: =+(U18-U17)/U17 -> 0.02968158018
A20: ** Republicación
W30: CUV_119 | X30: Costo Unitario de Prestación del Servicio resultado de aplicar la metodología establecida en la Res. CREG 119 de 2007.
W33: CUV_Op | X33: Costo Unitario de Prestación del Servicio resultado de aplicar la metodología establecida en la Res. CREG 012 de 2020. Opción Tarifaria

Sheet 4. CENS
I1: REGRESAR
A2: EMPRESA: | B2: CENTRALES ELÉCTRICAS DE NORTE DE SANTANDER S.A. E.S.P. (604)
A3: MERCADO: | B3: NORTE DE SANTANDER
A5: 1. COSTO UNITARIO DE PRESTACIÓN DEL SERVICIO Nivel de Tensión 1, Propiedad de Activos del OR | N5: 2. TARIFA AL USUARIO FINAL Nivel de Tensión 1, Propiedad de Activos del OR (estrato 1, 2 y 3 hasta el CS) | W5: 3. OPCIÓN TARIFARIA Nivel de Tensión 1, Propiedad de Activos del OR
B6: AÑO | C6: PERIODO | D6: GM | E6: TM | F6: PR | G6: D | H6: CV | I6: RM | J6: CUV_119 | K6: CUV_Op | O6: AÑO | P6: PERIODO | Q6: ESTRATO 1 | R6: ESTRATO 2 | S6: ESTRATO 3 | T6: ESTRATO 4 | U6: ESTRATO 5 y 6, Ind y Com
A7: Ene-23 | B7: 2023 | C7: 1 | D7: 273.53 | E7: 51.97 | F7: 66.66 | G7: 289.27 | H7: 74.28 | I7: 21.73 | J7: 777.45 | K7: 784.59 | N7: Ene-23 | O7: 2023 | P7: 1 | Q7: 315.14 | R7: 393.93 | S7: 666.9 | T7: 784.59 | U7: 941.51
A8: Feb-23 | B8: 2023 | C8: 2 | D8: 294.05 | E8: 48.71 | F8: 70.07 | G8: 294.99 | H8: 77.31 | I8: 16.46 | J8: 801.59 | K8: 798.54 | N8: Feb-23 | O8: 2023 | P8: 2 | Q8: 320.74 | R8: 400.93 | S8: 678.76 | T8: 798.54 | U8: 958.25
A9: Mar-23 | B9: 2023 | C9: 3 | D9: 339.02 | E9: 52.37 | F9: 79.87 | G9: 315.34 | H9: 78.36 | I9: 16.84 | J9: 881.79 | K9: 811.8 | N9: Mar-23 | O9: 2023 | P9: 3 | Q9: 326.0682 | R9: 407.5853 | S9: 690.0294 | T9: 811.8 | U9: 974.16
A10: Abr-23 | B10: 2023 | C10: 4 | D10: 297.59 | E10: 53.52 | F10: 71.41 | G10: 315.26 | H10: 81.59 | I10: 36.78 | J10: 856.15 | K10: 820.33 | N10: Abr-23 | O10: 2023 | P10: 4 | Q10: 329.49 | R10: 411.87 | S10: 697.28 | T10: 820.33 | U10: 984.39
A11: May-23 | B11: 2023 | C11: 5 | D11: 280.51 | E11: 48.53 | F11: 67.15 | G11: 300.59 | H11: 82.34 | I11: 39.3 | J11: 818.43 | K11: 826.74 | N11: May-23 | O11: 2023 | P11: 5 | Q11: 332.0695 | R11: 415.0826 | S11: 702.7294 | T11: 826.7404 | U11: 992.0885
A12: Jun-23 | B12: 2023 | C12: 6 | D12: 367.92 | E12: 50.7 | F12: 83.26 | G12: 290.15 | H12: 80.22 | I12: 15.89 | J12: 888.14 | K12: 830.35 | N12: Jun-23 | O12: 2023 | P12: 6 | Q12: 333.5198 | R12: 416.8997 | S12: 705.7985 | T12: 830.3512 | U12: 996.4214
A13: Jul-23 | B13: 2023 | C13: 7 | D13: 333.81386 | E13: 40.8702 | F13: 75.9582 | G13: 300.03826 | H13: 78.31444 | I13: 24.23383 | J13: 853.22879 | K13: 832.84138 | N13: Jul-23 | O13: 2023 | P13: 7 | Q13: 334.52 | R13: 418.15 | S13: 707.9152 | T13: 832.8414 | U13: 999.4097
A14: Ago-23 | B14: 2023 | C14: 8 | D14: 340.03 | E14: 46.96 | F14: 78.55 | G14: 299.02 | H14: 75.92 | I14: 12.7 | J14: 853.19 | K14: 837.0124 | N14: Ago-23 | O14: 2023 | P14: 8 | Q14: 336.1954 | R14: 420.2442 | S14: 711.4606 | T14: 837.0124 | U14: 1004.4149
A15: Sep-23 | B15: 2023 | C15: 9 | D15: 364.56171 | E15: 47.0195 | F15: 83.4687 | G15: 287.59995 | H15: 77.13199 | I15: 18.47704 | J15: 878.25889 | K15: 842.86436 | N15: Sep-23 | O15: 2023 | P15: 9 | Q15: 338.5458 | R15: 423.1823 | S15: 716.4347 | T15: 842.8644 | U15: 1011.4372
A16: Oct-23 | B16: 2023 | C16: 10 | D16: 377.6745 | E16: 48.5999 | F16: 85.0711 | G16: 286.7896 | H16: 76.3758 | I16: 0.6392 | J16: 875.1501 | K16: 925.4651 | N16: Oct-23 | O16: 2023 | P16: 10 | Q16: 371.7233 | R16: 464.6542 | S16: 786.6453 | T16: 925.4651 | U16: 1110.5581
A17: Nov-23 | B17: 2023 | C17: 11 | D17: 378.7623 | E17: 46.251 | F17: 84.3178 | G17: 298.0835 | H17: 73.9511 | I17: -0.0696 | J17: 881.2962 | K17: 938.4216 | N17: Nov-23 | O17: 2023 | P17: 11 | Q17: 376.9275 | R17: 471.1593 | S17: 797.6583 | T17: 938.4216 | U17: 1126.1059
A18: Dic-23 | B18: 2023 | C18: 12 | D18: 375.1065 | E18: 51.2352 | F18: 86.4387 | G18: 299.4023 | H18: 123.1021 | I18: 19.2552 | J18: 954.5399 | N18: Dic-23 | O18: 2023 | P18: 12 | Q18: 381.816 | R18: 477.27 | S18: 811.3589 | T18: 954.5399 | U18: 1145.4479
A19: * Pesos corrientes | D19: =+(D18-D17)/D17 -> -0.009651963778 | E19: =+(E18-E17)/E17 -> 0.1077641565 | F19: 0.0251536449 | G19: 0.004424263671 | H19: =+(H18-H17)/H17 -> 0.6646419053 | I19: -277.6551724 | J19: 0.0831090614 | K19: -1 | N19: * Pesos corrientes | Q19: =+(Q18-Q17)/Q17 -> 0.0129693376 | R19: =+(R18-R17)/R17 -> 0.01296949885 | S19: =+(S18-S17)/S17 -> 0.01717602638 | T19: =+(T18-T17)/T17 -> 0.01717596867 | U19: =+(U18-U17)/U17 -> 0.01717600449
W24: CUV_119 | X24: Costo Unitario de Prestación del Servicio resultado de aplicar la metodología establecida en la Res. CREG 119 de 2007.
W27: CUV_Op | X27: Costo Unitario de Prestación del Servicio resultado de aplicar la metodología establecida en la Res. CREG 012 de 2020. Opción Tarifaria

Sheet 5. CEO
I1: REGRESAR
A2: EMPRESA: | B2: COMPAÑÍA ENERGÉTICA DE OCCIDENTE E.S.P. (23442)
A3: MERCADO: | B3: CAUCA
A5: 1. COSTO UNITARIO DE PRESTACIÓN DEL SERVICIO Nivel de Tensión 1, Propiedad de Activos del OR | N5: 2. TARIFA AL USUARIO FINAL Nivel de Tensión 1, Propiedad de Activos del OR (estrato 1, 2 y 3 hasta el CS) | W5: 3. OPCIÓN TARIFARIA Nivel de Tensión 1, Propiedad de Activos del OR
B6: AÑO | C6: PERIODO | D6: GM | E6: TM | F6: PR | G6: D | H6: CV | I6: RM | J6: CUV_119 | K6: CUV_Op | O6: AÑO | P6: PERIODO | Q6: ESTRATO 1 | R6: ESTRATO 2 | S6: ESTRATO 3 | T6: ESTRATO 4 | U6: ESTRATO 5 y 6, Ind y Com
A7: Ene-23 | B7: 2023 | C7: 1 | D7: 296.5741 | E7: 51.9732 | F7: 60.9159 | G7: 268.3198 | H7: 168.1876 | I7: 20.8903 | J7: 866.8609 | N7: Ene-23 | O7: 2023 | P7: 1 | Q7: 368.8333 | R7: 461.0417 | S7: 736.8318 | T7: 866.8609 | U7: 1040.23308
A8: Feb-23 | B8: 2023 | C8: 2 | D8: 323.6716 | E8: 48.7081 | F8: 61.356 | G8: 276.7001 | H8: 164.1928 | I8: 19.9218 | J8: 894.5504 | N8: Feb-23 | O8: 2023 | P8: 2 | Q8: 375.3888 | R8: 469.236 | S8: 760.3678 | T8: 894.5504 | U8: 1073.46048
A9: Mar-23 | B9: 2023 | C9: 3 | D9: 379.818 | E9: 52.3669 | F9: 73.748 | G9: 279.3135 | H9: 173.6801 | I9: 16.1094 | J9: 975.0359 | N9: Mar-23 | O9: 2023 | P9: 3 | Q9: 390.0144 | R9: 487.518 | S9: 828.7805 | T9: 975.0359 | U9: 1170.0431
A10: Abr-23 | B10: 2023 | C10: 4 | D10: 310.49 | E10: 53.521 | F10: 74.475 | G10: 266.4813 | H10: 186.0988 | I10: 35.1507 | J10: 926.2168 | N10: Abr-23 | O10: 2023 | P10: 4 | Q10: 394.1119 | R10: 492.6399 | S10: 787.2843 | T10: 926.2168 | U10: 1111.4602
A11: May-23 | B11: 2023 | C11: 5 | D11: 265.8874 | E11: 48.5314 | F11: 65.2841 | G11: 262.1158 | H11: 185.85 | I11: 36.1753 | J11: 863.8527 | N11: May-23 | O11: 2023 | P11: 5 | Q11: 397.1925 | R11: 496.4907 | S11: 734.2748 | T11: 863.8527 | U11: 1036.6232
A12: Jun-23 | B12: 2023 | C12: 6 | D12: 375.9332 | E12: 50.7029 | F12: 84.52 | G12: 263.8839 | H12: 171.9559 | I12: 16.2765 | J12: 963.2724 | N12: Jun-23 | O12: 2023 | P12: 6 | Q12: 398.9273 | R12: 498.6591 | S12: 818.7815 | T12: 963.2724 | U12: 1155.9269
A13: Jul-23 | B13: 2023 | C13: 7 | D13: 372.7065 | E13: 40.8702 | F13: 84.1561 | G13: 267.6567 | H13: 186.5467 | I13: 23.7774 | J13: 975.7136 | N13: Jul-23 | O13: 2023 | P13: 7 | Q13: 400.1236 | R13: 500.1545 | S13: 829.3566 | T13: 975.7136 | U13: 1170.8563
A14: Ago-23 | B14: 2023 | C14: 8 | D14: 372.4582 | E14: 46.9624 | F14: 85.2888 | G14: 259.7459 | H14: 186.6275 | I14: 12.7679 | J14: 963.8507 | N14: Ago-23 | O14: 2023 | P14: 8 | Q14: 402.1275 | R14: 502.6594 | S14: 819.2731 | T14: 963.8507 | U14: 1156.62084
A15: Sep-23 | B15: 2023 | C15: 9 | D15: 375.4524 | E15: 47.0195 | F15: 84.7731 | G15: 258.1301 | H15: 181.1201 | I15: 17.3936 | J15: 963.8888 | N15: Sep-23 | O15: 2023 | P15: 9 | Q15: 404.939 | R15: 506.1737 | S15: 819.3055 | T15: 963.8888 | U15: 1156.6666
A16: Oct-23 | B16: 2023 | C16: 10 | D16: 379.3963 | E16: 48.5999 | F16: 86.1225 | G16: 277.343 | H16: 183.3142 | I16: 0.446 | J16: 975.2219 | N16: Oct-23 | O16: 2023 | P16: 10 | Q16: 407.0924 | R16: 508.8656 | S16: 828.9386 | T16: 975.2219 | U16: =+T16*1.2 -> 1170.26628
A17: Nov-23 | B17: 2023 | C17: 11 | D17: 380.7558 | E17: 46.251 | F17: 85.2744 | G17: 276.747 | H17: 183.6358 | I17: 2.9477 | J17: 975.6117 | N17: Nov-23 | O17: 2023 | P17: 11 | Q17: 408.1094 | R17: 510.1367 | S17: 829.2699 | T17: 975.6117 | U17: =+T17*1.2 -> 1170.73404
A18: Dic-23 | B18: 2023 | C18: 12 | D18: 375.1033 | E18: 51.2352 | F18: 86.7499 | G18: 267.315 | H18: 191.1809 | I18: 18.9464 | J18: 990.5307 | N18: Dic-23 | O18: 2023 | P18: 12 | Q18: 410.0235 | R18: 512.5294 | S18: 841.9511 | T18: 990.5307 | U18: =+T18*1.2 -> 1188.63684
A19: * Pesos corrientes | D19: =+(D18-D17)/D17 -> -0.01484547314 | E19: =+(E18-E17)/E17 -> 0.1077641565 | F19: =+(F18-F17)/F17 -> 0.01730296549 | G19: -0.03408167026 | H19: 0.04108730433 | I19: 5.427519761 | J19: 0.01529194453 | K19: =+(K18-K17)/K17 ->  | N19: * Pesos corrientes | Q19: =+(Q18-Q17)/Q17 -> 0.004690163961 | R19: =+(R18-R17)/R17 -> 0.00469031144 | S19: 0.01529200565 | T19: 0.01529194453 | U19: 0.01529194453
W29: CUV_119 | X29: Costo Unitario de Prestación del Servicio resultado de aplicar la metodología establecida en la Res. CREG 119 de 2007.
W32: CUV_Op | X32: Costo Unitario de Prestación del Servicio resultado de aplicar la metodología establecida en la Res. CREG 012 de 2020. Opción Tarifaria

Sheet 6. CETSA
I1: REGRESAR
A2: EMPRESA: | C2: COMPAÑÍA DE ELECTRICIDAD DE TULUÁ S.A. E.S.P. (637)
A3: MERCADO: | C3: TULUÁ
A5: 1. COSTO UNITARIO DE PRESTACIÓN DEL SERVICIO Nivel de Tensión 1, Propiedad de Activos del OR | N5: 2. TARIFA AL USUARIO FINAL Nivel de Tensión 1, Propiedad de Activos del OR (estrato 1, 2 y 3 hasta el CS) | W5: 3. OPCIÓN TARIFARIA Nivel de Tensión 1, Propiedad de Activos del OR
B6: AÑO | C6: PERIODO | D6: GM | E6: TM | F6: PR | G6: D | H6: CV | I6: RM | J6: CUV_119 | K6: CUV_Op | O6: AÑO | P6: PERIODO | Q6: ESTRATO 1 | R6: ESTRATO 2 | S6: ESTRATO 3 | T6: ESTRATO 4 | U6: ESTRATO 5 y 6, Ind y Com
A7: Ene-23 | B7: 2023 | C7: 1 | D7: 303.83 | E7: 51.97 | F7: 56.85 | G7: 268.32 | H7: 75.59 | I7: 20.29 | J7: 776.85 | K7: 764.93 | N7: Ene-23 | O7: 2023 | P7: 1 | Q7: 305.97 | R7: 382.47 | S7: 650.19 | T7: 764.93 | U7: 917.916 | W7: 813.07 | X7: 777.31
A8: Feb-23 | B8: 2023 | C8: 2 | D8: 288.99 | E8: 48.71 | F8: 54.23 | G8: 276.7 | H8: 76.04 | I8: 18.29 | J8: 762.96 | K8: 780.82 | N8: Feb-23 | O8: 2023 | P8: 2 | Q8: 312.33 | R8: 390.41 | S8: 663.7 | T8: 780.82 | U8: 936.984 | W8: 785.89 | X8: 750.13
A9: Mar-23 | B9: 2023 | C9: 3 | D9: 310.7 | E9: 52.37 | F9: 57.73 | G9: 279.31 | H9: 77.9 | I9: 16.42 | J9: 794.43 | K9: 796.13 | N9: Mar-23 | O9: 2023 | P9: 3 | Q9: 318.45 | R9: 398.07 | S9: 676.71 | T9: 796.12 | U9: 955.344 | W9: 780.96 | X9: 745.2
A10: Abr-23 | B10: 2023 | C10: 4 | D10: 285.62 | E10: 53.52 | F10: 54.04 | G10: 266.48 | H10: 80.21 | I10: 29.01 | J10: 768.88 | K10: 806.88 | N10: Abr-23 | O10: 2023 | P10: 4 | Q10: 322.75 | R10: 403.44 | S10: 685.85 | T10: 806.88 | U10: 968.256 | W10: 795.87 | X10: 753.17
A11: May-23 | B11: 2023 | C11: 5 | D11: 282.65 | E11: 48.53 | F11: 52.94 | G11: 262.12 | H11: 78.13 | I11: 31.82 | J11: 756.19 | K11: 815.61 | N11: May-23 | O11: 2023 | P11: 5 | Q11: 326.24 | R11: 407.8 | S11: 693.27 | T11: 815.61 | U11: 978.732 | W11: 776.85 | X11: 764.93
A12: Jun-23 | B12: 2023 | C12: 6 | D12: 286.31 | E12: 50.7 | F12: 52.49 | G12: 263.88 | H12: 80.8 | I12: 13.63 | J12: 747.81 | K12: 821.62 | N12: Jun-23 | O12: 2023 | P12: 6 | Q12: 328.65 | R12: 410.81 | S12: 698.38 | T12: 821.62 | U12: 985.94 | W12: 762.96 | X12: 780.82
A13: Jul-23 | B13: 2023 | C13: 7 | D13: 283.95 | E13: 40.87 | F13: 52.1 | G13: 267.66 | H13: 77.86 | I13: 23.82 | J13: 746.26 | K13: 826.55 | N13: Jul-23 | O13: 2023 | P13: 7 | Q13: 330.62 | R13: 413.28 | S13: 702.57 | T13: 826.55 | U13: 991.86 | W13: 794.43 | X13: 796.13
A14: Ago-23 | B14: 2023 | C14: 8 | D14: 280.32 | E14: 46.96 | F14: 52.48 | G14: 259.75 | H14: 76.08 | I14: 12.71 | J14: 728.3 | K14: 833.17 | N14: Agos-23 | O14: 2023 | P14: 8 | Q14: 333.27 | R14: 416.59 | S14: 708.19 | T14: 833.17 | U14: 999.804 | W14: 768.88 | X14: 806.88
A15: Sep-23 | B15: 2023 | C15: 9 | D15: 290 | E15: 47.02 | F15: 53.15 | G15: 258.13 | H15: 76.62 | I15: 16.66 | J15: 741.58 | K15: 841.49 | N15: Sep-23 | O15: 2023 | P15: 9 | Q15: 336.6 | R15: 420.74 | S15: 715.27 | T15: 841.49 | U15: 1009.79 | W15: 756.19 | X15: 815.61
A16: Oct-23 | B16: 2023 | C16: 10 | D16: 357.07 | E16: 48.6 | F16: 63.69 | G16: 277.34 | H16: 75.49 | I16: -1.83 | J16: 820.36 | K16: 860 | N16: Oct-23 | O16: 2023 | P16: 10 | Q16: 344 | R16: 430 | S16: 731 | T16: 860 | U16: =+T16*1.2 -> 1032 | W16: 747.81 | X16: 821.62
A17: Nov-23 | B17: 2023 | C17: 11 | D17: 360.23 | E17: 46.25 | F17: 63.25 | G17: 276.75 | H17: 75.45 | I17: 2 | J17: 823.93 | K17: 879.78 | N17: Nov-23 | O17: 2023 | P17: 11 | Q17: 351.91 | R17: 439.89 | S17: 747.81 | T17: 879.78 | U17: =+T17*1.2 -> 1055.736 | W17: 746.26 | X17: 826.55
A18: Dic-23 | B18: 2023 | C18: 12 | D18: 328.84 | E18: 51.24 | F18: 60.6 | G18: 267.32 | H18: 159.4 | I18: 20.87 | J18: 888.27 | N18: Dic-23 | O18: 2023 | P18: 12 | Q18: 355.31 | R18: 444.14 | S18: 755.03 | T18: 888.27 | U18: =+T18*1.2 -> 1065.924 | W18: 728.3 | X18: 833.17
A19: * Pesos corrientes | D19: =+(D18-D17)/D17 -> -0.08713877245 | E19: =+(E18-E17)/E17 -> 0.1078918919 | F19: -0.0418972332 | G19: -0.03407407407 | H19: 1.112657389 | I19: 9.435 | J19: 0.07808915806 | K19: -1 | N19: * Pesos corrientes | Q19: =+(Q18-Q17)/Q17 -> 0.009661561195 | R19: =+(R18-R17)/R17 -> 0.009661506286 | S19: =+(S18-S17)/S17 -> 0.009654858855 | T19: =+(T18-T17)/T17 -> 0.009650139808 | U19: =+(U18-U17)/U17 -> 0.009650139808
A20: ** Republicación
W25: CUV_119 | X25: Costo Unitario de Prestación del Servicio resultado de aplicar la metodología establecida en la Res. CREG 119 de 2007.
W28: CUV_Op | X28: Costo Unitario de Prestación del Servicio resultado de aplicar la metodología establecida en la Res. CREG 012 de 2020. Opción Tarifaria

Sheet 7. CHEC
I1: REGRESAR
A3: EMPRESA: | B3: CENTRAL HIDROELÉCTRICA DE CALDAS S.A. E.S.P. (502)
A4: MERCADO: | C4: CALDAS
A6: 1. COSTO UNITARIO DE PRESTACIÓN DEL SERVICIO Nivel de Tensión 1, Propiedad de Activos del OR | N6: 2. TARIFA AL USUARIO FINAL Nivel de Tensión 1, Propiedad de Activos del OR (estrato 1, 2 y 3 hasta el CS) | W6: 3. OPCIÓN TARIFARIA Nivel de Tensión 1, Propiedad de Activos del OR
B8: AÑO | C8: PERIODO | D8: GM | E8: TM | F8: PR | G8: D | H8: CV | I8: RM | J8: CUV_119 | K8: CUV_Op | O8: AÑO | P8: PERIODO | Q8: ESTRATO 1 | R8: ESTRATO 2 | S8: ESTRATO 3 | T8: ESTRATO 4 | U8: ESTRATO 5 y 6, Ind y Com
A9: Ene-23 | B9: 2023 | C9: 1 | D9: 302.7469 | E9: 51.9732 | F9: 60.1984 | G9: 289.2746 | H9: 94.2924 | I9: 20.8341 | J9: 819.32 | K9: 721.4558 | N9: Ene-23 | O9: 2023 | P9: 1 | Q9: 289.7871 | R9: 362.2339 | S9: 613.2374 | T9: 721.4558 | U9: 865.747
A10: Feb-23 | B10: 2023 | C10: 2 | D10: 292.6325 | E10: 48.708 | F10: 58.2028 | G10: 294.9944 | H10: 99.205 | I10: 18.3239 | J10: 812.0669 | K10: 734.279 | N10: Feb-23 | O10: 2023 | P10: 2 | Q10: 294.9378 | R10: 368.6722 | S10: 624.1372 | T10: 734.279 | U10: 881.1348
A11: Mar-23 | B11: 2023 | C11: 3 | D11: 315.6076 | E11: 52.3669 | F11: 61.9479 | G11: 315.3362 | H11: 98.2608 | I11: 15.933 | J11: 859.4526 | K11: 746.4724 | N11: Mar-23 | O11: 2023 | P11: 3 | Q11: 299.8355 | R11: 374.7944 | S11: 634.5015 | T11: 746.47 | U11: 895.7669
A12: Abr-23 | B12: 2023 | C12: 4 | D12: 287.8296 | E12: 53.521 | F12: 57.9216 | G12: 315.255 | H12: 102.3177 | I12: 34.5655 | J12: 851.4106 | K12: 754.3148 | N12: Abr-23 | O12: 2023 | P12: 4 | Q12: 302.9856 | R12: 378.732 | S12: 641.1676 | T12: 754.3148 | U12: 905.1778
A13: May-23 | B13: 2023 | C13: 5 | D13: 276.3234 | E13: 48.5313 | F13: 55.4478 | G13: 300.5938 | H13: 104.4562 | I13: 35.5447 | J13: 820.8974 | K13: 760.2113 | N13: May-23 | O13: 2023 | P13: 5 | Q13: 305.354 | R13: 381.6925 | S13: 646.1796 | T13: 760.2113 | U13: 912.2536
A14: Jun-23 | B14: 2023 | C14: 6 | D14: 329.7886 | E14: 50.7029 | F14: 62.4275 | G14: 290.1503 | H14: 102.9658 | I14: 14.9728 | J14: 851.0079 | K14: 763.5311 | N14: Jun-23 | O14: 2023 | P14: 6 | Q14: 306.6875 | R14: 383.3594 | S14: 649.0014 | T14: 763.5311 | U14: 916.2373
A15: Jul-23 | B15: 2023 | C15: 7 | D15: 292.1662 | E15: 40.8702 | F15: 56.6989 | G15: 300.0383 | H15: 102.1892 | I15: 22.027 | J15: 813.9898 | K15: 765.8209 | N15: Jul-23 | O15: 2023 | P15: 7 | Q15: 307.6073 | R15: 384.5091 | S15: 650.9478 | T15: 765.8209 | U15: 918.9851
A16: Ago-23 | B16: 2023 | C16: 8 | D16: 331.2819 | E16: 46.9624 | F16: 64.5395 | G16: 299.0221 | H16: 100.685 | I16: 11.9725 | J16: 854.4634 | K16: 769.6561 | N16: Ago-23 | O16: 2023 | P16: 8 | Q16: 309.1478 | R16: 386.4347 | S16: 654.2077 | T16: 769.6561 | U16: 923.58732
A17: Sep-23 | B17: 2023 | C17: 9 | D17: 341.687 | E17: 47.0195 | F17: 64.1059 | G17: 287.5999 | H17: 101.5048 | I17: 16.8751 | J17: 858.7922 | K17: 775.0368 | N17: Sep-23 | O17: 2023 | P17: 9 | Q17: 311.3091 | R17: 389.1363 | S17: 658.7813 | T17: 775.0368 | U17: 930.0442
A18: Oct-23 | B18: 2023 | C18: 10 | D18: 370.5296 | E18: 48.5999 | F18: 68.8343 | G18: 286.7896 | H18: 105.0003 | I18: -2.4037 | J18: 877.35 | K18: 929.2691 | N18: Oct-23 | O18: 2023 | P18: 10 | Q18: 371.7076 | R18: 464.6346 | S18: 789.8787 | T18: 929.2691 | U18: =+T18*1.2 -> 1115.12292
A19: Nov-23 | B19: 2023 | C19: 11 | D19: 371.1005 | E19: 46.251 | F19: 68.344 | G19: 298.0835 | H19: 101.8517 | I19: 2.455 | J19: 888.0857 | K19: 934.8447 | N19: Nov-23 | O19: 2023 | P19: 11 | Q19: 373.9379 | R19: 467.4224 | S19: 794.618 | T19: 934.8447 | U19: =+T19*1.2 -> 1121.81364
A20: Dic-23 | B20: 2023 | C20: 12 | D20: 367.0907 | E20: 51.2352 | F20: 68.9644 | G20: 299.4023 | H20: 175.7231 | I20: 19.078 | J20: 981.4937 | N20: Dic-23 | O20: 2023 | P20: 12 | Q20: 392.5975 | R20: 490.7469 | S20: 834.2696 | T20: 981.4937 | U20: =+T20*1.2 -> 1177.79244
A21: * Pesos corrientes | D21: =+(D20-D19)/D19 -> -0.01080515925 | E21: =+(E20-E19)/E19 -> 0.1077641565 | F21: 0.009077607398 | G21: 0.004424263671 | H21: 0.7252839177 | I21: 6.77107943 | J21: 0.1051790385 | K21: -1 | N21: * Pesos corrientes | Q21: =+(Q20-Q19)/Q19 -> 0.04990026419 | R21: =+(R20-R19)/R19 -> 0.04990026152 | S21: =+(S20-S19)/S19 -> 0.04990020362 | T21: =+(T20-T19)/T19 -> 0.04990026686 | U21: =+(U20-U19)/U19 -> 0.04990026686
W27: CUV_119 | X27: Costo Unitario de Prestación del Servicio resultado de aplicar la metodología establecida en la Res. CREG 119 de 2007.
W30: CUV_Op | X30: Costo Unitario de Prestación del Servicio resultado de aplicar la metodología establecida en la Res. CREG 012 de 2020. Opción Tarifaria

Sheet 8. ENEL COLOMBIA
I1: REGRESAR
A2: EMPRESA: | C2: ENEL COLOMBIA S.A. E.S.P. (597)
A3: MERCADO: | C3: BOGOTÁ - CUNDINAMARCA CREG 199/16
A5: 1. COSTO UNITARIO DE PRESTACIÓN DEL SERVICIO Nivel de Tensión 1, Propiedad de Activos del OR | N5: 2. TARIFA AL USUARIO FINAL Nivel de Tensión 1, Propiedad de Activos del OR (estrato 1, 2 y 3 hasta el CS) | V5: 3. OPCIÓN TARIFARIA Nivel de Tensión 1, Propiedad de Activos del OR
B6: AÑO | C6: PERIODO | D6: GM | E6: TM | F6: PR | G6: D | H6: CV | I6: RM | J6: CUV_119 | K6: CUV_Op | O6: AÑO | P6: PERIODO | Q6: ESTRATO 1 | R6: ESTRATO 2 | S6: ESTRATO 3 | T6: ESTRATO 4 | U6: ESTRATO 5 y 6, Ind y Com
A7: Ene-23 | B7: 2023 | C7: 1 | D7: 282.1817 | E7: 51.9732 | F7: 58.0809 | G7: 244.9043 | H7: 62.6762 | I7: 19.7502 | J7: 719.5665 | K7: 742.7324 | N7: Ene-23 | O7: 2023 | P7: 1 | Q7: 297.093 | R7: 371.3662 | S7: 631.3225 | T7: 742.7324 | U7: 891.2789
A8: Feb-23 | B8: 2023 | C8: 2 | D8: 304.6211 | E8: 48.7081 | F8: 61.4397 | G8: 248.7558 | H8: 62.6148 | I8: 18.5024 | J8: 744.6419 | K8: 758.3298 | N8: Feb-23 | O8: 2023 | P8: 2 | Q8: 303.3319 | R8: 379.1649 | S8: 644.5803 | T8: 758.3298 | U8: 909.9958
A9: Mar-23 | B9: 2023 | C9: 3 | D9: 360.9008 | E9: 52.3669 | F9: 70.8992 | G9: 265.9942 | H9: 67.8889 | I9: 17.3685 | J9: 835.4165 | K9: 773.4964 | N9: Mar-23 | O9: 2023 | P9: 3 | Q9: 309.3986 | R9: 386.7482 | S9: 657.4719 | T9: 773.4964 | U9: 928.1957
A10: Abr-23 | B10: 2023 | C10: 4 | D10: 288.4505 | E10: 53.521 | F10: 59.0973 | G10: 263.1777 | H10: 75.0332 | I10: 36.7309 | J10: 776.0106 | K10: 784.3253 | N10: Abr-23 | O10: 2023 | P10: 4 | Q10: 313.7301 | R10: 392.1627 | S10: 666.6765 | T10: 784.3253 | U10: 941.1904
A11: May-23 | B11: 2023 | C11: 5 | D11: 266.6488 | E11: 48.5314 | F11: 54.8185 | G11: 253.4009 | H11: 72.0692 | I11: 35.1611 | J11: 730.6299 | K11: 792.9529 | N11: May-23 | O11: 2023 | P11: 5 | Q11: 317.1812 | R11: 396.4765 | S11: 674.01 | T11: 792.9529 | U11: 951.5435
A12: Jun-23 | B12: 2023 | C12: 6 | D12: 372.1477 | E12: 50.7029 | F12: 70.5921 | G12: 254.3305 | H12: 68.7061 | I12: 14.8608 | J12: 831.3401 | K12: 798.5036 | N12: Jun-23 | O12: 2023 | P12: 6 | Q12: 319.4014 | R12: 399.2518 | S12: 678.7281 | T12: 798.5036 | U12: 958.2043
A13: Jul-23 | B13: 2023 | C13: 7 | D13: 336.4794 | E13: 40.8702 | F13: 65.1112 | G13: 258.2802 | H13: 71.1308 | I13: 23.0134 | J13: 794.8852 | K13: 803.2946 | N13: Jul-23 | O13: 2023 | P13: 7 | Q13: 321.3178 | R13: 401.6473 | S13: 682.8004 | T13: 803.2946 | U13: 963.9535
A14: Ago-23 | B14: 2023 | C14: 8 | D14: 353.8155 | E14: 46.9624 | F14: 68.9413 | G14: 252.1428 | H14: 72.175 | I14: 11.0063 | J14: 805.0433 | K14: 809.721 | N14: Ago-23 | O14: 2023 | P14: 8 | Q14: 323.8884 | R14: 404.8605 | S14: 688.2629 | T14: 809.721 | U14: 971.6652
A15: Sep-23 | B15: 2023 | C15: 9 | D15: 366.4389 | E15: 47.0195 | F15: 71.1551 | G15: 250.0071 | H15: 69.3966 | I15: 18.0536 | J15: 822.0708 | K15: 817.8182 | N15: Sep-23 | O15: 2023 | P15: 9 | Q15: 327.1273 | R15: 408.9091 | S15: 695.1455 | T15: 817.8182 | U15: 981.3818
A16: Oct-23 | B16: 2023 | C16: 10 | D16: 375.2661 | E16: 48.5999 | F16: 71.8887 | G16: 263.0548 | H16: 73.9287 | I16: -0.918 | J16: 831.8202 | K16: 838.2637 | N16: Oct-23 | O16: 2023 | P16: 10 | Q16: 335.3055 | R16: 419.1319 | S16: 712.5241 | T16: 838.2637 | U16: 1005.9164
A17: Nov-23 | B17: 2023 | C17: 11 | D17: 375.825 | E17: 46.251 | F17: 71.3292 | G17: 261.6818 | H17: 68.9218 | I17: 2.5132 | J17: 826.522 | K17: 870.1177 | N17: Nov-23 | O17: 2023 | P17: 11 | Q17: 348.0471 | R17: 435.0589 | S17: 739.6 | T17: 870.1177 | U17: 1044.1412
A18: Dic-23 | B18: 2023 | C18: 12 | D18: 371.1237 | E18: 51.2352 | F18: 71.9052 | G18: 266.4301 | H18: 70.2686 | I18: 18.489 | J18: 849.4518 | K18: 875.3384 | N18: Dic-23 | O18: 2023 | P18: 12 | Q18: 350.1354 | R18: 437.6692 | S18: 744.0376 | T18: 875.3384 | U18: 1050.4061
A19: * Pesos corrientes | D19: =+(D18-D17)/D17 -> -0.01250927958 | E19: =+(E18-E17)/E17 -> 0.1077641565 | F19: 0.008075234266 | G19: 0.01814532 | H19: 0.01954098703 | I19: 6.356756327 | J19: 0.02774251623 | K19: 0.005999992875 | N19: * Pesos corrientes | Q19: =+(Q18-Q17)/Q17 -> 0.006000049993 | R19: =+(R18-R17)/R17 -> 0.005999877258 | S19: 0.006 | T19: 0.005999992875 | U19: 0.006000050568
V26: CUV_119 | W26: Costo Unitario de Prestación del Servicio resultado de aplicar la metodología establecida en la Res. CREG 119 de 2007.
V29: CUV_Op | W29: Costo Unitario de Prestación del Servicio resultado de aplicar la metodología establecida en la Res. CREG 012 de 2020. Opción Tarifaria

Sheet 9. DISPAC
I1: REGRESAR
A2: EMPRESA: | B2: EMPRESA DISTRIBUIDORA DEL PACÍFICO S.A. E.S.P. (3226)
A3: MERCADO: | B3: CHOCÓ
A5: 1. COSTO UNITARIO DE PRESTACIÓN DEL SERVICIO Nivel de Tensión 1, Propiedad de Activos del OR | N5: 2. TARIFA AL USUARIO FINAL Nivel de Tensión 1, Propiedad de Activos del OR (estrato 1, 2 y 3 hasta el CS) | W5: 3. OPCIÓN TARIFARIA Nivel de Tensión 1, Propiedad de Activos del OR
B6: AÑO | C6: PERIODO | D6: GM | E6: TM | F6: PR | G6: D | H6: CV | I6: RM | J6: CUV_119 | K6: CUV_Op | O6: AÑO | P6: PERIODO | Q6: ESTRATO 1 | R6: ESTRATO 2 | S6: ESTRATO 3 | T6: ESTRATO 4 | U6: ESTRATO 5 y 6, Ind y Com
A7: Ene-23 | B7: 2023 | C7: 1 | D7: 293.83 | E7: 51.97 | F7: 56.55 | G7: 191.17 | H7: 157.82 | I7: 23.82 | J7: 775.16 | K7: 794.32 | N7: Ene-23 | O7: 2023 | P7: 1 | Q7: 317.73 | R7: 397.16 | S7: 675.17 | T7: 794.32 | U7: 953.184
A8: Feb-23 | B8: 2023 | C8: 2 | D8: 317.62 | E8: 48.71 | F8: 59.68 | G8: 195.34 | H8: 161.41 | I8: 21.87 | J8: 804.63 | K8: 810.82 | N8: Feb-23 | O8: 2023 | P8: 2 | Q8: 324.33 | R8: 405.41 | S8: 689.2 | T8: 810.82 | U8: 972.984
A9: Mar-23 | B9: 2023 | C9: 3 | D9: 383.74 | E9: 52.37 | F9: 70.01 | G9: 198.11 | H9: 162.1 | I9: 18.29 | J9: 884.61 | K9: 826.72 | N9: Mar-23 | O9: 2023 | P9: 3 | Q9: 330.69 | R9: 413.36 | S9: 702.71 | T9: 826.72 | U9: 992.06
A10: Abr-23 | B10: 2023 | C10: 4 | D10: 290.07 | E10: 53.52 | F10: 57.08 | G10: 196.07 | H10: 171.1 | I10: 40.66 | J10: 808.5 | K10: 837.89 | N10: Abr-23 | O10: 2023 | P10: 4 | Q10: 335.16 | R10: 418.95 | S10: 712.21 | T10: 837.89 | U10: 1005.47
A11: May-23 | B11: 2023 | C11: 5 | D11: 265.73 | E11: 48.53 | F11: 53.05 | G11: 197.2 | H11: 172.5 | I11: 41.66 | J11: 778.68 | K11: 846.75 | N11: May-23 | O11: 2023 | P11: 5 | Q11: 338.7 | R11: 423.38 | S11: 719.74 | T11: 846.75 | U11: 1016.1
A12: Jun-23 | B12: 2023 | C12: 6 | D12: 370.46 | E12: 50.7 | F12: 66.11 | G12: 193.81 | H12: 165.42 | I12: 16.93 | J12: 863.43 | K12: 852.99 | N12: Jun-23 | O12: 2023 | P12: 6 | Q12: 341.2 | R12: 426.5 | S12: 725.04 | T12: 852.99 | U12: 1023.59
A13: Jul-23 | B13: 2023 | C13: 7 | D13: 365.35 | E13: 40.87 | F13: 66.05 | G13: 191.81 | H13: 168.43 | I13: 25.87 | J13: 858.38 | K13: 858.11 | N13: Jul-23 | O13: 2023 | P13: 7 | Q13: 343.24 | R13: 429.06 | S13: 729.39 | T13: 858.11 | U13: 1029.73
A14: Ago-23 | B14: 2023 | C14: 8 | D14: 364.7 | E14: 46.96 | F14: 66.77 | G14: 185.77 | H14: 165.59 | I14: 14.39 | J14: 844.19 | K14: 864.98 | N14: Ago-23 | O14: 2023 | P14: 8 | Q14: 345.99 | R14: 432.49 | S14: 735.23 | T14: 864.98 | U14: 1037.976
A15: Sep-23 | B15: 2023 | C15: 9 | D15: 368.52 | E15: 47.02 | F15: 66.18 | G15: 185.14 | H15: 170.53 | I15: 20.77 | J15: 858.16 | K15: 873.62 | N15: Sep-23 | O15: 2023 | P15: 9 | Q15: 349.45 | R15: 436.81 | S15: 742.58 | T15: 873.62 | U15: 1048.34
A16: Oct-23 | B16: 2023 | C16: 10 | D16: 371.71 | E16: 48.6 | F16: 67.33 | G16: 192.94 | H16: 168.19 | I16: 0.52 | J16: 849.3 | K16: 899.83 | N16: Oct-23 | O16: 2023 | P16: 10 | Q16: 359.93 | R16: 449.92 | S16: 764.86 | T16: 899.83 | U16: =+T16*1.2 -> 1079.796
A17: Nov-23 | B17: 2023 | C17: 11 | D17: 374.96 | E17: 46.25 | F17: 66.91 | G17: 190.84 | H17: 168.89 | I17: 3.24 | J17: 851.1 | K17: 926.82 | N17: Nov-23 | O17: 2023 | P17: 11 | Q17: 370.73 | R17: 463.41 | S17: 787.8 | T17: 926.82 | U17: =+T17*1.2 -> 1112.184
A18: Dic-23 | B18: 2023 | C18: 12 | D18: 368.77 | E18: 51.24 | F18: 68.14 | G18: 190.06 | H18: 169.79 | I18: 21.95 | J18: 869.94 | K18: 959.54 | N18: Dic-23 | O18: 2023 | P18: 12 | Q18: 383.82 | R18: 479.77 | S18: 815.61 | T18: 959.54 | U18: =+T18*1.2 -> 1151.448
A19: * Pesos corrientes | D19: =+(D18-D17)/D17 -> -0.01650842757 | E19: 0.1078918919 | F19: 0.01838290241 | G19: -0.00408719346 | H19: 0.00532891231 | I19: 5.774691358 | J19: 0.02213605922 | K19: 0.03530351093 | N19: * Pesos corrientes | Q19: =+(Q18-Q17)/Q17 -> 0.03530871524 | R19: =+(R18-R17)/R17 -> 0.03530351093 | S19: =+(S18-S17)/S17 -> 0.03530083778 | T19: =+(T18-T17)/T17 -> 0.03530351093 | U19: =+(U18-U17)/U17 -> 0.03530351093
W24: CUV_119 | X24: Costo Unitario de Prestación del Servicio resultado de aplicar la metodología establecida en la Res. CREG 119 de 2007.
W27: CUV_Op | X27: Costo Unitario de Prestación del Servicio resultado de aplicar la metodología establecida en la Res. CREG 012 de 2020. Opción Tarifaria

Sheet 10. EBSA
I1: REGRESAR
A2: EMPRESA: | C2: EMPRESA DE ENERGÍA DE BOYACÁ S.A. E.S.P. (500)
A3: MERCADO: | C3: BOYACÁ
A5: 1. COSTO UNITARIO DE PRESTACIÓN DEL SERVICIO Nivel de Tensión 1, Propiedad de Activos del OR | N5: 2. TARIFA AL USUARIO FINAL Nivel de Tensión 1, Propiedad de Activos del OR (estrato 1, 2 y 3 hasta el CS) | X5: 3. OPCIÓN TARIFARIA Nivel de Tensión 1, Propiedad de Activos del OR
B6: AÑO | C6: PERIODO | D6: GM | E6: TM | F6: PR | G6: D | H6: CV | I6: RM | J6: CUV_119 | K6: CUV_Op | O6: AÑO | P6: PERIODO | Q6: ESTRATO 1 | R6: ESTRATO 2 | S6: ESTRATO 3 | T6: ESTRATO 4 | U6: ESTRATO 5 y 6, Ind y Com
A7: Ene-23 | B7: 2023 | C7: 1 | D7: 306.4309 | E7: 51.9732 | F7: 68.1953 | G7: 244.9043 | H7: 109.4597 | I7: 26.0619 | J7: 807.0253 | K7: 778.8365 | N7: Ene-23 | O7: 2023 | P7: 1 | Q7: 311.5346 | R7: 389.4183 | S7: 662.011 | T7: 778.8365 | U7: 934.6038
A8: Feb-23 | B8: 2023 | C8: 2 | D8: 311.6353 | E8: 48.7081 | F8: 68.0393 | G8: 248.7558 | H8: 110.3416 | I8: 15.6072 | J8: 803.0873 | K8: 795.0363 | N8: Feb-23 | O8: 2023 | P8: 2 | Q8: 318.0145 | R8: 397.5182 | S8: 675.7809 | T8: 795.0363 | U8: 954.0436
A9: Mar-23 | B9: 2023 | C9: 3 | D9: 354.0971 | E9: 52.3669 | F9: 76.2141 | G9: 265.9942 | H9: 109.8581 | I9: 20.1808 | J9: 878.7112 | K9: 810.619 | N9: Mar-23 | O9: 2023 | P9: 3 | Q9: 324.2476 | R9: 405.3095 | S9: 689.0262 | T9: 810.619 | U9: 972.7428
A10: Abr-23 | B10: 2023 | C10: 4 | D10: 294.6837 | E10: 53.521 | F10: 66.8646 | G10: 263.1777 | H10: 114.9241 | I10: 45.8644 | J10: 839.04 | K10: 821.5624 | N10: Abr-23 | O10: 2023 | P10: 4 | Q10: 328.625 | R10: 410.7812 | S10: 698.328 | T10: 821.5624 | U10: 985.8749
A11: May-23 | B11: 2023 | C11: 5 | D11: 277.5504 | E11: 48.5314 | F11: 62.6838 | G11: 253.4009 | H11: 122.9628 | I11: 28.3778 | J11: 793.5071 | K11: 830.4353 | N11: May-23 | O11: 2023 | P11: 5 | Q11: 332.1741 | R11: 415.2177 | S11: 705.87 | T11: 830.4353 | U11: 996.5224
A12: Jun-23 | B12: 2023 | C12: 6 | D12: 346.2556 | E12: 50.7029 | F12: 74.9047 | G12: 254.3305 | H12: 112.5316 | I12: 18.4553 | J12: 857.1806 | K12: 836.49742 | N12: Jun-23 | O12: 2023 | P12: 6 | Q12: 334.59896 | R12: 418.2487 | S12: 711.02279 | T12: 836.4974 | U12: 1003.7969
A13: Jul-23 | B13: 2023 | C13: 7 | D13: 322.4015 | E13: 40.8702 | F13: 69.9437 | G13: 258.2802 | H13: 120.0464 | I13: 27.2852 | J13: 838.8272 | K13: 841.5164 | N13: Jul-23 | O13: 2023 | P13: 7 | Q13: 336.60656 | R13: 420.7582 | S13: 715.28894 | T13: 841.5164 | U13: 1009.8197
A14: Ago-23 | B14: 2023 | C14: 8 | D14: 331.4942 | E14: 46.9624 | F14: 73.1406 | G14: 252.1428 | H14: 115.1216 | I14: 9.328 | J14: 828.1896 | K14: 848.2485 | N14: Agos-23 | O14: 2023 | P14: 8 | Q14: 339.2994 | R14: 424.1243 | S14: 721.0112 | T14: 848.2485 | U14: 1017.8982
A15: Sep-23 | B15: 2023 | C15: 9 | D15: 347.9656 | E15: 47.0195 | F15: 75.353 | G15: 250.0071 | H15: 115.9432 | I15: 21.7587 | J15: 858.0471 | K15: 856.73102 | N15: Sep-23 | O15: 2023 | P15: 9 | Q15: 342.6924 | R15: 428.3655 | S15: 728.22135 | T15: 856.731 | U15: 1028.0772
A16: Oct-23 | B16: 2023 | C16: 10 | D16: 378.3857 | E16: 48.5999 | F16: 81.4563 | G16: 263.0548 | H16: 117.8359 | I16: 0.5021 | J16: 889.8347 | K16: 873.8657 | N16: Oct-23 | O16: 2023 | P16: 10 | Q16: 349.5463 | R16: 436.9329 | S16: 742.7858 | T16: 873.8657 | U16: 1048.6388
A17: Nov-23 | B17: 2023 | C17: 11 | D17: 377.9245 | E17: 46.251 | F17: 80.2641 | G17: 261.6818 | H17: 118.5988 | I17: 2.009 | J17: 886.7211 | K17: 891.343 | N17: Nov-23 | O17: 2023 | P17: 11 | Q17: 356.5372 | R17: 445.6715 | S17: 757.6416 | T17: 891.343 | U17: 1069.6116
A18: Dic-23 | B18: 2023 | C18: 12 | D18: 373.1397 | E18: 51.2352 | F18: 81.8484 | G18: 266.4301 | H18: 117.5896 | I18: 22.4711 | J18: 912.7141 | K18: 896.691 | N18: Dic-23 | O18: 2023 | P18: 12 | Q18: 358.6764 | R18: 448.3455 | S18: 762.1874 | T18: 896.691 | U18: =+T18*1.2 -> 1076.0292
A19: * Pesos corrientes | D19: =+(D18-D17)/D17 -> -0.01266072985 | E19: =+(E18-E17)/E17 -> 0.1077641565 | F19: 0.01973858799 | G19: 0.01814532 | H19: -0.008509360972 | I19: =+(I18-I17)/I17 -> 10.18521653 | J19: 0.02931361394 | K19: 0.00599993493 | N19: * Pesos corrientes | Q19: =+(Q18-Q17)/Q17 -> 0.00599993493 | R19: =+(R18-R17)/R17 -> 0.00599993493 | S19: =+(S18-S17)/S17 -> 0.005999934534 | T19: =+(T18-T17)/T17 -> 0.00599993493 | U19: =+(U18-U17)/U17 -> 0.00599993493
X26: CUV_119 | Y26: Costo Unitario de Prestación del Servicio resultado de aplicar la metodología establecida en la Res. CREG 119 de 2007.
X29: CUV_Op | Y29: Costo Unitario de Prestación del Servicio resultado de aplicar la metodología establecida en la Res. CREG 012 de 2020. Opción Tarifaria

Sheet 11. EDEQ
I1: REGRESAR
A2: EMPRESA: | B2: EMPRESA DE ENERGÍA DE QUINDÍO S.A. E.S.P. (523)
A3: MERCADO: | B3: QUINDÍO
A5: 1. COSTO UNITARIO DE PRESTACIÓN DEL SERVICIO Nivel de Tensión 1, Propiedad de Activos del OR | N5: 2. TARIFA AL USUARIO FINAL Nivel de Tensión 1, Propiedad de Activos del OR (estrato 1, 2 y 3 hasta el CS) | W5: 3. OPCIÓN TARIFARIA Nivel de Tensión 1, Propiedad de Activos del OR
B6: AÑO | C6: PERIODO | D6: GM | E6: TM | F6: PR | G6: D | H6: CV | I6: RM | J6: CUV_119 | K6: CUV_Op | O6: AÑO | P6: PERIODO | Q6: ESTRATO 1 | R6: ESTRATO 2 | S6: ESTRATO 3 | T6: ESTRATO 4 | U6: ESTRATO 5 y 6, Ind y Com
A7: Ene-23 | B7: 2023 | C7: 1 | D7: 276.8024 | E7: 51.9732 | F7: 55.7792 | G7: 289.2747 | H7: 90.0518 | I7: 20.5352 | J7: 784.4165 | K7: 753.5182 | N7: Ene-23 | O7: 2023 | P7: 1 | Q7: 301.4073 | R7: 376.7591 | S7: 640.4905 | T7: 753.5182 | U7: 904.2218
A8: Feb-23 | B8: 2023 | C8: 2 | D8: 327.3622 | E8: 48.7081 | F8: 63.3033 | G8: 294.9945 | H8: 85.308 | I8: 19.1884 | J8: 838.8644 | K8: 766.9109 | N8: Feb-23 | O8: 2023 | P8: 2 | Q8: 306.7644 | R8: 383.4554 | S8: 651.8742 | T8: 766.9109 | U8: 920.2931
A9: Mar-23 | B9: 2023 | C9: 3 | D9: 373.2877 | E9: 52.3669 | F9: 70.5744 | G9: 315.3362 | H9: 92.8672 | I9: 14.7668 | J9: 919.1992 | K9: 779.6459 | N9: Mar-23 | O9: 2023 | P9: 3 | Q9: 311.8584 | R9: 389.8229 | S9: 662.699 | T9: 779.6459 | U9: 935.5751
A10: Abr-23 | B10: 2023 | C10: 4 | D10: 338.2322 | E10: 53.521 | F10: 65.292 | G10: 315.255 | H10: 91.0395 | I10: 35.4766 | J10: 898.8206 | K10: 787.837 | N10: Abr-23 | O10: 2023 | P10: 4 | Q10: 315.1348 | R10: 393.9185 | S10: 669.6614 | T10: 787.837 | U10: 945.4044
A11: May-23 | B11: 2023 | C11: 5 | D11: 276.0605 | E11: 48.5314 | F11: 54.9198 | G11: 300.5938 | H11: 98.6264 | I11: 33.5452 | J11: 812.277 | K11: 793.9952 | N11: May-23 | O11: 2023 | P11: 5 | Q11: 317.5981 | R11: 396.9976 | S11: 674.8959 | T11: 793.9952 | U11: 952.7942
A12: Jun-23 | B12: 2023 | C12: 6 | D12: 357.72649 | E12: 50.70291 | F12: 66.58729 | G12: 290.15033 | H12: 87.62408 | I12: 14.43952 | J12: 867.23062 | K12: 797.46295 | N12: Jun-23 | O12: 2023 | P12: 6 | Q12: 318.98518 | R12: 398.73148 | S12: 677.84351 | T12: 797.46295 | U12: 956.95555
A13: Jul-23 | B13: 2023 | C13: 7 | D13: 316.37929 | E13: 40.87022 | F13: 59.79203 | G13: 300.03826 | H13: 93.83709 | I13: 22.14277 | J13: 833.05966 | K13: 799.86867 | N13: Jul-23 | O13: 2023 | P13: 7 | Q13: 319.94747 | R13: 399.93434 | S13: 679.88837 | T13: 799.86867 | U13: 959.8424
A14: Ago-23 | B14: 2023 | C14: 8 | D14: 338.7138 | E14: 46.9624 | F14: 64.3678 | G14: 299.0221 | H14: 88.8392 | I14: 11.8442 | J14: 849.7496 | K14: 803.8746 | N14: Ago-23 | O14: 2023 | P14: 8 | Q14: 321.5498 | R14: 401.9373 | S14: 683.2934 | T14: 803.8746 | U14: 964.6495
A15: Sep-23 | B15: 2023 | C15: 9 | D15: 344.79959 | E15: 47.01951 | F15: 65.48193 | G15: 287.59995 | H15: 92.75777 | I15: 15.52598 | J15: 853.18473 | K15: 809.49484 | N15: Sep-23 | O15: 2023 | P15: 9 | Q15: 323.79793 | R15: 404.74742 | S15: 688.07061 | T15: 809.49484 | U15: 971.3938
A16: Oct-23 | B16: 2023 | C16: 10 | D16: 367.1859 | E16: 48.5999 | F16: 68.0764 | G16: 286.7896 | H16: 88.1267 | I16: 0.2975 | J16: 859.0759 | K16: 898.5393 | N16: Oct-23 | O16: 2023 | P16: 10 | Q16: 359.4157 | R16: 449.2696 | S16: 763.7584 | T16: 898.5393 | U16: 1078.2471
A17: Nov-23 | B17: 2023 | C17: 11 | D17: 368.8356 | E17: 46.251 | F17: 67.3733 | G17: 298.0835 | H17: 93.5465 | I17: -0.4153 | J17: 873.6746 | K17: 933.5823 | N17: Nov-23 | O17: 2023 | P17: 11 | Q17: 373.4329 | R17: 466.7912 | S17: 793.545 | T17: 933.5823 | U17: 1120.2988
A18: Dic-23 | B18: 2023 | C18: 12 | D18: 344.0879 | E18: 51.2352 | F18: 65.9613 | G18: 299.4023 | H18: 90.2705 | I18: 18.2579 | J18: 869.2151 | K18: 939.1838 | N18: Dic-23 | O18: 2023 | P18: 12 | Q18: 375.6735 | R18: 469.5919 | S18: 798.3062 | T18: 939.1838 | U18: 1127.0206
A19: * Pesos corrientes | D19: =+(D18-D17)/D17 -> -0.06709683122 | E19: =+(E18-E17)/E17 -> 0.1077641565 | F19: -0.02095785719 | G19: 0.004424263671 | H19: -0.03502001678 | I19: -44.96315916 | J19: -0.005104303135 | K19: 0.006000006641 | N19: * Pesos corrientes | Q19: =+(Q18-Q17)/Q17 -> 0.006000006962 | R19: =+(R18-R17)/R17 -> 0.005999898884 | S19: =+(S18-S17)/S17 -> 0.005999911788 | T19: =+(T18-T17)/T17 -> 0.006000006641 | U19: =+(U18-U17)/U17 -> 0.006000006427
W23: CUV_119 | X23: Costo Unitario de Prestación del Servicio resultado de aplicar la metodología establecida en la Res. CREG 119 de 2007.
W26: CUV_Op | X26: Costo Unitario de Prestación del Servicio resultado de aplicar la metodología establecida en la Res. CREG 012 de 2020. Opción Tarifaria

Sheet 12. EE Putumayo
I1: REGRESAR
A2: EMPRESA: | C2: EMPRESA DE ENERGÍA DEL PUTUMAYO S.A. E.S.P. (2016)
A3: MERCADO: | C3: PUTUMAYO
A5: 1. COSTO UNITARIO DE PRESTACIÓN DEL SERVICIO Nivel de Tensión 1, Propiedad de Activos del OR | N5: 2. TARIFA AL USUARIO FINAL Nivel de Tensión 1, Propiedad de Activos del OR (estrato 1, 2 y 3 hasta el CS) | V5: 3. OPCIÓN TARIFARIA Nivel de Tensión 1, Propiedad de Activos del OR
B6: AÑO | C6: PERIODO | D6: GM | E6: TM | F6: PR | G6: D | H6: CV | I6: RM | J6: CUV_119 | K6: CUV_Op | O6: AÑO | P6: PERIODO | Q6: ESTRATO 1 | R6: ESTRATO 2 | S6: ESTRATO 3 | T6: ESTRATO 4 | U6: ESTRATO 5 y 6, Ind y Com
A7: Ene-23 | B7: 2023 | C7: 1 | D7: 324.28566 | E7: 51.97324 | F7: 66.98895 | G7: 297.05295 | H7: 91.85281 | I7: 23.13763 | J7: 855.29124 | K7: 848.57414 | N7: Ene-23 | O7: 2023 | P7: 1 | Q7: 339.42965 | R7: 424.28707 | S7: 721.28802 | T7: 848.57414 | U7: 1018.288968
A8: Feb-23 | B8: 2023 | C8: 2 | D8: 331.63984 | E8: 48.70809 | F8: 67.13723 | G8: 297.0494 | H8: 92.83247 | I8: 19.58783 | J8: 856.95487 | K8: 863.65801 | N8: Feb-23 | O8: 2023 | P8: 2 | Q8: 345.4632 | R8: 431.829 | S8: 734.10931 | T8: 863.65801 | U8: 1036.38961
A9: Mar-23 | B9: 2023 | C9: 3 | D9: 360.5299 | E9: 52.36693 | F9: 72.33594 | G9: 294.52007 | H9: 92.60161 | I9: 17.97731 | J9: 890.32685 | K9: 877.99957 | N9: Mar-23 | O9: 2023 | P9: 3 | Q9: 351.19983 | R9: 438.99978 | S9: 746.29963 | T9: 877.99957 | U9: 1053.59948
A10: Abr-23 | B10: 2023 | C10: 4 | D10: 314.19238 | E10: 53.52103 | F10: 91.08081 | G10: 287.26359 | H10: 99.82853 | I10: 35.303 | J10: 881.18935 | K10: 887.22395 | N10: Abr-23 | O10: 2023 | P10: 4 | Q10: 354.88958 | R10: 443.61197 | S10: 754.14036 | T10: 881.18935 | U10: 1064.66874
A11: May-23 | B11: 2023 | C11: 5 | D11: 300.43405 | E11: 48.53139 | F11: 86.52347 | G11: 285.14313 | H11: 95.95802 | I11: 36.76757 | J11: 853.35762 | K11: 894.15907 | N11: May-23 | O11: 2023 | P11: 5 | Q11: 357.66363 | R11: 447.07953 | S11: 760.03521 | T11: 894.15907 | U11: 1072.99088
A12: Jun-23 | B12: 2023 | C12: 6 | D12: 379.74486 | E12: 50.70291 | F12: 105.11317 | G12: 242.5978 | H12: 94.76186 | I12: 14.68807 | J12: 887.60867 | K12: 894.15907 | N12: Jun-23 | O12: 2023 | P12: 6 | Q12: 357.66363 | R12: 447.07953 | S12: 760.03521 | T12: 894.15907 | U12: 1072.99088
A13: Jul-23 | B13: 2023 | C13: 7 | D13: 338.43007 | E13: 40.87022 | F13: 94.14574 | G13: 243.34893 | H13: 96.26989 | I13: 23.79101 | J13: 836.85586 | K13: 863.77169 | N13: Jul-23 | O13: 2023 | P13: 7 | Q13: 345.50868 | R13: 431.88585 | S13: 734.20594 | T13: 863.77169 | U13: 1036.52603
A14: Ago-23 | B14: 2023 | C14: 8 | D14: 361.3835 | E14: 46.96245 | F14: 100.21908 | G14: 241.36493 | H14: 98.23003 | I14: 16.07959 | J14: 864.23957 | K14: 865.08459 | N14: Ago-23 | O14: 2023 | P14: 8 | Q14: 346.03383 | R14: 432.54229 | S14: 735.3219 | T14: 865.08459 | U14: =+T14*1.2 -> 1038.101508
A15: Sep-23 | B15: 2023 | C15: 9 | D15: 382.19733 | E15: 47.01951 | F15: 105.32157 | G15: 236.10903 | H15: 97.14847 | I15: 17.20468 | J15: 885.00059 | K15: 869.41712 | N15: Sep-23 | O15: 2023 | P15: 9 | Q15: 347.76685 | R15: 434.70856 | S15: 739.00455 | T15: 869.41712 | U15: 1043.30055
A16: Oct-23 | B16: 2023 | C16: 10 | D16: 323.179 | E16: 48.59986 | F16: 91.27083 | G16: 238.78883 | H16: 96.09445 | I16: 0.3477 | J16: 798.28067 | K16: 814.44063 | N16: Oct-23 | O16: 2023 | P16: 10 | Q16: 325.77625 | R16: 407.22032 | S16: 692.27454 | T16: 814.44063 | U16: =+T16*1.2 -> 977.328756
A17: Nov-23 | B17: 2023 | C17: 11 | D17: 354.58756 | E17: 46.25099 | F17: 97.78473 | G17: 265.01788 | H17: 92.73608 | I17: 2.59742 | J17: 858.97465 | N17: Nov-23 | O17: 2023 | P17: 11 | Q17: 343.58986 | R17: 429.48733 | S17: 730.12846 | T17: 858.97465 | U17: =+T17*1.2 -> 1030.76958
A18: Dic-23 | B18: 2023 | C18: 12 | D18: 302.95785 | E18: 51.2352 | F18: 87.78341 | G18: 259.31895 | H18: 91.44255 | I18: 18.67697 | J18: 811.41494 | N18: Dic-23 | O18: 2023 | P18: 12 | Q18: 324.56597 | R18: 405.70747 | S18: 689.7027 | T18: 811.41494 | U18: =+T18*1.2 -> 973.697928
A19: * Pesos corrientes | D19: =+(D18-D17)/D17 -> -0.1456049671 | E19: =+(E18-E17)/E17 -> 0.107764396 | F19: -0.102278955 | G19: -0.02150394532 | H19: -0.0139485085 | I19: 6.190585273 | J19: -0.05536800184 | N19: * Pesos corrientes | Q19: =+(Q18-Q17)/Q17 -> -0.0553680193 | R19: =+(R18-R17)/R17 -> -0.05536801284 | S19: =+(S18-S17)/S17 -> -0.05536801017 | T19: =+(T18-T17)/T17 -> -0.05536800184 | U19: =+(U18-U17)/U17 -> -0.05536800184
V27: CUV_119 | W27: Costo Unitario de Prestación del Servicio resultado de aplicar la metodología establecida en la Res. CREG 119 de 2007.
V30: CUV_Op | W30: Costo Unitario de Prestación del Servicio resultado de aplicar la metodología establecida en la Res. CREG 012 de 2020. Opción Tarifaria

Sheet 13. EEBP
I1: REGRESAR
A2: EMPRESA: | C2: EMPRESA DE ENERGÍA DEL BAJO PUTUMAYO S.A. E.S.P. (2371)
A3: MERCADO: | C3: BAJO PUTUMAYO
A5: 1. COSTO UNITARIO DE PRESTACIÓN DEL SERVICIO Nivel de Tensión 1, Propiedad de Activos del OR | N5: 2. TARIFA AL USUARIO FINAL Nivel de Tensión 1, Propiedad de Activos del OR (estrato 1, 2 y 3 hasta el CS) | V5: 3. OPCIÓN TARIFARIA Nivel de Tensión 1, Propiedad de Activos del OR
B6: AÑO | C6: PERIODO | D6: GM | E6: TM | F6: PR | G6: D | H6: CV | I6: RM | J6: CUV_119 | K6: CUV_Op | O6: AÑO | P6: PERIODO | Q6: ESTRATO 1 | R6: ESTRATO 2 | S6: ESTRATO 3 | T6: ESTRATO 4 | U6: ESTRATO 5 y 6, Ind y Com
A7: Ene-23 | B7: 2023 | C7: 1 | D7: 292.9741 | E7: 51.97324 | F7: 53.68496 | G7: 297.05295 | H7: 100.61247 | I7: 22.90228 | J7: 819.2 | N7: Ene-23 | O7: 2023 | P7: 1 | Q7: 327.68 | R7: 409.6 | S7: 696.32 | T7: 819.2 | U7: 983.04
A8: Feb-23 | B8: 2023 | C8: 2 | D8: 290.71925 | E8: 48.70809 | F8: 53.00456 | G8: 297.0494 | H8: 102.74568 | I8: 18.97302 | J8: 811.2 | N8: Feb-23 | O8: 2023 | P8: 2 | Q8: 324.48 | R8: 405.6 | S8: 689.52 | T8: 811.2 | U8: 973.44
A9: Mar-23 | B9: 2023 | C9: 3 | D9: 295.04273 | E9: 52.36693 | F9: 53.71205 | G9: 294.52007 | H9: 106.77673 | I9: 16.58149 | J9: 819 | N9: Mar-23 | O9: 2023 | P9: 3 | Q9: 327.6 | R9: 409.5 | S9: 696.15 | T9: 819 | U9: 982.8
A10: Abr-23 | B10: 2023 | C10: 4 | D10: 293.4385 | E10: 53.52103 | F10: 53.71992 | G10: 287.26359 | H10: 106.75672 | I10: 38.90024 | J10: 833.6 | N10: Abr-23 | O10: 2023 | P10: 4 | Q10: 333.44 | R10: 416.8 | S10: 708.56 | T10: 833.6 | U10: 1000.32
A11: May-23 | B11: 2023 | C11: 5 | D11: 292.74599 | E11: 48.53139 | F11: 53.08365 | G11: 285.14313 | H11: 117.15768 | I11: 37.43816 | J11: 834.1 | N11: May-23 | O11: 2023 | P11: 5 | Q11: 333.64 | R11: 417.05 | S11: 708.98 | T11: 834.1 | U11: 1000.92
A12: Jun-23 | B12: 2023 | C12: 6 | D12: 374.101 | E12: 50.70291 | F12: 61.94175 | G12: 242.5978 | H12: 110.95569 | I12: 15.60085 | J12: 855.9 | N12: Jun-23 | O12: 2023 | P12: 6 | Q12: 335.09 | R12: 427.95 | S12: 727.51 | T12: 855.9 | U12: 1027.08
A13: Jul-23 | B13: 2023 | C13: 7 | D13: 369.97308 | E13: 40.87022 | F13: 52.92288 | G13: 243.34893 | H13: 113.72077 | I13: 23.36412 | J13: 844.2 | N13: Jul-23 | O13: 2023 | P13: 7 | Q13: 330.5 | R13: 422.1 | S13: 717.57 | T13: 844.2 | U13: 1013.04
A14: Ago-23 | B14: 2023 | C14: 8 | D14: 368.67867 | E14: 46.96245 | F14: 53.45833 | G14: 241.36493 | H14: 116.50713 | I14: 15.12849 | J14: 842.1 | N14: Ago-23 | O14: 2023 | P14: 8 | Q14: 329.67 | R14: 421.05 | S14: 715.78 | T14: 842.1 | U14: 1010.52
A15: Sep-23 | B15: 2023 | C15: 9 | D15: 372.23116 | E15: 47.01951 | F15: 52.85832 | G15: 236.10903 | H15: 120.35487 | I15: 17.92711 | J15: 846.5 | N15: Sep-23 | O15: 2023 | P15: 9 | Q15: 331.39 | R15: 423.25 | S15: 719.52 | T15: 846.5 | U15: 1015.8
A16: Oct-23 | B16: 2023 | C16: 10 | D16: 377.64267 | E16: 48.59986 | F16: 53.82572 | G16: 238.78883 | H16: 115.82346 | I16: -1.68054 | J16: 833 | N16: Oct-23 | O16: 2023 | P16: 10 | Q16: 326.1 | R16: 416.5 | S16: 708.05 | T16: 833 | U16: =+T16*1.2 -> 999.6
A17: Nov-23 | B17: 2023 | C17: 11 | D17: 379.53565 | E17: 46.84148 | F17: 53.22744 | G17: 265.01788 | H17: 112.17121 | I17: 3.30635 | J17: 860.1 | N17: Nov-23 | O17: 2023 | P17: 11 | Q17: 344.04 | R17: 430.05 | S17: 731.08 | T17: 860.1 | U17: =+T17*1.2 -> 1032.12
A18: Dic-23 | B18: 2023 | C18: 12 | D18: 372.57148 | E18: 51.29777 | F18: 54.37511 | G18: 259.31895 | H18: 113.19095 | I18: 16.04574 | J18: 866.8 | N18: Dic-23 | O18: 2023 | P18: 12 | Q18: 345.65 | R18: 432.07 | S18: 736.78 | T18: 866.8 | U18: =+T18*1.2 -> 1040.16
A19: * Pesos corrientes | D19: =+(D18-D17)/D17 -> -0.01834918538 | E19: =+(E18-E17)/E17 -> 0.0951355508 | F19: 0.0215616231 | G19: -0.02150394532 | H19: 0.009090924489 | I19: 3.853007092 | J19: 0.007789791885 | N19: * Pesos corrientes | Q19: =+(Q18-Q17)/Q17 -> 0.004679688408 | R19: =+(R18-R17)/R17 -> 0.004697128241 | S19: 0.007796684357 | T19: 0.007789791885 | U19: =+(U18-U17)/U17 -> 0.007789791885
V27: CUV_119 | W27: Costo Unitario de Prestación del Servicio resultado de aplicar la metodología establecida en la Res. CREG 119 de 2007.
V30: CUV_Op | W30: Costo Unitario de Prestación del Servicio resultado de aplicar la metodología establecida en la Res. CREG 012 de 2020. Opción Tarifaria

Sheet 14. EEP PEREIRA
I1: REGRESAR
A2: EMPRESA: | C2: EMPRESA DE ENERGÍA DE PEREIRA S.A. E.S.P. (2073)
A3: MERCADO: | C3: PEREIRA
A5: 1. COSTO UNITARIO DE PRESTACIÓN DEL SERVICIO Nivel de Tensión 1, Propiedad de Activos del OR | N5: 2. TARIFA AL USUARIO FINAL Nivel de Tensión 1, Propiedad de Activos del OR (estrato 1, 2 y 3 hasta el CS) | V5: 3. OPCIÓN TARIFARIA Nivel de Tensión 1, Propiedad de Activos del OR
B6: AÑO | C6: PERIODO | D6: GM | E6: TM | F6: PR | G6: D | H6: CV | I6: RM | J6: CUV_119 | K6: CUV_Op | O6: AÑO | P6: PERIODO | Q6: ESTRATO 1 | R6: ESTRATO 2 | S6: ESTRATO 3 | T6: ESTRATO 4 | U6: ESTRATO 5 y 6, Ind y Com
A7: Ene-23 | B7: 2023 | C7: 1 | D7: 298.65 | E7: 51.97 | F7: 57.22 | G7: 289.27 | H7: 77.69 | I7: 20.57 | J7: 795.38 | K7: 817.17 | N7: Ene-23 | O7: 2023 | P7: 1 | Q7: 326.87 | R7: 408.59 | S7: 694.6 | T7: 817.17 | U7: 980.61
A8: Feb-23 | B8: 2023 | C8: 2 | D8: 310.17 | E8: 48.71 | F8: 58.48 | G8: 294.99 | H8: 77.36 | I8: 19.45 | J8: 809.17 | K8: 831.7 | N8: Feb-23 | O8: 2023 | P8: 2 | Q8: 332.68 | R8: 415.85 | S8: 706.94 | T8: 831.7 | U8: 998.04
A9: Mar-23 | B9: 2023 | C9: 3 | D9: 357.0361 | E9: 52.3669 | F9: 65.5277 | G9: 315.3362 | H9: 81.3025 | I9: 16.558 | J9: 888.1274 | K9: 845.5106 | N9: Mar-23 | O9: 2023 | P9: 3 | Q9: 338.206 | R9: 422.7575 | S9: 718.68401 | T9: 845.5106 | U9: 1014.61272
A10: Abr-23 | B10: 2023 | C10: 4 | D10: 298.791 | E10: 53.5211 | F10: 57.3295 | G10: 315.255 | H10: 85.0385 | I10: 33.658 | J10: 843.5931 | K10: 854.3969 | N10: Abr-23 | O10: 2023 | P10: 4 | Q10: 341.7592 | R10: 427.199 | S10: 726.23737 | T10: 854.3969 | U10: 1025.27628
A11: May-23 | B11: 2023 | C11: 5 | D11: 279.96 | E11: 48.53 | F11: 53.95 | G11: 252.37 | H11: 80.8 | I11: 35.72 | J11: 751.33 | K11: 806.68 | N11: May-23 | O11: 2023 | P11: 5 | Q11: 344.43 | R11: 430.54 | S11: 731.92 | T11: 861.08 | U11: 1033.29
A12: Jun-23 | B12: 2023 | C12: 6 | D12: 371.2726 | E12: 50.7029 | F12: 65.7223 | G12: 290.1503 | H12: 84.2901 | I12: 15.4631 | J12: 877.6013 | K12: 810.2 | N12: Jun-23 | O12: 2023 | P12: 6 | Q12: 345.9365 | R12: 432.4206 | S12: 735.11502 | T12: 864.8412 | U12: 1037.80944
A13: Jul-23 | B13: 2023 | C13: 7 | D13: 337.0353 | E13: 40.8702 | F13: 60.9887 | G13: 300.0383 | H13: 82.6065 | I13: 22.2889 | J13: 843.8279 | K13: 867.4357 | N13: Jul-23 | O13: 2023 | P13: 7 | Q13: 346.9743 | R13: 433.7179 | S13: 737.32035 | T13: 867.4357 | U13: 1040.92284
A14: Ago-23 | B14: 2023 | C14: 8 | D14: 340.45 | E14: 46.96 | F14: 63.29 | G14: 299.02 | H14: 81.5 | I14: 12.19 | J14: 843.42 | K14: 871.78 | N14: Ago-23 | O14: 2023 | P14: 8 | Q14: 348.71 | R14: 435.89 | S14: 741.01 | T14: 871.78 | U14: 1046.136
A15: Sep-23 | B15: 2023 | C15: 9 | D15: 354.2668 | E15: 47.0195 | F15: 63.2413 | G15: 287.5999 | H15: 81.1041 | I15: 16.2742 | J15: 849.5058 | K15: 877.8754 | N15: Sep-23 | O15: 2023 | P15: 9 | Q15: 351.1506 | R15: 438.9383 | S15: 746.19409 | T15: 877.8754 | U15: 1053.45048
A16: Oct-23 | B16: 2023 | C16: 10 | D16: 382.69 | E16: 48.6 | F16: 67.56 | G16: 286.79 | H16: 90.8 | I16: -2.01 | J16: 874.42 | K16: 970.93 | N16: Oct-23 | O16: 2023 | P16: 10 | Q16: 388.37 | R16: 485.47 | S16: 825.29 | T16: 970.93 | U16: =+T16*1.2 -> 1165.116
A17: Nov-23 | B17: 2023 | C17: 11 | D17: 384.82 | E17: 46.25 | F17: 67.26 | G17: 298.08 | H17: 91.83 | I17: 2.18 | J17: 890.43 | N17: Nov-23 | O17: 2023 | P17: 11 | Q17: 389.34 | R17: 486.68 | S17: 756.87 | T17: 890.43 | U17: =+T17*1.2 -> 1068.516
A18: Dic-23 | B18: 2023 | C18: 12 | D18: 378.17 | E18: 51.24 | F18: 67.55 | G18: 299.4 | H18: 94.14 | I18: 20.13 | J18: 910.62 | N18: Dic-23 | O18: 2023 | P18: 12 | Q18: 391.17 | R18: 488.96 | S18: 774.03 | T18: 910.62 | U18: =+T18*1.2 -> 1092.744
A19: * Pesos corrientes | D19: =+(D18-D17)/D17 -> -0.01728080661 | E19: =+(E18-E17)/E17 -> 0.1078918919 | F19: 0.004311626524 | G19: 0.004428341385 | H19: 0.02515517805 | I19: 8.233944954 | J19: 0.02267443819 | K19: =+(K18-K17)/K17 ->  | N19: * Pesos corrientes | Q19: =+(Q18-Q17)/Q17 -> 0.004700261982 | R19: =+(R18-R17)/R17 -> 0.004684803156 | S19: 0.02267232153 | T19: 0.02267443819 | U19: 0.02267443819
V27: CUV_119 | W27: Costo Unitario de Prestación del Servicio resultado de aplicar la metodología establecida en la Res. CREG 119 de 2007.
V30: CUV_Op | W30: Costo Unitario de Prestación del Servicio resultado de aplicar la metodología establecida en la Res. CREG 012 de 2020. Opción Tarifaria

Sheet 15. AIR-E
I1: REGRESAR
A2: EMPRESA: | C2: AIR-E S.A.S. E.S.P. (48307)
A3: MERCADO: | C3: CARIBE SOL
A5: 1. COSTO UNITARIO DE PRESTACIÓN DEL SERVICIO Nivel de Tensión 1, Propiedad de Activos del OR | N5: 2. TARIFA AL USUARIO FINAL Nivel de Tensión 1, Propiedad de Activos del OR (estrato 1, 2 y 3 hasta el CS) | W5: 3. OPCIÓN TARIFARIA Nivel de Tensión 1, Propiedad de Activos del OR
B6: AÑO | C6: PERIODO | D6: GM | E6: TM | F6: PR | G6: D | H6: CV | I6: RM | J6: CUV_119 | K6: CUV_Op | O6: AÑO | P6: PERIODO | Q6: ESTRATO 1 | R6: ESTRATO 2 | S6: ESTRATO 3 | T6: ESTRATO 4 | U6: ESTRATO 5 y 6, Ind y Com
A7: Ene-23 | B7: 2023 | C7: 1 | D7: 296.94 | E7: 51.97 | F7: 192.95 | G7: 185.83 | H7: 128.95 | I7: 24.97 | J7: 881.61 | K7: 858.37 | N7: Ene-23 | O7: 2023 | P7: 1 | Q7: 343.35 | R7: 429.18 | S7: 729.61 | T7: 858.37 | U7: 1030.04
A8: Feb-23 | B8: 2023 | C8: 2 | D8: 286.91 | E8: 48.71 | F8: 186.71 | G8: 190.79 | H8: 125.97 | I8: 23.92 | J8: 863 | K8: 876.2 | N8: Feb-23 | O8: 2023 | P8: 2 | Q8: 350.48 | R8: 438.1 | S8: 744.77 | T8: 876.2 | U8: 1051.44
A9: Mar-23 | B9: 2023 | C9: 3 | D9: 309.76 | E9: 52.37 | F9: 199.58 | G9: 200.51 | H9: 129.31 | I9: 19.2 | J9: 910.74 | K9: 893.38 | N9: Mar-23 | O9: 2023 | P9: 3 | Q9: 357.35 | R9: 446.69 | S9: 759.37 | T9: 893.38 | U9: 1072.05
A10: Abr-23 | B10: 2023 | C10: 4 | D10: 284.61 | E10: 53.52 | F10: 171.51 | G10: 185.72 | H10: 135 | I10: 42.83 | J10: 873.19 | K10: 905.44 | N10: Abr-23 | O10: 2023 | P10: 4 | Q10: 362.18 | R10: 452.72 | S10: 769.63 | T10: 905.44 | U10: 1086.53
A11: May-23 | B11: 2023 | C11: 5 | D11: 276.15 | E11: 48.53 | F11: 164.3 | G11: 183.8 | H11: 130.19 | I11: 43.73 | J11: 846.69 | K11: 915.24 | N11: May-23 | O11: 2023 | P11: 5 | Q11: 366.09 | R11: 457.62 | S11: 777.95 | T11: 915.24 | U11: 1098.28
A12: Jun-23 | B12: 2023 | C12: 6 | D12: 344.77449 | E12: 50.70291 | F12: 195.64866 | G12: 177.68444 | H12: 127.16429 | I12: 19.65853 | J12: 915.63332 | K12: 921.97932 | N12: Jun-23 | O12: 2023 | P12: 6 | Q12: 368.7917 | R12: 460.9897 | S12: 783.68 | T12: 921.97932 | U12: 1106.38
A13: Jul-23 | B13: 2023 | C13: 7 | D13: 325.86 | E13: 40.87 | F13: 184.81 | G13: 175.55 | H13: 131.29 | I13: 29.17 | J13: 887.55 | K13: 927.51023 | N13: Jul-23 | O13: 2023 | P13: 7 | Q13: 371.0041 | R13: 463.7551 | S13: 788.3837 | T13: 927.51023 | U13: 1113.0123
A14: Ago-23 | B14: 2023 | C14: 8 | D14: 335.33 | E14: 46.96 | F14: 191.32 | G14: 169.19 | H14: 128.22 | I14: 16.35 | J14: 887.37 | K14: 934.94 | N14: Ago-23 | O14: 2023 | P14: 8 | Q14: 373.98 | R14: 467.47 | S14: 794.7 | T14: 934.94 | U14: 1121.93
A15: Sep-23 | B15: 2023 | C15: 9 | D15: 348.15384 | E15: 47.01951 | F15: 196.78108 | G15: 165.58729 | H15: 126.66569 | I15: 20.51207 | J15: 904.71948 | K15: 944.27932 | N15: Sep-23 | O15: 2023 | P15: 9 | Q15: 377.7117 | R15: 472.1397 | S15: 802.64 | T15: 944.27932 | U15: 1133.14
A16: Oct-23 | B16: 2023 | C16: 10 | D16: 376.34 | E16: 48.6 | F16: 209.28 | G16: 170.46 | H16: 141.85 | I16: -2.1 | J16: 944.42 | K16: 1123.69 | N16: Oct-23 | O16: 2023 | P16: 10 | Q16: 449.48 | R16: 561.85 | S16: 955.14 | T16: 1123.69 | U16: 1348.43
A17: Nov-23 | B17: 2023 | C17: 11 | D17: 382.51 | E17: 46.25 | F17: 210.25 | G17: 171.38 | H17: 128.53 | I17: 2.54 | J17: 941.46 | K17: 1130.43 | N17: Nov-23 | O17: 2023 | P17: 11 | Q17: 452.17 | R17: 565.22 | S17: 960.87 | T17: 1130.43 | U17: 1356.52
A18: Dic-23 | B18: 2023 | C18: 12 | D18: 371.56 | E18: 51.24 | F18: 209.43 | G18: 183.38 | H18: 135.39 | I18: 24.37 | J18: 975.36 | K18: 1137.22 | N18: Dic-23 | O18: 2023 | P18: 12 | Q18: 454.89 | R18: 568.61 | S18: 966.63 | T18: 1137.22 | U18: 1364.66
A19: * Pesos corrientes | D19: =+(D18-D17)/D17 -> -0.02862670257 | E19: =+(E18-E17)/E17 -> 0.1078918919 | F19: -0.003900118906 | G19: 0.07001983895 | H19: 0.05337275344 | I19: =+(I18-I17)/I17 -> 8.594488189 | J19: 0.03600790262 | K19: 0.006006563874 | N19: * Pesos corrientes | Q19: =+(Q18-Q17)/Q17 -> 0.006015436672 | R19: =+(R18-R17)/R17 -> 0.005997664626 | S19: =+(S18-S17)/S17 -> 0.005994567423 | T19: =+(T18-T17)/T17 -> 0.006006563874 | U19: =+(U18-U17)/U17 -> 0.006000648719
A20: ** Ajuste a las tarifas del mes de julio de 2022 | N20: ** Ajuste a las tarifas del mes de agosto de 2021. Publicado 18 -19 de septiembre. La republica
W23: CUV_119 | X23: Costo Unitario de Prestación del Servicio resultado de aplicar la metodología establecida en la Res. CREG 119 de 2007.
W26: CUV_Op | X26: Costo Unitario de Prestación del Servicio resultado de aplicar la metodología establecida en la Res. CREG 012 de 2020. Opción Tarifaria

Sheet 16. AFINIA
I1: REGRESAR
A2: EMPRESA: | C2: CARIBEMAR DE LA COSTA S.A.S. E.S.P. (AFINIA) (48305)
A3: MERCADO: | C3: CARIBE MAR
A5: 1. COSTO UNITARIO DE PRESTACIÓN DEL SERVICIO Nivel de Tensión 1, Propiedad de Activos del OR | N5: 2. TARIFA AL USUARIO FINAL Nivel de Tensión 1, Propiedad de Activos del OR (estrato 1, 2 y 3 hasta el CS) | W5: 3. OPCIÓN TARIFARIA Nivel de Tensión 1, Propiedad de Activos del OR
B6: AÑO | C6: PERIODO | D6: GM | E6: TM | F6: PR | G6: D | H6: CV | I6: RM | J6: CUV_119 | K6: CUV_Op | O6: AÑO | P6: PERIODO | Q6: ESTRATO 1 | R6: ESTRATO 2 | S6: ESTRATO 3 | T6: ESTRATO 4 | U6: ESTRATO 5 y 6, Ind y Com
A7: Ene-23 | B7: 2023 | C7: 1 | D7: 301.95 | E7: 51.97 | F7: 162.48 | G7: 229.67 | H7: 127.63 | I7: 25.57 | J7: 899.29 | K7: 808.19 | N7: Ene-23 | O7: 2023 | P7: 1 | Q7: 327.13 | R7: 408.91 | S7: 686.96 | T7: 808.19 | U7: 969.83
A8: Feb-23 | B8: 2023 | C8: 2 | D8: 295.25 | E8: 48.71 | F8: 158.6 | G8: 234.6 | H8: 129.88 | I8: 23.52 | J8: 890.56 | K8: 822.55 | N8: Feb-23 | O8: 2023 | P8: 2 | Q8: 332.95 | R8: 416.18 | S8: 699.17 | T8: 822.55 | U8: 987.06
A9: Mar-23 | B9: 2023 | C9: 3 | D9: 330.07633 | E9: 52.36693 | F9: 175.30445 | G9: 244.24743 | H9: 128.72683 | I9: 20.95868 | J9: 951.68065 | K9: 836.21 | N9: Mar-23 | O9: 2023 | P9: 3 | Q9: 338.47376 | R9: 423.0922 | S9: 710.78012 | T9: 836.21191 | U9: 1003.45429
A10: Abr-23 | B10: 2023 | C10: 4 | D10: 282.83 | E10: 53.52 | F10: 141.82 | G10: 226.24 | H10: 137.29 | I10: 43.04 | J10: 884.75 | K10: 845 | N10: Abr-23 | O10: 2023 | P10: 4 | Q10: 342.03 | R10: 427.54 | S10: 718.25 | T10: 845 | U10: 1014
A11: May-23 | B11: 2023 | C11: 5 | D11: 270.66 | E11: 48.53 | F11: 134.96 | G11: 225.2 | H11: 126.65 | I11: 47.31 | J11: 853.31 | K11: 851.6 | N11: May-23 | O11: 2023 | P11: 5 | Q11: 344.7 | R11: 430.88 | S11: 723.86 | T11: 851.6 | U11: 1021.92
A12: Jun-23 | B12: 2023 | C12: 6 | D12: 335.90158 | E12: 50.70291 | F12: 160.32879 | G12: 218.32468 | H12: 127.17952 | I12: 18.99422 | J12: 911.4317 | K12: 855.32 | N12: Jun-23 | O12: 2023 | P12: 6 | Q12: 346.20882 | R12: 432.76102 | S12: 727.02341 | T12: 855.32166 | U12: 1026.38599
A13: Jul-23 | B13: 2023 | C13: 7 | D13: 323.36 | E13: 40.87 | F13: 153.34 | G13: 213.95 | H13: 128.57553 | I13: 29.95 | J13: 890.04 | K13: 857.89 | N13: Jul-23 | O13: 2023 | P13: 7 | Q13: 347.24708 | R13: 434.05885 | S13: 729.20372 | T13: 857.88673 | U13: 1029.46408
A14: Ago-23 | B14: 2023 | C14: 8 | D14: 344.03 | E14: 46.96 | F14: 163.96 | G14: 207.48 | H14: 129.86 | I14: 15.74 | J14: 908.04 | K14: 862.18 | N14: Ago-23 | O14: 2023 | P14: 8 | Q14: 348.99 | R14: 436.23 | S14: 732.86 | T14: 862.18 | U14: 1034.62
A15: Sep-23 | B15: 2023 | C15: 9 | D15: 356.83574 | E15: 47.01951 | F15: 168.07412 | G15: 206.66363 | H15: 129.91177 | I15: 22.77155 | J15: 931.27632 | K15: 868.21 | N15: Sep-23 | O15: 2023 | P15: 9 | Q15: 351.42609 | R15: 439.28261 | S15: 737.97946 | T15: 868.21113 | U15: 1041.85335
A16: Oct-23 | B16: 2023 | C16: 10 | D16: 370.96 | E16: 48.6 | F16: 173.54 | G16: 208.19 | H16: 131.7 | I16: 0.57 | J16: 933.56 | K16: 938.54 | N16: Oct-23 | O16: 2023 | P16: 10 | Q16: 375.41 | R16: 469.27 | S16: 797.76 | T16: 938.54 | U16: 1126.24
A17: Nov-23 | B17: 2023 | C17: 11 | D17: 374.27 | E17: 46.25 | F17: 173.73 | G17: 207.68 | H17: 131.7 | I17: -0.06 | J17: 933.58 | K17: 994.85 | N17: Nov-23 | O17: 2023 | P17: 11 | Q17: 397.94 | R17: 497.42 | S17: 845.62 | T17: 994.85 | U17: 1193.82
A18: Dic-23 | B18: 2023 | C18: 12 | D18: 371.54 | E18: 51.24 | F18: 176.57 | G18: 217.19 | H18: 221.56 | I18: 27.56 | J18: 1065.66 | N18: Dic-23 | O18: 2023 | P18: 12 | Q18: 426.26 | R18: 532.83 | S18: 905.81 | T18: 1065.66 | U18: 1278.79
A19: * Pesos corrientes | D19: =+(D18-D17)/D17 -> -0.007294199375 | E19: =+(E18-E17)/E17 -> 0.1078918919 | F19: 0.01634720543 | G19: 0.04579160247 | H19: 0.6823082764 | I19: -460.3333333 | J19: 0.1414768954 | K19: =+(K18-K17)/K17 -> -1 | N19: * Pesos corrientes | Q19: =+(Q18-Q17)/Q17 -> 0.07116650751 | R19: =+(R18-R17)/R17 -> 0.07118732661 | S19: 0.07117854355 | T19: 0.07117655928 | U19: =+(U18-U17)/U17 -> 0.07117488399
W24: CUV_119 | X24: Costo Unitario de Prestación del Servicio resultado de aplicar la metodología establecida en la Res. CREG 119 de 2007.
W27: CUV_Op | X27: Costo Unitario de Prestación del Servicio resultado de aplicar la metodología establecida en la Res. CREG 012 de 2020. Opción Tarifaria

Sheet 17. ELECTROCAQUETÁ
I1: REGRESAR
A2: EMPRESA: | C2: ELECTRIFICADORA DE CAQUETÁ S.A. E.S.P. (1032)
A3: MERCADO: | C3: CAQUETÁ
A5: 1. COSTO UNITARIO DE PRESTACIÓN DEL SERVICIO Nivel de Tensión 1, Propiedad de Activos del OR | N5: 2. TARIFA AL USUARIO FINAL Nivel de Tensión 1, Propiedad de Activos del OR (estrato 1, 2 y 3 hasta el CS) | W5: 3. OPCIÓN TARIFARIA Nivel de Tensión 1, Propiedad de Activos del OR
B6: AÑO | C6: PERIODO | D6: GM | E6: TM | F6: PR | G6: D | H6: CV | I6: RM | J6: CUV_119 | K6: CUV_Op | O6: AÑO | P6: PERIODO | Q6: ESTRATO 1 | R6: ESTRATO 2 | S6: ESTRATO 3 | T6: ESTRATO 4 | U6: ESTRATO 5 y 6, Ind y Com
A7: Ene-23 | B7: 2023 | C7: 1 | D7: 293.993 | E7: 51.973 | F7: 57.469 | G7: 297.053 | H7: 125.187 | I7: 25.163 | J7: 850.84 | K7: 740 | N7: Ene-23 | O7: 2023 | P7: 1 | Q7: 326.71 | R7: 408.39 | S7: 629 | T7: 740 | U7: 888
A8: Feb-23 | B8: 2023 | C8: 2 | D8: 323.925 | E8: 48.708 | F8: 62.312 | G8: 297.049 | H8: 128.328 | I8: 22.267 | J8: 882.59 | K8: 755.39 | N8: Feb-23 | O8: 2023 | P8: 2 | Q8: 332.52 | R8: 415.65 | S8: 642.08 | T8: 755.39 | U8: 906.468
A9: Mar-23 | B9: 2023 | C9: 3 | D9: 376.2129 | E9: 52.3669 | F9: 71.3328 | G9: 294.5201 | H9: 139.6764 | I9: 19.6122 | J9: 953.72 | K9: 770.2 | N9: Mar-23 | O9: 2023 | P9: 3 | Q9: 338.04 | R9: 422.55 | S9: 654.67 | T9: 770.2 | U9: 924.23
A10: Abr-23 | B10: 2023 | C10: 4 | D10: 312.9122 | E10: 53.521 | F10: 62.4425 | G10: 287.2636 | H10: 149.3414 | I10: 37.3697 | J10: 902.85 | K10: 780.59 | N10: Abr-23 | O10: 2023 | P10: 4 | Q10: 332.65 | R10: 415.81 | S10: 663.5 | T10: 780.59 | U10: 936.71
A11: May-23 | B11: 2023 | C11: 5 | D11: 266.5454 | E11: 48.5314 | F11: 53.6331 | G11: 285.1431 | H11: 134.713 | I11: 42.6657 | J11: 831.23 | K11: 789.02 | N11: May-23 | O11: 2023 | P11: 5 | Q11: 335.25 | R11: 419.05 | S11: 670.67 | T11: 789.02 | U11: 946.83
A12: Jun-23 | B12: 2023 | C12: 6 | D12: 370.39169 | E12: 50.70291 | F12: 70.64745 | G12: 242.5978 | H12: 146.56956 | I12: 17.14382 | J12: 898.05323 | K12: 794.78357 | N12: Jun-23 | O12: 2023 | P12: 6 | Q12: 336.69137 | R12: 420.85341 | S12: 675.56603 | T12: 794.78357 | U12: 953.74028
A13: Jul-23 | B13: 2023 | C13: 7 | D13: 367.32309 | E13: 40.87022 | F13: 69.92893 | G13: 243.34893 | H13: 108.75041 | I13: 26.0415 | J13: 856.26308 | K13: 799.55227 | N13: Jul-23 | O13: 2023 | P13: 7 | Q13: 337.70144 | R13: 422.11597 | S13: 679.61943 | T13: 799.55227 | U13: 959.46272
A14: Ago-23 | B14: 2023 | C14: 8 | D14: 365.2139 | E14: 46.9624 | F14: 70.6468 | G14: 241.3649 | H14: 107.72 | I14: 13.7857 | J14: 845.69 | K14: 805.95 | N14: Ago-23 | O14: 2023 | P14: 8 | Q14: 339.39 | R14: 424.23 | S14: 685.06 | T14: 805.95 | U14: 967.14
A15: Sep-23 | B15: 2023 | C15: 9 | D15: 369.36098 | E15: 47.01951 | F15: 70.34044 | G15: 236.10903 | H15: 106.2781 | I15: 19.80812 | J15: 848.91618 | K15: 814.00817 | N15: Sep-23 | O15: 2023 | P15: 9 | Q15: 341.76568 | R15: 427.19613 | S15: 691.90695 | T15: 814.00817 | U15: 976.80981
A16: Oct-23 | B16: 2023 | C16: 10 | D16: 374.2746 | E16: 48.5999 | F16: 71.5127 | G16: 238.7888 | H16: 141.9595 | I16: 0.4004 | J16: 875.54 | K16: 895.41 | N16: Oct-23 | O16: 2023 | P16: 10 | Q16: 358.17 | R16: 447.7 | S16: 761.1 | T16: 895.41 | U16: 1074.49
A17: Nov-23 | B17: 2023 | C17: 11 | D17: 370.498 | E17: 46.251 | F17: 71.1172 | G17: 265.0179 | H17: 132.8475 | I17: 3.2486 | J17: 888.98 | K17: 903.47 | N17: Nov-23 | O17: 2023 | P17: 11 | Q17: 361.39 | R17: 451.73 | S17: 767.95 | T17: 903.47 | U17: =+T17*1.2 -> 1084.164
A18: Dic-23 | B18: 2023 | C18: 12 | D18: 364.9929 | E18: 51.2352 | F18: 72.4927 | G18: 259.319 | H18: 142.0162 | I18: 20.6035 | J18: 910.66 | K18: 908.89 | N18: Dic-23 | O18: 2023 | P18: 12 | Q18: 363.56 | R18: 454.44 | S18: 772.56 | T18: 908.89 | U18: 1090.67
A19: * Pesos corrientes | D19: =+(D18-D17)/D17 -> -0.01485864971 | E19: =+(E18-E17)/E17 -> 0.1077641565 | F19: 0.01934131265 | G19: -0.0215038305 | H19: 0.06901672971 | I19: 5.342270517 | J19: 0.02438750028 | K19: 0.005999092388 | N19: * Pesos corrientes | Q19: =+(Q18-Q17)/Q17 -> 0.006004593376 | R19: =+(R18-R17)/R17 -> 0.00599915879 | S19: =+(S18-S17)/S17 -> 0.006002994987 | T19: =+(T18-T17)/T17 -> 0.005999092388 | U19: =+(U18-U17)/U17 -> 0.006000937128
N20: Se ajusta la tarifa estrato 3 de octubre por un error en la transcripción.
X23: CUV_119 | Y23: Costo Unitario de Prestación del Servicio resultado de aplicar la metodología establecida en la Res. CREG 119 de 2007.
X26: CUV_Op | Y26: Costo Unitario de Prestación del Servicio resultado de aplicar la metodología establecida en la Res. CREG 012 de 2020. Opción Tarifaria
D43: Información tarifaria del servicio público de energía

Sheet 18. ELECTROHUILA
I1: REGRESAR
A2: EMPRESA: | C2: ELECTRIFICADORA DEL HUILA S.A. E.S.P. (1014)
A3: MERCADO: | C3: HUILA
A5: 1. COSTO UNITARIO DE PRESTACIÓN DEL SERVICIO Nivel de Tensión 1, Propiedad de Activos del OR | N5: 2. TARIFA AL USUARIO FINAL Nivel de Tensión 1, Propiedad de Activos del OR (estrato 1, 2 y 3 hasta el CS) | V5: 3. OPCIÓN TARIFARIA Nivel de Tensión 1, Propiedad de Activos del OR
B6: AÑO | C6: PERIODO | D6: GM | E6: TM | F6: PR | G6: D | H6: CV | I6: RM | J6: CUV_119 | K6: CUV_Op | O6: AÑO | P6: PERIODO | Q6: ESTRATO 1 | R6: ESTRATO 2 | S6: ESTRATO 3 | T6: ESTRATO 4 | U6: ESTRATO 5 y 6, Ind y Com
A7: Ene-23 | B7: 2023 | C7: 1 | D7: 308.9641 | E7: 51.9732 | F7: 68.3514 | G7: 244.9043 | H7: 114.209 | I7: 21.9292 | J7: 810.3312 | K7: 811.0484 | N7: Ene-23 | O7: 2023 | P7: 1 | Q7: 324.4194 | R7: 405.5242 | S7: 689.3912 | T7: 811.0484 | U7: 973.2581
A8: Feb-23 | B8: 2023 | C8: 2 | D8: 347.222 | E8: 48.7081 | F8: 74.4509 | G8: 248.7558 | H8: 116.3322 | I8: 19.2826 | J8: 854.7515 | K8: 825.4851 | N8: Feb-23 | O8: 2023 | P8: 2 | Q8: 330.194 | R8: 412.7425 | S8: 701.6623 | T8: 825.4851 | U8: 990.5821
A9: Mar-23 | B9: 2023 | C9: 3 | D9: 376.7614 | E9: 52.3669 | F9: 79.6743 | G9: 265.9942 | H9: 119.2018 | I9: 17.5466 | J9: 911.5452 | K9: 839.1881 | N9: Mar-23 | O9: 2023 | P9: 3 | Q9: 335.6753 | R9: 419.5941 | S9: 713.3099 | T9: 839.1881 | U9: 1007.0258
A10: Abr-23 | B10: 2023 | C10: 4 | D10: 374.9853 | E10: 53.521 | F10: 79.4455 | G10: 263.17777 | H10: 124.0309 | I10: 36.2011 | J10: 931.3615 | K10: 847.9996 | N10: Abr-23 | O10: 2023 | P10: 4 | Q10: 339.1998 | R10: 423.9998 | S10: 720.7996 | T10: 847.9996 | U10: 1017.5995
A11: May-23 | B11: 2023 | C11: 5 | D11: 251.7619 | E11: 48.5314 | F11: 57.8514 | G11: 253.4009 | H11: 129.0445 | I11: 37.2932 | J11: 777.8833 | K11: 854.614 | N11: May-23 | O11: 2023 | P11: 5 | Q11: 341.8456 | R11: 427.307 | S11: 726.4219 | T11: 854.614 | U11: 1025.5368
A12: Jun-23 | B12: 2023 | C12: 6 | D12: 374.94015 | E12: 50.70291 | F12: 77.44588 | G12: 254.33047 | H12: 118.97415 | I12: 17.00094 | J12: 893.3945 | K12: 858.37432 | N12: Jun-23 | O12: 2023 | P12: 6 | Q12: 343.34973 | R12: 429.18716 | S12: 729.61817 | T12: 858.37432 | U12: 1030.04919
A13: Jul-23 | B13: 2023 | C13: 7 | D13: 371.13589 | E13: 40.87022 | F13: 76.64666 | G13: 258.28025 | H13: 125.3057 | I13: 23.01749 | J13: 895.25621 | K13: 860.94945 | N13: Jul-23 | O13: 2023 | P13: 7 | Q13: 344.37978 | R13: 430.47472 | S13: 731.80703 | T13: 860.94945 | U13: 1033.13933
A14: Ago-23 | B14: 2023 | C14: 8 | D14: 369.0633 | E14: 46.9624 | F14: 77.298 | G14: 252.1428 | H14: 120.86 | I14: 12.8716 | J14: 879.1981 | K14: 865.2542 | N14: Ago23 | O14: 2023 | P14: 8 | Q14: 346.1017 | R14: 432.6271 | S14: 735.4661 | T14: 865.2542 | U14: 1038.305
A15: Sep-23 | B15: 2023 | C15: 9 | D15: 372.29996 | E15: 47.01951 | F15: 76.73759 | G15: 250.00705 | H15: 120.94353 | I15: 18.00812 | J15: 885.01576 | K15: 871.31097 | N15: Sep-23 | O15: 2023 | P15: 9 | Q15: 348.52439 | R15: 435.65549 | S15: 740.61433 | T15: 871.31097 | U15: 1045.57317
A16: Oct-23 | B16: 2023 | C16: 10 | D16: 376.6493 | E16: 48.5999 | F16: 77.7805 | G16: 263.0548 | H16: 122.6481 | I16: -2.367 | J16: 886.3656 | K16: 897.4503 | N16: Oct-23 | O16: 2023 | P16: 10 | Q16: 358.9801 | R16: 448.7252 | S16: 762.8328 | T16: 897.4503 | U16: 1076.9404
A17: Nov-23 | B17: 2023 | C17: 11 | D17: 378.6394 | E17: 46.251 | F17: 77.1217 | G17: 261.6818 | H17: 115.7383 | I17: 2.4682 | J17: 881.9004 | K17: 978.2208 | N17: Nov-23 | O17: 2023 | P17: 11 | Q17: 391.2883 | R17: 489.1104 | S17: 831.4877 | T17: 978.2208 | U17: 1173.865
A18: Dic-23 | B18: 2023 | C18: 12 | D18: 373.5042 | E18: 51.2352 | F18: 78.5238 | G18: 266.4301 | H18: 190.856 | I18: 20.8173 | J18: 981.3667 | N18: Dic-23 | O18: 2023 | P18: 12 | Q18: 392.5467 | R18: 490.6833 | S18: 834.1617 | T18: 981.3667 | U18: 1177.64
A19: * Pesos corrientes | D19: =+(D18-D17)/D17 -> -0.01356224418 | E19: =+(E18-E17)/E17 -> 0.1077641565 | F19: 0.0181803565 | G19: 0.01814532 | H19: 0.6490306148 | I19: 7.434203063 | J19: 0.1127863192 | K19: -1 | N19: * Pesos corrientes | Q19: =+(Q18-Q17)/Q17 -> 0.003216043005 | R19: =+(R18-R17)/R17 -> 0.003215838387 | S19: =+(S18-S17)/S17 -> 0.003215922497 | T19: =+(T18-T17)/T17 -> 0.003215940614 | U19: =+(U18-U17)/U17 -> 0.003215872353
V24: CUV_119 | W24: Costo Unitario de Prestación del Servicio resultado de aplicar la metodología establecida en la Res. CREG 119 de 2007.
V27: CUV_Op | W27: Costo Unitario de Prestación del Servicio resultado de aplicar la metodología establecida en la Res. CREG 012 de 2020. Opción Tarifaria

Sheet 19. EMCALI
I1: REGRESAR
A2: EMPRESA: | C2: EMPRESAS MUNICIPALES DE CALI E.S.P. (2438)
A3: MERCADO: | C3: CALI - YUMBO - PUERTO TEJADA
A5: 1. COSTO UNITARIO DE PRESTACIÓN DEL SERVICIO Nivel de Tensión 1, Propiedad de Activos del OR | N5: 2. TARIFA AL USUARIO FINAL Nivel de Tensión 1, Propiedad de Activos del OR (estrato 1, 2 y 3 hasta el CS) | W5: 3. OPCIÓN TARIFARIA Nivel de Tensión 1, Propiedad de Activos del OR
B6: AÑO | C6: PERIODO | D6: GM | E6: TM | F6: PR | G6: D | H6: CV | I6: RM | J6: CUV_119 | K6: CUV_Op | O6: AÑO | P6: PERIODO | Q6: ESTRATO 1 | R6: ESTRATO 2 | S6: ESTRATO 3 | T6: ESTRATO 4 | U6: ESTRATO 5 y 6, Ind y Com
A7: Ene-23 | B7: 2023 | C7: 1 | D7: 325.1177 | E7: 51.9732 | F7: 65.5535 | G7: 268.3197 | H7: 64.7228 | I7: 21.4009 | J7: 797.0878 | N7: Ene-23 | O7: 2023 | P7: 1 | Q7: 334.8271 | R7: 418.5338 | S7: 677.5246 | T7: 797.0878 | U7: 956.50536
A8: Feb-23 | B8: 2023 | C8: 2 | D8: 310.388 | E8: 48.708 | F8: 62.7735 | G8: 276.7001 | H8: 66.0475 | I8: 19.3948 | J8: 784.0119 | N8: Feb-23 | O8: 2023 | P8: 2 | Q8: 340.787 | R8: 425.9837 | S8: 666.4101 | T8: 784.0119 | U8: 940.81428
A9: Mar-23 | B9: 2023 | C9: 3 | D9: 370.5171 | E9: 52.3669 | F9: 72.8536 | G9: 279.3134 | H9: 65.6931 | I9: 17.2882 | J9: 858.0323 | N9: Mar-23 | O9: 2023 | P9: 3 | Q9: 346.4441 | R9: 433.0551 | S9: 729.3274 | T9: 858.0323 | U9: 1029.6387
A10: Abr-23 | B10: 2023 | C10: 4 | D10: 309.4322 | E10: 53.521 | F10: 60.8865 | G10: 266.4813 | H10: 69.4562 | I10: 33.899 | J10: 793.675 | N10: Abr-23 | O10: 2023 | P10: 4 | Q10: 350.0817 | R10: 437.6022 | S10: 674.6237 | T10: 793.675 | U10: 952.41
A11: May-23 | B11: 2023 | C11: 5 | D11: 289.2175 | E11: 48.5313 | F11: 57.0074 | G11: 262.1158 | H11: 65.0898 | I11: 36.447 | J11: 758.4088 | N11: May-23 | O11: 2023 | P11: 5 | Q11: 352.8124 | R11: 441.0155 | S11: 644.6474 | T11: 758.4088 | U11: 910.0905
A12: Jun-23 | B12: 2023 | C12: 6 | D12: 367.8711 | E12: 50.7029 | F12: 68.478 | G12: 263.8839 | H12: 67.7081 | I12: 16.7008 | J12: 835.3448 | N12: Jun-23 | O12: 2023 | P12: 6 | Q12: 354.3647 | R12: 442.9559 | S12: 710.043 | T12: 835.3448 | U12: 1002.4137
A13: Jul-23 | B13: 2023 | C13: 7 | D13: 321.2166 | E13: 40.8702 | F13: 61.0354 | G13: 267.6567 | H13: 68.27 | I13: 22.9945 | J13: 782.0434 | N13: Jul-23 | O13: 2023 | P13: 7 | Q13: 355.4278 | R13: 444.2848 | S13: 664.7368 | T13: 782.0434 | U13: 938.452
A14: Ago-23 | B14: 2023 | C14: 8 | D14: 321.6831 | E14: 46.9624 | F14: 62.1019 | G14: 259.7458 | H14: 65.4131 | I14: 14.2879 | J14: 770.1942 | N14: Ago-23 | O14: 2023 | P14: 8 | Q14: 357.205 | R14: 446.5062 | S14: 654.665 | T14: 770.1942 | U14: 924.233
A15: Sep-23 | B15: 2023 | C15: 9 | D15: 336.4282 | E15: 47.0195 | F15: 63.5277 | G15: 258.13 | H15: 65.1403 | I15: 17.0491 | J15: 787.2948 | N15: Sep-23 | O15: 2023 | P15: 9 | Q15: 359.7054 | R15: 449.6318 | S15: 669.2005 | T15: 787.2948 | U15: 944.7537
A16: Oct-23 | B16: 2023 | C16: 10 | D16: 390.9763 | E16: 48.5998 | F16: 72.5206 | G16: 277.343 | H16: 64.6181 | I16: -2.3273 | J16: 851.7305 | N16: Oct-23 | O16: 2023 | P16: 10 | Q16: 361.6118 | R16: 452.0148 | S16: 723.9709 | T16: 851.7305 | U16: 1022.0766
A17: Nov-23 | B17: 2023 | C17: 11 | D17: 393.0999 | E17: 46.2509 | F17: 71.8146 | G17: 276.747 | H17: 67.0197 | I17: 2.9295 | J17: 857.8616 | N17: Nov-23 | O17: 2023 | P17: 11 | Q17: 362.5159 | R17: 453.1448 | S17: 729.1823 | T17: 857.8616 | U17: 1029.4339
A18: Dic-23 | B18: 2023 | C18: 12 | D18: 388.7747 | E18: 51.2352 | F18: 73.4688 | G18: 267.315 | H18: 66.1841 | I18: 18.0973 | J18: 865.0751 | N18: Dic-23 | O18: 2023 | P18: 12 | Q18: 364.2197 | R18: 455.2746 | S18: 735.3138 | T18: 865.0751 | U18: 1038.0901
A19: * Pesos corrientes | D19: =+(D18-D17)/D17 -> -0.01100280107 | E19: =+(E18-E17)/E17 -> 0.1077665516 | F19: 0.02303431336 | G19: -0.03408167026 | H19: -0.01246797583 | I19: 5.1776071 | J19: 0.008408699026 | N19: * Pesos corrientes | Q19: =+(Q18-Q17)/Q17 -> 0.004699931782 | R19: =+(R18-R17)/R17 -> 0.0047000429 | S19: =+(S18-S17)/S17 -> 0.008408734002 | T19: =+(T18-T17)/T17 -> 0.008408699026 | U19: =+(U18-U17)/U17 -> 0.008408699189
W25: CUV_119 | X25: Costo Unitario de Prestación del Servicio resultado de aplicar la metodología establecida en la Res. CREG 119 de 2007.
W28: CUV_Op | X28: Costo Unitario de Prestación del Servicio resultado de aplicar la metodología establecida en la Res. CREG 012 de 2020. Opción Tarifaria

Sheet 20. EEP CARTAGO
I1: REGRESAR
A2: EMPRESA: | C2: EMPRESA DE ENERGÍA DE PEREIRA S.A. E.S.P. (2073)
A3: MERCADO: | C3: CARTAGO
A5: 1. COSTO UNITARIO DE PRESTACIÓN DEL SERVICIO Nivel de Tensión 1, Propiedad de Activos del OR | N5: 2. TARIFA AL USUARIO FINAL Nivel de Tensión 1, Propiedad de Activos del OR (estrato 1, 2 y 3 hasta el CS) | W5: 3. OPCIÓN TARIFARIA Nivel de Tensión 1, Propiedad de Activos del OR
B6: AÑO | C6: PERIODO | D6: GM | E6: TM | F6: PR | G6: D | H6: CV | I6: RM | J6: CUV_119 | K6: CUV_Op | O6: AÑO | P6: PERIODO | Q6: ESTRATO 1 | R6: ESTRATO 2 | S6: ESTRATO 3 | T6: ESTRATO 4 | U6: ESTRATO 5 y 6, Ind y Com
A7: Ene-23 | B7: 2023 | C7: 1 | D7: 298.69 | E7: 51.97 | F7: 78.69 | G7: 268.32 | H7: 59.47 | I7: 20.57 | J7: 777.71 | K7: 767.02 | N7: Ene-23 | O7: 2023 | P7: 1 | Q7: 306.81 | R7: 383.51 | S7: 651.97 | T7: 767.02 | U7: 920.42
A8: Feb-23 | B8: 2023 | C8: 2 | D8: 310.2 | E8: 48.71 | F8: 80.62 | G8: 276.7 | H8: 58.93 | I8: 19.45 | J8: 794.61 | K8: 780.65 | N8: Feb-23 | O8: 2023 | P8: 2 | Q8: 312.28 | R8: 390.33 | S8: 663.55 | T8: 780.65 | U8: 936.78
A9: Mar-23 | B9: 2023 | C9: 3 | D9: 357.0537 | E9: 52.3669 | F9: 91.0406 | G9: 279.3135 | H9: 59.9079 | I9: 16.558 | J9: 856.2406 | K9: 793.6147 | N9: Mar-23 | O9: 2023 | P9: 3 | Q9: 317.4475 | R9: 396.8094 | S9: 674.5725 | T9: 793.6147 | U9: 952.33764
A10: Abr-23 | B10: 2023 | C10: 4 | D10: 298.8247 | E10: 53.5211 | F10: 83.8189 | G10: 266.4813 | H10: 64.1973 | I10: 33.658 | J10: 800.5013 | K10: 801.9556 | N10: Abr-23 | O10: 2023 | P10: 4 | Q10: 320.7822 | R10: 400.9783 | S10: 681.66226 | T10: 801.9556 | U10: 962.34672
A11: May-23 | B11: 2023 | C11: 5 | D11: 280 | E11: 48.53 | F11: 78.37 | G11: 262.12 | H11: 60.76 | I11: 35.72 | J11: 765.5 | K11: 808.23 | N11: May-23 | O11: 2023 | P11: 5 | Q11: 323.29 | R11: 404.11 | S11: 686.99 | T11: 808.23 | U11: 969.87
A12: Jun-23 | B12: 2023 | C12: 6 | D12: 371.3013 | E12: 50.7029 | F12: 98.0037 | G12: 263.8839 | H12: 62.9338 | I12: 15.4631 | J12: 862.2887 | K12: 811.7589 | N12: Jun-23 | O12: 2023 | P12: 6 | Q12: 324.7036 | R12: 405.8795 | S12: 689.99507 | T12: 811.7589 | U12: 974.11068
A13: Jul-23 | B13: 2023 | C13: 7 | D13: 337.0725 | E13: 40.8702 | F13: 89.7852 | G13: 267.6567 | H13: 62.1931 | I13: 22.2889 | J13: 819.8666 | K13: 814.1942 | N13: Jul-23 | O13: 2023 | P13: 7 | Q13: 325.6777 | R13: 407.0971 | S13: 692.06507 | T13: 814.1942 | U13: 977.03304
A14: Ago-23 | B14: 2023 | C14: 8 | D14: 340.51 | E14: 46.96 | F14: 93.14 | G14: 259.75 | H14: 61.11 | I14: 12.19 | J14: 813.66 | K14: 818.27 | N14: Ago-23 | O14: 2023 | P14: 8 | Q14: 327.31 | R14: 409.14 | S14: 695.53 | T14: 818.27 | U14: 981.93
A15: Sep-23 | B15: 2023 | C15: 9 | D15: 354.3295 | E15: 47.0195 | F15: 94.0557 | G15: 258.1301 | H15: 59.6751 | I15: 16.2742 | J15: 829.4841 | K15: 823.993 | N15: Sep-23 | O15: 2023 | P15: 9 | Q15: 329.5977 | R15: 411.9972 | S15: 700.39405 | T15: 823.993 | U15: 988.7916
A16: Oct-23 | B16: 2023 | C16: 10 | D16: 382.72 | E16: 48.6 | F16: 100.87 | G16: 277.34 | H16: 70.49 | I16: -2.01 | J16: 878.02 | K16: 947.59 | N16: Oct-23 | O16: 2023 | P16: 10 | Q16: 379.04 | R16: 473.8 | S16: 805.45 | T16: 947.59 | U16: =+T16*1.2 -> 1137.108
A17: Nov-23 | B17: 2023 | C17: 11 | D17: 384.86 | E17: 46.25 | F17: 100.54 | G17: 276.75 | H17: 73.54 | I17: 2.18 | J17: 884.12 | K17: 980.76 | N17: Nov-23 | O17: 2023 | P17: 11 | Q17: 392.3 | R17: 490.38 | S17: 833.64 | T17: 980.76 | U17: =+T17*1.2 -> 1176.912
A18: Dic-23 | B18: 2023 | C18: 12 | D18: 378.21 | E18: 51.24 | F18: 100.82 | G18: 267.32 | H18: 71.39 | I18: 20.13 | J18: 889.08 | K18: 986.64 | N18: Dic-23 | O18: 2023 | P18: 12 | Q18: 394.66 | R18: 493.32 | S18: 838.65 | T18: 986.64 | U18: =+T18*1.2 -> 1183.968
A19: * Pesos corrientes | D19: =+(D18-D17)/D17 -> -0.01727901055 | E19: 0.1078918919 | F19: 0.002784961209 | G19: -0.03407407407 | H19: -0.02923579005 | I19: 8.233944954 | J19: 0.005610098177 | K19: 0.005995350544 | N19: * Pesos corrientes | Q19: =+(Q18-Q17)/Q17 -> 0.006015804231 | R19: =+(R18-R17)/R17 -> 0.005995350544 | S19: =+(S18-S17)/S17 -> 0.006009788398 | T19: =+(T18-T17)/T17 -> 0.005995350544 | U19: =+(U18-U17)/U17 -> 0.005995350544
W24: CUV_119 | X24: Costo Unitario de Prestación del Servicio resultado de aplicar la metodología establecida en la Res. CREG 119 de 2007.
W27: CUV_Op | X27: Costo Unitario de Prestación del Servicio resultado de aplicar la metodología establecida en la Res. CREG 012 de 2020. Opción Tarifaria

Sheet 21. EMEESA
I1: REGRESAR
A2: EMPRESA: | C2: EMPRESA MUNICIPAL DE ENERGÍA ELÉCTRICA S.A. E.S.P. (694)
A3: MERCADO: | C3: POPAYÁN - PURACÉ
A5: 1. COSTO UNITARIO DE PRESTACIÓN DEL SERVICIO Nivel de Tensión 1, Propiedad de Activos del OR | M5: 2. TARIFA AL USUARIO FINAL Nivel de Tensión 1, Propiedad de Activos del OR (estrato 1, 2 y 3 hasta el CS) | W5: 3. OPCIÓN TARIFARIA Nivel de Tensión 1, Propiedad de Activos del OR
B6: AÑO | C6: PERIODO | D6: GM | E6: TM | F6: PR | G6: D | H6: CV | I6: RM | J6: CUV | K6: CUV_Op | N6: AÑO | O6: PERIODO | P6: ESTRATO 1 | Q6: ESTRATO 2 | R6: ESTRATO 3 | S6: ESTRATO 4 | T6: ESTRATO 5 y 6, Ind y Com
A7: Dic-22 | B7: 2022 | C7: 12 | M7: Dic-22 | N7: 2022 | O7: 12
A8: Ene-23 | B8: 2023 | C8: 1 | M8: Ene-23 | N8: 2023 | O8: 1
A9: Feb-23 | B9: 2023 | C9: 2 | M9: Feb-23 | N9: 2023 | O9: 2
A10: Mar-23 | B10: 2023 | C10: 3 | M10: Mar-23 | N10: 2023 | O10: 3
A11: Abr-23 | B11: 2023 | C11: 4 | M11: Abr-23 | N11: 2023 | O11: 4
A12: May-23 | B12: 2023 | C12: 5 | M12: May-23 | N12: 2023 | O12: 5
A13: Jun-23 | B13: 2023 | C13: 6 | M13: Jun-23 | N13: 2023 | O13: 6
A14: Jul-23 | B14: 2023 | C14: 7 | M14: Jul-23 | N14: 2023 | O14: 7
A15: Ago-23 | B15: 2023 | C15: 8 | M15: Ago-23 | N15: 2023 | O15: 8
A16: Sep-23 | B16: 2023 | C16: 9 | M16: Sep-23 | N16: 2023 | O16: 9
A17: Oct-23 | B17: 2023 | C17: 10 | M17: Oct-23 | N17: 2023 | O17: 10
A18: Nov-23 | B18: 2023 | C18: 11 | M18: Nov-23 | N18: 2023 | O18: 11
A19: * Pesos corrientes | D19: =+(D18-D17)/D17 ->  | E19: =+(E18-E17)/E17 ->  | N19: * Pesos corrientes | Q19: =+(Q18-Q17)/Q17 ->  | R19: =+(R18-R17)/R17 ->  | S19: =+(S18-S17)/S17 ->  | T19: =+(T18-T17)/T17 ->  | U19: =+(U18-U17)/U17 -> 
W24: CUV_119 | X24: Costo Unitario de Prestación del Servicio resultado de aplicar la metodología establecida en la Res. CREG 119 de 2007.
W27: CUV_Op | X27: Costo Unitario de Prestación del Servicio resultado de aplicar la metodología establecida en la Res. CREG 012 de 2020. Opción Tarifaria

Sheet 22. EMEVASI
I1: REGRESAR
A2: EMPRESA: | C2: EMPRESA DE ENERGÍA DEL VALLE DE SIBUNDOY S.A. E.S.P. (1846)
A3: MERCADO: | C3: SIBUNDOY
A5: 1. COSTO UNITARIO DE PRESTACIÓN DEL SERVICIO Nivel de Tensión 1, Propiedad de Activos del OR | N5: 2. TARIFA AL USUARIO FINAL Nivel de Tensión 1, Propiedad de Activos del OR (estrato 1, 2 y 3 hasta el CS) | W5: 3. OPCIÓN TARIFARIA Nivel de Tensión 1, Propiedad de Activos del OR
B6: AÑO | C6: PERIODO | D6: GM | E6: TM | F6: PR | G6: D | H6: CV | I6: RM | J6: CUV_119 | K6: CUV_Op | O6: AÑO | P6: PERIODO | Q6: ESTRATO 1 | R6: ESTRATO 2 | S6: ESTRATO 3 | T6: ESTRATO 4 | U6: ESTRATO 5 y 6, Ind y Com
A7: Ene-23 | B7: 2023 | C7: 1 | D7: 293.7472 | E7: 51.9732 | F7: 57.4281 | G7: 297.0529 | H7: 204.2208 | I7: 16.1241 | J7: 920.5464 | N7: Ene-23 | O7: 2023 | P7: 1 | Q7: 411.7872 | R7: 514.734 | S7: 782.4644 | T7: 920.5464 | U7: 1104.65568
A8: Feb-23 | B8: 2023 | C8: 2 | D8: 290.945 | E8: 48.7081 | F8: 56.6857 | G8: 297.0494 | H8: 208.034 | I8: 19.2131 | J8: 920.6353 | N8: Feb-23 | O8: 2023 | P8: 2 | Q8: 419.1061 | R8: 523.8827 | S8: 782.5401 | T8: 920.6354 | U8: 1104.76248
A9: Mar-23 | B9: 2023 | C9: 3 | D9: 295.85127 | E9: 52.36693 | F9: 57.70103 | G9: 294.52007 | H9: 210.10169 | I9: 15.49344 | J9: 926.03443 | N9: Mar-23 | O9: 2023 | P9: 3 | Q9: 426.06563 | R9: 532.58203 | S9: 787.12927 | T9: 926.03444 | U9: 1111.24133
A10: Abr-23 | B10: 2023 | C10: 4 | D10: 293.7986 | E10: 53.521 | F10: 57.3244 | G10: 287.2636 | H10: 201.5468 | I10: 35.278 | J10: 928.7324 | N10: Abr-23 | O10: 2023 | P10: 4 | Q10: 430.5419 | R10: 538.1774 | S10: 789.4227 | T10: 928.7324 | U10: 1114.479
A11: May-23 | B11: 2023 | C11: 5 | D11: 291.3544 | E11: 48.5314 | F11: 56.1786 | G11: 285.1431 | H11: 215.7052 | I11: 40.4801 | J11: 937.3929 | N11: May-23 | O11: 2023 | P11: 5 | Q11: 433.9073 | R11: 542.3842 | S11: 796.7839 | T11: 937.3929 | U11: 1124.8714
A12: Jun-23 | B12: 2023 | C12: 6 | D12: 290.1181 | E12: 50.7029 | F12: 55.1599 | G12: 242.5978 | H12: 231.4988 | I12: 14.791 | J12: 884.8686 | N12: Jun-23 | O12: 2023 | P12: 6 | Q12: 435.8024 | R12: 544.753 | S12: 752.1383 | T12: 884.8686 | U12: 1061.84232
A13: Jul-23 | B13: 2023 | C13: 7 | D13: 287.5894 | E13: 40.8702 | F13: 54.362 | G13: 243.3489 | H13: 211.571 | I13: 24.6129 | J13: 862.3544 | N13: Jul-23 | O13: 2023 | P13: 7 | Q13: 437.1094 | R13: 546.3867 | S13: 733.0013 | T13: 862.3544 | U13: 1034.8253
A14: Ago-23 | B14: 2023 | C14: 8 | D14: 285.9919 | E14: 46.9624 | F14: 54.9079 | G14: 241.3649 | H14: 225.7693 | I14: 12.7545 | J14: 867.751 | N14: Ago-23 | O14: 2023 | P14: 8 | Q14: 439.2985 | R14: 549.1231 | S14: 737.5883 | T14: 867.751 | U14: 1041.3012
A15: Sep-23 | B15: 2023 | C15: 9 | D15: 289.42 | E15: 47.0195 | F15: 54.8873 | G15: 236.109 | H15: 212.4994 | I15: 17.4593 | J15: 857.3945 | N15: Sep-23 | O15: 2023 | P15: 9 | Q15: 442.3698 | R15: 552.9623 | S15: 728.7853 | T15: 857.3945 | U15: 1028.8734
A16: Oct-23 | B16: 2023 | C16: 10 | D16: 292.877 | E16: 48.5999 | F16: 55.4008 | G16: 238.7888 | H16: 222.1139 | I16: -2.6712 | J16: 855.1092 | N16: Oct-23 | O16: 2023 | P16: 10 | Q16: 444.7223 | R16: 555.9029 | S16: 726.8428 | T16: 855.1092 | U16: =+T16*1.2 -> 1026.13104
A17: Nov-23 | B17: 2023 | C17: 11 | D17: 294.344 | E17: 46.251 | F17: 55.1602 | G17: 265.0179 | H17: 215.094 | I17: 2.8739 | J17: 878.741 | N17: Nov-23 | O17: 2023 | P17: 11 | Q17: 445.8333 | R17: 557.2916 | S17: 746.9298 | T17: 878.741 | U17: =+T17*1.2 -> 1054.4892
A18: Dic-23 | B18: 2023 | C18: 12 | D18: 292.01 | E18: 51.2352 | F18: 56.6284 | G18: 259.319 | H18: 217.3094 | I18: 22.2513 | J18: 898.7532 | N18: Dic-23 | O18: 2023 | P18: 12 | Q18: 447.9244 | R18: 559.9055 | S18: 763.9403 | T18: 898.7532 | U18: =+T18*1.2 -> 1078.50384
A19: * Pesos corrientes | D19: =+(D18-D17)/D17 -> -0.007929497459 | E19: =+(E18-E17)/E17 -> 0.1077641565 | F19: 0.02661701734 | G19: -0.0215038305 | H19: 0.01029968293 | I19: 6.742544974 | J19: 0.02277371831 | N19: * Pesos corrientes | Q19: =+(Q18-Q17)/Q17 -> 0.004690318108 | R19: =+(R18-R17)/R17 -> 0.004690363178 | S19: =+(S18-S17)/S17 -> 0.02277389388 | T19: =+(T18-T17)/T17 -> 0.02277371831 | U19: =+(U18-U17)/U17 -> 0.02277371831
W25: CUV_119 | X25: Costo Unitario de Prestación del Servicio resultado de aplicar la metodología establecida en la Res. CREG 119 de 2007.
W28: CUV_Op | X28: Costo Unitario de Prestación del Servicio resultado de aplicar la metodología establecida en la Res. CREG 012 de 2020. Opción Tarifaria

Sheet 23. EMSA
I1: REGRESAR
A2: EMPRESA: | C2: ELECTRIFICADORA DEL META S.A. E.S.P. (600)
A3: MERCADO: | C3: META
A5: 1. COSTO UNITARIO DE PRESTACIÓN DEL SERVICIO Nivel de Tensión 1, Propiedad de Activos del OR | N5: 2. TARIFA AL USUARIO FINAL Nivel de Tensión 1, Propiedad de Activos del OR (estrato 1, 2 y 3 hasta el CS) | V5: 3. OPCIÓN TARIFARIA Nivel de Tensión 1, Propiedad de Activos del OR
B6: AÑO | C6: PERIODO | D6: GM | E6: TM | F6: PR | G6: D | H6: CV | I6: RM | J6: CUV_119 | K6: CUV_Op | O6: AÑO | P6: PERIODO | Q6: ESTRATO 1 | R6: ESTRATO 2 | S6: ESTRATO 3 | T6: ESTRATO 4 | U6: ESTRATO 5 y 6, Ind y Com
A7: Ene-23 | B7: 2023 | C7: 1 | D7: 309.97 | E7: 51.97 | F7: 62.68 | G7: 297.05 | H7: 87.59 | I7: 23.58 | J7: 832.84 | K7: 730.2 | N7: Ene-23 | O7: 2023 | P7: 1 | Q7: 292.08 | R7: 365.1 | S7: 620.67 | T7: 730.2 | U7: 876.24
A8: Feb-23 | B8: 2023 | C8: 2 | D8: 317.04 | E8: 48.71 | F8: 62.16 | G8: 297.05 | H8: 90.8 | I8: 20.95 | J8: 836.71 | K8: 743.18 | N8: Feb-23 | O8: 2023 | P8: 2 | Q8: 297.27 | R8: 371.59 | S8: 631.7 | T8: 743.18 | U8: 891.82
A9: Mar-23 | B9: 2023 | C9: 3 | D9: 361.1108 | E9: 52.3669 | F9: 69.0507 | G9: 294.5201 | H9: 90.9344 | I9: 18.2509 | J9: 886.2338 | K9: 755.52 | N9: Mar-23 | O9: 2023 | P9: 3 | Q9: 302.208 | R9: 377.7605 | S9: 642.192 | T9: 755.52 | U9: 906.624
A10: Abr-23** | B10: 2023 | C10: 4 | D10: 302.6636 | E10: 53.521 | F10: 60.1714 | G10: 287.2636 | H10: 94.2312 | I10: 40.0979 | J10: 837.9487 | K10: 763.46 | N10: Abr-23 | O10: 2023 | P10: 4 | Q10: 305.39 | R10: 381.73 | S10: 648.94 | T10: 763.46 | U10: 916.15
A11: May-23 | B11: 2023 | C11: 5 | D11: 279.14 | E11: 48.53 | F11: 55.9 | G11: 285.14 | H11: 98.58 | I11: 36.61 | J11: 803.9 | K11: 769.43 | N11: May-23 | O11: 2023 | P11: 5 | Q11: 307.78 | R11: 384.72 | S11: 654.02 | T11: 769.43 | U11: 923.32
A12: Jun-23 | B12: 2023 | C12: 6 | D12: 349.9211 | E12: 50.7029 | F12: 65.6229 | G12: 242.5978 | H12: 90.1013 | I12: 16.3638 | J12: 815.3098 | K12: 771.46 | N12: Jun-23 | O12: 2023 | P12: 6 | Q12: 309.1242 | R12: 386.4003 | S12: 656.8715 | T12: 772.79 | U12: 927.348
A13: Jul-23 | B13: 2023 | C13: 7 | D13: 321.5969 | E13: 40.8702 | F13: 61.0524 | G13: 243.3489 | H13: 94.0233 | I13: 24.1873 | J13: 785.079 | K13: 773.77 | N13: Jul-23 | O13: 2023 | P13: 7 | Q13: 309.508 | R13: 386.8868 | S13: 657.7045 | T13: 773.77 | U13: 928.524
A14: Ago-23 | B14: 2023 | C14: 8 | D14: 332.73 | E14: 46.96 | F14: 62.36 | G14: 241.36 | H14: 92.76 | I14: 13.14 | J14: 789.31 | K14: 777.65 | N14: Ago-23 | O14: 2023 | P14: 8 | Q14: 311.06 | R14: 388.83 | S14: 661 | T14: 777.65 | U14: 933.18
A15: Sep-23 | B15: 2023 | C15: 9 | D15: 378.327 | E15: 47.0195 | F15: 68.216 | G15: 236.109 | H15: 93.4262 | I15: 19.5007 | J15: 842.5984 | K15: 783.09 | N15: Sep-23 | O15: 2023 | P15: 9 | Q15: 313.236 | R15: 391.5485 | S15: 665.6265 | T15: 783.09 | U15: 939.708
A16: Oct-23 | B16: 2023 | C16: 10 | D16: 381.74 | E16: 48.6 | F16: 68.96 | G16: 238.79 | H16: 97.67 | I16: -2.58 | J16: 833.18 | K16: 806.5 | N16: Oct-23 | O16: 2023 | P16: 10 | Q16: 322.61 | R16: 403.26 | S16: 685.53 | T16: 806.5 | U16: =+T16*1.2 -> 967.8
A17: Nov-23 | B17: 2023 | C17: 11 | D17: 380.27 | E17: 46.25 | F17: 67.74 | G17: 265.02 | H17: 96.06 | I17: 2.88 | J17: 858.22 | K17: 887.15 | N17: Nov-23 | O17: 2023 | P17: 11 | Q17: 354.87 | R17: 443.59 | S17: 754.08 | T17: 887.15 | U17: 1064.58
A18: Dic-23 | B18: 2023 | C18: 12 | D18: 375.31 | E18: 51.24 | F18: 69.27 | G18: 259.32 | H18: 131.19 | I18: 20.8 | J18: 907.13 | N18: Dic-23 | O18: 2023 | P18: 12 | Q18: 362.85 | R18: 453.57 | S18: 771.06 | T18: 907.13 | U18: 1088.56
A19: * Pesos corrientes | D19: =+(D18-D17)/D17 -> -0.01304336393 | E19: =+(E18-E17)/E17 -> 0.1078918919 | F19: 0.02258635961 | G19: -0.02150781073 | H19: 0.3657089319 | I19: 6.222222222 | J19: 0.05699004917 | K19: -1 | N19: * Pesos corrientes | Q19: =+(Q18-Q17)/Q17 -> 0.02248710796 | R19: =+(R18-R17)/R17 -> 0.02249825289 | S19: =+(S18-S17)/S17 -> 0.02251750477 | T19: =+(T18-T17)/T17 -> 0.0225215578 | U19: =+(U18-U17)/U17 -> 0.02252531515
A20: ** En la publicación de Mayo de 2023, la empresa realiza el ajuste de la publicación de abril de 2023.
V24: CUV_119 | W24: Costo Unitario de Prestación del Servicio resultado de aplicar la metodología establecida en la Res. CREG 119 de 2007.
V27: CUV_Op | W27: Costo Unitario de Prestación del Servicio resultado de aplicar la metodología establecida en la Res. CREG 012 de 2020. Opción Tarifaria

Sheet 24. ENELAR
I1: REGRESAR
A2: EMPRESA: | C2: EMPRESA DE ENERGÍA DE ARAUCA E.S.P. (599)
A3: MERCADO: | C3: ARAUCA
A5: 1. COSTO UNITARIO DE PRESTACIÓN DEL SERVICIO Nivel de Tensión 1, Propiedad de Activos del OR | N5: 2. TARIFA AL USUARIO FINAL Nivel de Tensión 1, Propiedad de Activos del OR (estrato 1, 2 y 3 hasta el CS) | W5: 3. OPCIÓN TARIFARIA Nivel de Tensión 1, Propiedad de Activos del OR
B6: AÑO | C6: PERIODO | D6: GM | E6: TM | F6: PR | G6: D | H6: CV | I6: RM | J6: CUV_119 | K6: CUV_Op | O6: AÑO | P6: PERIODO | Q6: ESTRATO 1 | R6: ESTRATO 2 | S6: ESTRATO 3 | T6: ESTRATO 4 | U6: ESTRATO 5 y 6, Ind y Com
A7: Ene-23 | B7: 2023 | C7: 1 | D7: 298.3713 | E7: 51.9732 | F7: 47.2909 | G7: 244.9043 | H7: 144.5445 | I7: 28.3705 | J7: 815.4547 | K7: 773.2236 | N7: Ene-23 | O7: 2023 | P7: 1 | Q7: 309.2894 | R7: 386.6118 | S7: 657.24 | T7: 773.2236 | U7: 927.8683
A8: Feb-23 | B8: 2023 | C8: 2 | D8: 325.6216 | E8: 48.7081 | F8: 50.7403 | G8: 248.7558 | H8: 150.8555 | I8: 25.3847 | J8: 850.066 | K8: 789.4613 | N8: Feb-23 | O8: 2023 | P8: 2 | Q8: 315.7845 | R8: 394.7306 | S8: 671.0421 | T8: 789.4613 | U8: 947.3535
A9: Mar-23 | B9: 2023 | C9: 3 | D9: 383.4138 | E9: 52.3669 | F9: 58.7028 | G9: 265.9942 | H9: 162.1169 | I9: 22.6964 | J9: 945.291 | K9: 778.7202 | N9: Mar-23 | O9: 2023 | P9: 3 | Q9: 311.4881 | R9: 389.3601 | S9: 661.9121 | T9: 778.7202 | U9: 934.4642
A10: Abr-23 | B10: 2023 | C10: 4 | D10: 302.131 | E10: 53.521 | F10: 47.6516 | G10: 263.1777 | H10: 169.1714 | I10: 50.0809 | J10: 885.7336 | K10: 793.9831 | N10: Abr-23 | O10: 2023 | P10: 4 | Q10: 317.5932 | R10: 396.9915 | S10: 674.8856 | T10: 793.9831 | U10: 952.7797
A11: May-23 | B11: 2023 | C11: 5 | D11: 276.7017 | E11: 48.5314 | F11: 43.5401 | G11: 253.4009 | H11: 162.4977 | I11: 49.1231 | J11: 833.795 | K11: 809.6941 | N11: May-23 | O11: 2023 | P11: 5 | Q11: 323.8776 | R11: 404.8471 | S11: 688.24 | T11: 809.6941 | U11: 971.6329
A12: Jun-23 | B12: 2023 | C12: 6 | D12: 389.0807 | E12: 50.7029 | F12: 57.7065 | G12: 254.3305 | H12: 162.4977 | I12: 20.2711 | J12: 937.3636 | K12: 815.6595 | N12: Jun-23 | O12: 2023 | P12: 6 | Q12: 326.2638 | R12: 407.82975 | S12: 693.31058 | T12: 815.6595 | U12: 978.7914
A13: Jul-23 | B13: 2023 | C13: 7 | D13: 346.8275 | E13: 40.8702 | F13: 52.037 | G13: 258.2802 | H13: 163.7419 | I13: 29.3512 | J13: 891.1081 | K13: 820.5526 | N13: Jul-23 | O13: 2023 | P13: 7 | Q13: 328.221 | R13: 410.2763 | S13: 697.4697 | T13: 820.5526 | U13: 984.6631
A14: Ago-23 | B14: 2023 | C14: 8 | D14: 357.9436 | E14: 46.9624 | F14: 54.4059 | G14: 252.1428 | H14: 168.5405 | I14: 19.0014 | J14: 898.9967 | K14: 827.1238 | N14: Ago-23 | O14: 2023 | P14: 8 | Q14: 330.8495 | R14: 413.5619 | S14: 703.0552 | T14: 827.1238 | U14: 992.5485
A15: Sep-23 | B15: 2023 | C15: 9 | D15: 382.5493 | E15: 47.0195 | F15: 56.6743 | G15: 250.0071 | H15: 171.5208 | I15: 24.6395 | J15: 931.4105 | K15: 835.3879 | N15: Sep-23 | O15: 2023 | P15: 9 | Q15: 334.1552 | R15: 417.694 | S15: 710.0797 | T15: 835.3879 | U15: 1002.4655
A16: Oct-23 | B16: 2023 | C16: 10 | D16: 385.6546 | E16: 48.5999 | F16: 57.2414 | G16: 263.0548 | H16: 170.1438 | I16: 0.617 | J16: 925.3115 | K16: 925.6099 | N16: Oct-23 | O16: 2023 | P16: 10 | Q16: 370.244 | R16: 462.805 | S16: 786.7684 | T16: 925.6099 | U16: =+T16*1.2 -> 1110.73188
A17: Nov-23 | B17: 2023 | C17: 11 | D17: 386.9252 | E17: 46.251 | F17: 56.5 | G17: 261.6818 | H17: 166.6493 | I17: 3.6828 | J17: 921.6901 | K17: 931.1636 | N17: Nov-23 | O17: 2023 | P17: 11 | Q17: 372.4654 | R17: 465.5818 | S17: 791.4891 | T17: 931.1636 | U17: 1117.3963
A18: Dic-23 | B18: 2023 | C18: 12 | D18: 381.4759 | E18: 51.2352 | F18: 57.9114 | G18: 266.4301 | H18: 167.5935 | I18: 25.6158 | J18: 950.2619 | K18: 936.7506 | N18: Dic-23 | O18: 2023 | P18: 12 | Q18: 374.7002 | R18: 468.3753 | S18: 796.238 | T18: 936.7506 | U18: 1124.1007
A19: * Pesos corrientes | D19: =+(D18-D17)/D17 -> -0.01408360065 | E19: =+(E18-E17)/E17 -> 0.1077641565 | F19: 0.02498053097 | G19: 0.01814532 | H19: 0.005665790375 | I19: 5.955522972 | J19: 0.03099935651 | K19: =+(K18-K17)/K17 -> 0.00600001976 | N19: * Pesos corrientes | Q19: =+(Q18-Q17)/Q17 -> 0.006000020405 | R19: =+(R18-R17)/R17 -> 0.00600001976 | S19: =+(S18-S17)/S17 -> 0.005999956285 | T19: =+(T18-T17)/T17 -> 0.00600001976 | U19: =+(U18-U17)/U17 -> 0.006000019868
W23: CUV_119 | X23: Costo Unitario de Prestación del Servicio resultado de aplicar la metodología establecida en la Res. CREG 119 de 2007.
W26: CUV_Op | X26: Costo Unitario de Prestación del Servicio resultado de aplicar la metodología establecida en la Res. CREG 012 de 2020. Opción Tarifaria

Sheet 25. ENERCA
I1: REGRESAR
A2: EMPRESA: | C2: EMPRESA DE ENERGÍA DE CASANARE S.A. E.S.P. (3370)
A3: MERCADO: | C3: CASANARE
A5: 1. COSTO UNITARIO DE PRESTACIÓN DEL SERVICIO Nivel de Tensión 1, Propiedad de Activos del OR | N5: 2. TARIFA AL USUARIO FINAL Nivel de Tensión 1, Propiedad de Activos del OR (estrato 1, 2 y 3 hasta el CS) | W5: 3. OPCIÓN TARIFARIA Nivel de Tensión 1, Propiedad de Activos del OR
B6: AÑO | C6: PERIODO | D6: GM | E6: TM | F6: PR | G6: D | H6: CV | I6: RM | J6: CUV_119 | K6: CUV_Op | O6: AÑO | P6: PERIODO | Q6: ESTRATO 1 | R6: ESTRATO 2 | S6: ESTRATO 3 | T6: ESTRATO 4 | U6: ESTRATO 5 y 6, Ind y Com
A7: Ene-23 | B7: 2023 | C7: 1 | D7: 282.8447 | E7: 51.9732 | F7: 114.3994 | G7: 297.0529 | H7: 73.8796 | I7: 25.7817 | J7: 845.9315 | K7: 723.853 | N7: Ene-23 | O7: 2023 | P7: 1 | Q7: 289.5412 | R7: 361.9265 | S7: 615.2751 | T7: 723.853 | U7: 868.6236
A8: Feb-23 | B8: 2023 | C8: 2 | D8: 298.5756 | E8: 48.7081 | F8: 116.2866 | G8: 297.0494 | H8: 75.4352 | I8: 24.0182 | J8: 860.0731 | K8: 736.7184 | N8: Feb-23 | O8: 2023 | P8: 2 | Q8: 294.6874 | R8: 368.3592 | S8: 626.2106 | T8: 736.7184 | U8: 884.0621
A9: Mar-23 | B9: 2023 | C9: 3 | D9: 339.3737 | E9: 52.3669 | F9: 124.7244 | G9: 294.5201 | H9: 73.9615 | I9: 23.3207 | J9: 908.2673 | K9: 748.952 | N9: Mar-23 | O9: 2023 | P9: 3 | Q9: 299.5809 | R9: 374.476 | S9: 636.6092 | T9: 748.952 | U9: 898.7424
A10: Abr-23 | B10: 2023 | C10: 4 | D10: 289.6735 | E10: 53.521 | F10: 117.1 | G10: 287.2636 | H10: 76.5242 | I10: 46.2724 | J10: 870.3547 | K10: 756.8206 | N10: Abr-23 | O10: 2023 | P10: 4 | Q10: 302.7283 | R10: 378.4103 | S10: 643.2975 | T10: 756.8206 | U10: 908.1847
A11: May-23 | B11: 2023 | C11: 5 | D11: 278.0055 | E11: 48.5314 | F11: 114.4451 | G11: 285.1431 | H11: 76.8749 | I11: 44.9659 | J11: 847.9659 | K11: 762.7364 | N11: May-23 | O11: 2023 | P11: 5 | Q11: 305.0946 | R11: 381.3682 | S11: 648.3259 | T11: 762.7364 | U11: 915.2837
A12: Jun-23 | B12: 2023 | C12: 6 | D12: 338.0973 | E12: 50.7029 | F12: 123.1388 | G12: 242.5978 | H12: 74.8262 | I12: 19.4563 | J12: 848.8193 | K12: 766.0676 | N12: Jun-23 | O12: 2023 | P12: 6 | Q12: 306.4271 | R12: 383.0338 | S12: 651.1575 | T12: 766.0676 | U12: 919.2811
A13: Jul-23 | B13: 2023 | C13: 7 | D13: 307.5291 | E13: 40.8702 | F13: 73.3536 | G13: 243.3489 | H13: 76.1023 | I13: 27.4246 | J13: 768.6287 | K13: 768.365 | N13: Jul-23 | O13: 2023 | P13: 7 | Q13: 307.3461 | R13: 384.1825 | S13: 653.1102 | T13: 768.365 | U13: 922.038
A14: Ago-23 | B14: 2023 | C14: 8 | D14: 324.3127 | E14: 46.9624 | F14: 77.0562 | G14: 241.3649 | H14: 72.6944 | I14: 16.6417 | J14: 779.0323 | K14: 772.2131 | N14: Ago-23 | O14: 2023 | P14: 8 | Q14: 308.8854 | R14: 386.1066 | S14: 656.3811 | T14: 779.0323 | U14: 934.8388
A15: Sep-23 | B15: 2023 | C15: 9 | D15: 342.931 | E15: 47.0195 | F15: 79.6584 | G15: 236.109 | H15: 78.7352 | I15: 23.4884 | J15: 807.9415 | K15: 777.612 | N15: Sep-23 | O15: 2023 | P15: 9 | Q15: 311.045 | R15: 388.806 | S15: 660.9702 | T15: 777.612 | U15: 933.1344
A16: Oct-23 | B16: 2023 | C16: 10 | D16: 371.7922 | E16: 48.5999 | F16: 85.8336 | G16: 238.7888 | H16: 75.6044 | I16: 0.5813 | J16: 821.2002 | K16: 793.162 | N16: Oct-23 | O16: 2023 | P16: 10 | Q16: 317.2657 | R16: 396.5821 | S16: 674.1896 | T16: 793.1642 | U16: 951.797
A17: Nov-23 | B17: 2023 | C17: 11 | D17: 374.2852 | E17: 46.251 | F17: 86.8333 | G17: 265.0179 | H17: 73.5209 | I17: 3.6434 | J17: 849.5517 | K17: 864.549 | N17: Nov-23 | O17: 2023 | P17: 11 | Q17: 345.8196 | R17: 432.2745 | S17: 734.8667 | T17: 864.549 | U17: 1037.4588
A18: Dic-23 | B18: 2023 | C18: 12 | D18: 368.0537 | E18: 51.2352 | F18: 87.9689 | G18: 259.319 | H18: 76.3806 | I18: 23.2668 | J18: 866.2242 | K18: 869.7363 | N18: Dic-23 | O18: 2023 | P18: 12 | Q18: 347.8945 | R18: 434.8681 | S18: 739.2759 | T18: 869.7363 | U18: =+T18*1.2 -> 1043.68356
A19: * Pesos corrientes | D19: =+(D18-D17)/D17 -> -0.01664906868 | E19: =+(E18-E17)/E17 -> 0.1077641565 | F19: 0.01307793208 | G19: -0.0215038305 | H19: 0.03889642265 | I19: 5.386013065 | J19: 0.01962505637 | K19: 0.00600000694 | N19: * Pesos corrientes | Q19: =+(Q18-Q17)/Q17 -> 0.005999949106 | R19: =+(R18-R17)/R17 -> 0.005999891273 | S19: =+(S18-S17)/S17 -> 0.005999999728 | T19: =+(T18-T17)/T17 -> 0.00600000694 | U19: =+(U18-U17)/U17 -> 0.00600000694
W23: CUV_119 | X23: Costo Unitario de Prestación del Servicio resultado de aplicar la metodología establecida en la Res. CREG 119 de 2007.
W26: CUV_Op | X26: Costo Unitario de Prestación del Servicio resultado de aplicar la metodología establecida en la Res. CREG 012 de 2020. Opción Tarifaria

Sheet 26. ENERGUAVIARE
I1: REGRESAR
A2: EMPRESA: | C2: EMPRESA DE ENERGÍA ELÉCTRICA DEL DEPARTAMENTO DEL GUAVIARE E.S.P. (3076)
A3: MERCADO: | C3: GUAVIARE
A5: 1. COSTO UNITARIO DE PRESTACIÓN DEL SERVICIO Nivel de Tensión 1, Propiedad de Activos del OR | N5: 2. TARIFA AL USUARIO FINAL Nivel de Tensión 1, Propiedad de Activos del OR (estrato 1, 2 y 3 hasta el CS) | W5: 3. OPCIÓN TARIFARIA Nivel de Tensión 1, Propiedad de Activos del OR
B6: AÑO | C6: PERIODO | D6: GM | E6: TM | F6: PR | G6: D | H6: CV | I6: RM | J6: CUV_119 | K6: CUV_Op | O6: AÑO | P6: PERIODO | Q6: ESTRATO 1 | R6: ESTRATO 2 | S6: ESTRATO 3 | T6: ESTRATO 4 | U6: ESTRATO 5 y 6, Ind y Com
A7: Ene-23 | B7: 2023 | C7: 1 | D7: 291.66372 | E7: 51.97324 | F7: 46.71122 | G7: 185.70271 | H7: 129.36464 | I7: 22.41718 | J7: 727.83271 | K7: 663.33175 | N7: Ene-23 | O7: 2023 | P7: 1 | Q7: 265.3327 | R7: 331.66587 | S7: 563.83199 | T7: 663.33175 | U7: 795.9981
A8: Feb-23 | B8: 2023 | C8: 2 | D8: 290.93772 | E8: 48.70809 | F8: 46.23989 | G8: 189.70313 | H8: 129.41116 | I8: 19.24685 | J8: 724.24684 | K8: 674.80739 | N8: Feb-23 | O8: 2023 | P8: 2 | Q8: 269.92296 | R8: 337.4037 | S8: 573.58628 | T8: 674.80739 | U8: 809.76887
A9: Mar-23 | B9: 2023 | C9: 3 | D9: 296.27796 | E9: 52.36693 | F9: 46.92631 | G9: 193.69923 | H9: 130.84301 | I9: 17.73345 | J9: 737.84689 | K9: 686.00919 | N9: Mar-23 | O9: 2023 | P9: 3 | Q9: 274.40368 | R9: 343.0046 | S9: 583.10781 | T9: 686.00919 | U9: 823.21103
A10: Abr-23 | B10: 2023 | C10: 4 | D10: 292.79146 | E10: 53.52403 | F10: 46.63578 | G10: 212.06239 | H10: 131.74123 | I10: 34.67271 | J10: 771.4246 | K10: 693.21229 | N10: Abr-23 | O10: 2023 | P10: 4 | Q10: 277.28492 | R10: 346.60615 | S10: 589.23045 | T10: 693.21229 | U10: 831.85475
A11: May-23 | B11: 2023 | C11: 5 | D11: 290.62207 | E11: 48.53139 | F11: 45.83484 | G11: 212.98943 | H11: 146.13603 | I11: 39.09275 | J11: 783.20651 | K11: 698.61935 | N11: May-23 | O11: 2023 | P11: 5 | Q11: 279.44774 | R11: 349.30968 | S11: 593.82645 | T11: 698.61935 | U11: 838.34322
A12: Jun-23 | B12: 2023 | C12: 6 | D12: 288.541 | E12: 50.70291 | F12: 45.37459 | G12: 207.64055 | H12: 140.07494 | I12: 40.53189 | J12: 772.86588 | K12: 701.62341 | N12: Jun-23 | O12: 2023 | P12: 6 | Q12: 280.64936 | R12: 350.81171 | S12: 596.3799 | T12: 701.62341 | U12: 841.94809
A13: Jul-23 | B13: 2023 | C13: 7 | D13: 288.46051 | E13: 40.87022 | F13: 44.21712 | G13: 205.81074 | H13: 144.06434 | I13: 27.61294 | J13: 751.03587 | K13: 703.72828 | N13: Jul-23 | O13: 2023 | P13: 7 | Q13: 281.49131 | R13: 351.86414 | S13: 598.16904 | T13: 703.72828 | U13: 844.47
A14: Ago-23 | B14: 2023 | C14: 8 | D14: 287.49334 | E14: 46.96245 | F14: 44.7329 | G14: 202.94596 | H14: 150.90186 | I14: 14.02988 | J14: 747.06639 | K14: 707.24692 | N14: Ago-23 | O14: 2023 | P14: 8 | Q14: 282.89877 | R14: 353.62346 | S14: 601.15988 | T14: 707.24692 | U14: 848.6963
A15: Sep-23 | B15: 2023 | C15: 9 | D15: 290.80127 | E15: 47.01951 | F15: 44.29372 | G15: 202.81432 | H15: 147.86627 | I15: 23.40151 | J15: 756.1966 | K15: 712.19765 | N15: Sep-23 | O15: 2023 | P15: 9 | Q15: 284.87906 | R15: 356.09883 | S15: 605.368 | T15: 712.19765 | U15: 854.63718
A16: Oct-23 | B16: 2023 | C16: 10 | D16: 294.37618 | E16: 48.59986 | F16: 45.00995 | G16: 204.96837 | H16: 153.75031 | I16: 0.47937 | J16: 747.18304 | K16: 716.04352 | N16: Oct-23 | O16: 2023 | P16: 10 | Q16: 286.41741 | R16: 358.02176 | S16: 608.63699 | T16: 716.04352 | U16: 859.25222
A17: Nov-23 | B17: 2023 | C17: 11 | D17: 296.17814 | E17: 46.25099 | F17: 44.47583 | G17: 202.79484 | H17: 144.85189 | I17: 3.1106 | J17: 737.66229 | K17: 723.20396 | N17: Nov-23 | O17: 2023 | P17: 11 | Q17: 289.28158 | R17: 361.60198 | S17: 614.72337 | T17: 723.20396 | U17: 867.84475
A18: Dic-23 | B18: 2023 | C18: 12 | D18: 290.39254 | E18: 51.2352 | F18: 45.44821 | G18: 200.9298 | H18: 139.89109 | I18: 19.63031 | J18: 747.52715 | K18: 726.60302 | N18: Dic-23 | O18: 2023 | P18: 12 | Q18: 290.64121 | R18: 363.30151 | S18: 617.61257 | T18: 726.60302 | U18: 871.92362
A19: * Pesos corrientes | D19: =+(D18-D17)/D17 -> -0.0195341898 | E19: =+(E18-E17)/E17 -> 0.107764396 | F19: 0.02186311082 | G19: -0.009196683703 | H19: -0.03424739574 | I19: 5.310779271 | J19: 0.01337313854 | K19: 0.004700001919 | N19: * Pesos corrientes | Q19: =+(Q18-Q17)/Q17 -> 0.004700022725 | R19: =+(R18-R17)/R17 -> 0.004700001919 | S19: =+(S18-S17)/S17 -> 0.004700000262 | T19: =+(T18-T17)/T17 -> 0.004700001919 | U19: =+(U18-U17)/U17 -> 0.004699999626
W25: CUV_119 | X25: Costo Unitario de Prestación del Servicio resultado de aplicar la metodología establecida en la Res. CREG 119 de 2007.
W28: CUV_Op | X28: Costo Unitario de Prestación del Servicio resultado de aplicar la metodología establecida en la Res. CREG 012 de 2020. Opción Tarifaria

Sheet 27. EPM
I1: REGRESAR
A2: EMPRESA: | C2: EMPRESAS PÚBLICAS DE MEDELLÍN E.S.P. (564)
A3: MERCADO: | C3: ANTIOQUIA CREG 078/07
A5: 1. COSTO UNITARIO DE PRESTACIÓN DEL SERVICIO Nivel de Tensión 1, Propiedad de Activos del OR | N5: 2. TARIFA AL USUARIO FINAL Nivel de Tensión 1, Propiedad de Activos del OR (estrato 1, 2 y 3 hasta el CS) | V5: 3. OPCIÓN TARIFARIA Nivel de Tensión 1, Propiedad de Activos del OR
B6: AÑO | C6: PERIODO | D6: GM | E6: TM | F6: PR | G6: D | H6: CV | I6: RM | J6: CUV_119 | K6: CUV_Op | O6: AÑO | P6: PERIODO | Q6: ESTRATO 1 | R6: ESTRATO 2 | S6: ESTRATO 3 | T6: ESTRATO 4 | U6: ESTRATO 5 y 6, Ind y Com
A7: Ene-23 | B7: 2023 | C7: 1 | D7: 290.2 | E7: 51.97 | F7: 62.49 | G7: 289.27 | H7: 56.86 | I7: 19.7 | J7: 770.5 | K7: 765.85 | N7: Ene-23 | O7: 2023 | P7: 1 | Q7: 307.63 | R7: 384.54 | S7: 650.97 | T7: 765.85 | U7: 919.02
A8: Feb-23 | B8: 2023 | C8: 2 | D8: 296.96 | E8: 48.71 | F8: 63.2 | G8: 294.99 | H8: 62.69 | I8: 18.35 | J8: 784.9 | K8: 779.48 | N8: Feb-23 | O8: 2023 | P8: 2 | Q8: 313.1 | R8: 391.37 | S8: 662.56 | T8: 779.48 | U8: 935.38
A9: Mar-23 | B9: 2023 | C9: 3 | D9: 333.24 | E9: 52.37 | F9: 69.56 | G9: 315.34 | H9: 64.56 | I9: 16.13 | J9: 851.19 | K9: 792.42 | N9: Mar-23 | O9: 2023 | P9: 3 | Q9: 318.3 | R9: 397.87 | S9: 673.56 | T9: 792.42 | U9: 950.91
A10: Abr-23 | B10: 2023 | C10: 4 | D10: 289.88 | E10: 53.52 | F10: 62.42 | G10: 315.26 | H10: 67.85 | I10: 34.7 | J10: 823.62 | K10: 800.74 | N10: Abr-23 | O10: 2023 | P10: 4 | Q10: 321.64 | R10: 402.05 | S10: 680.63 | T10: 800.74 | U10: 960.89
A11: May-23 | B11: 2023 | C11: 5 | D11: 280.03 | E11: 48.53 | F11: 59.97 | G11: 300.59 | H11: 65.41 | I11: 33.53 | J11: 788.07 | K11: 806.99 | N11: May-23 | O11: 2023 | P11: 5 | Q11: 324.15 | R11: 405.19 | S11: 685.94 | T11: 806.99 | U11: 968.388
A12: Jun-23 | B12: 2023 | C12: 6 | D12: 336.51 | E12: 50.7 | F12: 68.51 | G12: 290.15 | H12: 65.81 | I12: 14.82 | J12: 826.5 | K12: 802.15 | N12: Jun-23 | O12: 2023 | P12: 6 | Q12: 325.57 | R12: 406.96 | S12: 681.83 | T12: 802.15 | U12: 962.58
A13: Jul-23 | B13: 2023 | C13: 7 | D13: 324.0633 | E13: 40.8702 | F13: 65.8628 | G13: 300.0383 | H13: 68.1679 | I13: 22.974 | J13: 821.9765 | K13: 797.33 | N13: Jul-23 | O13: 2023 | P13: 7 | Q13: 326.55 | R13: 408.18 | S13: 677.73 | T13: 797.33 | U13: 956.8
A14: Ago-23 | B14: 2023 | C14: 8 | D14: 313.98 | E14: 46.96 | F14: 65.34 | G14: 299.02 | H14: 65.8 | I14: 11.19 | J14: 802.29 | K14: 792.55 | N14: Ago-23 | O14: 2023 | P14: 8 | Q14: 328.18 | R14: 410.23 | S14: 673.67 | T14: 792.55 | U14: 951.06
A15: Sep-23 | B15: 2023 | C15: 9 | D15: 343.7195 | E15: 47.0195 | F15: 70.4397 | G15: 287.5999 | H15: 65.4121 | I15: 16.8982 | J15: 831.0889 | K15: 798.1 | N15: Sep-23 | O15: 2023 | P15: 9 | Q15: 330.48 | R15: 413.1 | S15: 678.38 | T15: 798.1 | U15: 957.72
A16: Oct-23 | B16: 2023 | C16: 10 | D16: 367.67 | E16: 48.6 | F16: 73.61 | G16: 286.79 | H16: 66.05 | I16: 0.29 | J16: 843.01 | K16: 842.79 | N16: Oct-23 | O16: 2023 | P16: 10 | Q16: 337.12 | R16: 421.4 | S16: 716.37 | T16: 842.79 | U16: 1011.35
A17: Nov-23 | B17: 2023 | C17: 11 | D17: 367.1 | E17: 46.25 | F17: 72.5 | G17: 298.08 | H17: 65.46 | I17: -0.25 | J17: 849.14 | K17: 884.93 | N17: Nov-23 | O17: 2023 | P17: 11 | Q17: 353.97 | R17: 442.47 | S17: 752.19 | T17: 884.93 | U17: 1061.92
A18: Dic-23 | B18: 2023 | C18: 12 | D18: 349.05 | E18: 51.24 | F18: 72.03 | G18: 299.4 | H18: 65.81 | I18: 16.96 | J18: 854.49 | K18: 888.47 | N18: Dic-23 | O18: 2023 | P18: 12 | Q18: 355.63 | R18: 444.54 | S18: 755.2 | T18: 888.47 | U18: 1066.17
A19: * Pesos corrientes | D19: =+(D18-D17)/D17 -> -0.04916916372 | E19: =+(E18-E17)/E17 -> 0.1078918919 | F19: -0.006482758621 | G19: 0.004428341385 | H19: 0.005346776658 | I19: -68.84 | J19: 0.006300492263 | K19: 0.004000316409 | N19: * Pesos corrientes | Q19: =+(Q18-Q17)/Q17 -> 0.004689662966 | R19: =+(R18-R17)/R17 -> 0.004678283273 | S19: =+(S18-S17)/S17 -> 0.00400164852 | T19: =+(T18-T17)/T17 -> 0.004000316409 | U19: =+(U18-U17)/U17 -> 0.004002184722
V22: CUV_119 | W22: Costo Unitario de Prestación del Servicio resultado de aplicar la metodología establecida en la Res. CREG 119 de 2007.
V25: CUV_Op | W25: Costo Unitario de Prestación del Servicio resultado de aplicar la metodología establecida en la Res. CREG 012 de 2020. Opción Tarifaria

Sheet 28. ESSA
I1: REGRESAR
A2: EMPRESA: | C2: ELECTRIFICADORA DE SANTANDER S.A. E.S.P. (524)
A3: MERCADO: | C3: SANTANDER
A5: 1. COSTO UNITARIO DE PRESTACIÓN DEL SERVICIO Nivel de Tensión 1, Propiedad de Activos del OR | N5: 2. TARIFA AL USUARIO FINAL Nivel de Tensión 1, Propiedad de Activos del OR (estrato 1, 2 y 3 hasta el CS) | W5: 3. OPCIÓN TARIFARIA Nivel de Tensión 1, Propiedad de Activos del OR
B6: AÑO | C6: PERIODO | D6: GM | E6: TM | F6: PR | G6: D | H6: CV | I6: RM | J6: CUV_119 | K6: CUV_Op | O6: AÑO | P6: PERIODO | Q6: ESTRATO 1 | R6: ESTRATO 2 | S6: ESTRATO 3 | T6: ESTRATO 4 | U6: ESTRATO 5 y 6, Ind y Com
A7: Ene-23 | B7: 2023 | C7: 1 | D7: 297.2461 | E7: 51.9732 | F7: 67.3686 | G7: 289.2747 | H7: 74.5339 | I7: 22.2135 | J7: 802.61 | K7: 791.5474 | N7: Ene-23 | O7: 2023 | P7: 1 | Q7: 324.4365 | R7: 405.5457 | S7: 672.8153 | T7: 791.5474 | U7: 949.8568
A8: Feb-23 | B8: 2023 | C8: 2 | D8: 308.9141 | E8: 48.7081 | F8: 69.0488 | G8: 294.9945 | H8: 75.9801 | I8: 19.5492 | J8: 817.1947 | K8: 791.5474 | N8: Feb-23 | O8: 2023 | P8: 2 | Q8: 330.2028 | R8: 412.7536 | S8: 672.8153 | T8: 791.5474 | U8: 949.85688
A9: Mar-23 | B9: 2023 | C9: 3 | D9: 359.1296 | E9: 52.3669 | F9: 78.537 | G9: 315.3362 | H9: 79.8589 | I9: 18.0073 | J9: 903.2359 | K9: 804.6871 | N9: Mar-23 | O9: 2023 | P9: 3 | Q9: 335.6861 | R9: 419.6076 | S9: 683.984 | T9: 804.6871 | U9: 965.6245
A10: Abr-23 | B10: 2023 | C10: 4 | D10: 294.9998 | E10: 53.521 | F10: 66.9203 | G10: 315.255 | H10: 86.1794 | I10: 35.1183 | J10: 851.9939 | K10: 813.1363 | N10: Abr-23 | O10: 2023 | P10: 4 | Q10: 339.2129 | R10: 424.0161 | S10: 691.1658 | T10: 813.1363 | U10: 975.7635
A11: May-23 | B11: 2023 | C11: 5 | D11: 273.7909 | E11: 48.5314 | F11: 62.2155 | G11: 300.5938 | H11: 81.8541 | I11: 37.9589 | J11: 804.9446 | K11: 819.4787 | N11: May-23 | O11: 2023 | P11: 5 | Q11: 341.8644 | R11: 427.3305 | S11: 696.5569 | T11: 819.474787 | U11: 983.3697444
A12: Jun-23 | B12: 2023 | C12: 6 | D12: 371.4348 | E12: 50.7029 | F12: 78.8345 | G12: 290.1503 | H12: 82.5333 | I12: 16.1626 | J12: 889.8184 | K12: 823.0844 | N12: Jun-23 | O12: 2023 | P12: 6 | Q12: 343.3575 | R12: 429.1968 | S12: 699.6218 | T12: 823.0844 | U12: 987.7013
A13: Jul-23 | B13: 2023 | C13: 7 | D13: 347 | E13: 40.87 | F13: 74.33 | G13: 300.04 | H13: 83.43 | I13: 22.67 | J13: 868.34 | K13: 825.55 | N13: Jul-23 | O13: 2023 | P13: 7 | Q13: 344.39 | R13: 430.48 | S13: 701.72 | T13: 825.55 | U13: 990.66
A14: Ago-23 | B14: 2023 | C14: 8 | D14: 367.58 | E14: 46.96 | F14: 80.49 | G14: 299.02 | H14: 82.55 | I14: 13.08 | J14: 889.69 | K14: 829.68 | N14: Ago-23 | O14: 2023 | P14: 8 | Q14: 346.11 | R14: 432.64 | S14: 705.23 | T14: 829.68 | U14: 995.616
A15: Sep-23 | B15: 2023 | C15: 9 | D15: 284.69 | E15: 47.02 | F15: 63.17 | G15: 287.59 | H15: 84.95 | I15: 17.26 | J15: 784.68 | K15: 835.48923 | N15: Sep-23 | O15: 2023 | P15: 9 | Q15: 348.53 | R15: 435.66 | S15: 710.17 | T15: 835.49 | U15: 1002.59
A16: Oct-23 | B16: 2023 | C16: 10 | D16: 374.66 | E16: 48.6 | F16: 79.83 | G16: 286.79 | H16: 79.99 | I16: -2.56 | J16: 867.31 | K16: 935.75 | N16: Oct-23 | O16: 2023 | P16: 10 | Q16: 374.3 | R16: 467.87 | S16: 795.39 | T16: 935.75 | U16: =+T16*1.2 -> 1122.9
A17: Nov-23 | B17: 2023 | C17: 11 | D17: 373.41 | E17: 46.25 | F17: 78.91 | G17: 298.08 | H17: 83.36 | I17: 2.58 | J17: 882.6 | K17: 941.36 | N17: Nov-23 | O17: 2023 | P17: 11 | Q17: 376.54 | R17: 470.68 | S17: 800.16 | T17: 941.36 | U17: =+T17*1.2 -> 1129.632
A18: Dic-23 | B18: 2023 | C18: 12 | D18: 370.24 | E18: 51.24 | F18: 79.79 | G18: 299.4 | H18: 123.8 | I18: 21.31 | J18: 945.77 | N18: Dic-23 | O18: 2023 | P18: 12 | Q18: 378.31 | R18: 472.89 | S18: 803.91 | T18: 945.77 | U18: 1134.93
A19: * Pesos corrientes | D19: =+(D18-D17)/D17 -> -0.008489328084 | E19: =+(E18-E17)/E17 -> 0.1078918919 | F19: 0.01115194525 | G19: 0.004428341385 | H19: 0.4851247601 | I19: 7.259689922 | J19: 0.07157262633 | K19: -1 | N19: * Pesos corrientes | Q19: =+(Q18-Q17)/Q17 -> 0.004700695809 | R19: =+(R18-R17)/R17 -> 0.00469533441 | S19: =+(S18-S17)/S17 -> 0.004686562687 | T19: =+(T18-T17)/T17 -> 0.004684711481 | U19: =+(U18-U17)/U17 -> 0.004690022946
W24: CUV_119 | X24: Costo Unitario de Prestación del Servicio resultado de aplicar la metodología establecida en la Res. CREG 119 de 2007.
W27: CUV_Op | X27: Costo Unitario de Prestación del Servicio resultado de aplicar la metodología establecida en la Res. CREG 012 de 2020. Opción Tarifaria

Sheet 29. RUITOQUE
I1: REGRESAR
A2: EMPRESA: | C2: RUITOQUE S.A. E.S.P. (1737)
A3: MERCADO: | C3: RUITOQUE
A5: 1. COSTO UNITARIO DE PRESTACIÓN DEL SERVICIO Nivel de Tensión 1, Propiedad de Activos del OR | N5: 2. TARIFA AL USUARIO FINAL Nivel de Tensión 1, Propiedad de Activos del OR (estrato 1, 2 y 3 hasta el CS) | W5: 3. OPCIÓN TARIFARIA Nivel de Tensión 1, Propiedad de Activos del OR
B6: AÑO | C6: PERIODO | D6: GM | E6: TM | F6: PR | G6: D | H6: CV | I6: RM | J6: CUV_119 | K6: CUV_Op | O6: AÑO | P6: PERIODO | Q6: ESTRATO 1 | R6: ESTRATO 2 | S6: ESTRATO 3 | T6: ESTRATO 4 | U6: ESTRATO 5 y 6, Ind y Com
A7: Ene-23 | B7: 2023 | C7: 1 | D7: 286.97 | E7: 51.97 | F7: 49.7 | G7: 289.27 | H7: 57.1 | I7: 19.26 | J7: 754.28 | K7: 790.28 | N7: Ene-23 | O7: 2023 | P7: 1 | T7: 790.28 | U7: 948.336
A8: Feb-23 | B8: 2023 | C8: 2 | D8: 367.56 | E8: 48.71 | F8: 61.49 | G8: 294.99 | H8: 56.91 | I8: 18.13 | J8: 847.8 | K8: 802.62 | N8: Feb-23 | O8: 2023 | P8: 2 | T8: 802.62 | U8: 963.144
A9: Mar-23 | B9: 2023 | C9: 3 | D9: 375.51 | E9: 52.37 | F9: 62.7 | G9: 315.34 | H9: 60.6 | I9: 15.91 | J9: 882.42 | K9: 819.29 | N9: Mar-23 | O9: 2023 | P9: 3 | T9: 819.29 | U9: 983.14926
A10: Abr-23 | B10: 2023 | C10: 4 | D10: 372.75 | E10: 53.52 | F10: 62.37 | G10: 315.26 | H10: 64.44 | I10: 30.98 | J10: 899.32 | K10: 835.35 | N10: Abr-23 | O10: 2023 | P10: 4 | T10: 835.35 | U10: 1002.42
A11: May-23 | B11: 2023 | C11: 5 | D11: 268.54 | E11: 48.53 | F11: 46.19 | G11: 300.59 | H11: 64.38 | I11: 33.61 | J11: 761.83 | K11: 844.39 | N11: May-23 | O11: 2023 | P11: 5 | T11: 844.39 | U11: 1013.27
A12: Jun-23 | B12: 2023 | C12: 6 | D12: 371.4999 | E12: 50.7029 | F12: 60.4773 | G12: 290.1503 | H12: 60.8178 | I12: 13.0872 | J12: 846.7354 | K12: 850.6105 | N12: Jun-23 | O12: 2023 | P12: 6 | T12: 850.6105 | U12: 1020.73258
A13: Jul-23 | B13: 2023 | C13: 7 | D13: 430.1788 | E13: 40.8702 | F13: 69.1304 | G13: 300.03826 | H13: 61.1465 | I13: 24.7702 | J13: 926.13436 | K13: 855.7133 | N13: Jul-23 | O13: 2023 | P13: 7 | T13: 855.7133 | U13: 1026.8559
A14: Ago-23 | B14: 2023 | C14: 8 | D14: 413.7 | E14: 46.96 | F14: 67.75 | G14: 299.02 | H14: 71.38 | I14: 10.93 | J14: 909.75 | K14: 862.57 | N14: Ago-23 | O14: 2023 | P14: 8 | T14: 862.57 | U14: 1035.08
A15: Sep-23 | B15: 2023 | C15: 9 | D15: 353.3871 | E15: 47.0195 | F15: 67.7541 | G15: 289.6107 | H15: 68.8894 | I15: 15.5612 | J15: 842.222 | K15: 871.8258 | N15: Sep-23 | O15: 2023 | P15: 9 | T15: 871.8258 | U15: 1046.19099
A16: Oct-23 | B16: 2023 | C16: 10 | D16: 401.23 | E16: 48.6 | F16: 65.14 | G16: 286.79 | H16: 71.41 | I16: 0.33 | J16: 873.5 | K16: 889.26 | N16: Oct-23 | O16: 2023 | P16: 10 | T16: 889.26 | U16: =+T16*1.2 -> 1067.112
A17: Nov-23 | B17: 2023 | C17: 11 | D17: 370.71 | E17: 46.25 | F17: 59.64 | G17: 298.08 | H17: 73.93 | I17: 2.2 | J17: 850.81 | K17: 942.62 | N17: Nov-23 | O17: 2023 | P17: 11 | T17: 942.62 | U17: =+T17*1.2 -> 1131.144
A18: Dic-23 | B18: 2023 | C18: 12 | D18: 363.47 | E18: 51.24 | F18: 60.7 | G18: 299.4 | H18: 73.37 | I18: 17.13 | J18: 865.31 | K18: 948.27 | N18: Dic-23 | O18: 2023 | P18: 12 | T18: 948.27 | U18: =+T18*1.2 -> 1137.924
A19: * Pesos corrientes | D19: =+(D18-D17)/D17 -> -0.01953009091 | E19: =+(E18-E17)/E17 -> 0.1078918919 | F19: 0.01777330651 | G19: 0.004428341385 | H19: -0.007574732855 | I19: 6.786363636 | J19: 0.01704258295 | K19: 0.005993931807 | N19: * Pesos corrientes | Q19: =+(Q18-Q17)/Q17 ->  | R19: =+(R18-R17)/R17 ->  | S19: =+(S18-S17)/S17 ->  | T19: =+(T18-T17)/T17 -> 0.005993931807 | U19: =+(U18-U17)/U17 -> 0.005993931807
X23: CUV_119 | Y23: Costo Unitario de Prestación del Servicio resultado de aplicar la metodología establecida en la Res. CREG 119 de 2007.
X26: CUV_Op | Y26: Costo Unitario de Prestación del Servicio resultado de aplicar la metodología establecida en la Res. CREG 012 de 2020. Opción Tarifaria

Sheet Variaciones CU
A1: REGRESAR | AG1: 0.0001 | AH1: 9e-05 | AQ1: 0.0001 | AR1: 9e-05 | BA1: 0.0001 | BB1: 9e-05 | BK1: 0.0001 | BL1: 9e-05 | BU1: 0.0001 | BV1: 9e-05 | CE1: 0.0001 | CF1: 9e-05 | CO1: 0.0001 | CP1: 9e-05
A2: Nivel de Tensión 1 Propiedad de Activos del OR | K2: Nivel de Tensión 1 Propiedad de Activos del OR | U2: Nivel de Tensión 1 Propiedad de Activos del OR | AE2: Nivel de Tensión 1 Propiedad de Activos del OR | AO2: Nivel de Tensión 1 Propiedad de Activos del OR | AY2: Nivel de Tensión 1 Propiedad de Activos del OR | BI2: Nivel de Tensión 1 Propiedad de Activos del OR | BS2: Nivel de Tensión 1 Propiedad de Activos del OR | CC2: Nivel de Tensión 1 Propiedad de Activos del OR | CM2: Nivel de Tensión 1 Propiedad de Activos del OR | CW2: Nivel de Tensión 1 Propiedad de Activos del OR | DG2: Nivel de Tensión 1 Propiedad de Activos del OR | DQ2: Nivel de Tensión 1 Propiedad de Activos del OR | EA2: Nivel de Tensión 1 Propiedad de Activos del OR | EK2: Nivel de Tensión 1 Propiedad de Activos del OR
A3: Variación CU Octubre respecto de Septiembre | K3: Variación CU Noviembre respecto de Octubre | U3: Variación CU Diciembre respecto de Noviembre | AE3: Variación CU Enero 2023 respecto de Diciembre 2022 | AO3: Variación CU Febrero 2023 respecto de Enero 2023 | AY3: Variación CU Marzo 2023 respecto de Febrero 2023 | BI3: Variación CU Abril 2023 respecto de Marzo 2023 | BS3: Variación CU Mayo 2023 respecto de Abril 2023 | CC3: Variación CU Junio 2023 respecto de Mayo 2023 | CM3: Variación CU Julio 2023 respecto de Junio 2023 | CW3: Variación CU Agosto 2023 respecto de Julio 2023 | DG3: Variación CU Septiembre 2023 respecto de Agosto 2023 | DQ3: Variación CU Octubre 2023 respecto de Septiembre 2023 | EA3: Variación CU Noviembre 2023 respecto de Octubre 2023 | EK3: Variación CU Diciembre 2023 respecto de Noviembre 2023
A4: EMPRESA | B4: GM | C4: TM | D4: PR | E4: D | F4: CV | G4: RM | H4: CUV_119 | I4: CUV_Op | K4: EMPRESA | L4: GM | M4: TM | N4: PR | O4: D | P4: CV | Q4: RM | R4: CUV_119 | S4: CUV_Op | U4: EMPRESA | V4: GM | W4: TM | X4: PR | Y4: D | Z4: CV | AA4: RM | AB4: CUV_119 | AC4: CUV_Op | AE4: EMPRESA | AF4: GM | AG4: TM | AH4: PR | AI4: D | AJ4: CV | AK4: RM | AL4: CUV_119 | AM4: CUV_Op | AO4: EMPRESA | AP4: GM | AQ4: TM | AR4: PR | AS4: D | AT4: CV | AU4: RM | AV4: CUV_119 | AW4: CUV_Op | AY4: EMPRESA | AZ4: GM | BA4: TM | BB4: PR | BC4: D | BD4: CV | BE4: RM | BF4: CUV_119 | BG4: CUV_Op | BI4: EMPRESA | BJ4: GM | BK4: TM | BL4: PR | BM4: D | BN4: CV | BO4: RM | BP4: CUV_119 | BQ4: CUV_Op | BS4: EMPRESA | BT4: GM | BU4: TM | BV4: PR | BW4: D | BX4: CV | BY4: RM | BZ4: CUV_119 | CA4: CUV_Op | CC4: EMPRESA | CD4: GM | CE4: TM | CF4: PR | CG4: D | CH4: CV | CI4: RM | CJ4: CUV_119 | CK4: CUV_Op | CM4: EMPRESA | CN4: GM | CO4: TM | CP4: PR | CQ4: D | CR4: CV | CS4: RM | CT4: CUV_119 | CU4: CUV_Op | CW4: EMPRESA | CX4: GM | CY4: TM | CZ4: PR | DA4: D | DB4: CV | DC4: RM | DD4: CUV_119 | DE4: CUV_Op | DG4: EMPRESA | DH4: GM | DI4: TM | DJ4: PR | DK4: D | DL4: CV | DM4: RM | DN4: CUV_119 | DO4: CUV_Op | DQ4: EMPRESA | DR4: GM | DS4: TM | DT4: PR | DU4: D | DV4: CV | DW4: RM | DX4: CUV_119 | DY4: CUV_Op | EA4: EMPRESA | EB4: GM | EC4: TM | ED4: PR | EE4: D | EF4: CV | EG4: RM | EH4: CUV_119 | EI4: CUV_Op | EK4: EMPRESA | EL4: GM | EM4: TM | EN4: PR | EO4: D | EP4: CV | EQ4: RM | ER4: CUV_119 | ES4: CUV_Op
A5: EEP PEREIRA | B5: 0.03292166549 | C5: -0.09203539823 | D5: 0.01261943393 | E5: -0.03766753478 | F5: -0.1408434694 | G5: -0.3571095571 | H5: -0.0409599617 | I5: -0.04100205968 | K5: EEP PEREIRA | L5: -0.0007857069655 | M5: 0.02014294997 | N5: -0.003738650525 | O5: 0.007623762376 | P5: 0.001455411485 | Q5: -0.06562726613 | R5: 0.001360408372 | S5: 0 | U5: EEP PEREIRA | V5: -0.03179487179 | W5: 0.06815286624 | X5: -0.01250893495 | Y5: 0.007533326783 | Z5: -0.004888360417 | AA5: 0.3337213815 | AB5: 0.004661481703 | AC5: 0.00769192348 | AE5: EEP PEREIRA | AF5: 0.05455508475 | AG5: 0.03299542834 | AH5: 0.03546869345 | AI5: -0.0596209486 | AJ5: 0.03146574615 | AK5: -0.4015129473 | AL5: -0.01324963402 | AM5: 0.01260223048 | AO5: EEP PEREIRA | AP5: 0.03857358112 | AQ5: -0.06272849721 | AR5: 0.02202027263 | AS5: 0.01977391364 | AT5: -0.00424765092 | AU5: -0.05444822557 | AV5: 0.01733762478 | AW5: 0.01778087791 | AY5: EEP PEREIRA | AZ5: 0.1510981075 | BA5: 0.07507493328 | BB5: 0.1205147059 | BC5: 0.06897250754 | BD5: 0.05096302999 | BE5: -0.148688946 | BF5: 0.0975782592 | BG5: 0.01660526632 | BI5: EEP PEREIRA | BJ5: -0.1631350443 | BK5: 0.02204064018 | BL5: -0.1251104495 | BM5: -0.0002575029445 | BN5: 0.0459518465 | BO5: 1.032733422 | BP5: -0.05014404465 | BQ5: 0.0105099806 | BS5: EEP PEREIRA | BT5: -0.06302398667 | BU5: -0.09325480979 | BV5: -0.05894870878 | BW5: -0.1994734421 | BX5: -0.04984213033 | BY5: 0.0612632955 | BZ5: -0.1093691971 | CA5: -0.05584863428 | CC5: EEP PEREIRA | CD5: 0.3261630233 | CE5: 0.04477436637 | CF5: 0.2182075996 | CG5: 0.1497020248 | CH5: 0.04319430693 | CI5: -0.5671024636 | CJ5: 0.1680637004 | CK5: 0.004363564239 | CM5: EEP PEREIRA | CN5: -0.09221606981 | CO5: -0.1939277635 | CP5: -0.07202425965 | CQ5: 0.03407888946 | CR5: -0.01997387594 | CS5: 0.44142507 | CT5: -0.0384837625 | CU5: 0.07064391508 | CW5: EEP PEREIRA | CX5: 0.01013157969 | CY5: 0.1490034304 | CZ5: 0.03773321943 | DA5: -0.003393900045 | DB5: -0.0133948297 | DC5: -0.4530910005 | DD5: -0.0004833924074 | DE5: -0.05848929206 | DG5: EEP PEREIRA | DH5: 0.04058393303 | DI5: 0.001267035775 | DJ5: -0.0007694738505 | DK5: -0.03819175975 | DL5: -0.004857668712 | DM5: 0.3350451189 | DN5: 0.00721562211 | DO5: 0.006991901627 | DQ5: EEP PEREIRA | DR5: 0.0802310575 | DS5: 0.03361371346 | DT5: 0.06828923504 | DU5: -0.002816064957 | DV5: 0.1195488268 | DW5: -1.123508375 | DX5: 0.0293278751 | DY5: 0.1059997808 | EA5: EEP PEREIRA | EB5: 0.005565862709 | EC5: -0.04835390947 | ED5: -0.004440497336 | EE5: 0.03936678406 | EF5: 0.01134361233 | EG5: -2.084577114 | EH5: 0.01830927929 | EK5: EEP PEREIRA | EL5: -0.01728080661 | EM5: 0.1078918919 | EN5: 0.004311626524 | EO5: 0.004428341385 | EP5: 0.02515517805 | EQ5: 8.233944954 | ER5: 0.02267443819
A6: ESSA | B6: 0.0988617558 | C6: -0.09194138474 | D6: 0.06367127496 | E6: -0.03763061775 | F6: -0.02048282391 | G6: -0.3631572983 | H6: -0.007423809042 | I6: -0.007389396067 | K6: ESSA | L6: 0.04243231231 | M6: 0.02021197556 | N6: 0.03460017169 | O6: 0.007602920113 | P6: -0.001768714058 | Q6: -0.06819112021 | R6: 0.01899995958 | S6: 0 | U6: ESSA | V6: -0.109486816 | W6: 0.06811638513 | X6: -0.07915560326 | Y6: 0.007534415506 | Z6: 0.01689825637 | AA6: 0.3271317533 | AB6: -0.0261283448 | AC6: 0 | AE6: ESSA | AF6: 0.1761730526 | AG6: 0.03312063927 | AH6: 0.1346653619 | AI6: -0.05959344096 | AJ6: 0.01380321576 | AK6: -0.36069452 | AL6: 0.03126853058 | AM6: 0 | AO6: ESSA | AP6: 0.03925366893 | AQ6: -0.0628227625 | AR6: 0.0249404025 | AS6: 0.01977290098 | AT6: 0.01940325141 | AU6: -0.1199405767 | AV6: 0.01817159019 | AW6: 0 | AY6: ESSA | AZ6: 0.1625548979 | BA6: 0.07511686968 | BB6: 0.1374129601 | BC6: 0.06895620088 | BD6: 0.0510502092 | BE6: -0.07887279275 | BF6: 0.1052884949 | BG6: 0.01660001663 | BI6: ESSA | BJ6: -0.1785700761 | BK6: 0.02203873057 | BL6: -0.1479137222 | BM6: -0.0002575029445 | BN6: 0.07914584348 | BO6: 0.9502257418 | BP6: -0.05673158031 | BQ6: 0.01049998192 | BS6: ESSA | BT6: -0.07189462501 | BU6: -0.09322695764 | BV6: -0.07030452643 | BW6: -0.04650584448 | BX6: -0.05018948844 | BY6: 0.08088660328 | BZ6: -0.05522257847 | CA6: 0.00779992235 | CC6: ESSA | CD6: 0.3566367619 | CE6: 0.04474422745 | CF6: 0.2671199299 | CG6: -0.03474289889 | CH6: 0.008297690647 | CI6: -0.5742078933 | CJ6: 0.1054405483 | CK6: 0.004399992337 | CM6: ESSA | CN6: -0.06578489684 | CO6: -0.193931708 | CP6: -0.05713868928 | CQ6: 0.03408474849 | CR6: 0.01086470552 | CS6: 0.4026208655 | CT6: -0.02413795894 | CU6: 0.002995561573 | CW6: ESSA | CX6: 0.05930835735 | CY6: 0.1490090531 | CZ6: 0.08287367147 | DA6: -0.003399546727 | DB6: -0.01054776459 | DC6: -0.4230260256 | DD6: 0.02458714328 | DE6: 0.005002725456 | DG6: ESSA | DH6: -0.2255019316 | DI6: 0.001277683135 | DJ6: -0.2151820102 | DK6: -0.0382248679 | DL6: 0.02907328892 | DM6: 0.3195718654 | DN6: -0.1180298756 | DO6: 0.007001771767 | DQ6: ESSA | DR6: 0.3160279602 | DS6: 0.03360272225 | DT6: 0.2637327845 | DU6: -0.002781737891 | DV6: -0.05838728664 | DW6: -1.148319815 | DX6: 0.105304073 | DY6: 0.1200024685 | EA6: ESSA | EB6: -0.003336358298 | EC6: -0.04835390947 | ED6: -0.01152448954 | EE6: 0.03936678406 | EF6: 0.04213026628 | EG6: -2.0078125 | EH6: 0.01762922139 | EI6: 0.005995191023 | EK6: ESSA | EL6: -0.008489328084 | EM6: 0.1078918919 | EN6: 0.01115194525 | EO6: 0.004428341385 | EP6: 0.4851247601 | EQ6: 7.259689922 | ER6: 0.07157262633
A7: CENS | B7: 0.09287467373 | C7: -0.09203539823 | D7: 0.05940014631 | E7: -0.03766753478 | F7: -0.07725832013 | G7: -0.3409457901 | H7: -0.01144698822 | I7: -0.01139024639 | K7: CENS | L7: -0.03047802374 | M7: 0.02014294997 | N7: -0.02637757216 | O7: 0.007623762376 | P7: 0.01889222842 | Q7: -0.07000350018 | R7: -0.009880707014 | S7: -0.01018267015 | U7: CENS | V7: -0.008860945658 | W7: 0.06815286624 | X7: -0.03078014184 | Y7: 0.007533326783 | Z7: 0.03666245259 | AA7: 0.3007150922 | AB7: 0.01453371013 | AC7: 0.007699310704 | AE7: CENS | AF7: 0.01469006195 | AG7: 0.03299542834 | AH7: -0.0244402166 | AI7: -0.0596209486 | AJ7: 0.006504065041 | AK7: -0.3712384259 | AL7: -0.03321478313 | AM7: 0.01260938024 | AO7: CENS | AP7: 0.07501919351 | AQ7: -0.06272849721 | AR7: 0.05115511551 | AS7: 0.01977391364 | AT7: 0.04079159935 | AU7: -0.2425218592 | AV7: 0.03105022831 | AW7: 0.017779987 | AY7: CENS | AZ7: 0.1529331746 | BA7: 0.07513857524 | BB7: 0.1398601399 | BC7: 0.06898538934 | BD7: 0.01358168413 | BE7: 0.02308626974 | BF7: 0.1000511483 | BG7: 0.01660530468 | BI7: CENS | BJ7: -0.1222051796 | BK7: 0.02195913691 | BL7: -0.1059221235 | BM7: -0.0002536944251 | BN7: 0.04122001021 | BO7: 1.184085511 | BP7: -0.02907721793 | BQ7: 0.01050751417 | BS7: CENS | BT7: -0.05739440169 | BU7: -0.09323617339 | BV7: -0.05965551043 | BW7: -0.04653302036 | BX7: 0.009192302978 | BY7: 0.06851549755 | BZ7: -0.04405770017 | CA7: 0.007813928541 | CC7: CENS | CD7: 0.3116109943 | CE7: 0.04471460952 | CF7: 0.2399106478 | CG7: -0.03473169433 | CH7: -0.02574690308 | CI7: -0.5956743003 | CJ7: 0.08517527461 | CK7: 0.004366548129 | CM7: CENS | CN7: -0.09269988041 | CO7: -0.1938816568 | CP7: -0.08769877492 | CQ7: 0.03407982078 | CR7: -0.02375417602 | CS7: 0.5250994336 | CT7: -0.03930822843 | CU7: 0.003000397423 | CW7: CENS | CX7: 0.01862157551 | CY7: 0.1490034304 | CZ7: 0.03412139835 | DA7: -0.003393767182 | DB7: -0.0305746935 | DC7: -0.4759392139 | DD7: -4.546260095e-05 | DE7: 0.005008180549 | DG7: CENS | DH7: 0.07214572244 | DI7: 0.001267035775 | DJ7: 0.06261871419 | DK7: -0.03819159254 | DL7: 0.0159640411 | DM7: 0.4548850394 | DN7: 0.02938254082 | DO7: 0.006991485431 | DQ7: CENS | DR7: 0.035968643 | DS7: 0.03361158668 | DT7: 0.01919761539 | DU7: -0.002817629141 | DV7: -0.009803844034 | DW7: -0.9654057143 | DX7: -0.003539719365 | DY7: 0.09800003882 | EA7: CENS | EB7: 0.002880258 | EC7: -0.04833137517 | ED7: -0.008854946039 | EE7: 0.03938043778 | EF7: -0.03174696697 | EG7: -1.108886108 | EH7: 0.007022909556 | EI7: 0.01399998768 | EK7: CENS | EL7: -0.009651963778 | EM7: 0.1077641565 | EN7: 0.0251536449 | EO7: 0.004424263671 | EP7: 0.6646419053 | EQ7: -277.6551724 | ER7: 0.0831090614
A8: RUITOQUE | B8: 0.1854238021 | C8: -0.09194138474 | D8: 0.1444641573 | E8: -0.03763061775 | F8: -0.02503495217 | G8: -0.3358517188 | H8: 0.02445089548 | I8: 0 | K8: RUITOQUE | L8: 0.01369741578 | M8: 0.02021197556 | N8: 0.01207275074 | O8: 0.007602920113 | P8: 0.05289523784 | Q8: -0.09002452827 | R8: 0.01072211096 | S8: 1.679499767e-06 | U8: RUITOQUE | V8: 0.01723058918 | W8: 0.06818008102 | X8: 0.02335035467 | Y8: 0.007547517128 | Z8: 0.01267864343 | AA8: 0.3609022876 | AB8: 0.02723283852 | AC8: 0.01017865584 | AE8: RUITOQUE | AF8: 0.01524800113 | AG8: 0.03299542834 | AH8: 0.005258899676 | AI8: -0.0596209486 | AJ8: 0.01044062998 | AK8: -0.3992514036 | AL8: -0.03122310844 | AM8: 0.01069163086 | AO8: RUITOQUE | AP8: 0.2808307489 | AQ8: -0.06272849721 | AR8: 0.23722334 | AS8: 0.01977391364 | AT8: -0.003327495622 | AU8: -0.05867082035 | AV8: 0.1239857878 | AW8: 0.01561471883 | AY8: RUITOQUE | AZ8: 0.02162912178 | BA8: 0.07513857524 | BB8: 0.01967799642 | BC8: 0.06898538934 | BD8: 0.06483921982 | BE8: -0.1224489796 | BF8: 0.04083510262 | BG8: 0.02076947995 | BI8: RUITOQUE | BJ8: -0.007350003995 | BK8: 0.02195913691 | BL8: -0.005263157895 | BM8: -0.0002536944251 | BN8: 0.06336633663 | BO8: 0.947203017 | BP8: 0.01915187779 | BQ8: 0.01960233861 | BS8: RUITOQUE | BT8: -0.2795707579 | BU8: -0.09323617339 | BV8: -0.2594195928 | BW8: -0.04653302036 | BX8: -0.0009310986965 | BY8: 0.08489347966 | BZ8: -0.1528821776 | CA8: 0.01082181122 | CC8: RUITOQUE | CD8: 0.3834061965 | CE8: 0.04477436637 | CF8: 0.3093158692 | CG8: -0.0347306963 | CH8: -0.05533084809 | CI8: -0.6106158881 | CJ8: 0.1114492735 | CK8: 0.007366856547 | CM8: RUITOQUE | CN8: 0.1579513211 | CO8: -0.1939277635 | CP8: 0.1430801309 | CQ8: 0.0340787516 | CR8: 0.005404667712 | CS8: 0.8927043218 | CT8: 0.0937706868 | CU8: 0.005998985435 | CW8: RUITOQUE | CX8: -0.03830686217 | CY8: 0.1490034304 | CZ8: -0.01996806036 | DA8: -0.003393767182 | DB8: 0.1673603559 | DC8: -0.5587439746 | DD8: -0.01769112637 | DE8: 0.008012847294 | DG8: RUITOQUE | DH8: -0.1457889775 | DI8: 0.001267035775 | DJ8: 6.051660517e-05 | DK8: -0.03146712594 | DL8: -0.03489212665 | DM8: 0.4237145471 | DN8: -0.07422698544 | DO8: 0.01073049144 | DQ8: RUITOQUE | DR8: 0.1353838326 | DS8: 0.03361371346 | DT8: -0.03858216698 | DU8: -0.009739626333 | DV8: 0.03658908337 | DW8: -0.9787934092 | DX8: 0.03713747682 | DY8: 0.01999734351 | EA8: RUITOQUE | EB8: -0.07606609675 | EC8: -0.04835390947 | ED8: -0.08443352779 | EE8: 0.03936678406 | EF8: 0.03528917519 | EG8: 5.666666667 | EH8: -0.02597595879 | EI8: 0.06000494793 | EK8: RUITOQUE | EL8: -0.01953009091 | EM8: 0.1078918919 | EN8: 0.01777330651 | EO8: 0.004428341385 | EP8: -0.007574732855 | EQ8: 6.786363636 | ER8: 0.01704258295 | ES8: 0.005993931807
A9: EPM | B9: 0.05851880276 | C9: -0.09203539823 | D9: 0.03299930891 | E9: -0.03766753478 | F9: -0.02862168212 | G9: -0.3691322902 | H9: -0.02121941944 | I9: -0.02180457987 | K9: EPM | L9: -0.0006162769621 | M9: 0.02014294997 | N9: -0.003177788928 | O9: 0.007623762376 | P9: -0.007901234568 | Q9: -0.06576475009 | R9: 0.0008417944467 | S9: 0 | U9: EPM | V9: -0.02865641323 | W9: 0.06815286624 | X9: -0.01040268456 | Y9: 0.007533326783 | Z9: 0.01509872242 | AA9: 0.3209975865 | AB9: 0.007608597197 | AC9: 0.007701121859 | AE9: EPM | AF9: 0.08372544626 | AG9: 0.03299542834 | AH9: 0.05951169888 | AI9: -0.0596209486 | AJ9: -0.07061131089 | AK9: -0.4001218027 | AL9: -0.01051766428 | AM9: 0.01260048657 | AO9: EPM | AP9: 0.02329427981 | AQ9: -0.06272849721 | AR9: 0.01136181789 | AS9: 0.01977391364 | AT9: 0.1025325361 | AU9: -0.06852791878 | AV9: 0.01868916288 | AW9: 0.01779721878 | AY9: EPM | AZ9: 0.1221713362 | BA9: 0.07513857524 | BB9: 0.1006329114 | BC9: 0.06898538934 | BD9: 0.02982931887 | BE9: -0.1209809264 | BF9: 0.08445661868 | BG9: 0.0166008108 | BI9: EPM | BJ9: -0.1301164326 | BK9: 0.02195913691 | BL9: -0.1026451984 | BM9: -0.0002536944251 | BN9: 0.05096034696 | BO9: 1.151270924 | BP9: -0.03238994819 | BQ9: 0.0104994826 | BS9: EPM | BT9: -0.03397957776 | BU9: -0.09323617339 | BV9: -0.03925024031 | BW9: -0.04653302036 | BX9: -0.03596168018 | BY9: -0.03371757925 | BZ9: -0.0431631092 | CA9: 0.007805280116 | CC9: EPM | CD9: 0.2016926758 | CE9: 0.04471460952 | CF9: 0.1424045356 | CG9: -0.03473169433 | CH9: 0.006115272894 | CI9: -0.5580077542 | CJ9: 0.04876470364 | CK9: -0.005997596005 | CM9: EPM | CN9: -0.03698760809 | CO9: -0.1938816568 | CP9: -0.03863961465 | CQ9: 0.03407995864 | CR9: 0.03582890138 | CS9: 0.5502024291 | CT9: -0.00547307925 | CU9: -0.006008851212 | CW9: EPM | CX9: -0.0311152173 | CY9: 0.1490034304 | CZ9: -0.007937712943 | DA9: -0.003393900045 | DB9: -0.03473629083 | DC9: -0.5129276574 | DD9: -0.02395019809 | DE9: -0.00599500834 | DG9: EPM | DH9: 0.09471781642 | DI9: 0.001267035775 | DJ9: 0.0780486685 | DK9: -0.03819175975 | DL9: -0.005895136778 | DM9: 0.5101161752 | DN9: 0.03589587306 | DO9: 0.007002712763 | DQ9: EPM | DR9: 0.06968036437 | DS9: 0.03361371346 | DT9: 0.04500728992 | DU9: -0.002816064957 | DV9: 0.009752018357 | DW9: -0.9828384088 | DX9: 0.01434395286 | DY9: 0.05599548929 | EA9: EPM | EB9: -0.001550303261 | EC9: -0.04835390947 | ED9: -0.0150794729 | EE9: 0.03936678406 | EF9: -0.008932626798 | EG9: -1.862068966 | EH9: 0.007271562615 | EI9: 0.05 | EK9: EPM | EL9: -0.04916916372 | EM9: 0.1078918919 | EN9: -0.006482758621 | EO9: 0.004428341385 | EP9: 0.005346776658 | EQ9: -68.84 | ER9: 0.006300492263 | ES9: 0.004000316409
A10: EDEQ | B10: 0.0642369613 | C10: -0.09194138474 | D10: 0.03332425068 | E10: -0.03763061775 | F10: -0.07427902308 | G10: -0.3388129226 | H10: -0.02717653817 | I10: -0.02717579175 | K10: EDEQ | L10: 0.1376255614 | M10: 0.02021197556 | N10: 0.1017020318 | O10: 0.007602920113 | P10: 0.02237336976 | Q10: -0.08860960865 | R10: 0.05425296148 | S10: 0 | U10: EDEQ | V10: -0.07422469587 | W10: 0.06811532353 | X10: -0.04633426496 | Y10: 0.00753444826 | Z10: 0.01634659572 | AA10: 0.4718508175 | AB10: -0.005481075235 | AC10: 0.007691704559 | AE10: EDEQ | AF10: 0.107493517 | AG10: 0.03312166609 | AH10: 0.07687653447 | AI10: -0.05959347153 | AJ10: 0.04403187428 | AK10: -0.420161523 | AL10: 0.003969139989 | AM10: 0.01261450683 | AO10: EDEQ | AP10: 0.1826566533 | AQ10: -0.0628227625 | AR10: 0.1348907837 | AS10: 0.01977290098 | AT10: -0.05267856945 | AU10: -0.06558494682 | AV10: 0.06941197693 | AW10: 0.01777355875 | AY10: EDEQ | AZ10: 0.1402895631 | BA10: 0.07511686968 | BB10: 0.1148613105 | BC10: 0.06895620088 | BD10: 0.0886106813 | BE10: -0.2304308853 | BF10: 0.09576613336 | BG10: 0.01660557961 | BI10: EDEQ | BJ10: -0.09391013955 | BK10: 0.02203873057 | BL10: -0.07484867034 | BM10: -0.0002575029445 | BN10: -0.0196807915 | BO10: 1.402456863 | BP10: -0.02216994967 | BQ10: 0.01050617979 | BS10: EDEQ | BT10: -0.1838136641 | BU10: -0.09322695764 | BV10: -0.1588586657 | BW10: -0.04650584448 | BX10: 0.083336354 | BY10: -0.0544415192 | BZ10: -0.09628573266 | CA10: 0.007816591503 | CC10: EDEQ | CD10: 0.2958264221 | CE10: 0.0447444335 | CF10: 0.2124459667 | CG10: -0.03474279909 | CH10: -0.1115555267 | CI10: -0.5695503381 | CJ10: 0.06765379298 | CK10: 0.004367469728 | CM10: EDEQ | CN10: -0.115583277 | CO10: -0.193927528 | CP10: -0.1020504063 | CQ10: 0.03407864468 | CR10: 0.07090528083 | CS10: 0.5334838 | CT10: -0.03940239103 | CU10: 0.003016716952 | CW10: EDEQ | CX10: 0.07059409609 | CY10: 0.1490615906 | CZ10: 0.07652809246 | DA10: -0.003386768074 | DB10: -0.053261349 | DC10: -0.4650985401 | DD10: 0.02003450749 | DE10: 0.005008234664 | DG10: EDEQ | DH10: 0.01796735179 | DI10: 0.001216079246 | DJ10: 0.01730880968 | DK10: -0.03819834721 | DL10: 0.04410856919 | DM10: 0.3108508806 | DN10: 0.004042520291 | DO10: 0.006991438714 | DQ10: EDEQ | DR10: 0.06492557024 | DS10: 0.03361136686 | DT10: 0.03962115961 | DU10: -0.002817629141 | DV10: -0.04992649133 | DW10: -0.9808385686 | DX10: 0.006904917297 | DY10: 0.1100000341 | EA10: EDEQ | EB10: 0.004492819577 | EC10: -0.04833137517 | ED10: -0.01032810196 | EE10: 0.03938043778 | EF10: 0.06150009021 | EG10: -2.395966387 | EH10: 0.01699349266 | EI10: 0.03899996361 | EK10: EDEQ | EL10: -0.06709683122 | EM10: 0.1077641565 | EN10: -0.02095785719 | EO10: 0.004424263671 | EP10: -0.03502001678 | EQ10: -44.96315916 | ER10: -0.005104303135 | ES10: 0.006000006641
A11: CHEC | B11: 0.1874751724 | C11: -0.02034618411 | D11: 0.1296702407 | E11: -0.03763061775 | F11: 0.02081606077 | G11: -0.3780342081 | H11: 0.02883918162 | I11: 1.091336467e-05 | K11: CHEC | L11: -0.02814550732 | M11: -0.05434730231 | N11: -0.02985873824 | O11: 0.007602920113 | P11: -0.0254187919 | Q11: -0.0212766759 | R11: -0.01585518771 | S11: -0.01076997425 | U11: CHEC | V11: -0.1471009883 | W11: 0.06811426193 | X11: -0.1006953738 | Y11: 0.007534415506 | Z11: 0.03471859385 | AA11: 0.2577336253 | AB11: -0.03696257851 | AC11: 0.007691892086 | AE11: CHEC | AF11: 0.3338771701 | AG11: 0.03312269291 | AH11: 0.2356652859 | AI11: -0.05959376605 | AJ11: -0.005983554712 | AK11: -0.3624192087 | AL11: 0.07644547016 | AM11: 0.01261416994 | AO11: CHEC | AP11: -0.03340876488 | AQ11: -0.06282468657 | AR11: -0.03315038273 | AS11: 0.01977290782 | AT11: 0.052099639 | AU11: -0.1204851661 | AV11: -0.008852585071 | AW11: 0.01777406183 | AY11: CHEC | AZ11: 0.07851178526 | BA11: 0.07511907695 | BB11: 0.06434570158 | BC11: 0.06895656324 | BD11: -0.00951766544 | BE11: -0.1304798651 | BF11: 0.05835196583 | BG11: 0.01660594951 | BI11: CHEC | BJ11: -0.08801435707 | BK11: 0.02203873057 | BL11: -0.0649949393 | BM11: -0.0002575029445 | BN11: 0.04128706463 | BO11: 1.169428231 | BP11: -0.009357118706 | BQ11: 0.01050594771 | BS11: CHEC | BT11: -0.03997573564 | BU11: -0.09322882607 | BV11: -0.04270945554 | BW11: -0.04650584448 | BX11: 0.02090058709 | BY11: 0.02832882498 | BZ11: -0.03583840746 | CA11: 0.007817028116 | CC11: CHEC | CD11: 0.1934877756 | CE11: 0.04474638017 | CF11: 0.1258787544 | CG11: -0.03474289889 | CH11: -0.0142681813 | CI11: -0.5787613906 | CJ11: 0.03667997974 | CK11: 0.004366943769 | CM11: CHEC | CN11: -0.1140803533 | CO11: -0.1939277635 | CP11: -0.09176404629 | CQ11: 0.03407888946 | CR11: -0.007542310165 | CS11: 0.4711343236 | CT11: -0.04349912615 | CU11: 0.002998961012 | CW11: CHEC | CX11: 0.1338816742 | CY11: 0.1490621529 | CZ11: 0.1382848697 | DA11: -0.003386900939 | DB11: -0.01471975512 | DC11: -0.4564625233 | DD11: 0.04972249038 | DE11: 0.005007959433 | DG11: CHEC | DH11: 0.03140859793 | DI11: 0.00121586631 | DJ11: -0.006718366272 | DK11: -0.03819851442 | DL11: 0.008142225754 | DM11: 0.4094884109 | DN11: 0.005066103475 | DO11: 0.006991044442 | DQ11: CHEC | DR11: 0.08441234229 | DS11: 0.03361158668 | DT11: 0.07375920157 | DU11: -0.002817455778 | DV11: 0.03443679511 | DW11: -1.142440637 | DX11: 0.02160918555 | DY11: 0.1989999701 | EA11: CHEC | EB11: 0.001540767593 | EC11: -0.04833137517 | ED11: -0.00712290239 | EE11: 0.03938043778 | EF11: -0.02998658099 | EG11: -2.021342098 | EH11: 0.01223650767 | EI11: 0.005999984289 | EK11: CHEC | EL11: -0.01080515925 | EM11: 0.1077641565 | EN11: 0.009077607398 | EO11: 0.004424263671 | EP11: 0.7252839177 | EQ11: 6.77107943 | ER11: 0.1051790385
A12: CEO | B12: 0.06703727691 | C12: -0.09194138474 | D12: 0.03763484771 | E12: -0.02857148133 | F12: -0.0004174413723 | G12: -0.3854073252 | H12: -0.01037799818 | K12: CEO | L12: 0.01138960921 | M12: 0.02021197556 | N12: 0.003310823885 | O12: 0.02712161978 | P12: -0.02289806097 | Q12: -0.02772019041 | R12: 0.00820225763 | U12: CEO | V12: -0.06449735037 | W12: 0.06811638513 | X12: -0.03953830841 | Y12: 0.004902882507 | Z12: 0.008609456155 | AA12: 0.2610150855 | AB12: -0.01013934574 | AE12: CEO | AF12: 0.05698863798 | AG12: 0.03312063927 | AH12: 0.03660877467 | AI12: -0.01168505025 | AJ12: 0.02399690221 | AK12: -0.3846092664 | AL12: 0.008751479623 | AO12: CEO | AP12: 0.09136839663 | AQ12: -0.0628227625 | AR12: 0.00722471473 | AS12: 0.03123250688 | AT12: -0.02375204831 | AU12: -0.04636122985 | AV12: 0.03194226432 | AY12: CEO | AZ12: 0.1734671809 | BA12: 0.07511686968 | BB12: 0.2019688376 | BC12: 0.009444882745 | BD12: 0.05778146179 | BE12: -0.1913682499 | BF12: 0.08997313064 | BI12: CEO | BJ12: -0.1825295273 | BK12: 0.02203873057 | BL12: 0.009857894451 | BM12: -0.04594192547 | BN12: 0.07150329831 | BO12: 1.18199933 | BP12: -0.05006902823 | BS12: CEO | BT12: -0.1436522915 | BU12: -0.09322695764 | BV12: -0.1234091977 | BW12: -0.01638201255 | BX12: -0.001336924257 | BY12: 0.0291487794 | BZ12: -0.06733207603 | CC12: CEO | CD12: 0.4138812144 | CE12: 0.04474422745 | CF12: 0.2946490799 | CG12: 0.006745491878 | CH12: -0.07475975249 | CI12: -0.550065929 | CJ12: 0.1150887183 | CM12: CEO | CN12: -0.008583173819 | CO12: -0.1939277635 | CP12: -0.004305489825 | CQ12: 0.01429719661 | CR12: 0.08485198821 | CS12: 0.4608423187 | CT12: 0.01291555743 | CW12: CEO | CX12: -0.0006662078606 | CY12: 0.1490621529 | CZ12: 0.01345951155 | DA12: -0.02955577051 | DB12: 0.0004331355098 | DC12: -0.4630237116 | DD12: -0.01215817838 | DG12: CEO | DH12: 0.008039022902 | DI12: 0.00121586631 | DJ12: -0.0060465149 | DK12: -0.006220694918 | DL12: -0.02951012043 | DM12: 0.3622913713 | DN12: 3.952894364e-05 | DQ12: CEO | DR12: 0.01050439417 | DS12: 0.03361158668 | DT12: 0.01591778524 | DU12: 0.07443107177 | DV12: 0.01211406133 | DW12: -0.9743583847 | DX12: 0.01175768408 | EA12: CEO | EB12: 0.00358332435 | EC12: -0.04833137517 | ED12: -0.009847600801 | EE12: -0.002148963558 | EF12: 0.00175436491 | EG12: 5.609192825 | EH12: 0.0003997039033 | EK12: CEO | EL12: -0.01484547314 | EM12: 0.1077641565 | EN12: 0.01730296549 | EO12: -0.03408167026 | EP12: 0.04108730433 | EQ12: 5.427519761 | ER12: 0.01529194453
A13: EMCALI | B13: -0.003840187185 | C13: -0.09194138474 | D13: -0.01130407621 | E13: -0.02857148133 | F13: -0.03016129032 | G13: -0.3143895419 | H13: -0.03658553287 | K13: EMCALI | L13: 0.003368170149 | M13: 0.02021197556 | N13: -0.002664825878 | O13: 0.0271212396 | P13: -0.02197504113 | Q13: -0.0941990197 | R13: 0.006321282426 | U13: EMCALI | V13: 0.003275731973 | W13: 0.06811426193 | X13: 0.01238883389 | Y13: 0.004903254463 | Z13: -0.005086433042 | AA13: 0.3023645647 | AB13: 0.01779464907 | AE13: EMCALI | AF13: 0.0391788409 | AG13: 0.03312269291 | AH13: 0.02556019506 | AI13: -0.01168541859 | AJ13: 0.07397353015 | AK13: -0.3653162905 | AL13: 0.005709326756 | AO13: EMCALI | AP13: -0.0453057462 | AQ13: -0.06282468657 | AR13: -0.04240810941 | AS13: 0.03123289121 | AT13: 0.0204672851 | AU13: -0.09373904836 | AV13: -0.01640459182 | AY13: EMCALI | AZ13: 0.1937223733 | BA13: 0.07511907695 | BB13: 0.1605789067 | BC13: 0.009444521343 | BD13: -0.005365835194 | BE13: -0.1086167426 | BF13: 0.09441234247 | BI13: EMCALI | BJ13: -0.1648639159 | BK13: 0.02203873057 | BL13: -0.1642623014 | BM13: -0.0459415839 | BN13: 0.05728303277 | BO13: 0.9608172048 | BP13: -0.07500568452 | BS13: EMCALI | BT13: -0.06532836596 | BU13: -0.09322882607 | BV13: -0.0637103463 | BW13: -0.01638201255 | BX13: -0.06286551813 | BY13: 0.07516445913 | BZ13: -0.04443405676 | CC13: EMCALI | CD13: 0.2719531149 | CE13: 0.04474638017 | CF13: 0.2012124742 | CG13: 0.006745491878 | CH13: 0.04022596474 | CI13: -0.5417784729 | CJ13: 0.1014439706 | CM13: EMCALI | CN13: -0.1268229551 | CO13: -0.1939277635 | CP13: -0.1086860013 | CQ13: 0.01429719661 | CR13: 0.008298859368 | CS13: 0.3768502108 | CT13: -0.06380766361 | CW13: EMCALI | CX13: 0.001452291071 | CY13: 0.1490621529 | CZ13: 0.01747346622 | DA13: -0.02955614412 | DB13: -0.04184707778 | DC13: -0.37863837 | DD13: -0.01515158877 | DG13: EMCALI | DH13: 0.04583734738 | DI13: 0.00121586631 | DJ13: 0.0229590399 | DK13: -0.006220697313 | DL13: -0.004170418464 | DM13: 0.1932544321 | DN13: 0.02220297167 | DQ13: EMCALI | DR13: 0.1621389051 | DS13: 0.0336094599 | DT13: 0.1415587216 | DU13: 0.07443148801 | DV13: -0.008016542755 | DW13: -1.136505739 | DX13: 0.08184443743 | EA13: EMCALI | EB13: 0.005431531272 | EC13: -0.04833147462 | ED13: -0.009735164905 | EE13: -0.002148963558 | EF13: 0.03716605719 | EG13: -2.25875478 | EH13: 0.00719840372 | EK13: EMCALI | EL13: -0.01100280107 | EM13: 0.1077665516 | EN13: 0.02303431336 | EO13: -0.03408167026 | EP13: -0.01246797583 | EQ13: 5.1776071 | ER13: 0.008408699026
A14: CEDENAR | B14: 0.05034734656 | C14: -0.09203539823 | D14: 0.03292028851 | E14: -0.02862102075 | F14: -0.01516704243 | G14: -0.3514279486 | H14: -0.01762275732 | I14: -0.01834896211 | K14: CEDENAR | L14: 0.006204827492 | M14: 0.02014294997 | N14: 0.003581020591 | O14: 0.02714519256 | P14: -0.01352757544 | Q14: -0.03630252101 | R14: 0.008482824084 | S14: 0 | U14: CEDENAR | V14: -0.06396964153 | W14: 0.06815286624 | X14: -0.04620874219 | Y14: 0.004885812636 | Z14: 0.02925457103 | AA14: 0.3275200558 | AB14: -0.004050850083 | AC14: 0.01070435937 | AE14: CEDENAR | AF14: 0.08300152031 | AG14: 0.03299542834 | AH14: 0.06472128694 | AI14: -0.01167630484 | AJ14: -0.002528013118 | AK14: -0.401208618 | AL14: 0.01107748256 | AM14: 0.01259770343 | AO14: CEDENAR | AP14: 0.0851298506 | AQ14: -0.06272849721 | AR14: 0.2791637386 | AS14: 0.03123136553 | AT14: 0.01548051236 | AU14: -0.05923650724 | AV14: 0.05604656941 | AW14: 0.01329728672 | AY14: CEDENAR | AZ14: 0.1626008748 | BA14: 0.07507493328 | BB14: 0.1225106441 | BC14: 0.009432598482 | BD14: 0.03143338954 | BE14: -0.1847014925 | BF14: 0.07696961549 | BG14: 0.01659966438 | BI14: CEDENAR | BJ14: -0.1041992317 | BK14: 0.02201963454 | BL14: -0.07537012113 | BM14: -0.04593462461 | BN14: 0.031783402 | BO14: 1.344965675 | BP14: -0.02996067661 | BQ14: 0.01350228007 | BS14: CEDENAR | BT14: -0.2130900272 | BU14: -0.09323617339 | BV14: -0.1628953288 | BW14: -0.01636145302 | BX14: 0.04766432148 | BY14: -0.04562088314 | BZ14: -0.09443836733 | CA14: 0.0108032105 | CC14: CEDENAR | CD14: 0.3605867253 | CE14: 0.04477457243 | CF14: 0.2318706924 | CG14: 0.00672947505 | CH14: -0.07956034848 | CI14: -0.5789345603 | CJ14: 0.09324708669 | CK14: 0.007397208666 | CM14: CEDENAR | CN14: -0.09872981593 | CO14: -0.193931867 | CP14: -0.07876666888 | CQ14: 0.01430958679 | CR14: 0.05403285551 | CS14: 0.4855440236 | CT14: -0.03435872589 | CU14: 0.006004996137 | CW14: CEDENAR | CX14: -0.02758451589 | CY14: 0.1490090531 | CZ14: -0.00863630032 | DA14: -0.02955241725 | DB14: -0.04695684709 | DC14: -0.4556599918 | DD14: -0.03378878643 | DE14: 0.007995241745 | DG14: CEDENAR | DH14: -0.01237835282 | DI14: 0.001267248722 | DJ14: -0.02234340312 | DK14: -0.006236496631 | DL14: 0.02447876726 | DM14: 0.3790255255 | DN14: 0.001987495646 | DO14: 0.009999750357 | DQ14: CEDENAR | DR14: -0.08381468062 | DS14: 0.03361349363 | DT14: -0.05173655235 | DU14: 0.0744195746 | DV14: -0.003775218018 | DW14: -0.9760461047 | DX14: -0.03197155478 | DY14: 0.02999488648 | EA14: CEDENAR | EB14: 0.01508290372 | EC14: -0.04835390947 | ED14: -0.1441345862 | EE14: -0.002127352708 | EF14: -0.01487370176 | EG14: 6.068181818 | EH14: -0.00930071102 | EI14: 0.01000250881 | EK14: CEDENAR | EL14: -0.02336913627 | EM14: 0.1078918919 | EN14: 0.01452098459 | EO14: -0.03407407407 | EP14: 0.02882988416 | EQ14: 5.691318328 | ER14: 0.01411224551 | ES14: 0.006004708728
A15: CELSIA COLOMBIA Valle | B15: 0.03380581391 | C15: -0.09203539823 | D15: 0.01605000845 | E15: -0.02862102075 | F15: -0.0220814311 | G15: -0.3562647754 | H15: -0.02320459468 | I15: -0.02387450548 | K15: CELSIA COLOMBIA Valle | L15: -0.01713033663 | M15: 0.02014294997 | N15: -0.02111739275 | O15: 0.02714519256 | P15: -0.006192835366 | Q15: -0.08373117885 | R15: -0.00160697602 | S15: -0.001654503713 | U15: CELSIA COLOMBIA Valle | V15: -0.03880970074 | W15: 0.06815286624 | X15: -0.02072362833 | Y15: 0.004885812636 | Z15: 0.006710765986 | AA15: 0.330260521 | AB15: 0.0009482694083 | AC15: 0.01068859198 | AE15: CELSIA COLOMBIA Valle | AF15: 0.04677232315 | AG15: 0.03299542834 | AH15: 0.03052905464 | AI15: -0.01167630484 | AJ15: 0.04856680316 | AK15: -0.3995179271 | AL15: 0.006731320585 | AM15: 0.01560911125 | AO15: CELSIA COLOMBIA Valle | AP15: -0.02121659729 | AQ15: -0.06272849721 | AR15: -0.02238680357 | AS15: 0.03123136553 | AT15: -0.01598401598 | AU15: -0.04666332163 | AV15: -0.006463435774 | AW15: 0.02077596996 | AY15: CELSIA COLOMBIA Valle | AZ15: 0.03964878584 | BA15: 0.07513857524 | BB15: 0.03512396694 | BC15: 0.009432598482 | BD15: 0.05943700969 | BE15: -0.1336842105 | BF15: 0.02962362911 | BG15: 0.01960519863 | BI15: CELSIA COLOMBIA Valle | BJ15: -0.04829770388 | BK15: 0.02195913691 | BL15: -0.03609447771 | BM15: -0.04593462461 | BN15: 0.02247582542 | BO15: 1.116038882 | BP15: -0.009162763112 | BQ15: 0.01350425089 | BS15: CELSIA COLOMBIA Valle | BT15: -0.03726428175 | BU15: -0.09323617339 | BV15: -0.04141501294 | BW15: -0.01636145302 | BX15: -0.01806253728 | BY15: 0.002583979328 | BZ15: -0.02992914732 | CA15: 0.01082081583 | CC15: CELSIA COLOMBIA Valle | CD15: 0.1784106866 | CE15: 0.04471460952 | CF15: 0.1193519352 | CG15: 0.006714481917 | CH15: 0.01275488069 | CI15: -0.5355097365 | CJ15: 0.053998237 | CK15: 0.007371411132 | CM15: CELSIA COLOMBIA Valle | CN15: -0.09988389147 | CO15: -0.1938856016 | CP15: -0.08057253136 | CQ15: 0.01432469304 | CR15: -0.02647361206 | CS15: 0.3205918619 | CT15: -0.04975029272 | CU15: 0.006000792338 | CW15: CELSIA COLOMBIA Valle | CX15: 0.01048915442 | CY15: 0.1490090531 | CZ15: 0.02553786951 | DA15: -0.02955241725 | DB15: -0.04725864648 | DC15: -0.4271708683 | DD15: -0.01482384892 | DE15: 0.008003521086 | DG15: CELSIA COLOMBIA Valle | DH15: 0.04823972051 | DI15: 0.001277683135 | DJ15: 0.0243902439 | DK15: -0.006236766121 | DL15: 0.0237391465 | DM15: 0.3431132844 | DN15: 0.02681386 | DO15: 0.009996782645 | DQ15: CELSIA COLOMBIA Valle | DR15: 0.1752659915 | DS15: 0.03360272225 | DT15: 0.1521811522 | DU15: 0.07441986596 | DV15: -0.01957953623 | DW15: -1.118932039 | DX15: 0.07955901362 | DY15: 0.02200277594 | EA15: CELSIA COLOMBIA Valle | EB15: 0.01240694789 | EC15: -0.04835390947 | ED15: -0.003179190751 | EE15: -0.002127352708 | EF15: -0.00561384134 | EG15: -1.989795918 | EH15: 0.005388166757 | EI15: 0.02299848606 | EK15: CELSIA COLOMBIA Valle | EL15: -0.05909286792 | EM15: 0.1078918919 | EN15: -0.01783125544 | EO15: -0.03407407407 | EP15: 0.5354002776 | EQ15: 9.360824742 | ER15: 0.05542513599
A16: CETSA | B16: 0.004371792435 | C16: -0.09203539823 | D16: -0.006220578346 | E16: -0.02862102075 | F16: -0.00643776824 | G16: -0.3660757068 | H16: -0.03342885606 | I16: -0.03496674428 | K16: CETSA | L16: -0.02785137522 | M16: 0.02014294997 | N16: -0.02909829132 | O16: 0.02714519256 | P16: -0.02132829374 | Q16: -0.03287981859 | R16: -0.006273142552 | S16: -0.006572194153 | U16: CETSA | V16: -0.001719606762 | W16: 0.06815286624 | X16: 0.008189580066 | Y16: 0.004885812636 | Z16: 0.02965517241 | AA16: 0.3239546698 | AB16: 0.01909188691 | AC16: 0.01069511541 | AE16: CETSA | AF16: -0.01251300052 | AG16: 0.03299542834 | AH16: -0.0174559281 | AI16: -0.01167630484 | AJ16: 0.01259209645 | AK16: -0.4011216057 | AL16: -0.02389837536 | AM16: 0.01561400481 | AO16: CETSA | AP16: -0.04884310305 | AQ16: -0.06272849721 | AR16: -0.04608619173 | AS16: 0.03123136553 | AT16: 0.005953168409 | AU16: -0.09857072449 | AV16: -0.01787989959 | AW16: 0.02077314264 | AY16: CETSA | AZ16: 0.0751237067 | BA16: 0.07513857524 | BB16: 0.06453992255 | BC16: 0.009432598482 | BD16: 0.0244608101 | BE16: -0.1022416621 | BF16: 0.04124724756 | BG16: 0.01960759202 | BI16: CETSA | BJ16: -0.08072095269 | BK16: 0.02195913691 | BL16: -0.06391824008 | BM16: -0.04593462461 | BN16: 0.0296534018 | BO16: 0.7667478685 | BP16: -0.03216142391 | BQ16: 0.01350281989 | BS16: CETSA | BT16: -0.01039843148 | BU16: -0.09323617339 | BV16: -0.02035529238 | BW16: -0.01636145302 | BX16: -0.02593192869 | BY16: 0.09686315064 | BZ16: -0.01650452606 | CA16: 0.01081945271 | CC16: CETSA | CD16: 0.0129488767 | CE16: 0.04471460952 | CF16: -0.008500188893 | CG16: 0.006714481917 | CH16: 0.03417381288 | CI16: -0.5716530484 | CJ16: -0.01108187096 | CK16: 0.007368717892 | CM16: CETSA | CN16: -0.008242813733 | CO16: -0.1938856016 | CP16: -0.007429986664 | CQ16: 0.01432469304 | CR16: -0.03638613861 | CS16: 0.7476155539 | CT16: -0.002072719006 | CU16: 0.00600034079 | CW16: CETSA | CX16: -0.01278394083 | CY16: 0.1490090531 | CZ16: 0.007293666027 | DA16: -0.02955241725 | DB16: -0.02286154637 | DC16: -0.4664147775 | DD16: -0.02406667917 | DE16: 0.008009194846 | DG16: CETSA | DH16: 0.03453196347 | DI16: 0.001277683135 | DJ16: 0.01276676829 | DK16: -0.006236766121 | DL16: 0.007097791798 | DM16: 0.3107789142 | DN16: 0.01823424413 | DO16: 0.009985957248 | DQ16: CETSA | DR16: 0.2312758621 | DS16: 0.03360272225 | DT16: 0.1983066792 | DU16: 0.07441986596 | DV16: -0.01474810754 | DW16: -1.109843938 | DX16: 0.1062326384 | DY16: 0.02199669634 | EA16: CETSA | EB16: 0.00884980536 | EC16: -0.04835390947 | ED16: -0.006908462867 | EE16: -0.002127352708 | EF16: -0.0005298715062 | EG16: -2.092896175 | EH16: 0.004351748013 | EI16: 0.023 | EK16: CETSA | EL16: -0.08713877245 | EM16: 0.1078918919 | EN16: -0.0418972332 | EO16: -0.03407407407 | EP16: 1.112657389 | EQ16: 9.435 | ER16: 0.07808915806
A17: EEP CARTAGO | B17: 0.03291701948 | C17: -0.09203539823 | D17: 0.01556728232 | E17: -0.02862102075 | F17: -0.1896777956 | G17: -0.3571095571 | H17: -0.03818971175 | I17: -0.03899308352 | K17: EEP CARTAGO | L17: -0.0008539126277 | M17: 0.02014294997 | N17: -0.002727981294 | O17: 0.02714519256 | P17: 0.009535804246 | Q17: -0.06562726613 | R17: 0.008332239864 | S17: 0 | U17: EEP CARTAGO | V17: -0.03172432654 | W17: 0.06815286624 | X17: -0.01524032825 | Y17: 0.004885812636 | Z17: 0.008554624844 | AA17: 0.3337213815 | AB17: 0.004099160648 | AC17: 0.00768934002 | AE17: EEP CARTAGO | AF17: 0.05454738031 | AG17: 0.03299542834 | AH17: 0.04087301587 | AI17: -0.01167630484 | AJ17: 0.05089238381 | AK17: -0.4015129473 | AL17: 0.007918610679 | AM17: 0.01260776004 | AO17: EEP CARTAGO | AP17: 0.03853493589 | AQ17: -0.06272849721 | AR17: 0.02452662346 | AS17: 0.03123136553 | AT17: -0.009080208508 | AU17: -0.05444822557 | AV17: 0.02173046508 | AW17: 0.01777007118 | AY17: EEP CARTAGO | AZ17: 0.1510435203 | BA17: 0.07507493328 | BB17: 0.1292557678 | BC17: 0.009445247561 | BD17: 0.01659426438 | BE17: -0.148688946 | BF17: 0.077560816 | BG17: 0.01660757061 | BI17: EEP CARTAGO | BJ17: -0.1630819118 | BK17: 0.02204064018 | BL17: -0.07932394997 | BM17: -0.04594192547 | BN17: 0.07159990586 | BO17: 1.032733422 | BP17: -0.06509770735 | BQ17: 0.01051001197 | BS17: EEP CARTAGO | BT17: -0.06299579653 | BU17: -0.09325480979 | BV17: -0.06500801132 | BW17: -0.01636625159 | BX17: -0.05354275024 | BY17: 0.0612632955 | BZ17: -0.04372422631 | CA17: 0.007823874539 | CC17: EEP CARTAGO | CD17: 0.3260760714 | CE17: 0.04477436637 | CF17: 0.2505257114 | CG17: 0.006729360598 | CH17: 0.03577682686 | CI17: -0.5671024636 | CJ17: 0.1264385369 | CK17: 0.004366207639 | CM17: EEP CARTAGO | CN17: -0.09218604944 | CO17: -0.1939277635 | CP17: -0.08385907879 | CQ17: 0.01429719661 | CR17: -0.01176951018 | CS17: 0.44142507 | CT17: -0.04919709605 | CU17: 0.003000028703 | CW17: EEP CARTAGO | CX17: 0.01019810278 | CY17: 0.1490034304 | CZ17: 0.03736473272 | DA17: -0.02954045238 | DB17: -0.01741511518 | DC17: -0.4530910005 | DD17: -0.007570255942 | DE17: 0.005005931017 | DG17: EEP CARTAGO | DH17: 0.04058471117 | DI17: 0.001267035775 | DJ17: 0.009831436547 | DK17: -0.006236381136 | DL17: -0.02348060874 | DM17: 0.3350451189 | DN17: 0.01944804955 | DO17: 0.006994023977 | DQ17: EEP CARTAGO | DR17: 0.08012457331 | DS17: 0.03361371346 | DT17: 0.07244962294 | DU17: 0.07441944973 | DV17: 0.1812296921 | DW17: -1.123508375 | DX17: 0.05851335788 | DY17: 0.1499976335 | EA17: EEP CARTAGO | EB17: 0.005591555184 | EC17: -0.04835390947 | ED17: -0.003271537623 | EE17: -0.002127352708 | EF17: 0.04326854873 | EG17: -2.084577114 | EH17: 0.006947449944 | EI17: 0.03500459059 | EK17: EEP CARTAGO | EL17: -0.01727901055 | EM17: 0.1078918919 | EN17: 0.002784961209 | EO17: -0.03407407407 | EP17: -0.02923579005 | EQ17: 8.233944954 | ER17: 0.005610098177 | ES17: 0.005995350544
A18: EBSA | B18: 0.02158113537 | C18: -0.09194138474 | D18: 0.007155665482 | E18: 0.01506760848 | F18: 0.01829256776 | G18: -0.3593597561 | H18: -0.01392818685 | I18: -0.01393101768 | K18: EBSA | L18: -0.008978290695 | M18: 0.02021197556 | N18: -0.009752443867 | O18: 0.02760981856 | P18: -0.01389447912 | Q18: -0.40109694 | R18: -0.0130138061 | S18: -0.01301382969 | U18: EBSA | V18: -0.04326400671 | W18: 0.06811638513 | X18: -0.03057310032 | Y18: -0.06381197896 | Z18: 0.0008473715494 | AA18: 1.075547786 | AB18: -0.00768921437 | AC18: 0.01070003398 | AE18: EBSA | AF18: 0.1051950108 | AG18: 0.03312063927 | AH18: 0.09033975538 | AI18: 0.01227020237 | AJ18: 0.02857387175 | AK18: -0.3763961869 | AL18: 0.03429894352 | AM18: 0.01559996938 | AO18: EBSA | AP18: 0.01698392688 | AQ18: -0.0628227625 | AR18: -0.002287547676 | AS18: 0.01572655115 | AT18: 0.008056846492 | AU18: -0.4011488034 | AV18: -0.004879648755 | AW18: 0.02080000103 | AY18: EBSA | AZ18: 0.1362547824 | BA18: 0.07511686968 | BB18: 0.1201482085 | BC18: 0.0692984847 | BD18: -0.004381846919 | BE18: 0.293044236 | BF18: 0.0941664748 | BG18: 0.01959998556 | BI18: EBSA | BJ18: -0.16778844 | BK18: 0.02203873057 | BL18: -0.1226741508 | BM18: -0.01058857674 | BN18: 0.04611403256 | BO18: 1.272675018 | BP18: 0.01630148791 | BQ18: 0.01350005366 | BS18: EBSA | BT18: -0.05814132237 | BU18: -0.09322695764 | BV18: -0.06252635924 | BW18: -0.03714904416 | BX18: 0.06994790475 | BY18: -0.3812673882 | BZ18: -0.05426785374 | CA18: 0.01080003174 | CC18: EBSA | CD18: 0.2475413474 | CE18: 0.04474422745 | CF18: 0.1949610585 | CG18: 0.003668495258 | CH18: -0.08483216062 | CI18: -0.3496571263 | CJ18: 0.08024313834 | CK18: 0.00729993053 | CM18: EBSA | CN18: -0.06889159338 | CO18: -0.1939277635 | CP18: -0.06623082397 | CQ18: 0.01552979293 | CR18: 0.06677946461 | CS18: 0.4784479255 | CT18: -0.02141135719 | CU18: 0.005999994597 | CW18: EBSA | CX18: 0.02820303255 | CY18: 0.1490621529 | CZ18: 0.0457067613 | DA18: -0.02376256484 | DB18: -0.04102413733 | DC18: -0.658129682 | DD18: -0.01268151533 | DE18: 0.007999962924 | DG18: EBSA | DH18: 0.04968835051 | DI18: 0.00121586631 | DJ18: 0.0302485897 | DK18: -0.00847020022 | DL18: 0.007136801434 | DM18: 1.332622213 | DN18: 0.03605152733 | DO18: 0.01000004126 | DQ18: EBSA | DR18: 0.08742272225 | DS18: 0.03361158668 | DT18: 0.08099611163 | DU18: 0.05218931782 | DV18: 0.01632437262 | DW18: -0.9769241729 | DX18: 0.03704645118 | DY18: 0.02000006957 | EA18: EBSA | EB18: -0.001218862129 | EC18: -0.04833137517 | ED18: -0.01463606867 | EE18: -0.00521944477 | EF18: 0.006474257845 | EG18: 3.001194981 | EH18: -0.003499076851 | EI18: 0.01999998398 | EK18: EBSA | EL18: -0.01266072985 | EM18: 0.1077641565 | EN18: 0.01973858799 | EO18: 0.01814532 | EP18: -0.008509360972 | EQ18: 10.18521653 | ER18: 0.02931361394 | ES18: 0.00599993493
A19: ELECTROHUILA | B19: 0.1183762619 | C19: -0.09194138474 | D19: 0.069907743 | E19: 0.01506760848 | F19: -0.01845415685 | G19: -0.4319511699 | H19: 0.01373706308 | I19: -1.258108984e-06 | K19: ELECTROHUILA | L19: 0.03196106926 | M19: 0.02021197556 | N19: 0.0233187668 | O19: 0.02760981856 | P19: -0.02186649555 | Q19: -0.02703835298 | R19: 0.01949647175 | S19: 0 | U19: ELECTROHUILA | V19: -0.1004836027 | W19: 0.06811638513 | X19: -0.06767001014 | Y19: -0.06381197896 | Z19: 0.03963043698 | AA19: 0.3175190597 | AB19: -0.0432226725 | AC19: 0.007691710574 | AE19: ELECTROHUILA | AF19: 0.1424133828 | AG19: 0.03312063927 | AH19: 0.103142965 | AI19: 0.01227020237 | AJ19: -0.001807442678 | AK19: -0.3872815347 | AL19: 0.04578079895 | AM19: 0.01259993678 | AO19: ELECTROHUILA | AP19: 0.1238263604 | AQ19: -0.0628227625 | AR19: 0.08923738212 | AS19: 0.01572655115 | AT19: 0.01859047886 | AU19: -0.1206883972 | AV19: 0.05481746229 | AW19: 0.01780004744 | AY19: ELECTROHUILA | AZ19: 0.08507352645 | BA19: 0.07511686968 | BB19: 0.07015899069 | BC19: 0.0692984847 | BD19: 0.02466728902 | BE19: -0.09002935289 | BF19: 0.06644469182 | BG19: 0.01659993621 | BI19: ELECTROHUILA | BJ19: -0.004714124111 | BK19: 0.02203873057 | BL19: -0.002871691374 | BM19: -0.01058831358 | BN19: 0.04051197213 | BO19: 1.063140437 | BP19: 0.02173924014 | BQ19: 0.01050002973 | BS19: ELECTROHUILA | BT19: -0.3286086148 | BU19: -0.09322695764 | BV19: -0.2718102347 | BW19: -0.03714930026 | BX19: 0.04042218512 | BY19: 0.03016759159 | BZ19: -0.1647890749 | CA19: 0.007800003679 | CC19: ELECTROHUILA | CD19: 0.489264857 | CE19: 0.0447444335 | CF19: 0.3387036442 | CG19: 0.003668376868 | CH19: -0.07803780866 | CI19: -0.5441276158 | CJ19: 0.1484942536 | CK19: 0.00440002153 | CM19: ELECTROHUILA | CN19: -0.01014631268 | CO19: -0.193927528 | CP19: -0.01031972262 | CQ19: 0.01553010931 | CR19: 0.05321786287 | CS19: 0.3538951376 | CT19: 0.002083861049 | CU19: 0.003000008202 | CW19: ELECTROHUILA | CX19: -0.005584450483 | CY19: 0.1490615906 | CZ19: 0.008497956728 | DA19: -0.02376275383 | DB19: -0.03547883297 | DC19: -0.4407904598 | DD19: -0.01793688759 | DE19: 0.005000003194 | DG19: ELECTROHUILA | DH19: 0.008769931879 | DI19: 0.001216079246 | DJ19: -0.007249993532 | DK19: -0.00847039852 | DL19: 0.0006911302333 | DM19: 0.3990583921 | DN19: 0.00661700702 | DO19: 0.006999989136 | DQ19: ELECTROHUILA | DR19: 0.0116823542 | DS19: 0.03361136686 | DT19: 0.01359060142 | DU19: 0.05218952826 | DV19: 0.01409393293 | DW19: -1.131440706 | DX19: 0.001525215777 | DY19: 0.03000000103 | EA19: ELECTROHUILA | EB19: 0.005283694939 | EC19: -0.04833137517 | ED19: -0.008469989265 | EE19: -0.00521944477 | EF19: -0.05633841861 | EG19: -2.042754542 | EH19: -0.005037650378 | EI19: 0.08999996991 | EK19: ELECTROHUILA | EL19: -0.01356224418 | EM19: 0.1077641565 | EN19: 0.0181803565 | EO19: 0.01814532 | EP19: 0.6490306148 | EQ19: 7.434203063 | ER19: 0.1127863192
A20: ENELAR | B20: 0.1198713221 | C20: -0.02034421715 | D20: 0.1013670277 | E20: 0.01506760848 | F20: -0.006760056984 | G20: -0.3282339368 | H20: 0.02247893742 | I20: 2.788659452e-06 | K20: ENELAR | L20: 0.04819180032 | M20: -0.07308400444 | N20: 0.03565637715 | O20: 0.02760981856 | P20: 0.01776748729 | Q20: -0.08490433928 | R20: 0.02213594976 | S20: 0 | U20: ENELAR | V20: -0.1500458872 | W20: 0.0897051274 | X20: -0.1224281811 | Y20: -0.06381197896 | Z20: 0.004382112124 | AA20: 0.2907555892 | AB20: -0.06267560867 | AC20: 0.01100003572 | AE20: ENELAR | AF20: 0.1732291638 | AG20: 0.03312063927 | AH20: 0.1370410087 | AI20: 0.01227020237 | AJ20: -0.03423178918 | AK20: -0.3653685696 | AL20: 0.04208560068 | AM20: 0.01561453115 | AO20: ENELAR | AP20: 0.0913301648 | AQ20: -0.0628227625 | AR20: 0.07294003709 | AS20: 0.01572655115 | AT20: 0.04366129462 | AU20: -0.1052431223 | AV20: 0.04244417256 | AW20: 0.02100000569 | AY20: ENELAR | AZ20: 0.1774826977 | BA20: 0.07511686968 | BB20: 0.1569265456 | BC20: 0.0692984847 | BD20: 0.07465024477 | BE20: -0.1059023743 | BF20: 0.1120207137 | BG20: -0.01360560676 | BI20: ENELAR | BJ20: -0.2119975859 | BK20: 0.02203873057 | BL20: -0.1882567782 | BM20: -0.01058857674 | BN20: 0.04351489573 | BO20: 1.206556987 | BP20: -0.06300430238 | BQ20: 0.01959997956 | BS20: ENELAR | BT20: -0.08416647084 | BU20: -0.09322695764 | BV20: -0.08628251727 | BW20: -0.03714904416 | BX20: -0.03944933955 | BY20: -0.01912505566 | BZ20: -0.05863907613 | CA20: 0.01978757482 | CC20: ENELAR | CD20: 0.4061377288 | CE20: 0.04474422745 | CF20: 0.3253644342 | CG20: 0.003668495258 | CH20: 0 | CI20: -0.5873407826 | CJ20: 0.1242135057 | CK20: 0.007367473716 | CM20: ENELAR | CN20: -0.1085975223 | CO20: -0.1939277635 | CP20: -0.09824716453 | CQ20: 0.01552979293 | CR20: 0.007656723757 | CS20: 0.4479332646 | CT20: -0.04934637957 | CU20: 0.005998949316 | CW20: ENELAR | CX20: 0.03205080335 | CY20: 0.1490621529 | CZ20: 0.0455233776 | DA20: -0.02376256484 | DB20: 0.02930587712 | DC20: -0.3526193137 | DD20: 0.008852573554 | DE20: 0.008008261749 | DG20: ENELAR | DH20: 0.06874183531 | DI20: 0.00121586631 | DJ20: 0.04169400745 | DK20: -0.00847020022 | DL20: 0.01768299014 | DM20: 0.2967202417 | DN20: 0.03605552723 | DO20: 0.009991370095 | DQ20: ENELAR | DR20: 0.008117385132 | DS20: 0.03361158668 | DT20: 0.01000629915 | DU20: 0.05218931782 | DV20: -0.008028180839 | DW20: -0.9749589074 | DX20: -0.006548133181 | DY20: 0.1080001278 | EA20: ENELAR | EB20: 0.003294657966 | EC20: -0.04833137517 | ED20: -0.01295216399 | EE20: -0.00521944477 | EF20: -0.02053850919 | EG20: 4.968881686 | EH20: -0.003913709059 | EI20: 0.006000043863 | EK20: ENELAR | EL20: -0.01408360065 | EM20: 0.1077641565 | EN20: 0.02498053097 | EO20: 0.01814532 | EP20: 0.005665790375 | EQ20: 5.955522972 | ER20: 0.03099935651 | ES20: 0.00600001976
A21: CELSIA COLOMBIA Tolima | B21: 0.03373851785 | C21: -0.09203539823 | D21: 0.01467622675 | E21: -0.1254093304 | F21: -0.01567171873 | G21: -0.3562647754 | H21: -0.06365105008 | I21: -0.07565465761 | K21: CELSIA COLOMBIA Tolima | L21: -0.01463170202 | M21: 0.02014294997 | N21: -0.01788671746 | O21: -0.2948964918 | P21: -0.03194720855 | Q21: -0.08373117885 | R21: -0.1284183057 | S21: -0.01350263561 | U21: CELSIA COLOMBIA Tolima | V21: -0.03885140862 | W21: 0.06815286624 | X21: -0.02383361439 | Y21: -0.06903186086 | Z21: -0.02412897641 | AA21: 0.330260521 | AB21: -0.02758979054 | AC21: 0.0106867416 | AE21: CELSIA COLOMBIA Tolima | AF21: 0.04797008924 | AG21: 0.03299542834 | AH21: 0.03524127606 | AI21: 0.01223443829 | AJ21: 0.01718594079 | AK21: -0.3995179271 | AL21: 0.01217603725 | AM21: 0.01561319895 | AO21: CELSIA COLOMBIA Tolima | AP21: -0.01800679883 | AQ21: -0.06272849721 | AR21: -0.01957948604 | AS21: 0.01576153532 | AT21: 0.01340745585 | AU21: -0.04666332163 | AV21: -0.007806018553 | AW21: 0.02077109484 | AY21: CELSIA COLOMBIA Tolima | AZ21: 0.0396216068 | BA21: 0.07513857524 | BB21: 0.03778509021 | BC21: 0.06926354719 | BD21: -0.00968054211 | BE21: -0.1336842105 | BF21: 0.04097145681 | BG21: 0.01960735056 | BI21: CELSIA COLOMBIA Tolima | BJ21: -0.04902413293 | BK21: 0.02195913691 | BL21: -0.08265908594 | BM21: -0.01056430693 | BN21: 0.03736287607 | BO21: 1.116038882 | BP21: -0.002519259557 | BQ21: 0.0135018602 | BS21: CELSIA COLOMBIA Tolima | BT21: -0.03622811579 | BU21: -0.09323617339 | BV21: -0.04135876043 | BW21: -0.03716087849 | BX21: 0.02355774264 | BY21: 0.002583979328 | BZ21: -0.03240605173 | CA21: 0.01081803817 | CC21: CELSIA COLOMBIA Tolima | CD21: 0.1785251799 | CE21: 0.04471460952 | CF21: 0.1222180778 | CG21: 0.003670086819 | CH21: -0.005114566285 | CI21: -0.5355097365 | CJ21: 0.0546756784 | CK21: 0.007371332371 | CM21: CELSIA COLOMBIA Tolima | CN21: -0.0995330098 | CO21: -0.1938856016 | CP21: -0.08287170397 | CQ21: 0.01553100303 | CR21: 0.002159161012 | CS21: 0.3205918619 | CT21: -0.04849354376 | CU21: 0.006004321201 | CW21: CELSIA COLOMBIA Tolima | CX21: 0.01101620229 | CY21: 0.1490090531 | CZ21: 0.026818072 | DA21: -0.02377264984 | DB21: -0.04852775213 | DC21: -0.4271708683 | DD21: -0.01063027744 | DE21: 0.008009397693 | DG21: CELSIA COLOMBIA Tolima | DH21: 0.04807724545 | DI21: 0.001277683135 | DJ21: 0.02658823529 | DK21: -0.008447687792 | DL21: -0.01919344404 | DM21: 0.3431132844 | DN21: 0.02153979019 | DO21: 0.009993996539 | DQ21: CELSIA COLOMBIA Tolima | DR21: 0.1756181824 | DS21: 0.03360272225 | DT21: 0.15001146 | DU21: 0.05215791368 | DV21: 0.01033421284 | DW21: -1.118932039 | DX21: 0.08094835517 | DY21: 0.047995338 | EA21: CELSIA COLOMBIA Tolima | EB21: 0.0118908329 | EC21: -0.04835390947 | ED21: -0.002192326856 | EE21: -0.005208135335 | EF21: 0.01055495103 | EG21: -1.989795918 | EH21: 0.006095807695 | EI21: 0.04499655241 | EK21: CELSIA COLOMBIA Tolima | EL21: -0.06467139938 | EM21: 0.1078918919 | EN21: -0.02766403675 | EO21: 0.0181519413 | EP21: 0.9874017444 | EQ21: 9.360824742 | ER21: 0.1060645899
A22: ENEL COLOMBIA | B22: 0.1520488197 | C22: -0.09194138474 | D22: 0.1028817541 | E22: 0.01506760848 | F22: 0.03627684176 | G22: -0.3321224203 | H22: 0.02758241916 | I22: 2.627648393e-06 | K22: ENEL COLOMBIA | L22: 0.01478253813 | M22: 0.02021197556 | N22: 0.008918047686 | O22: 0.02760981856 | P22: 0.02886053028 | Q22: -0.1225915873 | R22: 0.01494579173 | S22: 0 | U22: ENEL COLOMBIA | V22: -0.08994673 | W22: 0.06811638513 | X22: -0.06279118049 | Y22: -0.06381197896 | Z22: -0.03506448035 | AA22: 0.3410799973 | AB22: -0.04867684385 | AC22: 0.01099999876 | AE22: ENEL COLOMBIA | AF22: 0.1220376603 | AG22: 0.03312063927 | AH22: 0.09033822864 | AI22: 0.01227020237 | AJ22: 0.006305040661 | AK22: -0.4106124495 | AL22: 0.03864274425 | AM22: 0.01600003721 | AO22: ENEL COLOMBIA | AP22: 0.07952110289 | AQ22: -0.0628227625 | AR22: 0.05782968239 | AS22: 0.01572655115 | AT22: -0.000979638204 | AU22: -0.06317910705 | AV22: 0.0348479258 | AW22: 0.02100002639 | AY22: ENEL COLOMBIA | AZ22: 0.1847531245 | BA22: 0.07511686968 | BB22: 0.1539639679 | BC22: 0.0692984847 | BD22: 0.08423088471 | BE22: -0.06128394154 | BF22: 0.1219036963 | BG22: 0.02000000527 | BI22: ENEL COLOMBIA | BJ22: -0.2007485159 | BK22: 0.02203873057 | BL22: -0.1664602704 | BM22: -0.01058857674 | BN22: 0.105235171 | BO22: 1.114799781 | BP22: -0.07110932092 | BQ22: 0.01399993588 | BS22: ENEL COLOMBIA | BT22: -0.07558211894 | BU22: -0.09322695764 | BV22: -0.07240263092 | BW22: -0.03714904416 | BX22: -0.03950251355 | BY22: -0.04273785832 | BZ22: -0.05847948469 | CA22: 0.01100002767 | CC22: ENEL COLOMBIA | CD22: 0.3956473834 | CE22: 0.04474422745 | CF22: 0.2877422768 | CG22: 0.003668495258 | CH22: -0.0466648721 | CI22: -0.5773511068 | CJ22: 0.1378402389 | CK22: 0.007000037455 | CM22: ENEL COLOMBIA | CN22: -0.0958444725 | CO22: -0.1939277635 | CP22: -0.07764183244 | CQ22: 0.01552979293 | CR22: 0.03529089848 | CS22: 0.5485976529 | CT22: -0.04385076577 | CU22: 0.005999972949 | CW22: ENEL COLOMBIA | CX22: 0.05152202483 | CY22: 0.1490621529 | CZ22: 0.05882398113 | DA22: -0.02376256484 | DB22: 0.01467999798 | DC22: -0.5217438536 | DD22: 0.01277932964 | DE22: 0.008000053779 | DG22: ENEL COLOMBIA | DH22: 0.03567791688 | DI22: 0.00121586631 | DJ22: 0.03211137591 | DK22: -0.00847020022 | DL22: -0.03849532387 | DM22: 0.6402969209 | DN22: 0.02115103622 | DO22: 0.00999998765 | DQ22: ENEL COLOMBIA | DR22: 0.02408914556 | DS22: 0.03361158668 | DT22: 0.01030987238 | DU22: 0.05218931782 | DV22: 0.06530723407 | DW22: -1.050848584 | DX22: 0.01185956246 | DY22: 0.02500005502 | EA22: ENEL COLOMBIA | EB22: 0.001489343162 | EC22: -0.04833137517 | ED22: -0.007782864344 | EE22: -0.00521944477 | EF22: -0.06772606579 | EG22: -3.737690632 | EH22: -0.006369405311 | EI22: 0.03799997543 | EK22: ENEL COLOMBIA | EL22: -0.01250927958 | EM22: 0.1077641565 | EN22: 0.008075234266 | EO22: 0.01814532 | EP22: 0.01954098703 | EQ22: 6.356756327 | ER22: 0.02774251623 | ES22: 0.005999992875
A23: EMEVASI | B23: -0.0003900732845 | C23: -0.09194138474 | D23: -0.01409895207 | E23: -0.004594021969 | F23: 0.1056299314 | G23: -0.400951189 | H23: -0.006034387364 | K23: EMEVASI | L23: -0.0212607916 | M23: 0.02021197556 | N23: -0.01818980193 | O23: -0.01797036223 | P23: -0.07742661014 | Q23: -0.05663616357 | R23: -0.03172330742 | U23: EMEVASI | V23: -0.003953314727 | W23: 0.06811638513 | X23: 0.0112946221 | Y23: 0.01746223984 | Z23: 0.01283109109 | AA23: 0.1911087816 | AB23: 0.01695973284 | AE23: EMEVASI | AF23: 0.004120436806 | AG23: 0.03312063927 | AH23: 0.007832325409 | AI23: -0.02646973614 | AJ23: 0.01941737395 | AK23: -0.5003284846 | AL23: -0.01814720223 | AO23: EMEVASI | AP23: -0.009539495185 | AQ23: -0.0628227625 | AR23: -0.01292746931 | AS23: -1.178241317e-05 | AT23: 0.01867194723 | AU23: 0.1915765841 | AV23: 9.657307877e-05 | AY23: EMEVASI | AZ23: 0.01686322157 | BA23: 0.07511748559 | BB23: 0.01791157205 | BC23: -0.008514846352 | BD23: 0.009939192632 | BE23: -0.1936001999 | BF23: 0.005864569825 | BI23: EMEVASI | BJ23: -0.006938182148 | BK23: 0.02203814507 | BL23: -0.006527266498 | BM23: -0.02463828696 | BN23: -0.04071785429 | BO23: 1.27696367 | BP23: 0.002913466187 | BS23: EMEVASI | BT23: -0.008319304449 | BU23: -0.09322695764 | BV23: -0.01998799813 | BW23: -0.007381721875 | BX23: 0.07024869658 | BY23: 0.1474601735 | BZ23: 0.00932507577 | CC23: EMEVASI | CD23: -0.00424328584 | CE23: 0.04474422745 | CF23: -0.01813323935 | CG23: -0.1492068368 | CH23: 0.07321844814 | CI23: -0.6346105864 | CJ23: -0.05603232113 | CM23: EMEVASI | CN23: -0.008716105614 | CO23: -0.1939277635 | CP23: -0.01446521839 | CQ23: 0.003096070945 | CR23: -0.08608165571 | CS23: 0.6640457035 | CT23: -0.02544355173 | CW23: EMEVASI | CX23: -0.00555479444 | CY23: 0.1490621529 | CZ23: 0.01004194106 | DA23: -0.008152903095 | DB23: 0.06710891379 | DC23: -0.4817961313 | DD23: 0.006257983956 | DG23: EMEVASI | DH23: 0.01198670312 | DI23: 0.00121586631 | DJ23: -0.0003751737 | DK23: -0.02177574287 | DL23: -0.05877637039 | DM23: 0.3688737308 | DN23: -0.01193487533 | DQ23: EMEVASI | DR23: 0.01194457881 | DS23: 0.03361158668 | DT23: 0.009355533976 | DU23: 0.01134984266 | DV23: 0.04524483363 | DW23: -1.152995825 | DX23: -0.002665400816 | EA23: EMEVASI | EB23: 0.005008928663 | EC23: -0.04833137517 | ED23: -0.004342897575 | EE23: 0.1098422539 | EF23: -0.03160495584 | EG23: -2.075883498 | EH23: 0.02763600251 | EK23: EMEVASI | EL23: -0.007929497459 | EM23: 0.1077641565 | EN23: 0.02661701734 | EO23: -0.0215038305 | EP23: 0.01029968293 | EQ23: 6.742544974 | ER23: 0.02277371831
A24: EE PUTUMAYO | B24: 0.00482619761 | C24: -0.09194059795 | D24: -0.002868068536 | E24: -0.004594021969 | F24: -0.04008929139 | G24: -0.3164317813 | H24: -0.02557323676 | I24: -0.02573842067 | K24: EE PUTUMAYO | L24: 0.01910495431 | M24: 0.02021195805 | N24: 0.0145665442 | O24: -0.01797036223 | P24: 0.0017538174 | Q24: -0.1118126145 | R24: -0.0009483543469 | S24: -0.0009483565877 | U24: EE PUTUMAYO | V24: -0.0105547888 | W24: 0.06811441641 | X24: 0.006844514627 | Y24: 0.01746227319 | Z24: -0.05054827326 | AA24: 0.3821677072 | AB24: 0.01294531566 | AC24: 0.007510869114 | AE24: EE PUTUMAYO | AF24: 0.03107540515 | AG24: 0.03312246121 | AH24: 0.02440708395 | AI24: -0.02646960418 | AJ24: 0.06563804707 | AK24: -0.3613107335 | AL24: -0.002882100122 | AM24: 0.01261449912 | AO24: EE PUTUMAYO | AP24: 0.0226780919 | AQ24: -0.06282367618 | AR24: 0.002213499391 | AS24: -1.195073134e-05 | AT24: 0.01066554197 | AU24: -0.1534210721 | AV24: 0.001945103518 | AW24: 0.01777554758 | AY24: EE PUTUMAYO | AZ24: 0.08711275461 | BA24: 0.07511770632 | BB24: 0.07743408538 | BC24: -0.008514846352 | BD24: -0.002486845389 | BE24: -0.08222043994 | BF24: 0.03894251747 | BG24: 0.01660560064 | BI24: EE PUTUMAYO | BJ24: -0.12852615 | BK24: 0.02203871795 | BL24: 0.2591363297 | BM24: -0.02463832091 | BN24: 0.07804313554 | BO24: 0.9637531978 | BP24: -0.01026308484 | BQ24: 0.01050613271 | BS24: EE PUTUMAYO | BT24: -0.04378950884 | BU24: -0.09322765276 | BV24: -0.05003622607 | BW24: -0.007381582887 | BX24: -0.03877158163 | BY24: 0.04148570943 | BZ24: -0.03158427868 | CA24: 0.007816651027 | CC24: EE PUTUMAYO | CD24: 0.2639874209 | CE24: 0.04474464877 | CF24: 0.214851531 | CG24: -0.1492069264 | CH24: -0.01246545104 | CI24: -0.6005156174 | CJ24: 0.04013680689 | CK24: 0 | CM24: EE PUTUMAYO | CN24: -0.1087961796 | CO24: -0.193927528 | CP24: -0.1043392564 | CQ24: 0.003096194607 | CR24: 0.01591389194 | CS24: 0.6197505867 | CT24: -0.05717926347 | CU24: -0.03398431109 | CW24: EE PUTUMAYO | CX24: 0.06782325814 | CY24: 0.149062814 | CZ24: 0.06450998208 | DA24: -0.00815290209 | DB24: 0.02036088335 | DC24: -0.3241316783 | DD24: 0.03272213449 | DE24: 0.001519961832 | DG24: EE PUTUMAYO | DH24: 0.05759485422 | DI24: 0.001215013271 | DJ24: 0.05091335901 | DK24: -0.02177574016 | DL24: -0.01101048223 | DM24: 0.06997006764 | DN24: 0.02402229743 | DO24: 0.005008215439 | DQ24: EE PUTUMAYO | DR24: -0.154418478 | DS24: 0.03361051615 | DT24: -0.1334079999 | DU24: 0.01134984122 | DV24: -0.010849579 | DW24: -0.9797903826 | DX24: -0.09798854484 | DY24: -0.06323373296 | EA24: EE PUTUMAYO | EB24: 0.0971862652 | EC24: -0.04833079766 | ED24: 0.07136891381 | EE24: 0.1098420307 | EF24: -0.03494863647 | EG24: 6.47029048 | EH24: 0.07603087771 | EK24: EE PUTUMAYO | EL24: -0.1456049671 | EM24: 0.107764396 | EN24: -0.102278955 | EO24: -0.02150394532 | EP24: -0.0139485085 | EQ24: 6.190585273 | ER24: -0.05536800184
A25: EE BAJO PUTUMAYO | B25: 0.0008709280885 | C25: -0.09194059795 | D25: -0.007688880639 | E25: -0.004594021969 | F25: -0.02796722233 | G25: -0.3250807065 | H25: -0.0278069868 | K25: EE BAJO PUTUMAYO | L25: -0.005393274573 | M25: 0.02021195805 | N25: 0.2083049922 | O25: -0.01797036223 | P25: -0.0223503054 | Q25: -0.06889033606 | R25: 0.0007210671794 | U25: EE BAJO PUTUMAYO | V25: 0.004664083848 | W25: 0.06811441641 | X25: -0.1645014755 | Y25: 0.01746227319 | Z25: -0.0248369432 | AA25: 0.2433684106 | AB25: 0.004203194428 | AE25: EE BAJO PUTUMAYO | AF25: 0.0002736485339 | AG25: 0.03312246121 | AH25: -0.005200534192 | AI25: -0.02646960418 | AJ25: 0.01676473626 | AK25: -0.3447193933 | AL25: -0.02033006458 | AO25: EE BAJO PUTUMAYO | AP25: -0.00769641412 | AQ25: -0.06282367618 | AR25: -0.01267394071 | AS25: -1.195073134e-05 | AT25: 0.02120224262 | AU25: -0.1715663244 | AV25: -0.009765625 | AY25: EE BAJO PUTUMAYO | AZ25: 0.01487166742 | BA25: 0.07511770632 | BB25: 0.01334771952 | BC25: -0.008514846352 | BD25: 0.03923327969 | BE25: -0.1260489896 | BF25: 0.009615384615 | BI25: EE BAJO PUTUMAYO | BJ25: -0.00543728022 | BK25: 0.02203871795 | BL25: 0.000146522056 | BM25: -0.02463832091 | BN25: -0.0001874003821 | BO25: 1.346003887 | BP25: 0.01782661783 | BS25: EE BAJO PUTUMAYO | BT25: -0.002359983438 | BU25: -0.09322765276 | BV25: -0.01184420975 | BW25: -0.007381582887 | BX25: 0.09742674747 | BY25: -0.03758537222 | BZ25: 0.0005998080614 | CC25: EE BAJO PUTUMAYO | CD25: 0.2779030722 | CE25: 0.04474464877 | CF25: 0.1668705901 | CG25: -0.1492069264 | CH25: -0.05293711859 | CI25: -0.583290151 | CJ25: 0.02613595492 | CM25: EE BAJO PUTUMAYO | CN25: -0.01103423942 | CO25: -0.193927528 | CP25: -0.145602441 | CQ25: 0.003096194607 | CR25: 0.02492057866 | CS25: 0.497618399 | CT25: -0.01366982124 | CW25: EE BAJO PUTUMAYO | CX25: -0.003498659957 | CY25: 0.149062814 | CZ25: 0.01011755218 | DA25: -0.00815290209 | DB25: 0.02450176867 | DC25: -0.3524904854 | DD25: -0.002487562189 | DG25: EE BAJO PUTUMAYO | DH25: 0.009635735097 | DI25: 0.001215013271 | DJ25: -0.01122388223 | DK25: -0.02177574016 | DL25: 0.03302578992 | DM25: 0.184990042 | DN25: 0.005225032656 | DQ25: EE BAJO PUTUMAYO | DR25: 0.01453803599 | DS25: 0.03361051615 | DT25: 0.01830175458 | DU25: 0.01134984122 | DV25: -0.03765040833 | DW25: -1.09374294 | DX25: -0.01594802126 | EA25: EE BAJO PUTUMAYO | EB25: 0.005012622117 | EC25: -0.03618076266 | ED25: -0.01111513232 | EE25: 0.1098420307 | EF25: -0.03153290361 | EG25: -2.967433087 | EH25: 0.03253301321 | EK25: EE BAJO PUTUMAYO | EL25: -0.01834918538 | EM25: 0.0951355508 | EN25: 0.0215616231 | EO25: -0.02150394532 | EP25: 0.009090924489 | EQ25: 3.853007092 | ER25: 0.007789791885
A26: EMSA | B26: 0.0289346933 | C26: -0.02045231072 | D26: 0.0157480315 | E26: -0.004628422425 | F26: 0.02171176841 | G26: -0.3875626881 | H26: -0.0122398304 | I26: -0.013842343 | K26: EMSA | L26: -0.01934395759 | M26: -0.1274844409 | N26: -0.02885443583 | O26: -0.01797760168 | P26: -0.07997125552 | Q26: -0.05306256142 | R26: -0.03424560072 | S26: -0.03879217709 | U26: EMSA | V26: 0.006984661823 | W26: 0.1576161988 | X26: -0.1531411678 | Y26: 0.01747307346 | Z26: 0.004909618389 | AA26: 0.2310619163 | AB26: 0.01330975885 | AC26: 0.007685858021 | AE26: EMSA | AF26: 0.08041129313 | AG26: 0.03299542834 | AH26: 0.09408273695 | AI26: -0.0264805165 | AJ26: -0.02742616034 | AK26: -0.3374543411 | AL26: 0.009160527336 | AM26: 0.01261960893 | AO26: EMSA | AP26: 0.0228086589 | AQ26: -0.06272849721 | AR26: -0.008296107211 | AS26: 0 | AT26: 0.03664801918 | AU26: -0.1115351993 | AV26: 0.004646750877 | AW26: 0.01777595179 | AY26: EMSA | AZ26: 0.1390070654 | BA26: 0.07507493328 | BB26: 0.1108542471 | BC26: -0.008516748022 | BD26: 0.001480176211 | BE26: -0.1288353222 | BF26: 0.05918872728 | BG26: 0.01660432197 | BI26: EMSA | BJ26: -0.1618638933 | BK26: 0.02201963454 | BL26: -0.1286112958 | BM26: -0.02465060958 | BN26: 0.03624151036 | BO26: -0.01429518544 | BP26: -0.07944156497 | BQ26: 0.01050931809 | BS26: EMSA | BT26: -0.0777109628 | BU26: -0.09323617339 | BV26: -0.07096559747 | BW26: -0.007380073801 | BX26: 0.04616364215 | BY26: 1.035019455 | BZ26: -0.01462314453 | CA26: 0.007819663113 | CC26: EMSA | CD26: 0.2535684603 | CE26: 0.04477436637 | CF26: 0.1739338104 | CG26: -0.1491975872 | CH26: -0.08600831812 | CI26: -0.553023764 | CJ26: 0.01419305884 | CK26: 0.002638316676 | CM26: EMSA | CN26: -0.08094453292 | CO26: -0.1939277635 | CP26: -0.06964794302 | CQ26: 0.003096070945 | CR26: 0.04352878371 | CS26: 0.4780979968 | CT26: -0.0370789116 | CU26: 0.002994322454 | CW26: EMSA | CX26: 0.03461818195 | CY26: 0.1490034304 | CZ26: 0.02141766745 | DA26: -0.008173038793 | DB26: -0.01343603128 | DC26: -0.456739694 | DD26: 0.005389266558 | DE26: 0.005014409967 | DG26: EMSA | DH26: 0.1370390407 | DI26: 0.001267035775 | DJ26: 0.09390635022 | DK26: -0.02175588333 | DL26: 0.007181974989 | DM26: 0.4840715373 | DN26: 0.06751263762 | DO26: 0.006995434964 | DQ26: EMSA | DR26: 0.009021296392 | DS26: 0.03361371346 | DT26: 0.01090653219 | DU26: 0.01135492506 | DV26: 0.04542408875 | DW26: -1.132302943 | DX26: -0.01117780428 | DY26: 0.02989439273 | EA26: EMSA | EB26: -0.003850788495 | EC26: -0.04835390947 | ED26: -0.01769141531 | EE26: 0.1098454709 | EF26: -0.01648407904 | EG26: -2.11627907 | EH26: 0.03005352985 | EI26: 0.1 | EK26: EMSA | EL26: -0.01304336393 | EM26: 0.1078918919 | EN26: 0.02258635961 | EO26: -0.02150781073 | EP26: 0.3657089319 | EQ26: 6.222222222 | ER26: 0.05699004917
A27: ELECTROCAQUETÁ | B27: 0.1349492208 | C27: -0.02033831629 | D27: 0.1092238007 | E27: -0.004592718146 | F27: -0.01400717517 | G27: -0.3338686432 | H27: 0.02143652561 | I27: 0 | K27: ELECTROCAQUETÁ | L27: 0.01796175067 | M27: -0.05435088142 | N27: 0.006477958237 | O27: -0.01797099361 | P27: -0.01282984243 | Q27: -0.0875007727 | R27: -0.008698022207 | S27: -0.009997253502 | U27: ELECTROCAQUETÁ | V27: -0.07589976832 | W27: 0.06811184951 | X27: -0.05217246976 | Y27: 0.0174628951 | Z27: -0.03738722136 | AA27: 0.299732412 | AB27: -0.01378312792 | AC27: 0.01069466792 | AE27: ELECTROCAQUETÁ | AF27: 0.1322141861 | AG27: 0.03311666368 | AH27: 0.1181827026 | AI27: -0.02647068463 | AJ27: 0.04204401678 | AK27: -0.34423538 | AL27: 0.03132121212 | AM27: 0.01560462786 | AO27: ELECTROCAQUETÁ | AP27: 0.1018119479 | AQ27: -0.06282108018 | AR27: 0.0842715203 | AS27: -1.346561051e-05 | AT27: 0.02509046466 | AU27: -0.1150896157 | AV27: 0.03731606412 | AW27: 0.0207972973 | AY27: ELECTROCAQUETÁ | BI27: ELECTROCAQUETÁ | BJ27: -0.1682576541 | BK27: 0.02203873057 | BL27: -0.1246313057 | BM27: -0.02463838631 | BN27: 0.0691956551 | BO27: 0.9054313132 | BP27: -0.05333850606 | BQ27: 0.0134900026 | BS27: ELECTROCAQUETÁ | BT27: -0.1481783069 | BU27: -0.09322695764 | BV27: -0.1410801938 | BW27: -0.007381721875 | BX27: -0.09795274452 | BY27: 0.1417190933 | BZ27: -0.07932657695 | CA27: 0.01079952344 | CC27: ELECTROCAQUETÁ | CD27: 0.3896007584 | CE27: 0.0447444335 | CF27: 0.3172359979 | CG27: -0.1492068368 | CH27: 0.08801348051 | CI27: -0.5981826151 | CJ27: 0.08039078233 | CK27: 0.007304719779 | CM27: ELECTROCAQUETÁ | CN27: -0.008284743105 | CO27: -0.193927528 | CP27: -0.01017050155 | CQ27: 0.003096194607 | CR27: -0.2580286794 | CS27: 0.5190021827 | CT27: -0.046534157 | CU27: 0.005999998213 | CW27: ELECTROCAQUETÁ | CX27: -0.005742056673 | CY27: 0.1490615906 | CZ27: 0.01026570834 | DA27: -0.00815302537 | DB27: -0.009474998761 | DC27: -0.470625732 | DD27: -0.012347934 | DE27: 0.008001640718 | DG27: ELECTROCAQUETÁ | DH27: 0.01135520855 | DI27: 0.001216079246 | DJ27: -0.004336502149 | DK27: -0.02177561858 | DL27: -0.01338562941 | DM27: 0.4368599346 | DN27: 0.003814849413 | DO27: 0.009998349774 | DQ27: ELECTROCAQUETÁ | DR27: 0.01330302946 | DS27: 0.03361136686 | DT27: 0.01666551986 | DU27: 0.01134971416 | DV27: 0.3357361488 | DW27: -0.9797860675 | DX27: 0.03136213048 | DY27: 0.1000012445 | EA27: ELECTROCAQUETÁ | EB27: -0.0100904523 | EC27: -0.04833137517 | ED27: -0.005530486193 | EE27: 0.1098422539 | EF27: -0.06418732103 | EG27: 7.113386613 | EH27: 0.01535052653 | EI27: 0.009001463017 | EK27: ELECTROCAQUETÁ | EL27: -0.01485864971 | EM27: 0.1077641565 | EN27: 0.01934131265 | EO27: -0.0215038305 | EP27: 0.06901672971 | EQ27: 5.342270517 | ER27: 0.02438750028 | ES27: 0.005999092388
A28: ENERCA | B28: 0.05813245276 | C28: -0.02034421715 | D28: 0.01339413796 | E28: -0.004594021969 | F28: -0.03251280176 | G28: -0.37531289 | H28: -0.01002564539 | I28: -0.01224166332 | K28: ENERCA | L28: -0.01427560906 | M28: -0.054349201 | N28: 0.4943028208 | O28: -0.01797036223 | P28: -0.02816770065 | Q28: -0.04141991569 | R28: 0.04650436392 | S28: -0.005867848336 | U28: ENERCA | V28: -0.008076981254 | W28: 0.06811638513 | X28: -0.3360011789 | Y28: 0.01746223984 | Z28: 0.04112912533 | AA28: 0.2160125523 | AB28: -0.04478075239 | AC28: 0.007691652732 | AE28: ENERCA | AF28: 0.003063328048 | AG28: 0.03312063927 | AH28: 0.007465321963 | AI28: -0.02646973614 | AJ28: -0.07983943186 | AK28: -0.3687562282 | AL28: -0.03000830866 | AM28: 0.01261450708 | AO28: ENERCA | AP28: 0.0556167395 | AQ28: -0.0628227625 | AR28: 0.01649659002 | AS28: -1.178241317e-05 | AT28: 0.02105588011 | AU28: -0.06840123033 | AV28: 0.01671719282 | AW28: 0.01777349821 | AY28: ENERCA | AZ28: 0.136642445 | BA28: 0.07511686968 | BB28: 0.07256038099 | BC28: -0.008514745359 | BD28: -0.0195359726 | BE28: -0.02904047764 | BF28: 0.05603500447 | BG28: 0.01660553069 | BI28: ENERCA | BJ28: -0.1464468225 | BK28: 0.02203873057 | BL28: -0.06112997938 | BM28: -0.02463838631 | BN28: 0.03464910798 | BO28: 0.9841771473 | BP28: -0.04174167671 | BQ28: 0.01050614726 | BS28: ENERCA | BT28: -0.04027983229 | BU28: -0.09322695764 | BV28: -0.02267207515 | BW28: -0.007381721875 | BX28: 0.004582863983 | BY28: -0.02823497376 | BZ28: -0.02572376526 | CA28: 0.007816647697 | CC28: ENERCA | CD28: 0.2161532775 | CE28: 0.04474422745 | CF28: 0.0759639338 | CG28: -0.1492068368 | CH28: -0.02664979076 | CI28: -0.5673098948 | CJ28: 0.001006408394 | CK28: 0.004367432838 | CM28: ENERCA | CN28: -0.09041243453 | CO28: -0.1939277635 | CP28: -0.4043014874 | CQ28: 0.003096070945 | CR28: 0.0170541869 | CS28: 0.4095485781 | CT28: -0.09447311106 | CU28: 0.002998952051 | CW28: ENERCA | CX28: 0.05457564829 | CY28: 0.1490621529 | CZ28: 0.05047605026 | DA28: -0.008152903095 | DB28: -0.04478051255 | DC28: -0.3931834922 | DD28: 0.01353527392 | DE28: 0.005008166692 | DG28: ENERCA | DH28: 0.05740848262 | DI28: 0.00121586631 | DJ28: 0.03377015737 | DK28: -0.02177574287 | DL28: 0.08309856055 | DM28: 0.4114183046 | DN28: 0.03710911601 | DO28: 0.006991463885 | DQ28: ENERCA | DR28: 0.08416037045 | DS28: 0.03361158668 | DT28: 0.07752101473 | DU28: 0.01134984266 | DV28: -0.03976366352 | DW28: -0.9752516136 | DX28: 0.01641047031 | DY28: 0.01999711939 | EA28: ENERCA | EB28: 0.006705358531 | EC28: -0.04833137517 | ED28: 0.01164695411 | EE28: 0.1098422539 | EF28: -0.02755791991 | EG28: 5.267675899 | EH28: 0.03452446797 | EI28: 0.09000305108 | EK28: ENERCA | EL28: -0.01664906868 | EM28: 0.1077641565 | EN28: 0.01307793208 | EO28: -0.0215038305 | EP28: 0.03889642265 | EQ28: 5.386013065 | ER28: 0.01962505637 | ES28: 0.00600000694
A29: AIRE | B29: 0.03055011198 | C29: -0.09203539823 | D29: 0.004446372411 | E29: -0.02473593447 | F29: -0.0417213938 | G29: -0.3808839382 | H29: -0.02953941392 | I29: -0.0303477029 | K29: AIRE | L29: -0.009474005909 | M29: 0.02014294997 | N29: -0.005344418052 | O29: -0.002818146654 | P29: -0.00524066758 | Q29: -0.04933255949 | R29: -0.006586930144 | S29: -0.00675836184 | U29: AIRE | V29: -0.002502571135 | W29: 0.06815286624 | X29: 0.02583446404 | Y29: 0.04205918209 | Z29: 0.002917814881 | AA29: 0.2655677656 | AB29: 0.02777874716 | AC29: 0.01069083864 | AE29: AIRE | AF29: 0.02051757913 | AG29: 0.03299542834 | AH29: 0.02084545791 | AI29: -0.01180537091 | AJ29: 0.04210441248 | AK29: -0.3977327545 | AL29: -0.002173101083 | AM29: 0.01561815966 | AO29: AIRE | AP29: -0.03377786758 | AQ29: -0.06272849721 | AR29: -0.03233998445 | AS29: 0.02669106172 | AT29: -0.02310973245 | AU29: -0.04205046055 | AV29: -0.0211091072 | AW29: 0.02077192819 | AY29: AIRE | AZ29: 0.07964169949 | BA29: 0.07513857524 | BB29: 0.06893042687 | BC29: 0.05094606636 | BD29: 0.02651424942 | BE29: -0.1973244147 | BF29: 0.05531865585 | BG29: 0.01960739557 | BI29: AIRE | BJ29: -0.0811918905 | BK29: 0.02195913691 | BL29: -0.1406453552 | BM29: -0.07376190714 | BN29: 0.04400278401 | BO29: 1.230729167 | BP29: -0.0412302084 | BQ29: 0.01349929481 | BS29: AIRE | BT29: -0.02972488669 | BU29: -0.09323617339 | BV29: -0.04203836511 | BW29: -0.01033814344 | BX29: -0.03562962963 | BY29: 0.02101330843 | BZ29: -0.03034849231 | CA29: 0.01082346704 | CC29: AIRE | CD29: 0.2485043998 | CE29: 0.04477457243 | CF29: 0.190801339 | CG29: -0.03327290533 | CH29: -0.02324072509 | CI29: -0.5504566659 | CJ29: 0.08142687406 | CK29: 0.007363445654 | CM29: AIRE | CN29: -0.05486046836 | CO29: -0.193931867 | CP29: -0.05539859051 | CQ29: -0.01201253188 | CR29: 0.03244393532 | CS29: 0.483834244 | CT29: -0.03067092403 | CU29: 0.005998952341 | CW29: AIRE | CX29: 0.02906156018 | CY29: 0.1490090531 | CZ29: 0.03522536659 | DA29: -0.03622899459 | DB29: -0.02338334984 | DC29: -0.4394926294 | DD29: -0.0002028054757 | DE29: 0.00801044534 | DG29: AIRE | DH29: 0.03824244774 | DI29: 0.001267248722 | DJ29: 0.02854421911 | DK29: -0.0212938708 | DL29: -0.01212221182 | DM29: 0.2545608563 | DN29: 0.01955157375 | DO29: 0.009989218559 | DQ29: AIRE | DR29: 0.08095892322 | DS29: 0.03361349363 | DT29: 0.06351687876 | DU29: 0.02942683584 | DV29: 0.1198770559 | DW29: -1.102378746 | DX29: 0.04388157974 | DY29: 0.1899974681 | EA29: AIRE | EB29: 0.01639474943 | EC29: -0.04835390947 | ED29: 0.004634938838 | EE29: 0.005397160624 | EF29: -0.09390200916 | EG29: -2.20952381 | EH29: -0.003134198767 | EI29: 0.00599809556 | EK29: AIRE | EL29: -0.02862670257 | EM29: 0.1078918919 | EN29: -0.003900118906 | EO29: 0.07001983895 | EP29: 0.05337275344 | EQ29: 8.594488189 | ER29: 0.03600790262 | ES29: 0.006006563874
A30: AFINIA | B30: 0.002504788566 | C30: -0.09203539823 | D30: -0.01585169264 | E30: 0.01253833664 | F30: -0.030372681 | G30: -0.3528305435 | H30: -0.03000311092 | I30: -0.02999513855 | K30: AFINIA | L30: -0.01157407407 | M30: 0.02014294997 | N30: -0.008872508873 | O30: 0.07322939866 | P30: 0.00634947511 | Q30: -0.06945655333 | R30: 0.01341062159 | S30: 0 | U30: AFINIA | V30: 0.0528976618 | W30: 0.06815286624 | X30: 0.0559151632 | Y30: -0.03017348718 | Z30: 0.03625809708 | AA30: 0.2907557776 | AB30: 0.03739040743 | AC30: 0 | AE30: AFINIA | AF30: 0.06605705409 | AG30: 0.03299542834 | AH30: 0.05960610408 | AI30: -0.01711815809 | AJ30: 0.03612599448 | AK30: -0.3813210743 | AL30: 0.01607800601 | AM30: 0.0126171503 | AO30: AFINIA | AP30: -0.02218910416 | AQ30: -0.06272849721 | AR30: -0.02387986214 | AS30: 0.02146558105 | AT30: 0.01762908407 | AU30: -0.08017207665 | AV30: -0.009707658264 | AW30: 0.01776809909 | AY30: AFINIA | AZ30: 0.1179553937 | BA30: 0.07507554917 | BB30: 0.105324401 | BC30: 0.04112289003 | BD30: -0.008878734216 | BE30: -0.1088996599 | BF30: 0.06863170365 | BG30: 0.0166068932 | BI30: AFINIA | BJ30: -0.1431375888 | BK30: 0.02201904904 | BL30: -0.191007416 | BM30: -0.07372618005 | BN30: 0.06652202963 | BO30: 1.053564442 | BP30: -0.07032889657 | BQ30: 0.01051171356 | BS30: AFINIA | BT30: -0.04302938161 | BU30: -0.09323617339 | BV30: -0.04837117473 | BW30: -0.00459688826 | BX30: -0.0775001821 | BY30: 0.09921003717 | BZ30: -0.03553546199 | CA30: 0.007810650888 | CC30: AFINIA | CD30: 0.2410462573 | CE30: 0.04477457243 | CF30: 0.1879726586 | CG30: -0.03052984014 | CH30: 0.00418097118 | CI30: -0.5985157472 | CJ30: 0.06811322966 | CK30: 0.004368248004 | CM30: AFINIA | CN30: -0.0373370676 | CO30: -0.193931867 | CP30: -0.04359036203 | CQ30: -0.02003749645 | CR30: 0.0109766887 | CS30: 0.5767954673 | CT30: -0.02347043668 | CU30: 0.003004723378 | CW30: AFINIA | CX30: 0.06392256309 | CY30: 0.1490090531 | CZ30: 0.06925785835 | DA30: -0.03024071045 | DB30: 0.009990003541 | DC30: -0.474457429 | DD30: 0.02022381017 | DE30: 0.005000641108 | DG30: AFINIA | DH30: 0.0372227422 | DI30: 0.001267248722 | DJ30: 0.02509221761 | DK30: -0.0039346925 | DL30: 0.0003986600955 | DM30: 0.4467312579 | DN30: 0.0255895335 | DO30: 0.006993899186 | DQ30: AFINIA | DR30: 0.03958196564 | DS30: 0.03361349363 | DT30: 0.0325206522 | DU30: 0.007385769813 | DV30: 0.01376495756 | DW30: -0.9749687659 | DX30: 0.002452204519 | DY30: 0.08100574746 | EA30: AFINIA | EB30: 0.008922794911 | EC30: -0.04835390947 | ED30: 0.00109484845 | EE30: -0.002449685384 | EF30: 0 | EG30: -1.105263158 | EH30: 2.142336861e-05 | EI30: 0.05999744284 | EK30: AFINIA | EL30: -0.007294199375 | EM30: 0.1078918919 | EN30: 0.01634720543 | EO30: 0.04579160247 | EP30: 0.6823082764 | EQ30: -460.3333333 | ER30: 0.1414768954
A31: DISPAC | B31: 0.05134957209 | C31: -0.09203539823 | D31: 0.01521463503 | E31: -0.03241971773 | F31: -0.0253075346 | G31: -0.3252066992 | H31: -0.0198129208 | I31: -0.01948051948 | K31: DISPAC | L31: 0 | M31: 0.02014294997 | N31: -0.01088314005 | O31: -0.000528485361 | P31: 0.0236639716 | Q31: -0.09487904493 | R31: 0.001074902341 | S31: 0 | U31: DISPAC | V31: -0.06602198414 | W31: 0.06815286624 | X31: -0.03896103896 | Y31: 0.01173857868 | Z31: 0.003467539973 | AA31: 0.3148212426 | AB31: -0.007987638802 | AC31: 0.007691911253 | AE31: DISPAC | AF31: 0.09433891993 | AG31: 0.03299542834 | AH31: 0.06137387387 | AI31: -0.000888470785 | AJ31: 0.009918730403 | AK31: -0.3711721225 | AL31: 0.02320547005 | AM31: 0.01561161473 | AO31: DISPAC | AP31: 0.08096518395 | AQ31: -0.06272849721 | AR31: 0.05534924845 | AS31: 0.02181304598 | AT31: 0.02274743379 | AU31: -0.08186397985 | AV31: 0.03801795758 | AW31: 0.02077248464 | AY31: DISPAC | AZ31: 0.2081732888 | BA31: 0.07513857524 | BB31: 0.1730898123 | BC31: 0.0141804034 | BD31: 0.004274828078 | BE31: -0.1636945588 | BF31: 0.0993997241 | BG31: 0.01960977776 | BI31: DISPAC | BJ31: -0.2440975661 | BK31: 0.02195913691 | BL31: -0.1846879017 | BM31: -0.01029730958 | BN31: 0.05552128316 | BO31: 1.223072717 | BP31: -0.08603791501 | BQ31: 0.01351122508 | BS31: DISPAC | BT31: -0.08391078016 | BU31: -0.09323617339 | BV31: -0.07060266293 | BW31: 0.00576324782 | BX31: 0.008182349503 | BY31: 0.02459419577 | BZ31: -0.03688311688 | CA31: 0.01057418038 | CC31: DISPAC | CD31: 0.394121853 | CE31: 0.04471460952 | CF31: 0.2461828464 | CG31: -0.01719066937 | CH31: -0.04104347826 | CI31: -0.5936149784 | CJ31: 0.1088380336 | CK31: 0.00736935341 | CM31: DISPAC | CN31: -0.01379366193 | CO31: -0.1938856016 | CP31: -0.0009075782786 | CQ31: -0.01031938496 | CR31: 0.01819610688 | CS31: 0.5280567041 | CT31: -0.005848765968 | CU31: 0.006002415034 | CW31: DISPAC | CX31: -0.001779115916 | CY31: 0.1490090531 | CZ31: 0.0109008327 | DA31: -0.03148949481 | DB31: -0.01686160423 | DC31: -0.4437572478 | DD31: -0.01653114005 | DE31: 0.008005966601 | DG31: DISPAC | DH31: 0.01047436249 | DI31: 0.001277683135 | DJ31: -0.008836303729 | DK31: -0.003391290305 | DL31: 0.02983271937 | DM31: 0.4433634468 | DN31: 0.01654840735 | DO31: 0.009988670258 | DQ31: DISPAC | DR31: 0.008656246608 | DS31: 0.03360272225 | DT31: 0.01737685101 | DU31: 0.04213027979 | DV31: -0.01372192576 | DW31: -0.9749638902 | DX31: -0.01032441503 | DY31: 0.03000160253 | EA31: DISPAC | EB31: 0.008743375212 | EC31: -0.04835390947 | ED31: -0.006237932571 | EE31: -0.01088421271 | EF31: 0.004161959688 | EG31: 5.230769231 | EH31: 0.002119392441 | EI31: 0.02999455453 | EK31: DISPAC | EL31: -0.01650842757 | EM31: 0.1078918919 | EN31: 0.01838290241 | EO31: -0.00408719346 | EP31: 0.00532891231 | EQ31: 5.774691358 | ER31: 0.02213605922 | ES31: 0.03530351093
A32: ENERGUAVIARE | B32: 0.0003456890149 | C32: -0.09194059795 | D32: -0.007701431493 | E32: -0.005600608211 | F32: 0.02675370599 | G32: -0.3640241698 | H32: -0.02503599742 | I32: -0.02499728913 | K32: ENERGUAVIARE | L32: -0.01545411349 | M32: 0.02021195805 | N32: -0.009907194657 | O32: -0.1412172954 | P32: -0.03367556706 | Q32: -0.09223446475 | R32: -0.05355498523 | S32: -0.05359999916 | U32: ENERGUAVIARE | V32: -0.004841418646 | W32: 0.06811441641 | X32: -0.2489642621 | Y32: 0.0145624939 | Z32: -0.01642535776 | AA32: 0.2772748222 | AB32: -0.007472179902 | AC32: 0.00760000131 | AE32: ENERGUAVIARE | AF32: 0.004591903952 | AG32: 0.03312246121 | AH32: -0.004158717306 | AI32: -0.01241262745 | AJ32: 0.02348665725 | AK32: -0.3610632197 | AL32: -0.01252129944 | AM32: 0.01260000015 | AO32: ENERGUAVIARE | AP32: -0.002489168005 | AQ32: -0.06282367618 | AR32: -0.01009029522 | AS32: 0.02154206581 | AT32: 0.0003596036753 | AU32: -0.141424122 | AV32: -0.004926777748 | AW32: 0.01730000109 | AY32: ENERGUAVIARE | AZ32: 0.01835526861 | BA32: 0.07511770632 | BB32: 0.0148447585 | BC32: 0.0210650188 | BD32: 0.01106434716 | BE32: -0.07863104872 | BF32: 0.01877819722 | BG32: 0.01659999604 | BI32: ENERGUAVIARE | BJ32: -0.01176766574 | BK32: 0.02209600601 | BL32: -0.006191196367 | BM32: 0.09480244191 | BN32: 0.006864868058 | BO32: 0.9552151443 | BP32: 0.04550769334 | BQ32: 0.01050000511 | BS32: ENERGUAVIARE | BT32: -0.007409334958 | BU32: -0.09327847698 | BV32: -0.01717436698 | BW32: 0.004371543676 | BX32: 0.1092657173 | BY32: 0.1274789308 | BZ32: 0.01527292492 | CA32: 0.007800005969 | CC32: ENERGUAVIARE | CD32: -0.00716074316 | CE32: 0.04474464877 | CF32: -0.01004148809 | CG32: -0.02511335891 | CH32: -0.04147567167 | CI32: 0.03681347564 | CJ32: -0.01320294184 | CK32: 0.004299995412 | CM32: ENERGUAVIARE | CN32: -0.0002789551572 | CO32: -0.193927528 | CP32: -0.02550921121 | CQ32: -0.008812392377 | CR32: 0.0284804691 | CS32: -0.3187354451 | CT32: -0.02824553466 | CU32: 0.002999999672 | CW32: ENERGUAVIARE | CX32: -0.003352867954 | CY32: 0.149062814 | CZ32: 0.01166471267 | DA32: -0.01391948739 | DB32: 0.04746157168 | DC32: -0.4919092281 | DD32: -0.0052853401 | DE32: 0.004999998011 | DG32: ENERGUAVIARE | DH32: 0.01150611002 | DI32: 0.001215013271 | DJ32: -0.00981782983 | DK32: -0.0006486455803 | DL32: -0.02011631931 | DM32: 0.6679764902 | DN32: 0.01222141716 | DO32: 0.007000002206 | DQ32: ENERGUAVIARE | DR32: 0.01229330945 | DS32: 0.03361051615 | DT32: 0.01617001236 | DU32: 0.01062079837 | DV32: 0.03979298321 | DW32: -0.9795154244 | DX32: -0.01191959869 | DY32: 0.005400003777 | EA32: ENERGUAVIARE | EB32: 0.006121283319 | EC32: -0.04833079766 | ED32: -0.01186670947 | EE32: -0.01060422152 | EF32: -0.05787578575 | EG32: 5.488933392 | EH32: -0.01274219233 | EI32: 0.0100000067 | EK32: ENERGUAVIARE | EL32: -0.0195341898 | EM32: 0.107764396 | EN32: 0.02186311082 | EO32: -0.009196683703 | EP32: -0.03424739574 | EQ32: 5.310779271 | ER32: 0.01337313854 | ES32: 0.004700001919
A34: PROMEDIO | B34: =+AVERAGE(B5:B32) -> 0.05938005477 | C34: =+AVERAGE(C5:C32) -> -0.0791967458 | D34: 0.03452153409 | E34: -0.02064664892 | F34: -0.02335164987 | G34: -0.3565644267 | H34: -0.01402721113 | I34: -0.01963162708 | K34: PROMEDIO | L34: =+AVERAGE(L5:L32) -> 0.004302608948 | M34: =+AVERAGE(M5:M32) -> 0.003589295491 | N34: 0.02565572871 | O34: -0.005268399764 | P34: -0.009458333776 | Q34: -0.08051945817 | R34: -0.002678582788 | S34: -0.007152421858 | U34: PROMEDIO | V34: =+AVERAGE(V5:V32) -> -0.03965125323 | W34: =+AVERAGE(W5:W32) -> 0.07209987778 | X34: -0.05567171991 | Y34: -0.003543137512 | Z34: 0.005828393443 | AA34: 0.3328186844 | AB34: -0.004931509763 | AC34: 0.008294847289 | AE34: PROMEDIO | AF34: =+AVERAGE(AF5:AF32) -> 0.0743302535 | AG34: =+AVERAGE(AG5:AG32) -> 0.03306274221 | AH34: 0.05515650878 | AI34: -0.02239569366 | AJ34: 0.01433587022 | AK34: -0.3848556031 | AL34: 0.007373394991 | AM34: 0.01314536774 | AO34: PROMEDIO | AP34: =+AVERAGE(AP5:AP32) -> 0.04313322952 | AQ34: =+AVERAGE(AQ5:AQ32) -> -0.06277917172 | AR34: 0.03231209245 | AS34: 0.01771156383 | AT34: 0.01361981876 | AU34: -0.09428817211 | AV34: 0.01826498302 | AW34: 0.01788511987 | AY34: PROMEDIO | AZ34: =+AVERAGE(AZ5:AZ32) -> 0.1135778878 | BA34: =+AVERAGE(BA5:BA32) -> 0.07511583704 | BB34: 0.09646533252 | BC34: 0.03594910814 | BD34: 0.02610326402 | BE34: -0.1068247475 | BF34: 0.06812577859 | BG34: 0.0164023313 | BI34: PROMEDIO | BJ34: =+AVERAGE(BJ5:BJ32) -> -0.1163904275 | BK34: =+AVERAGE(BK5:BK32) -> 0.02201608275 | BL34: -0.07796001066 | BM34: -0.01932728644 | BN34: 0.04319369963 | BO34: 1.069233311 | BP34: -0.03060362484 | BQ34: 0.01240777027 | BS34: PROMEDIO | BT34: =+AVERAGE(BT5:BT32) -> -0.08320788815 | BU34: =+AVERAGE(BU5:BU32) -> -0.09323459064 | BV34: -0.07839618793 | BW34: -0.02898752247 | BX34: 0.0001221917105 | BY34: 0.05774690035 | BZ34: -0.05109249541 | CA34: 0.006906656116 | CC34: PROMEDIO | CD34: =+AVERAGE(CD5:CD32) -> 0.2722599466 | CE34: =+AVERAGE(CE5:CE32) -> 0.04474565854 | CF34: 0.1935364457 | CG34: -0.03576202316 | CH34: -0.01834785235 | CI34: -0.5441306126 | CJ34: 0.07138695187 | CK34: 0.005036984644 | CM34: PROMEDIO | CN34: =+AVERAGE(CN5:CN32) -> -0.05683288439 | CO34: =+AVERAGE(CO5:CO32) -> -0.1939189771 | CP34: -0.06711068766 | CQ34: 0.01319484814 | CR34: 0.005599859016 | CS34: 0.4734649836 | CT34: -0.02880133793 | CU34: 0.005277922606 | CW34: PROMEDIO | CX34: =+AVERAGE(CX5:CX32) -> 0.01969647915 | CY34: =+AVERAGE(CY5:CY32) -> 0.1490344087 | CZ34: 0.03262058015 | DA34: -0.01716777246 | DB34: -0.006619236687 | DC34: -0.4542259136 | DD34: -0.001204588065 | DE34: 0.003131185221 | DG34: PROMEDIO | DH34: =+AVERAGE(DH5:DH32) -> 0.022993139 | DI34: =+AVERAGE(DI5:DI32) -> 0.00124330659 | DJ34: 0.01064118771 | DK34: -0.01786726514 | DL34: 0.001990949872 | DM34: 0.4095645501 | DN34: 0.01068381522 | DO34: 0.008317833307 | DQ34: PROMEDIO | DR34: =+AVERAGE(DR5:DR32) -> 0.06389621012 | DS34: =+AVERAGE(DS5:DS32) -> 0.03361037364 | DT34: 0.04976941508 | DU34: 0.02994707836 | DV34: 0.02947569691 | DW34: -1.048576447 | DX34: 0.02092633534 | DY34: 0.06487693976 | EA34: PROMEDIO | EB34: =+AVERAGE(EB5:EB32) -> 0.00519167217 | EC34: =+AVERAGE(EC5:EC32) -> -0.04790784937 | ED34: -0.01189045759 | EE34: 0.03132966187 | EF34: -0.01216917537 | EG34: 0.5976383114 | EH34: 0.009219306582 | EI34: 0.03499985451 | EK34: PROMEDIO | EL34: =+AVERAGE(EL5:EL32) -> -0.02859417536 | EM34: =+AVERAGE(EM5:EM32) -> 0.1073725432 | EN34: 0.004816118332 | EO34: -0.003901424555 | EP34: 0.2277923351 | EQ34: -24.52518737 | ER34: 0.03835034727 | ES34: 0.008000264442
B36: En Dic 2022 se actualiza la tabla de Variación del CU Octubre respecto de Septiembre ya que algunas empresas republicaron tarifas de Octubre de 2022. | L36: En Dic 2022 se actualiza la tabla de Variación del CU Noviembre respecto de Octubre ya que algunas empresas republicaron tarifas de Octubre de 2022. | BT36: Se realiza un ajuste en CELSIA COLOMBIA mercado Tolima por cuando los % tenían un error de cálculo.

Sheet Variaciones Tarifas
A1: REGRESAR | W1: 0.0001 | X1: 9e-05 | AD1: 0.0001 | AE1: 9e-05 | AK1: 0.0001 | AL1: 9e-05 | AR1: 0.0001 | AS1: 9e-05 | AY1: 0.0001 | AZ1: 9e-05 | BF1: 0.0001 | BG1: 9e-05 | BM1: 0.0001 | BN1: 9e-05
A2: Nivel de Tensión 1 Propiedad de Activos del OR | H2: Nivel de Tensión 1 Propiedad de Activos del OR | O2: Nivel de Tensión 1 Propiedad de Activos del OR | V2: Nivel de Tensión 1 Propiedad de Activos del OR | AC2: Nivel de Tensión 1 Propiedad de Activos del OR | AJ2: Nivel de Tensión 1 Propiedad de Activos del OR | AQ2: Nivel de Tensión 1 Propiedad de Activos del OR | AX2: Nivel de Tensión 1 Propiedad de Activos del OR | BE2: Nivel de Tensión 1 Propiedad de Activos del OR | BL2: Nivel de Tensión 1 Propiedad de Activos del OR | BS2: Nivel de Tensión 1 Propiedad de Activos del OR | BZ2: Nivel de Tensión 1 Propiedad de Activos del OR | CG2: Nivel de Tensión 1 Propiedad de Activos del OR | CN2: Nivel de Tensión 1 Propiedad de Activos del OR | CU2: Nivel de Tensión 1 Propiedad de Activos del OR
A3: Variación Tarifas por Estrato Octubre respecto de Septiembre | H3: Variación Tarifas por Estrato Noviembre respecto de Octubre | O3: Variación Tarifas por Estrato Diciembre respecto de Noviembre | V3: Variación Tarifas por Estrato Enero 2023 respecto de Diciembre 2022 | AC3: Variación Tarifas por Estrato Febrero 2023 respecto de Enero 2023 | AJ3: Variación Tarifas por Estrato Marzo 2023 respecto de Febrero 2023 | AQ3: Variación Tarifas por Estrato Abril 2023 respecto de Marzo 2023 | AX3: Variación Tarifas por Estrato Mayo 2023 respecto de Abril 2023 | BE3: Variación Tarifas por Estrato Junio 2023 respecto de Mayo 2023 | BL3: Variación Tarifas por Estrato Julio 2023 respecto de Junio 2023 | BS3: Variación Tarifas por Estrato Agosto 2023 respecto de Julio 2023 | BZ3: Variación Tarifas por Estrato Septiembre 2023 respecto de Agosto 2023 | CG3: Variación Tarifas por Estrato Octubre 2023 respecto de Septiembre 2023 | CN3: Variación Tarifas por Estrato Noviembre 2023 respecto de Octubre 2023 | CU3: Variación Tarifas por Estrato Diciembre 2023 respecto de Noviembre 2023
A4: EMPRESA | B4: ESTRATO 1 | C4: ESTRATO 2 | D4: ESTRATO 3 | E4: ESTRATO 4 | F4: ESTRATO 5 y 6, Ind y Com | H4: EMPRESA | I4: ESTRATO 1 | J4: ESTRATO 2 | K4: ESTRATO 3 | L4: ESTRATO 4 | M4: ESTRATO 5 y 6, Ind y Com | O4: EMPRESA | P4: ESTRATO 1 | Q4: ESTRATO 2 | R4: ESTRATO 3 | S4: ESTRATO 4 | T4: ESTRATO 5 y 6, Ind y Com | V4: EMPRESA | W4: ESTRATO 1 | X4: ESTRATO 2 | Y4: ESTRATO 3 | Z4: ESTRATO 4 | AA4: ESTRATO 5 y 6, Ind y Com | AC4: EMPRESA | AD4: ESTRATO 1 | AE4: ESTRATO 2 | AF4: ESTRATO 3 | AG4: ESTRATO 4 | AH4: ESTRATO 5 y 6, Ind y Com | AJ4: EMPRESA | AK4: ESTRATO 1 | AL4: ESTRATO 2 | AM4: ESTRATO 3 | AN4: ESTRATO 4 | AO4: ESTRATO 5 y 6, Ind y Com | AQ4: EMPRESA | AR4: ESTRATO 1 | AS4: ESTRATO 2 | AT4: ESTRATO 3 | AU4: ESTRATO 4 | AV4: ESTRATO 5 y 6, Ind y Com | AX4: EMPRESA | AY4: ESTRATO 1 | AZ4: ESTRATO 2 | BA4: ESTRATO 3 | BB4: ESTRATO 4 | BC4: ESTRATO 5 y 6, Ind y Com | BE4: EMPRESA | BF4: ESTRATO 1 | BG4: ESTRATO 2 | BH4: ESTRATO 3 | BI4: ESTRATO 4 | BJ4: ESTRATO 5 y 6, Ind y Com | BL4: EMPRESA | BM4: ESTRATO 1 | BN4: ESTRATO 2 | BO4: ESTRATO 3 | BP4: ESTRATO 4 | BQ4: ESTRATO 5 y 6, Ind y Com | BS4: EMPRESA | BT4: ESTRATO 1 | BU4: ESTRATO 2 | BV4: ESTRATO 3 | BW4: ESTRATO 4 | BX4: ESTRATO 5 y 6, Ind y Com | BZ4: EMPRESA | CA4: ESTRATO 1 | CB4: ESTRATO 2 | CC4: ESTRATO 3 | CD4: ESTRATO 4 | CE4: ESTRATO 5 y 6, Ind y Com | CG4: EMPRESA | CH4: ESTRATO 1 | CI4: ESTRATO 2 | CJ4: ESTRATO 3 | CK4: ESTRATO 4 | CL4: ESTRATO 5 y 6, Ind y Com | CN4: EMPRESA | CO4: ESTRATO 1 | CP4: ESTRATO 2 | CQ4: ESTRATO 3 | CR4: ESTRATO 4 | CS4: ESTRATO 5 y 6, Ind y Com | CU4: EMPRESA | CV4: ESTRATO 1 | CW4: ESTRATO 2 | CX4: ESTRATO 3 | CY4: ESTRATO 4 | CZ4: ESTRATO 5 y 6, Ind y Com
A5: EEP PEREIRA | B5: -0.04098434272 | C5: -0.04100205968 | D5: -0.041010397 | E5: -0.04100205968 | F5: -0.04099432187 | H5: EEP PEREIRA | I5: 0 | J5: 0 | K5: 0 | L5: 0 | M5: 0 | O5: EEP PEREIRA | P5: 0.007679340701 | Q5: 0.00769192348 | R5: 0.007697844897 | S5: 0.00769192348 | T5: 0.00769192348 | V5: EEP PEREIRA | W5: 0.01260842627 | X5: 0.01261462206 | Y5: 0.01261024856 | Z5: 0.01260223048 | AA5: 0.01260842627 | AC5: EEP PEREIRA | AD5: 0.01777465047 | AE5: 0.01776842311 | AF5: 0.0177656205 | AG5: 0.01778087791 | AH5: 0.01777465047 | AJ5: EEP PEREIRA | AK5: 0.01661055669 | AL5: 0.01661055669 | AM5: 0.0166124565 | AN5: 0.01660526632 | AO5: 0.01660526632 | AQ5: EEP PEREIRA | AR5: 0.01050602296 | AS5: 0.01050602296 | AT5: 0.01050998755 | AU5: 0.0105099806 | AV5: 0.0105099806 | AX5: EEP PEREIRA | AY5: 0.007814859117 | AZ5: 0.007820711191 | BA5: 0.007824755699 | BB5: 0.007822008717 | BC5: 0.007816156636 | BE5: EEP PEREIRA | BF5: 0.004373893099 | BG5: 0.004368002973 | BH5: 0.004365258498 | BI5: 0.004368002973 | BJ5: 0.004373835032 | BL5: EEP PEREIRA | BM5: 0.002999972538 | BN5: 0.00300008834 | BO5: 0.002999979513 | BP5: 0.002999972712 | BQ5: 0.002999972712 | BS5: EEP PEREIRA | BT5: 0.005002387785 | BU5: 0.005008093971 | BV5: 0.005004134227 | BW5: 0.00500820983 | BX5: 0.00500820983 | BZ5: EEP PEREIRA | CA5: 0.006998938946 | CB5: 0.006993278121 | CC5: 0.006995978462 | CD5: 0.006991901627 | CE5: 0.006991901627 | CG5: EEP PEREIRA | CH5: 0.1059926994 | CI5: 0.1060096601 | CJ5: 0.1059991108 | CK5: 0.1059997808 | CL5: 0.1059997808 | CN5: EEP PEREIRA | CO5: 0.002497618251 | CP5: 0.002492430016 | CQ5: -0.08290419125 | CR5: -0.0829101995 | CS5: -0.0829101995 | CU5: EEP PEREIRA | CV5: 0.004700261982 | CW5: 0.004684803156 | CX5: 0.02267232153 | CY5: 0.02267443819 | CZ5: 0.02267443819
A6: ESSA | B6: -0.007370047766 | C6: -0.0073763081 | D6: -0.007398167682 | E6: -0.007389396067 | F6: -0.007391554241 | H6: ESSA | I6: 0 | J6: 0 | K6: 0 | L6: 0 | M6: 8.422322189e-08 | O6: ESSA | P6: 0.007691792371 | Q6: 0.007691792855 | R6: 0 | S6: 0 | T6: 0 | V6: ESSA | W6: 0.012614433 | X6: 0.01261468348 | Y6: 0 | Z6: 0 | AA6: -8.422321479e-08 | AC6: ESSA | AD6: 0.01777327767 | AE6: 0.01777333603 | AF6: 0 | AG6: 0 | AH6: 8.422322189e-08 | AJ6: ESSA | AK6: 0.01660585555 | AL6: 0.01660554869 | AM6: 0.0165999495 | AN6: 0.01660001663 | AO6: 0.01659999557 | AQ6: ESSA | AR6: 0.01050624378 | AS6: 0.01050624441 | AT6: 0.01049995322 | AU6: 0.01049998192 | AV6: 0.01049994071 | AX6: ESSA | AY6: 0.007816624898 | AZ6: 0.007816684319 | BA6: 0.007800009781 | BB6: 0.007795110119 | BC6: 0.007795172088 | BE6: ESSA | BF6: 0.004367521158 | BG6: 0.004367345649 | BH6: 0.004400071265 | BI6: 0.004404788356 | BJ6: 0.004404808694 | BL6: ESSA | BM6: 0.003007069891 | BN6: 0.00298977066 | BO6: 0.002999048915 | BP6: 0.002995561573 | BQ6: 0.002995541263 | BS6: ESSA | BT6: 0.004994337815 | BU6: 0.005017654711 | BV6: 0.005001995098 | BW6: 0.005002725456 | BX6: 0.005002725456 | BZ6: ESSA | CA6: 0.006991996764 | CB6: 0.006980399408 | CC6: 0.007004806942 | CD6: 0.007002699836 | CE6: 0.007004708643 | CG6: ESSA | CH6: 0.07393911571 | CI6: 0.07393380159 | CJ6: 0.1199994368 | CK6: 0.1200014363 | CL6: 0.1199992021 | CN6: ESSA | CO6: 0.005984504408 | CP6: 0.006005941821 | CQ6: 0.005997058047 | CR6: 0.005995191023 | CS6: 0.005995191023 | CU6: ESSA | CV6: 0.004700695809 | CW6: 0.00469533441 | CX6: 0.004686562687 | CY6: 0.004684711481 | CZ6: 0.004690022946
A7: CENS | B7: -0.01140612129 | C7: -0.01140626584 | D7: -0.01139392125 | E7: -0.01139024639 | F7: -0.0114007551 | H7: CENS | I7: -0.01019165438 | J7: -0.01017896518 | K7: -0.01019249118 | L7: -0.01018267015 | M7: -0.01018054647 | O7: CENS | P7: 0.007706255666 | Q7: 0.007719207357 | R7: 0.007711610258 | S7: 0.007699310704 | T7: 0.007694975506 | V7: CENS | W7: 0.01259559154 | X7: 0.01259542966 | Y7: 0.01260249013 | Z7: 0.01260938024 | AA7: 0.01261588763 | AC7: CENS | AD7: 0.01776988005 | AE7: 0.01776965451 | AF7: 0.01778377568 | AG7: 0.017779987 | AH7: 0.01777994923 | AJ7: CENS | AK7: 0.01661220927 | AL7: 0.0165996558 | AM7: 0.01660292298 | AN7: 0.01660530468 | AO7: 0.01660318289 | AQ7: CENS | AR7: 0.01049412362 | AS7: 0.01051240072 | AT7: 0.01050766822 | AU7: 0.01050751417 | AV7: 0.01050135501 | AX7: CENS | AY7: 0.007828765668 | AZ7: 0.007800033991 | BA7: 0.007815224874 | BB7: 0.00781441615 | BC7: 0.007820579242 | BE7: CENS | BF7: 0.004367459222 | BG7: 0.0043776829 | BH7: 0.004367399457 | BI7: 0.004367513672 | BJ7: 0.004367453105 | BL7: CENS | BM7: 0.002998922403 | BN7: 0.002999042695 | BO7: 0.002999014591 | BP7: 0.002998972001 | BQ7: 0.002999032337 | BS7: CENS | BT7: 0.005008370202 | BU7: 0.005008250628 | BV7: 0.005008226974 | BW7: 0.005008156415 | BX7: 0.005008156315 | BZ7: CENS | CA7: 0.006991172396 | CB7: 0.006991411184 | CC7: 0.006991392074 | CD7: 0.00699153322 | CE7: 0.00699143352 | CG7: CENS | CH7: 0.09800003426 | CI7: 0.09800008176 | CJ7: 0.09799999916 | CK7: 0.09799998671 | CL7: 0.09800005378 | CN7: CENS | CO7: 0.01400019853 | CP7: 0.01399987345 | CQ7: 0.01399995652 | CR7: 0.01399998768 | CS7: 0.01399998793 | CU7: CENS | CV7: 0.0129693376 | CW7: 0.01296949885 | CX7: 0.01717602638 | CY7: 0.01717596867 | CZ7: 0.01717600449
A8: RUITOQUE | E8: 0 | F8: 0 | H8: RUITOQUE | L8: 1.679499767e-06 | M8: 1.029240773e-05 | O8: RUITOQUE | S8: 0.01017865584 | T8: 0.01017434944 | V8: RUITOQUE | Z8: 0.01069163086 | AA8: 0.01069593946 | AC8: RUITOQUE | AG8: 0.01561471883 | AH8: 0.01561471883 | AJ8: RUITOQUE | AN8: 0.02076947995 | AO8: 0.02077078817 | AQ8: RUITOQUE | AU8: 0.01960233861 | AV8: 0.01960103189 | AX8: RUITOQUE | BB8: 0.01082181122 | BC8: 0.01082380639 | BE8: RUITOQUE | BI8: 0.007366856547 | BJ8: 0.007364848461 | BL8: RUITOQUE | BP8: 0.005998985435 | BQ8: 0.005998946365 | BS8: RUITOQUE | BW8: 0.008012847294 | BX8: 0.008009010807 | BZ8: RUITOQUE | CD8: 0.01073049144 | CE8: 0.01073442632 | CG8: RUITOQUE | CK8: 0.01999734351 | CL8: 0.01999731426 | CN8: RUITOQUE | CR8: 0.01999734351 | CS8: 0.01999731426 | CU8: RUITOQUE | CY8: 0.005993931807 | CZ8: 0.005993931807
A9: EPM | B9: -0.02180402336 | C9: -0.02180402336 | D9: -0.0218037965 | E9: -0.02180457987 | F9: -0.02179815796 | H9: EPM | I9: 0 | J9: 0 | K9: 0 | L9: 0 | M9: 0 | O9: EPM | P9: 0.00769536951 | Q9: 0.00769536951 | R9: 0.007696407298 | S9: 0.007701121859 | T9: 0.007705545995 | V9: EPM | W9: 0.01260697828 | X9: 0.01261356155 | Y9: 0.01259974801 | Z9: 0.01260048657 | AA9: 0.01259379235 | AC9: EPM | AD9: 0.01778110067 | AE9: 0.01776148125 | AF9: 0.01780419989 | AG9: 0.01779721878 | AH9: 0.01780157124 | AJ9: EPM | AK9: 0.01660811242 | AL9: 0.0166083246 | AM9: 0.01660226998 | AN9: 0.0166008108 | AO9: 0.01660287797 | AQ9: EPM | AR9: 0.01049324537 | AS9: 0.01050594415 | AT9: 0.01049646654 | AU9: 0.0104994826 | AV9: 0.01049520985 | AX9: EPM | AY9: 0.007803755752 | AZ9: 0.007809973884 | BA9: 0.007801595581 | BB9: 0.007805280116 | BC9: 0.007803182466 | BE9: EPM | BF9: 0.004380687953 | BG9: 0.004368321035 | BH9: -0.005991777707 | BI9: -0.005997596005 | BJ9: -0.005997596005 | BL9: EPM | BM9: 0.003010105354 | BN9: 0.002997837625 | BO9: -0.006013229104 | BP9: -0.006008851212 | BQ9: -0.006004695714 | BS9: EPM | BT9: 0.004991578625 | BU9: 0.005022294086 | BV9: -0.005990586222 | BW9: -0.00599500834 | BX9: -0.00599916388 | BZ9: EPM | CA9: 0.007008349077 | CB9: 0.006996075372 | CC9: 0.006991553728 | CD9: 0.007002712763 | CE9: 0.007002712763 | CG9: EPM | CH9: 0.02009198741 | CI9: 0.02009198741 | CJ9: 0.05600106135 | CK9: 0.05599548929 | CL9: 0.05599757758 | CN9: EPM | CO9: 0.04998220218 | CP9: 0.05 | CQ9: 0.05000209389 | CR9: 0.05000059327 | CS9: 0.05000247194 | CU9: EPM | CV9: 0.004689662966 | CW9: 0.004678283273 | CX9: 0.00400164852 | CY9: 0.004000316409 | CZ9: 0.004002184722
A10: EDEQ | B10: -0.02716925205 | C10: -0.02717579175 | D10: -0.02717879173 | E10: -0.02717579175 | F10: -0.02718004172 | H10: EDEQ | I10: 0 | J10: 0 | K10: 0 | L10: 0 | M10: 0 | O10: EDEQ | P10: 0.00769143268 | Q10: 0.007689876409 | R10: 0.00769161283 | S10: 0.00769163685 | T10: 0.007691659246 | V10: EDEQ | W10: 0.01261471011 | X10: 0.01261634392 | Y10: 0.01261463031 | Z10: 0.01261457487 | AA10: 0.01261448472 | AC10: EDEQ | AD10: 0.01777362393 | AE10: 0.01777342604 | AF10: 0.0177734096 | AG10: 0.01777355875 | AH10: 0.0177736259 | AJ10: EDEQ | AK10: 0.01660557744 | AL10: 0.01660558177 | AM10: 0.01660565796 | AN10: 0.01660557961 | AO10: 0.01660557924 | AQ10: EDEQ | AR10: 0.01050605018 | AS10: 0.0105063094 | AT10: 0.01050612722 | AU10: 0.01050617979 | AV10: 0.01050615819 | AX10: EDEQ | AY10: 0.007816654968 | AZ10: 0.007816591503 | BA10: 0.007816636885 | BB10: 0.007816591503 | BC10: 0.007816549193 | BE10: EDEQ | BF10: 0.00436740648 | BG10: 0.004367482322 | BH10: 0.004367503196 | BI10: 0.004367469728 | BJ10: 0.004367522388 | BL10: EDEQ | BM10: 0.003016723222 | BN10: 0.003016716914 | BO10: 0.003016713991 | BP10: 0.003016716952 | BQ10: 0.003016702291 | BS10: EDEQ | BT10: 0.005008103361 | BU10: 0.0050082221 | BV10: 0.005008219217 | BW10: 0.005008234664 | BX10: 0.005008218016 | BZ10: EDEQ | CA10: 0.006991545322 | CB10: 0.006991438714 | CC10: 0.006991447598 | CD10: 0.006991438714 | CE10: 0.006991451299 | CG10: EDEQ | CH10: 0.1099999929 | CI10: 0.1099999106 | CJ10: 0.1100000333 | CK10: 0.1100000341 | CL10: 0.1099999815 | CN10: EDEQ | CO10: 0.03899996578 | CP10: 0.03900019053 | CQ10: 0.03900002933 | CR10: 0.03899996361 | CS10: 0.03900005852 | CU10: EDEQ | CV10: 0.006000006962 | CW10: 0.005999898884 | CX10: 0.005999911788 | CY10: 0.006000006641 | CZ10: 0.006000006427
A11: CHEC | B11: 1.637174307e-05 | C11: 1.644141006e-05 | D11: 1.415614558e-05 | E11: 1.091336467e-05 | F11: 3.964228666e-06 | H11: CHEC | I11: -0.01076999227 | J11: -0.01077006119 | K11: -0.01076987602 | L11: -0.01076997425 | M11: -0.01077006702 | O11: CHEC | P11: 0.007692096419 | Q11: 0.007692025995 | R11: 0.007691825144 | S11: 0.007691892086 | T11: 0.007692033885 | V11: CHEC | W11: 0.01261385861 | X11: 0.01261399927 | Y11: 0.01261413713 | Z11: 0.01261416994 | AA11: 0.01261412198 | AC11: CHEC | AD11: 0.01777408311 | AE11: 0.01777387484 | AF11: 0.01777419316 | AG11: 0.01777406183 | AH11: 0.01777401481 | AJ11: CHEC | AK11: 0.01660587419 | AL11: 0.01660607987 | AM11: 0.01660580398 | AN11: 0.016602681 | AO11: 0.01660597221 | AQ11: CHEC | AR11: 0.01050609417 | AS11: 0.01050602677 | AT11: 0.01050604293 | AU11: 0.01050919662 | AV11: 0.0105059698 | AX11: CHEC | AY11: 0.007816873145 | AZ11: 0.007816873145 | BA11: 0.007816988881 | BB11: 0.007817028116 | BC11: 0.007817027771 | BE11: CHEC | BF11: 0.004367062491 | BG11: 0.004367127989 | BH11: 0.004366897377 | BI11: 0.004366943769 | BJ11: 0.004366877807 | BL11: CHEC | BM11: 0.00299914408 | BN11: 0.002999013458 | BO11: 0.002999069031 | BP11: 0.002998961012 | BQ11: 0.002999004734 | BS11: CHEC | BT11: 0.005008008588 | BU11: 0.005007943895 | BV11: 0.005007928439 | BW11: 0.005007959433 | BX11: 0.005007937561 | BZ11: CHEC | CA11: 0.006991154393 | CB11: 0.006991090603 | CC11: 0.006991051924 | CD11: 0.006991044442 | CE11: 0.006991087751 | CG11: CHEC | CH11: 0.1940145662 | CI11: 0.1940150533 | CJ11: 0.1989998805 | CK11: 0.1989999701 | CL11: 0.1989999185 | CN11: CHEC | CO11: 0.006000146352 | CP11: 0.005999983643 | CQ11: 0.006000035195 | CR11: 0.005999984289 | CS11: 0.005999984289 | CU11: CHEC | CV11: 0.04990026419 | CW11: 0.04990026152 | CX11: 0.04990020362 | CY11: 0.04990026686 | CZ11: 0.04990026686
A12: CEO | B12: -0.01035986102 | C12: -0.01036002647 | D12: -0.01037331494 | E12: -0.01037799818 | F12: -0.01037610259 | H12: CEO | I12: 0.007175874261 | J12: 0.007176042646 | K12: 0.008202284955 | L12: 0.00820225763 | M12: 0.008202296341 | O12: CEO | P12: 0.007691618178 | Q12: 0.007691728841 | R12: -0.01013942677 | S12: -0.01013934574 | T12: -0.01013938375 | V12: CEO | W12: 0.01261453344 | X12: 0.01261458696 | Y12: 0.00875158278 | Z12: 0.008751479623 | AA12: 0.008751479623 | AC12: CEO | AD12: 0.01777361209 | AE12: 0.01777344652 | AF12: 0.03194216102 | AG12: 0.03194226432 | AH12: 0.03194226432 | AJ12: CEO | AK12: 0.03896120502 | AL12: 0.03896120502 | AM12: 0.08997316825 | AN12: 0.08997313064 | AO12: 0.08997314927 | AQ12: CEO | AR12: 0.01050602234 | AS12: 0.01050607362 | AT12: -0.0500689869 | AU12: -0.05006902823 | AV12: -0.05006901028 | AX12: CEO | AY12: 0.007816561743 | AZ12: 0.00781666284 | BA12: -0.06733209337 | BB12: -0.06733207603 | BC12: -0.06733214559 | BE12: CEO | BF12: 0.004367655482 | BG12: 0.004367453408 | BH12: 0.1150886562 | BI12: 0.1150887183 | BJ12: 0.1150887806 | BL12: CEO | BM12: 0.00299879201 | BN12: 0.002998842295 | BO12: 0.01291565576 | BP12: 0.01291555743 | BQ12: 0.0129155226 | BS12: CEO | BT12: 0.005008202465 | BU12: 0.00500825245 | BV12: -0.01215822 | BW12: -0.01215817838 | BX12: -0.01215816151 | BZ12: CEO | CA12: 0.006991563621 | CB12: 0.006991414067 | CC12: 3.954725231e-05 | CD12: 3.952894364e-05 | CE12: 3.956352715e-05 | CG12: CEO | CH12: 0.005317837995 | CI12: 0.005318134862 | CJ12: 0.01175764108 | CK12: 0.01175768408 | CL12: 0.01175764909 | CN12: CEO | CO12: 0.002498204339 | CP12: 0.002497909075 | CQ12: 0.0003996677197 | CR12: 0.0003997039033 | CS12: 0.0003997039033 | CU12: CEO | CV12: 0.004690163961 | CW12: 0.00469031144 | CX12: 0.01529200565 | CY12: 0.01529194453 | CZ12: 0.01529194453
A13: EMCALI | B13: -0.03656965578 | C13: -0.03658685324 | D13: -0.03658556949 | E13: -0.03658553287 | F13: -0.03658553287 | H13: EMCALI | I13: 0.006320977204 | J13: 0.006321039316 | K13: 0.006321320675 | L13: 0.006321282426 | M13: 0.006321282426 | O13: EMCALI | P13: 0.007699900742 | Q13: 0.007700023113 | R13: 0.01779452821 | S13: 0.01779464907 | T13: 0.01779458486 | V13: EMCALI | W13: 0.01260022736 | X13: 0.01259998466 | Y13: 0.005709401654 | Z13: 0.005709326756 | AA13: 0.005709390203 | AC13: EMCALI | AD13: 0.01779993316 | AE13: 0.01779999608 | AF13: -0.0164045704 | AG13: -0.01640459182 | AH13: -0.01640459182 | AJ13: EMCALI | AK13: 0.01660010505 | AL13: 0.01660016569 | AM13: 0.09441228457 | AN13: 0.09441234247 | AO13: 0.09441227869 | AQ13: EMCALI | AR13: 0.01049981801 | AS13: 0.8327344488 | AT13: -0.07500568332 | AU13: -0.07500568452 | AV13: -0.07500563062 | AX13: EMCALI | AY13: 0.007800179215 | AZ13: 0.00780000649 | BA13: -0.04443410452 | BB13: -0.04443405676 | BC13: -0.04443411976 | BE13: EMCALI | BF13: 0.00439978867 | BG13: 0.004399845357 | BH13: 0.1014439832 | BI13: 0.1014439706 | BJ13: 0.1014439773 | BL13: EMCALI | BM13: 0.00300001665 | BN13: 0.003000072919 | BO13: -0.06380768489 | BP13: -0.06380766361 | BQ13: -0.06380768738 | BS13: EMCALI | BT13: 0.005000171624 | BU13: 0.004999945981 | BV13: -0.01515156074 | BW13: -0.01515158877 | BX13: -0.01515154744 | BZ13: EMCALI | CA13: 0.006999902017 | CB13: 0.007000126762 | CC13: 0.02220295877 | CD13: 0.02220297167 | CE13: 0.02220295099 | CG13: EMCALI | CH13: 0.005299892634 | CI13: 0.005299892045 | CJ13: 0.0818445294 | CK13: 0.08184443743 | CL13: 0.08184450614 | CN13: EMCALI | CO13: 0.00250019496 | CP13: 0.002499918144 | CQ13: 0.007198355625 | CR13: 0.00719840372 | CS13: 0.007198384152 | CU13: EMCALI | CV13: 0.004699931782 | CW13: 0.0047000429 | CX13: 0.008408734002 | CY13: 0.008408699026 | CZ13: 0.008408699189
A14: CEDENAR | B14: -0.01835760617 | C14: -0.01835760617 | D14: -0.0183482259 | E14: -0.01834896211 | F14: -0.018352946 | H14: CEDENAR | I14: 0 | J14: 0 | K14: 0 | L14: 0 | M14: 0 | O14: CEDENAR | P14: 0.007698541329 | Q14: 0.007679840419 | R14: 0.01069329681 | S14: 0.01070435937 | T14: 0.01070433703 | V14: CEDENAR | W14: 0.01261946738 | X14: 0.01261970158 | Y14: 0.01260583803 | Z14: 0.01259770343 | AA14: 0.01259354839 | AC14: CEDENAR | AD14: 0.01774641864 | AE14: 0.01776507099 | AF14: 0.01329802544 | AG14: 0.01329728672 | AH14: 0.01330343035 | AJ14: CEDENAR | AK14: 0.01662665066 | AL14: 0.01661464586 | AM14: 0.01660322691 | AN14: 0.01659966438 | AO14: 0.01659959759 | AQ14: CEDENAR | AR14: 0.01050953534 | AS14: 0.01050965944 | AT14: 0.0134959554 | AU14: 0.01350228007 | AV14: 0.01349826818 | AX14: CEDENAR | AY14: 0.01504528192 | AZ14: 0.01505130063 | BA14: 0.01080738321 | BB14: 0.0108032105 | BC14: 0.01079930478 | BE14: CEDENAR | BF14: 0.00435861275 | BG14: 0.004364417121 | BH14: 0.007396511517 | BI14: 0.007397208666 | BJ14: 0.007401101236 | BL14: CEDENAR | BM14: 0.002996294178 | BN14: 0.002990539941 | BO14: 0.006005683222 | BP14: 0.006004996137 | BQ14: 0.006001160537 | BS14: CEDENAR | BT14: 0.007114082455 | BU14: 0.007131265571 | BV14: 0.007993217876 | BW14: 0.007995241745 | BX14: 0.007997178588 | BZ14: CEDENAR | CA14: 0.01001120567 | CB14: 0.009999750357 | CC14: 0.01000109469 | CD14: 0.009999750357 | CE14: 0.01000165483 | CG14: CEDENAR | CH14: 0.03000050979 | CI14: 0.03000612152 | CJ14: 0.0300021603 | CK14: 0.02999488648 | CL14: 0.03000050979 | CN14: CEDENAR | CO14: 0.01000790816 | CP14: 0.009991491961 | CQ14: 0.009996663501 | CR14: 0.01000250881 | CS14: 0.009998818321 | CU14: CEDENAR | CV14: 0.00599384416 | CW14: 0.006004708728 | CX14: 0.005997077695 | CY14: 0.006004708728 | CZ14: 0.006002897951
A15: CELSIA COLOMBIA Valle | B15: -0.02388031674 | C15: -0.02388702489 | D15: -0.02387510126 | E15: -0.02387450548 | F15: -0.02387038216 | H15: CELSIA COLOMBIA Valle | I15: -0.001667307939 | J15: -0.001641699159 | K15: -0.001659776081 | L15: -0.001654503713 | M15: -0.001656637773 | O15: CELSIA COLOMBIA Valle | P15: 0.01069501542 | Q15: 0.01068859198 | R15: 0.01068556919 | S15: 0.01068859198 | T15: 0.01068859198 | V15: CELSIA COLOMBIA Valle | W15: 0.01560265658 | X15: 0.01560911125 | Y15: 0.01561214876 | Z15: 0.01560911125 | AA15: 0.01560911125 | AC15: CELSIA COLOMBIA Valle | AD15: 0.02077596996 | AE15: 0.02077596996 | AF15: 0.02077596996 | AG15: 0.02077596996 | AH15: 0.02077596996 | AJ15: CELSIA COLOMBIA Valle | AK15: 0.01961745954 | AL15: 0.01959293771 | AM15: 0.01960303494 | AN15: 0.01960519863 | AO15: 0.01960519863 | AQ15: CELSIA COLOMBIA Valle | AR15: 0.013498076 | AS15: 0.01351643859 | AT15: 0.01351064582 | AU15: 0.01350425089 | AV15: 0.01350425089 | AX15: CELSIA COLOMBIA Valle | AY15: 0.01082668407 | AZ15: 0.01082081583 | BA15: 0.01081797878 | BB15: 0.01082081583 | BC15: 0.01082081583 | BE15: CELSIA COLOMBIA Valle | BF15: 0.007365455719 | BG15: 0.007371411132 | BH15: 0.007374162812 | BI15: 0.007371411132 | BJ15: 0.007367498494 | BL15: CELSIA COLOMBIA Valle | BM15: 0.006000757377 | BN15: 0.005989140314 | BO15: 0.005990486504 | BP15: 0.006000792338 | BQ15: 0.006004699668 | BS15: CELSIA COLOMBIA Valle | BT15: 0.007991892283 | BU15: 0.008015196442 | BV15: 0.008012427438 | BW15: 0.008003521086 | BX15: 0.008003521086 | BZ15: CELSIA COLOMBIA Valle | CA15: 0.009996840079 | CB15: 0.009996782645 | CC15: 0.009989996485 | CD15: 0.009996782645 | CE15: 0.01000061283 | CG15: CELSIA COLOMBIA Valle | CH15: 0.02201427799 | CI15: 0.02200277594 | CJ15: 0.02200420275 | CK15: 0.02200277594 | CL15: 0.02199890024 | CN15: CELSIA COLOMBIA Valle | CO15: 0.02298722623 | CP15: 0.02299848606 | CQ15: 0.02299723666 | CR15: 0.02299848606 | CS15: 0.02299848606 | CU15: CELSIA COLOMBIA Valle | CV15: 0.0046791262 | CW15: 0.004700864001 | CX15: 0.002906046369 | CY15: 0.002905395112 | CZ15: 0.002905395112
A16: CETSA | B16: -0.03495963722 | C16: -0.03496629445 | D16: -0.03496238895 | E16: -0.03492814964 | F16: -0.0349603868 | H16: CETSA | I16: -0.006565353596 | J16: -0.006585437385 | K16: -0.006571415128 | L16: -0.00661192279 | M16: -0.006576608603 | O16: CETSA | P16: 0.01066791908 | Q16: 0.01070853462 | R16: 0.01068801111 | S16: 0.01069511541 | T16: 0.01069511541 | V16: CETSA | W16: 0.01560062402 | X16: 0.0156137975 | Y16: 0.0156203627 | Z16: 0.01561400481 | AA16: 0.01561400481 | AC16: CETSA | AD16: 0.0207863516 | AE16: 0.02075979815 | AF16: 0.02077854166 | AG16: 0.02077314264 | AH16: 0.02077314264 | AJ16: CETSA | AK16: 0.01959465949 | AL16: 0.01962039907 | AM16: 0.01960222992 | AN16: 0.01959478497 | AO16: 0.01959478497 | AQ16: CETSA | AR16: 0.01350290469 | AS16: 0.01349008968 | AT16: 0.01350652421 | AU16: 0.01351555042 | AV16: 0.01351555042 | AX16: CETSA | AY16: 0.01081332301 | AZ16: 0.01080705929 | BA16: 0.01081869213 | BB16: 0.01081945271 | BC16: 0.01081945271 | BE16: CETSA | BF16: 0.007387199608 | BG16: 0.007381069152 | BH16: 0.007370865608 | BI16: 0.007368717892 | BJ16: 0.007364630972 | BL16: CETSA | BM16: 0.005994218774 | BN16: 0.006012511867 | BO16: 0.005999599072 | BP16: 0.00600034079 | BQ16: 0.006004422176 | BS16: CETSA | BT16: 0.008015244087 | BU16: 0.008009097948 | BV16: 0.007999202926 | BW16: 0.008009194846 | BX16: 0.008009194846 | BZ16: CETSA | CA16: 0.009991898461 | CB16: 0.009961832977 | CC16: 0.009997317104 | CD16: 0.009985957248 | CE16: 0.00998795764 | CG16: CETSA | CH16: 0.0219845514 | CI16: 0.02200884156 | CJ16: 0.02199169544 | CK16: 0.02199669634 | CL16: 0.02199467216 | CN16: CETSA | CO16: 0.02299418605 | CP16: 0.023 | CQ16: 0.02299589603 | CR16: 0.023 | CS16: 0.023 | CU16: CETSA | CV16: 0.009661561195 | CW16: 0.009661506286 | CX16: 0.009654858855 | CY16: 0.009650139808 | CZ16: 0.009650139808
A17: EEP CARTAGO | B17: -0.03902454615 | C17: -0.03901815392 | D17: -0.03900069187 | E17: -0.03899308352 | F17: -0.03900365426 | H17: EEP CARTAGO | I17: 0 | J17: 0 | K17: 0 | L17: 0 | M17: 8.868982949e-06 | O17: EEP CARTAGO | P17: 0.007716100708 | Q17: 0.007689442316 | R17: 0.007700374063 | S17: 0.00768934002 | T17: 0.007684905568 | V17: EEP CARTAGO | W17: 0.01260767682 | X17: 0.01262112851 | Y17: 0.01261163314 | Z17: 0.01260776004 | AA17: 0.01260781553 | AC17: EEP CARTAGO | AD17: 0.01782862358 | AE17: 0.01778310865 | AF17: 0.01776155345 | AG17: 0.01777007118 | AH17: 0.01777449425 | AJ17: EEP CARTAGO | AK17: 0.01654764955 | AL17: 0.01659980017 | AM17: 0.01661140833 | AN17: 0.01660757061 | AO17: 0.01660757061 | AQ17: EEP CARTAGO | AR17: 0.01050472913 | AS17: 0.01050605152 | AT17: 0.01051000448 | AU17: 0.01051001197 | AV17: 0.01051001197 | AX17: EEP CARTAGO | AY17: 0.00781776545 | AZ17: 0.00781014833 | BA17: 0.007815806027 | BB17: 0.007823874539 | BC17: 0.00781763978 | BE17: EEP CARTAGO | BF17: 0.004372544774 | BG17: 0.004378758259 | BH17: 0.004374255812 | BI17: 0.004366207639 | BJ17: 0.004372421046 | BL17: EEP CARTAGO | BM17: 0.002999966739 | BN17: 0.002999905144 | BO17: 0.003000021435 | BP17: 0.003000028703 | BQ17: 0.003000028703 | BS17: EEP CARTAGO | BT17: 0.00501201034 | BU17: 0.0050182131 | BV17: 0.005006653493 | BW17: 0.005005931017 | BX17: 0.005012072058 | BZ17: EEP CARTAGO | CA17: 0.00698939843 | CB17: 0.006983428655 | CC17: 0.006993300073 | CD17: 0.006994023977 | CE17: 0.006987870826 | CG17: EEP CARTAGO | CH17: 0.1500080249 | CI17: 0.1500078156 | CJ17: 0.1499954918 | CK17: 0.1499976335 | CL17: 0.1499976335 | CN17: EEP CARTAGO | CO17: 0.03498311524 | CP17: 0.03499366821 | CQ17: 0.03499906884 | CR17: 0.03500459059 | CS17: 0.03500459059 | CU17: EEP CARTAGO | CV17: 0.006015804231 | CW17: 0.005995350544 | CX17: 0.006009788398 | CY17: 0.005995350544 | CZ17: 0.005995350544
A18: EBSA | B18: -0.01393746994 | C18: -0.01393088941 | D18: -0.0139355345 | E18: -0.01393101768 | F18: -0.01393736305 | H18: EBSA | I18: -0.01301383138 | J18: -0.01301395808 | K18: -0.01301379213 | L18: -0.01301382969 | M18: -0.01301382997 | O18: EBSA | P18: 0.01070010128 | Q18: 0.01070016577 | R18: 0.0107000419 | S18: 0.01070003398 | T18: 0.01070005618 | V18: EBSA | W18: 0.0156000356 | X18: 0.01559996735 | Y18: 0.01559993882 | Z18: 0.01559996938 | AA18: 0.01559996938 | AC18: EBSA | AD18: 0.02079993683 | AE18: 0.02079999836 | AF18: 0.02080010755 | AG18: 0.02080000103 | AH18: 0.02080004383 | AJ18: EBSA | AK18: 0.01960004968 | AL18: 0.01959985731 | AM18: 0.01959999165 | AN18: 0.01959998556 | AO18: 0.01959994281 | AQ18: EBSA | AR18: 0.01350017703 | AS18: 0.01350005366 | AT18: 0.01349992206 | AU18: 0.01350005366 | AV18: 0.01350007422 | AX18: EBSA | AY18: 0.01079984785 | AZ18: 0.01080015346 | BA18: 0.01080008248 | BB18: 0.01080003174 | BC18: 0.01080005181 | BE18: EBSA | BF18: 0.007299967096 | BG18: 0.007299785149 | BH18: 0.007299913582 | BI18: 0.007299906447 | BJ18: 0.007299886084 | BL18: EBSA | BM18: 0.006000018649 | BN18: 0.006000018649 | BO18: 0.006000018649 | BP18: 0.006000018649 | BQ18: 0.00600001853 | BS18: EBSA | BT18: 0.007999962924 | BU18: 0.008000081757 | BV18: 0.007999927973 | BW18: 0.007999962924 | BX18: 0.00799994296 | BZ18: EBSA | CA18: 0.01000001768 | CB18: 0.009999898615 | CC18: 0.0100000527 | CD18: 0.01000001768 | CE18: 0.01000001768 | CG18: EBSA | CH18: 0.02000015174 | CI18: 0.0200002101 | CJ18: 0.02000003158 | CK18: 0.02000009338 | CL18: 0.02000005447 | CN18: EBSA | CO18: 0.01999992562 | CP18: 0.01999986726 | CQ18: 0.02000011309 | CR18: 0.01999998398 | CS18: 0.02000002289 | CU18: EBSA | CV18: 0.00599993493 | CW18: 0.00599993493 | CX18: 0.005999934534 | CY18: 0.00599993493 | CZ18: 0.00599993493
A19: ELECTROHUILA | B19: 0 | C19: 0 | D19: 0 | E19: 0 | F19: 0 | H19: ELECTROHUILA | I19: 0 | J19: 0 | K19: 0 | L19: 0 | M19: 0 | O19: ELECTROHUILA | P19: 0.007691772995 | Q19: 0.007691837352 | R19: 0.007691643911 | S19: 0.007691710574 | T19: 0.007691773802 | V19: ELECTROHUILA | W19: 0.0125999352 | X19: 0.01259993678 | Y19: 0.0126000844 | Z19: 0.01259993678 | AA19: 0.01259993651 | AC19: ELECTROHUILA | AD19: 0.01779979866 | AE19: 0.01779992415 | AF19: 0.01779990809 | AG19: 0.01780004744 | AH19: 0.01780000598 | AJ19: ELECTROHUILA | AK19: 0.01660024107 | AL19: 0.0166001805 | AM19: 0.01660000829 | AN19: 0.01659993621 | AO19: 0.01660003749 | AQ19: ELECTROHUILA | AR19: 0.01049972995 | AS19: 0.01049990932 | AT19: 0.01049992437 | AU19: 0.01050002973 | AV19: 0.01049992959 | AX19: ELECTROHUILA | AY19: 0.007800122524 | AZ19: 0.007800003679 | BA19: 0.007800087569 | BB19: 0.007800003679 | BC19: 0.007800023487 | BE19: ELECTROHUILA | BF19: 0.004400027381 | BG19: 0.00440002153 | BH19: 0.004400018777 | BI19: 0.00440002153 | BJ19: 0.004400027381 | BL19: ELECTROHUILA | BM19: 0.003000002359 | BN19: 0.002999996552 | BO19: 0.003000007524 | BP19: 0.003000008202 | BQ19: 0.002999992651 | BS19: ELECTROHUILA | BT19: 0.00500006127 | BU19: 0.005000014867 | BV19: 0.005000047622 | BW19: 0.005000003194 | BX19: 0.004999974205 | BZ19: ELECTROHUILA | CA19: 0.006999936724 | CB19: 0.007000000693 | CC19: 0.006999955538 | CD19: 0.006999989136 | CE19: 0.007000033709 | CG19: ELECTROHUILA | CH19: 0.02999993774 | CI19: 0.03000010398 | CJ19: 0.03000005414 | CK19: 0.03000000103 | CL19: 0.03000003338 | CN19: ELECTROHUILA | CO19: 0.08999997493 | CP19: 0.08999984846 | CQ19: 0.08999993183 | CR19: 0.08999996991 | CS19: 0.08999996657 | CU19: ELECTROHUILA | CV19: 0.003216043005 | CW19: 0.003215838387 | CX19: 0.003215922497 | CY19: 0.003215940614 | CZ19: 0.003215872353
A20: ENELAR | B20: 2.655866144e-06 | C20: 1.620099862e-05 | D20: 6.717805309e-06 | E20: 2.788659452e-06 | F20: 2.766527234e-06 | H20: ENELAR | I20: 0 | J20: 0 | K20: 0 | L20: 0 | M20: 0 | O20: ENELAR | P20: 0.01100023637 | Q20: 0.01099976867 | R20: 0.01099994173 | S20: 0.01100003572 | T20: 0.01100001383 | V20: ENELAR | W20: 0.0156143331 | X20: 0.01561466454 | Y20: 0.01561450905 | Z20: 0.01561453115 | AA20: 0.01561455372 | AC20: ENELAR | AD20: 0.02100007307 | AE20: 0.02099987636 | AF20: 0.02100009129 | AG20: 0.02100000569 | AH20: 0.02099996303 | AJ20: ENELAR | AK20: -0.01360548095 | AL20: -0.01360548181 | AM20: -0.01360570373 | AN20: -0.01360560676 | AO20: -0.01360558651 | AQ20: ENELAR | AR20: 0.01959978567 | AS20: 0.01959985114 | AT20: 0.01960003451 | AU20: 0.01959997956 | AV20: 0.0196000018 | AX20: ENELAR | AY20: 0.01978757732 | AZ20: 0.01978782921 | BA20: 0.01978764994 | BB20: 0.01978757482 | BC20: 0.01978757524 | BE20: ENELAR | BF20: 0.00736759813 | BG20: 0.007367349303 | BH20: 0.007367459026 | BI20: 0.007367473716 | BJ20: 0.007367494452 | BL20: ENELAR | BM20: 0.005998826716 | BN20: 0.005998949316 | BO20: 0.005998927638 | BP20: 0.005998949316 | BQ20: 0.005998928883 | BS20: ENELAR | BT20: 0.00800832366 | BU20: 0.008008261749 | BV20: 0.008008233189 | BW20: 0.008008261749 | BX20: 0.008008221289 | BZ20: ENELAR | CA20: 0.00999155205 | CB20: 0.009991490996 | CC20: 0.009991391857 | CD20: 0.009991370095 | CE20: 0.009991451299 | CG20: ENELAR | CH20: 0.1080001149 | CI20: 0.1080001149 | CJ20: 0.1080001301 | CK20: 0.1080001278 | CL20: 0.1080001057 | CN20: ENELAR | CO20: 0.005999827141 | CP20: 0.005999935178 | CQ20: 0.006000113884 | CR20: 0.006000043863 | CS20: 0.006000025857 | CU20: ENELAR | CV20: 0.006000020405 | CW20: 0.00600001976 | CX20: 0.005999956285 | CY20: 0.00600001976 | CZ20: 0.006000019868
A21: CELSIA COLOMBIA Tolima | B21: -0.07566529657 | C21: -0.07565284178 | D21: -0.07564911686 | E21: -0.07565465761 | F21: -0.07565280875 | H21: CELSIA COLOMBIA Tolima | I21: -0.01350254796 | J21: -0.013502285 | K21: -0.01350257374 | L21: -0.01350263561 | M21: -0.01350696338 | O21: CELSIA COLOMBIA Tolima | P21: 0.01069325174 | Q21: 0.01066013898 | R21: 0.01068359526 | S21: 0.0106867416 | T21: 0.0106911755 | V21: CELSIA COLOMBIA Tolima | W21: 0.01559346312 | X21: 0.0156262208 | Y21: 0.01561087706 | Z21: 0.01561319895 | AA21: 0.01561319895 | AC21: CELSIA COLOMBIA Tolima | AD21: 0.020771228 | AE21: 0.02077082853 | AF21: 0.02077111051 | AG21: 0.02077109484 | AH21: 0.02077109484 | AJ21: CELSIA COLOMBIA Tolima | AK21: 0.01962631496 | AL21: 0.01959454367 | AM21: 0.01960958165 | AN21: 0.01960735056 | AO21: 0.01960735056 | AQ21: CELSIA COLOMBIA Tolima | AR21: 0.01348937481 | AS21: 0.0135018602 | AT21: 0.01349314473 | AU21: 0.0135018602 | AV21: 0.0135018602 | AX21: CELSIA COLOMBIA Tolima | AY21: 0.01081803817 | AZ21: 0.01081803817 | BA21: 0.01082526563 | BB21: 0.01081803817 | BC21: 0.01081803817 | BE21: CELSIA COLOMBIA Tolima | BF21: 0.007365319865 | BG21: 0.007359307359 | BH21: 0.007370625018 | BI21: 0.007371332371 | BJ21: 0.007375340709 | BL21: CELSIA COLOMBIA Tolima | BM21: 0.005998388493 | BN21: 0.006016330039 | BO21: 0.006010645021 | BP21: 0.006004321201 | BQ21: 0.006000318319 | BS21: CELSIA COLOMBIA Tolima | BT21: 0.008009492732 | BU21: 0.008021263468 | BV21: 0.007998883227 | BW21: 0.008009397693 | BX21: 0.008009397693 | BZ21: CELSIA COLOMBIA Tolima | CA21: 0.01000588582 | CB21: 0.009982107543 | CC21: 0.00999889209 | CD21: 0.009993996539 | CE21: 0.009993996539 | CG21: CELSIA COLOMBIA Tolima | CH21: 0.04798951049 | CI21: 0.047995338 | CJ21: 0.04799122446 | CK21: 0.047995338 | CL21: 0.047995338 | CN21: CELSIA COLOMBIA Tolima | CO21: 0.04501348458 | CP21: 0.04499655241 | CQ21: 0.04499542065 | CR21: 0.04499655241 | CS21: 0.04499655241 | CU21: CELSIA COLOMBIA Tolima | CV21: 0.02966530091 | CW21: 0.02969222255 | CX21: 0.02968611101 | CY21: 0.02968158018 | CZ21: 0.02968158018
A22: ENEL COLOMBIA | B22: 2.754441537e-05 | C22: 2.754365669e-07 | D22: 1.561966125e-05 | E22: 2.627648393e-06 | F22: 0 | H22: ENEL COLOMBIA | I22: 0 | J22: 0 | K22: 0 | L22: 0 | M22: 0 | O22: ENEL COLOMBIA | P22: 0.007691566132 | Q22: 0.007691564014 | R22: 0.01099997462 | S22: 0.01099999876 | T22: 0.01100002155 | V22: ENEL COLOMBIA | W22: 0.01507096439 | X22: 0.01507055027 | Y22: 0.01600002189 | Z22: 0.01600003721 | AA22: 0.01600001368 | AC22: ENEL COLOMBIA | AD22: 0.0209998216 | AE22: 0.02100002639 | AF22: 0.02100004356 | AG22: 0.02100002639 | AH22: 0.02100004836 | AJ22: ENEL COLOMBIA | AK22: 0.0200002044 | AL22: 0.02000000527 | AM22: 0.01999999069 | AN22: 0.02000000527 | AO22: 0.01999998242 | AQ22: ENEL COLOMBIA | AR22: 0.01399974014 | AS22: 0.01400006516 | AT22: 0.01399998996 | AU22: 0.01399993588 | AV22: 0.01399995712 | AX22: ENEL COLOMBIA | AY22: 0.01100021962 | AZ22: 0.01100002626 | BA22: 0.01100008775 | BB22: 0.01100002767 | BC22: 0.01100000595 | BE22: ENEL COLOMBIA | BF22: 0.00699978435 | BG22: 0.006999910461 | BH22: 0.00700004451 | BI22: 0.007000037455 | BJ22: 0.006999995271 | BL22: ENEL COLOMBIA | BM22: 0.005999973701 | BN22: 0.005999972949 | BO22: 0.005999898929 | BP22: 0.005999972949 | BQ22: 0.005999973075 | BS22: ENEL COLOMBIA | BT22: 0.008000179262 | BU22: 0.008000053779 | BV22: 0.008000141769 | BW22: 0.008000053779 | BX22: 0.008000074692 | BZ22: ENEL COLOMBIA | CA22: 0.0100000494 | CB22: 0.00999998765 | CC22: 0.009999957865 | CD22: 0.00999998765 | CE22: 0.009999946484 | CG22: ENEL COLOMBIA | CH22: 0.0250000535 | CI22: 0.0250001773 | CJ22: 0.02499994605 | CK22: 0.02500005502 | CL22: 0.02500005604 | CN22: ENEL COLOMBIA | CO22: 0.03799997316 | CP22: 0.03799997089 | CQ22: 0.03799997783 | CR22: 0.03799997543 | CS22: 0.03799997694 | CU22: ENEL COLOMBIA | CV22: 0.006000049993 | CW22: 0.005999877258 | CX22: 0.006 | CY22: 0.005999992875 | CZ22: 0.006000050568
A23: EMEVASI | B23: 0.009315582649 | C23: 0.009305563952 | D23: -0.006042273068 | E23: -0.006034387364 | F23: -0.006041304915 | H23: EMEVASI | I23: 0.007176084742 | J23: 0.007176033752 | K23: -0.03172331203 | L23: -0.03172330742 | M23: -0.03172330742 | O23: EMEVASI | P23: 0.00769167104 | Q23: 0.007691670278 | R23: 0.01695965551 | S23: 0.01695973284 | T23: 0.01695973284 | V23: EMEVASI | W23: 0.01261454974 | X23: 0.01261445014 | Y23: -0.01814722163 | Z23: -0.01814720223 | AA23: -0.01814720223 | AC23: EMEVASI | AD23: 0.01777350049 | AE23: 0.01777364619 | AF23: 9.674561552e-05 | AG23: 9.668170991e-05 | AH23: 9.668170991e-05 | AJ23: EMEVASI | AK23: 0.01660565189 | AL23: 0.01660549203 | AM23: 0.005864453464 | AN23: 0.005864471429 | AO23: 0.00586447324 | AQ23: EMEVASI | AR23: 0.01050605748 | AS23: 0.01050611865 | AT23: 0.002913663724 | AU23: 0.002913455357 | AV23: 0.002913561539 | AX23: EMEVASI | AY23: 0.007816660817 | AZ23: 0.007816753361 | BA23: 0.009324788862 | BB23: 0.00932507577 | BC23: 0.00932489531 | BE23: EMEVASI | BF23: 0.00436752274 | BG23: 0.004367383858 | BH23: -0.05603225668 | BI23: -0.05603232113 | BJ23: -0.056032254 | BL23: EMEVASI | BM23: 0.002999065632 | BN23: 0.002998973847 | BO23: -0.025443459 | BP23: -0.02544355173 | BQ23: -0.0254435329 | BS23: EMEVASI | BT23: 0.0050081284 | BU23: 0.005008174613 | BV23: 0.006257833376 | BW23: 0.006257983956 | BX23: 0.006257964509 | BZ23: EMEVASI | CA23: 0.006991373747 | CB23: 0.006991510647 | CC23: -0.01193484224 | CD23: -0.01193487533 | CE23: -0.01193487533 | CG23: EMEVASI | CH23: 0.00531794892 | CI23: 0.005317903228 | CJ23: -0.002665394047 | CK23: -0.002665400816 | CL23: -0.002665400816 | CN23: EMEVASI | CO23: 0.002498188195 | CP23: 0.002498098139 | CQ23: 0.027635962 | CR23: 0.02763600251 | CS23: 0.02763600251 | CU23: EMEVASI | CV23: 0.004690318108 | CW23: 0.004690363178 | CX23: 0.02277389388 | CY23: 0.02277371831 | CZ23: 0.02277371831
A24: EE PUTUMAYO | B24: -0.02572133641 | C24: -0.02573843237 | D24: -0.02573977091 | E24: -0.02573842067 | F24: -0.02573842847 | H24: EE PUTUMAYO | I24: -0.0009483265764 | J24: -0.0009483445877 | K24: -0.0009483459982 | L24: -0.0009483565877 | M24: -0.0009483485877 | O24: EE PUTUMAYO | P24: 0.007510857001 | Q24: 0.007510881137 | R24: 0.007510871225 | S24: 0.007510869114 | T24: 0.007510869114 | V24: EE PUTUMAYO | W24: 0.01261448122 | X24: 0.01261448704 | Y24: 0.01261449697 | Z24: 0.01261449912 | AA24: 0.01261449912 | AC24: EE PUTUMAYO | AD24: 0.01777555379 | AE24: 0.01777553579 | AF24: 0.01777554825 | AG24: 0.01777554758 | AH24: 0.01777554562 | AJ24: EE PUTUMAYO | AK24: 0.0166056182 | AL24: 0.01660560083 | AM24: 0.01660559243 | AN24: 0.01660560064 | AO24: 0.01660559874 | AQ24: EE PUTUMAYO | AR24: 0.01050612695 | AS24: 0.01050613283 | AT24: 0.01050614215 | AU24: 0.003633008613 | AV24: 0.01050613654 | AX24: EE PUTUMAYO | AY24: 0.007816656663 | AZ24: 0.007816651115 | BA24: 0.007816648349 | BB24: 0.01471842573 | BC24: 0.00781664727 | BE24: EE PUTUMAYO | BF24: 0 | BG24: 0 | BH24: 0 | BI24: 0 | BJ24: 0 | BL24: EE PUTUMAYO | BM24: -0.03398430531 | BN24: -0.0339842891 | BO24: -0.03398430712 | BP24: -0.03398431109 | BQ24: -0.03398430563 | BS24: EE PUTUMAYO | BT24: 0.001519932871 | BU24: 0.00151993866 | BV24: 0.001519955014 | BW24: 0.001514647927 | BX24: 0.001519952181 | BZ24: EE PUTUMAYO | CA24: 0.006535783703 | CB24: 0.006535777914 | CC24: 0.006535782045 | CD24: 0.006535789567 | CE24: 0.006535793414 | CG24: EE PUTUMAYO | CH24: -0.0632337441 | CI24: -0.06323372146 | CJ24: -0.06323372434 | CK24: -0.06323373296 | CL24: -0.06323373835 | CN24: EE PUTUMAYO | CO24: 0.05468050541 | CP24: 0.05468049826 | CQ24: 0.05468050291 | CR24: 0.05468049893 | CS24: 0.05468049893 | CU24: EE PUTUMAYO | CV24: -0.0553680193 | CW24: -0.05536801284 | CX24: -0.05536801017 | CY24: -0.05536800184 | CZ24: -0.05536800184
A25: EE BAJO PUTUMAYO | B25: -0.0278069868 | C25: -0.0278069868 | D25: -0.02780717791 | E25: -0.0278069868 | F25: -0.0278069868 | H25: EE BAJO PUTUMAYO | I25: 0.0007210671794 | J25: 0.0007210671794 | K25: 0.0007210722769 | L25: 0.0007210671794 | M25: 0.0007210671794 | O25: EE BAJO PUTUMAYO | P25: 0.004203194428 | Q25: 0.004203194428 | R25: 0.004210288362 | S25: 0.004203194428 | T25: 0.004203194428 | V25: EE BAJO PUTUMAYO | W25: -0.02033006458 | X25: -0.02033006458 | Y25: -0.02033006458 | Z25: -0.02033006458 | AA25: -0.02033006458 | AC25: EE BAJO PUTUMAYO | AD25: -0.009765625 | AE25: -0.009765625 | AF25: -0.009765625 | AG25: -0.009765625 | AH25: -0.009765625 | AJ25: EE BAJO PUTUMAYO | AK25: 0.009615384615 | AL25: 0.009615384615 | AM25: 0.009615384615 | AN25: 0.009615384615 | AO25: 0.009615384615 | AQ25: EE BAJO PUTUMAYO | AR25: 0.01050612695 | AS25: 0.01050613283 | AT25: 0.01050614215 | AU25: 0.003633008613 | AV25: 0.01050613654 | AX25: EE BAJO PUTUMAYO | AY25: 0.0005998080614 | AZ25: 0.0005998080614 | BA25: 0.000592751496 | BB25: 0.0005998080614 | BC25: 0.0005998080614 | BE25: EE BAJO PUTUMAYO | BF25: 0.004346001678 | BG25: 0.02613595492 | BH25: 0.02613613924 | BI25: 0.02613595492 | BJ25: 0.02613595492 | BL25: EE BAJO PUTUMAYO | BM25: -0.01369781253 | BN25: -0.01366982124 | BO25: -0.01366304243 | BP25: -0.01366982124 | BQ25: -0.01366982124 | BS25: EE BAJO PUTUMAYO | BT25: -0.002511346445 | BU25: -0.002487562189 | BV25: -0.00249453015 | BW25: -0.002487562189 | BX25: -0.002487562189 | BZ25: EE BAJO PUTUMAYO | CA25: 0.005217338551 | CB25: 0.005225032656 | CC25: 0.005225069155 | CD25: 0.005225032656 | CE25: 0.005225032656 | CG25: EE BAJO PUTUMAYO | CH25: -0.01596306467 | CI25: -0.01594802126 | CJ25: -0.01594118301 | CK25: -0.01594802126 | CL25: -0.01594802126 | CN25: EE BAJO PUTUMAYO | CO25: 0.05501379945 | CP25: 0.03253301321 | CQ25: 0.03252595156 | CR25: 0.03253301321 | CS25: 0.03253301321 | CU25: EE BAJO PUTUMAYO | CV25: 0.004679688408 | CW25: 0.004697128241 | CX25: 0.007796684357 | CY25: 0.007789791885 | CZ25: 0.007789791885
A26: EMSA | B26: -0.01384243468 | C26: -0.01385540573 | D26: -0.01385404167 | E26: -0.013842343 | F26: -0.01385332038 | H26: EMSA | I26: -0.03878572148 | J26: -0.0387653127 | K26: -0.03878002528 | L26: -0.03879217709 | M26: -0.03878572148 | O26: EMSA | P26: 0.007685858021 | Q26: 0.007657695425 | R26: 0.007677637852 | S26: 0.007685858021 | T26: 0.007685858021 | V26: EMSA | W26: 0.01261960893 | X26: 0.01261960893 | Y26: 0.01262786941 | Z26: 0.01261960893 | AA26: 0.01261960893 | AC26: EMSA | AD26: 0.01776910435 | AE26: 0.01777595179 | AF26: 0.01777111831 | AG26: 0.01777595179 | AH26: 0.01778051675 | AJ26: EMSA | AK26: 0.01661116157 | AL26: 0.01660566754 | AM26: 0.01660914991 | AN26: 0.01660432197 | AO26: 0.01659976228 | AQ26: EMSA | AR26: 0.01052917196 | AS26: 0.01050798059 | AT26: 0.01050776092 | AU26: 0.01050931809 | AV26: 0.0105071121 | AX26: EMSA | AY26: 0.007826058483 | AZ26: 0.007832761376 | BA26: 0.007828150522 | BB26: 0.007819663113 | BC26: 0.007826229329 | BE26: EMSA | BF26: 0.004367405289 | BG26: 0.004367592015 | BH26: 0.004359958411 | BI26: 0.004366868981 | BJ26: 0.00436251787 | BL26: EMSA | BM26: 0.001241572158 | BN26: 0.001259056993 | BO26: 0.001268132352 | BP26: 0.001268132352 | BQ26: 0.001268132352 | BS26: EMSA | BT26: 0.005014409967 | BU26: 0.00502265779 | BV26: 0.005010608868 | BW26: 0.005014409967 | BX26: 0.005014409967 | BZ26: EMSA | CA26: 0.006995434964 | CB26: 0.006991487282 | CC26: 0.00699924357 | CD26: 0.006995434964 | CE26: 0.006995434964 | CG26: EMSA | CH26: 0.02992631754 | CI26: 0.02991072626 | CJ26: 0.02990190445 | CK26: 0.02989439273 | CL26: 0.02989439273 | CN26: EMSA | CO26: 0.09999690028 | CP26: 0.1000099192 | CQ26: 0.09999562382 | CR26: 0.1 | CS26: 0.1 | CU26: EMSA | CV26: 0.02248710796 | CW26: 0.02249825289 | CX26: 0.02251750477 | CY26: 0.0225215578 | CZ26: 0.02252531515
A27: ELECTROCAQUETÁ | B27: 0 | C27: 0 | D27: 0 | E27: 0 | F27: 0 | H27: ELECTROCAQUETÁ | I27: -0.01006445058 | J27: -0.01008356404 | K27: -0.01000048468 | L27: -0.009997253502 | M27: -0.010001831 | O27: ELECTROCAQUETÁ | P27: 0.03476587556 | Q27: 0.03479242572 | R27: 0.01070531023 | S27: 0.01069466792 | T27: 0.01069934112 | V27: ELECTROCAQUETÁ | W27: 0.0126146789 | X27: 0.01262087776 | Y27: 0.01559724868 | Z27: 0.01560462786 | AA27: 0.01560462786 | AC27: ELECTROCAQUETÁ | AD27: 0.01778335527 | AE27: 0.01777712481 | AF27: 0.02079491256 | AG27: 0.0207972973 | AH27: 0.0207972973 | AJ27: ELECTROCAQUETÁ | AQ27: ELECTROCAQUETÁ | AR27: -0.0159448586 | AS27: -0.01595077506 | AT27: 0.01348771137 | AU27: 0.0134900026 | AV27: 0.01350313234 | AX27: ELECTROCAQUETÁ | AY27: 0.007816022847 | AZ27: 0.007792020394 | BA27: 0.01080633007 | BB27: 0.01079952344 | BC27: 0.01080377064 | BE27: ELECTROCAQUETÁ | BF27: 0.004299388516 | BG27: 0.004303567593 | BH27: 0.007300207255 | BI27: 0.007304719779 | BJ27: 0.00729833233 | BL27: ELECTROCAQUETÁ | BM27: 0.002999987793 | BN27: 0.002999999453 | BO27: 0.006000005655 | BP27: 0.005999998213 | BQ27: 0.005999998239 | BS27: ELECTROCAQUETÁ | BT27: 0.005000156351 | BU27: 0.005008173465 | BV27: 0.008005318506 | BW27: 0.008001640718 | BX27: 0.008001644921 | BZ27: ELECTROCAQUETÁ | CA27: 0.006999852677 | CB27: 0.006991796903 | CC27: 0.009994672 | CD27: 0.009998349774 | CE27: 0.009998355977 | CG27: ELECTROCAQUETÁ | CH27: 0.0479987341 | CI27: 0.04799638517 | CJ27: 0.1000034036 | CK27: 0.1000012445 | CL27: 0.09999919022 | CN27: ELECTROCAQUETÁ | CO27: 0.008990144345 | CP27: 0.009001563547 | CQ27: 0.009000131389 | CR27: 0.009001463017 | CS27: 0.00900334112 | CU27: ELECTROCAQUETÁ | CV27: 0.006004593376 | CW27: 0.00599915879 | CX27: 0.006002994987 | CY27: 0.005999092388 | CZ27: 0.006000937128
A28: ENERCA | B28: -0.0122426888 | C28: -0.01224289559 | D28: -0.01224283005 | E28: -0.01224166332 | F28: -0.01224166332 | H28: ENERCA | I28: -0.005867708195 | J28: -0.005867709018 | K28: -0.005867790873 | L28: -0.005867848336 | M28: -0.005867848336 | O28: ENERCA | P28: 0.007691581164 | Q28: 0.0076917937 | R28: 0.00769156139 | S28: 0.007691652732 | T28: 0.007691652732 | V28: ENERCA | W28: 0.01261443625 | X28: 0.01261436542 | Y28: 0.01261466437 | Z28: 0.01261450708 | AA28: 0.01261450708 | AC28: ENERCA | AD28: 0.01777363636 | AE28: 0.01777349821 | AF28: 0.01777335049 | AG28: 0.01777349821 | AH28: 0.01777352124 | AJ28: ENERCA | AK28: 0.01660573204 | AL28: 0.01660553069 | AM28: 0.01660559563 | AN28: 0.01660553069 | AO28: 0.01660550769 | AQ28: ENERCA | AR28: 0.01050601023 | AS28: 0.01050614726 | AT28: 0.01050613155 | AU28: 0.01050614726 | AV28: 0.010506125 | AX28: ENERCA | AY28: 0.007816580082 | AZ28: 0.007816647697 | BA28: 0.007816601184 | BB28: 0.007816647697 | BC28: 0.007816691913 | BE28: ENERCA | BF28: 0.004367497819 | BG28: 0.004367432838 | BH28: 0.004367556502 | BI28: 0.004367432838 | BJ28: 0.00436738904 | BL28: ENERCA | BM28: 0.002999082 | BN28: 0.002998952051 | BO28: 0.002998813651 | BP28: 0.002998952051 | BQ28: 0.002998973872 | BS28: ENERCA | BT28: 0.005008360282 | BU28: 0.005008296838 | BV28: 0.005008190042 | BW28: 0.01388311545 | BX28: 0.01388315883 | BZ28: ENERCA | CA28: 0.006991589761 | CB28: 0.006991333481 | CC28: 0.00699151758 | CD28: -0.001823159322 | CE28: -0.001823202032 | CG28: ENERCA | CH28: 0.01999935701 | CI28: 0.01999994856 | CJ28: 0.01999999395 | CK28: 0.01999994856 | CL28: 0.01999990569 | CN28: ENERCA | CO28: 0.08999995902 | CP28: 0.09000002774 | CQ28: 0.0900000534 | CR28: 0.09000002774 | CS28: 0.09000007355 | CU28: ENERCA | CV28: 0.005999949106 | CW28: 0.005999891273 | CX28: 0.005999999728 | CY28: 0.00600000694 | CZ28: 0.00600000694
A29: AIRE | B29: -0.03034752814 | C29: -0.03033653514 | D29: -0.03033752016 | E29: -0.0303477029 | F29: -0.03033822174 | H29: AIRE | I29: -0.006770199246 | J29: -0.006770239453 | K29: -0.006777150523 | L29: -0.00675836184 | M29: -0.006770199246 | O29: AIRE | P29: 0.01070286107 | Q29: 0.01069096649 | R29: 0.01069232825 | S29: 0.01069083864 | T29: 0.01069289565 | V29: AIRE | W29: 0.01561806726 | X29: 0.01561834446 | Y29: 0.01561825749 | Z29: 0.01561815966 | AA29: 0.01561822126 | AC29: AIRE | AD29: 0.02076598223 | AE29: 0.02078382031 | AF29: 0.02077822398 | AG29: 0.02077192819 | AH29: 0.0207758922 | AJ29: AIRE | AK29: 0.01960168911 | AL29: 0.01960739557 | AM29: 0.01960336748 | AN29: 0.01960739557 | AO29: 0.01960168911 | AQ29: AIRE | AR29: 0.01351616063 | AS29: 0.01349929481 | AT29: 0.01351120007 | AU29: 0.01349929481 | AV29: 0.0135068327 | AX29: AIRE | AY29: 0.01079573693 | AZ29: 0.01082346704 | BA29: 0.01081038941 | BB29: 0.01082346704 | BC29: 0.01081424351 | BE29: AIRE | BF29: 0.007379879265 | BG29: 0.007363533062 | BH29: 0.007365511922 | BI29: 0.007363445654 | BJ29: 0.007375168445 | BL29: AIRE | BM29: 0.005999050412 | BN29: 0.005998832512 | BO29: 0.00600206717 | BP29: 0.005998952341 | BQ29: 0.005994594985 | BS29: AIRE | BT29: 0.008021205156 | BU29: 0.008010477944 | BV29: 0.008011708005 | BW29: 0.00801044534 | BX29: 0.00801222053 | BZ29: AIRE | CA29: 0.009978341088 | CB29: 0.009989304126 | CC29: 0.009991191645 | CD29: 0.009989218559 | CE29: 0.009991710713 | CG29: AIRE | CH29: 0.1900081464 | CI29: 0.1900079574 | CJ29: 0.1899980066 | CK29: 0.1899974681 | CL29: 0.1899941755 | CN29: AIRE | CO29: 0.005984693424 | CP29: 0.005998042182 | CQ29: 0.005999120548 | CR29: 0.00599809556 | CS29: 0.00599956987 | CU29: AIRE | CV29: 0.006015436672 | CW29: 0.005997664626 | CX29: 0.005994567423 | CY29: 0.006006563874 | CZ29: 0.006000648719
A30: AFINIA | B30: -0.02998487141 | C30: -0.02999055987 | D30: -0.02999799823 | E30: -0.02999513855 | F30: -0.03000901384 | H30: AFINIA | I30: 0 | J30: 0 | K30: 0 | L30: 0 | M30: 0 | O30: AFINIA | P30: 0.007704544746 | Q30: 0.007685781305 | R30: 0 | S30: 0 | T30: 0 | V30: AFINIA | W30: 0.01259827896 | X30: 0.01260462582 | Y30: 0.01261792453 | Z30: 0.0126171503 | AA30: 0.01262346775 | AC30: AFINIA | AD30: 0.01779109223 | AE30: 0.01777897337 | AF30: 0.01777396064 | AG30: 0.01776809909 | AH30: 0.01776600023 | AJ30: AFINIA | AK30: 0.01659035891 | AL30: 0.01660867894 | AM30: 0.01660557518 | AN30: 0.01660921525 | AO30: 0.01660921322 | AQ30: AFINIA | AR30: 0.01050669334 | AS30: 0.01051260222 | AT30: 0.01050941042 | AU30: 0.01050940544 | AV30: 0.01050940746 | AX30: AFINIA | AY30: 0.007806332778 | AZ30: 0.007812134537 | BA30: 0.007810650888 | BB30: 0.007810650888 | BC30: 0.007810650888 | BE30: AFINIA | BF30: 0.004377197563 | BG30: 0.004365531006 | BH30: 0.004370195894 | BI30: 0.004370197276 | BJ30: 0.004370195319 | BL30: AFINIA | BM30: 0.002998941506 | BN30: 0.002998953094 | BO30: 0.002998954325 | BP30: 0.002998953633 | BQ30: 0.002998959485 | BS30: AFINIA | BT30: 0.00501925027 | BU30: 0.005001971507 | BV30: 0.005014072062 | BW30: 0.005004471861 | BX30: 0.005008353473 | BZ30: AFINIA | CA30: 0.006980400585 | CB30: 0.006997707631 | CC30: 0.006985590699 | CD30: 0.006995209817 | CE30: 0.006991310819 | CG30: AFINIA | CH30: 0.06824738027 | CI30: 0.06826445964 | CJ30: 0.08100569628 | CK30: 0.0810043405 | CL30: 0.0809966681 | CN30: AFINIA | CO30: 0.06001438427 | CP30: 0.05998678799 | CQ30: 0.05999298034 | CR30: 0.05999744284 | CS30: 0.0600049723 | CU30: AFINIA | CV30: 0.07116650751 | CW30: 0.07118732661 | CX30: 0.07117854355 | CY30: 0.07117655928 | CZ30: 0.07117488399
A31: DISPAC | B31: -0.01945549871 | C31: -0.01948051948 | D31: -0.01948486245 | E31: -0.01948051948 | F31: -0.01948051948 | H31: DISPAC | I31: 0 | J31: 0 | K31: 0 | L31: 0 | M31: 2.147378909e-06 | O31: DISPAC | P31: 0.007666043935 | Q31: 0.007704795527 | R31: 0.007685078518 | S31: 0.007691911253 | T31: 0.007689747361 | V31: DISPAC | W31: 0.01563099348 | X31: 0.01559862937 | Y31: 0.01561395328 | Z31: 0.01561161473 | AA31: 0.01561161473 | AC31: DISPAC | AD31: 0.02077235389 | AE31: 0.02077248464 | AF31: 0.02077995172 | AG31: 0.02077248464 | AH31: 0.02077248464 | AJ31: DISPAC | AK31: 0.01960965683 | AL31: 0.01960977776 | AM31: 0.01960243761 | AN31: 0.01960977776 | AO31: 0.01960566669 | AQ31: DISPAC | AR31: 0.01351719133 | AS31: 0.01352332108 | AT31: 0.01351909038 | AU31: 0.01351122508 | AV31: 0.01351732758 | AX31: DISPAC | AY31: 0.01056211958 | AZ31: 0.01057405418 | BA31: 0.01057272434 | BB31: 0.01057418038 | BC31: 0.01057217023 | BE31: DISPAC | BF31: 0.007381163271 | BG31: 0.00736926638 | BH31: 0.00736377025 | BI31: 0.00736935341 | BJ31: 0.00737132172 | BL31: DISPAC | BM31: 0.005978898007 | BN31: 0.006002344666 | BO31: 0.005999668984 | BP31: 0.006002415034 | BQ31: 0.005998495491 | BS31: DISPAC | BT31: 0.008011886726 | BU31: 0.007994219923 | BV31: 0.008006690522 | BW31: 0.008005966601 | BX31: 0.008007924407 | BZ31: DISPAC | CA31: 0.01000028903 | CB31: 0.009988670258 | CC31: 0.009996871727 | CD31: 0.009988670258 | CE31: 0.009984816605 | CG31: DISPAC | CH31: 0.02998998426 | CI31: 0.03001304915 | CJ31: 0.03000350131 | CK31: 0.03000160253 | CL31: 0.03000553256 | CN31: DISPAC | CO31: 0.03000583447 | CP31: 0.02998310811 | CQ31: 0.02999241691 | CR31: 0.02999455453 | CS31: 0.02999455453 | CU31: DISPAC | CV31: 0.03530871524 | CW31: 0.03530351093 | CX31: 0.03530083778 | CY31: 0.03530351093 | CZ31: 0.03530351093
A32: ENERGUAVIARE | B32: -0.024969626 | C32: -0.02498345066 | D32: -0.0249899646 | E32: -0.02499728913 | F32: -0.02499267872 | H32: ENERGUAVIARE | I32: -0.05359999266 | J32: -0.05360001372 | K32: -0.0535999984 | L32: -0.05359999916 | M32: -0.05359999201 | O32: ENERGUAVIARE | P32: 0.00760001675 | Q32: 0.007600001427 | R32: 0.007599994079 | S32: 0.00760000131 | T32: 0.007599991017 | V32: ENERGUAVIARE | W32: 0.01259999242 | X32: 0.01260000034 | Y32: 0.01260001282 | Z32: 0.01260000015 | AA32: 0.0126000053 | AC32: ENERGUAVIARE | AD32: 0.01730001617 | AE32: 0.0173000315 | AF32: 0.01729999392 | AG32: 0.01730000109 | AH32: 0.01730000361 | AJ32: ENERGUAVIARE | AK32: 0.01659999579 | AL32: 0.01659999579 | AM32: 0.01659999608 | AN32: 0.01659999604 | AO32: 0.016599996 | AQ32: ENERGUAVIARE | AR32: 0.01050000496 | AS32: 0.01050000496 | AT32: 0.01050001371 | AU32: 0.01050000511 | AV32: 0.01050000508 | AX32: ENERGUAVIARE | AY32: 0.007799991431 | AZ32: 0.007800005857 | BA32: 0.007800004226 | BB32: 0.007800005969 | BC32: 0.007800003546 | BE32: ENERGUAVIARE | BF32: 0.004299981098 | BG32: 0.004299995351 | BH32: 0.00429999371 | BI32: 0.004299995412 | BJ32: 0.004299993027 | BL32: ENERGUAVIARE | BM32: 0.003000006841 | BN32: 0.002999985377 | BO32: 0.003000000503 | BP32: 0.002999999672 | BQ32: 0.002995327182 | BS32: ENERGUAVIARE | BT32: 0.005000012256 | BU32: 0.004999998011 | BV32: 0.004999991307 | BW32: 0.004999998011 | BX32: 0.00500467749 | BZ32: ENERGUAVIARE | CA32: 0.006999995087 | CB32: 0.007000016345 | CC32: 0.007000001397 | CD32: 0.007000002206 | CE32: 0.007000006952 | CG32: ENERGUAVIARE | CH32: 0.005400010798 | CI32: 0.00539998966 | CJ32: 0.005400004625 | CK32: 0.005400003777 | CL32: 0.005399999097 | CN32: ENERGUAVIARE | CO32: 0.009999985685 | CP32: 0.0100000067 | CQ32: 0.01000001659 | CR32: 0.0100000067 | CS32: 0.01000000908 | CU32: ENERGUAVIARE | CV32: 0.004700022725 | CW32: 0.004700001919 | CX32: 0.004700000262 | CY32: 0.004700001919 | CZ32: 0.004699999626
A34: PROMEDIO | B34: =+AVERAGE(B5:B32) -> -0.019870259 | C34: =+AVERAGE(C5:C32) -> -0.01987483122 | D34: =+AVERAGE(D5:D32) -> -0.02044351716 | E34: =+AVERAGE(E5:E32) -> -0.01971157509 | F34: =+AVERAGE(F5:F32) -> -0.0197142648 | H34: PROMEDIO | I34: =+AVERAGE(I5:I32) -> -0.005568632699 | J34: =+AVERAGE(J5:J32) -> -0.005567903949 | K34: =+AVERAGE(K5:K32) -> -0.006968976079 | L34: =+AVERAGE(L5:L32) -> -0.006720591193 | M34: =+AVERAGE(M5:M32) -> -0.006719137941 | O34: PROMEDIO | P34: =+AVERAGE(P5:P32) -> 0.009234252409 | Q34: =+AVERAGE(Q5:Q32) -> 0.009233742116 | R34: =+AVERAGE(R5:R32) -> 0.008063687995 | S34: =+AVERAGE(S5:S32) -> 0.008139089208 | T34: =+AVERAGE(T5:T32) -> 0.008139105779 | V34: PROMEDIO | W34: =+AVERAGE(W5:W32) -> 0.01225825694 | X34: =+AVERAGE(X5:X32) -> 0.01226050425 | Y34: =+AVERAGE(Y5:Y32) -> 0.01040017755 | Z34: =+AVERAGE(Z5:Z32) -> 0.01040972976 | AA34: =+AVERAGE(AA5:AA32) -> 0.01041017412 | AC34: PROMEDIO | AD34: =+AVERAGE(AD5:AD32) -> 0.017646939 | AE34: =+AVERAGE(AE5:AE32) -> 0.01764421043 | AF34: =+AVERAGE(AF5:AF32) -> 0.01553712302 | AG34: =+AVERAGE(AG5:AG32) -> 0.01553970022 | AH34: =+AVERAGE(AH5:AH32) -> 0.01554024281 | AJ34: PROMEDIO | AK34: =+AVERAGE(AK5:AK32) -> 0.01685624973 | AL34: =+AVERAGE(AL5:AL32) -> 0.01685682806 | AM34: =+AVERAGE(AM5:AM32) -> 0.02139807057 | AN34: =+AVERAGE(AN5:AN32) -> 0.0213742665 | AO34: =+AVERAGE(AO5:AO32) -> 0.02137389854 | AQ34: PROMEDIO | AR34: =+AVERAGE(AR5:AR32) -> 0.01065816142 | AS34: =+AVERAGE(AS5:AS32) -> 0.04111201517 | AT34: =+AVERAGE(AT5:AT32) -> 0.006167962498 | AU34: =+AVERAGE(AU5:AU32) -> 0.006157099461 | AV34: =+AVERAGE(AV5:AV32) -> 0.006648238802 | AX34: PROMEDIO | AY34: =+AVERAGE(AY5:AY32) -> 0.009032559337 | AZ34: =+AVERAGE(AZ5:AZ32) -> 0.009032489476 | BA34: =+AVERAGE(BA5:BA32) -> 0.004324484691 | BB34: =+AVERAGE(BB5:BB32) -> 0.004803092532 | BC34: =+AVERAGE(BC5:BC32) -> 0.004556222389 | BE34: PROMEDIO | BF34: =+AVERAGE(BF5:BF32) -> 0.005077556351 | BG34: =+AVERAGE(BG5:BG32) -> 0.005883168449 | BH34: =+AVERAGE(BH5:BH32) -> 0.01118121943 | BI34: =+AVERAGE(BI5:BI32) -> 0.01104516542 | BJ34: =+AVERAGE(BJ5:BJ32) -> 0.01104562577 | BL34: PROMEDIO | BM34: =+AVERAGE(BM5:BM32) -> 0.001835321468 | BN34: =+AVERAGE(BN5:BN32) -> 0.001837471753 | BO34: =+AVERAGE(BO5:BO32) -> -0.001433678152 | BP34: =+AVERAGE(BP5:BP32) -> -0.001168308578 | BQ34: =+AVERAGE(BQ5:BQ32) -> -0.001168617729 | BS34: PROMEDIO | BT34: =+AVERAGE(BT5:BT32) -> 0.005565348345 | BU34: =+AVERAGE(BU5:BU32) -> 0.005569276039 | BV34: =+AVERAGE(BV5:BV32) -> 0.003966248521 | BW34: =+AVERAGE(BW5:BW32) -> 0.004427858688 | BX34: =+AVERAGE(BX5:BX32) -> 0.004428489525 | BZ34: PROMEDIO | CA34: =+AVERAGE(CA5:CA32) -> 0.007912659483 | CB34: =+AVERAGE(CB5:CB32) -> 0.007909375986 | CC34: =+AVERAGE(CC5:CC32) -> 0.007628362694 | CD34: =+AVERAGE(CD5:CD32) -> 0.007424138255 | CE34: =+AVERAGE(CE5:CE32) -> 0.007424220108 | CG34: PROMEDIO | CH34: =+AVERAGE(CH5:CH32) -> 0.05130904925 | CI34: =+AVERAGE(CI5:CI32) -> 0.05131180359 | CJ34: =+AVERAGE(CJ5:CJ32) -> 0.05970588291 | CK34: =+AVERAGE(CK5:CK32) -> 0.05828698627 | CL34: =+AVERAGE(CL5:CL32) -> 0.05828664252 | CN34: PROMEDIO | CO34: =+AVERAGE(CO5:CO32) -> 0.03072715002 | CP34: =+AVERAGE(CP5:CP32) -> 0.02989507897 | CQ34: =+AVERAGE(CQ5:CQ32) -> 0.02775926618 | CR34: =+AVERAGE(CR5:CR32) -> 0.0274830067 | CS34: =+AVERAGE(CS5:CS32) -> 0.02748333469 | CU34: PROMEDIO | CV34: =+AVERAGE(CV5:CV32) -> 0.01019504926 | CW34: =+AVERAGE(CW5:CW32) -> 0.01019607565 | CX34: =+AVERAGE(CX5:CX32) -> 0.01224089357 | CY34: =+AVERAGE(CY5:CY32) -> 0.01201736242 | CZ34: =+AVERAGE(CZ5:CZ32) -> 0.01201748398
B36: En Dic 2022 se actualiza la tabla de Variación del CU Octubre respecto de Septiembre ya que algunas empresas republicaron tarifas de Octubre de 2022. | I36: En Dic 2022 se actualiza la tabla de Variación del CU Noviembre respecto de Octubre ya que algunas empresas republicaron tarifas de Octubre de 2022. | AY36: Se realiza un ajuste en CELSIA COLOMBIA mercado Tolima por cuando los % tenían un error de cálculo.

Sheet Transmisión
A1: REGRESAR | D1: CREG 011-2009 | E1: CREG 011-2009 | F1: CREG 011-2009 | G1: CREG 011-2009 | H1: CREG 011-2009 | I1: CREG 011-2009 | J1: CREG 011-2009 | K1: CREG 011-2009 | L1: CREG 011-2009 | M1: CREG 011-2009 | N1: CREG 031-2022 | O1: CREG 031-2022 | P1: CREG 031-2022 | Q1: CREG 031-2022 | R1: CREG 031-2022 | S1: CREG 031-2022 | T1: CREG 031-2022 | U1: CREG 031-2022 | V1: CREG 031-2022 | W1: CREG 031-2022 | X1: CREG 031-2022 | Y1: CREG 031-2022 | Z1: CREG 011-2009 | AA1: CREG 011-2009
D2: 2022-01-01 | E2: 2022-02-01 | F2: 2022-03-01 | G2: 2022-04-01 | H2: 2022-05-01 | I2: 2022-06-01 | J2: 2022-07-01 | K2: 2022-08-01 | L2: 2022-09-01 | M2: 2022-10-01 | N2: 2022-10-01 | O2: 2022-11-01 | P2: 2022-12-01 | Q2: 2023-01-01 | R2: 2023-02-01 | S2: 2023-03-01 | T2: 2023-04-01 | U2: 2023-05-01 | V2: 2023-06-01 | W2: 2023-07-01 | X2: 2023-08-01 | Y2: 2023-09-01 | Z2: 2023-10-01 | AA2: 2023-11-01
A3: A | B3: Ingreso Regulado Mensual (antes de compensaciones (COP)) | D3: 276890660460 | E3: 281711177607 | F3: 281265022292 | G3: 285008146105 | H3: 291785149344 | I3: 296604201687 | J3: 309373626976 | K3: 322049975877 | L3: 323990363048 | M3: 328641800232 | N3: 305636967469 | O3: 316465342665 | P3: 327923544774 | Q3: 339662388481 | R3: 337470364129 | S3: 340627130138 | T3: 338950474023 | U3: 336906089796 | V3: 332766962062 | W3: 324153182859 | X3: 316190008505 | Y3: 326997919024 | Z3: 353610037588 | AA3: 351113480142
A4: B | B4: Ingreso Variante Guatape ($) | D4: 186824062 | E4: 192639133 | F4: 195729454 | G4: 203084863 | H4: 204270483 | I4: 210754327 | J4: 207704952 | K4: 212990349 | L4: 212164117 | M4: 211731575 | N4: 214214595 | O4: 217673867 | P4: 219510975 | Q4: 224633885 | R4: 228723525 | S4: 228543602 | T4: 231121875 | U4: 226858722 | V4: 227645782 | W4: 223441398 | X4: 223562022 | Y4: 227380465 | Z4: 226640771 | AA4: 225629315
A5: C | B5: Otros Conceptos ($) | D5: 16276228887 | E5: 15822776285 | F5: 36688609745 | G5: 35164170726 | H5: 19879023406 | I5: 27529299814 | J5: 47638047408 | K5: 17383798489 | L5: 18582608391 | M5: 19139686287 | N5: 19139686287 | O5: 20920806366 | P5: 1.024847765e+10 | Q5: 9933651716 | R5: 10194359798 | S5: 1.437947684e+10 | T5: 1.618935114e+10 | U5: 11222941324 | V5: 1.006657275e+10 | W5: 32854332692 | X5: 8958773667 | Y5: 10043684389 | Z5: 10044274423 | AA5: 76179486
A6: A - B - C = D | C6: Ingreso Regulado Bruto que pagan los comercializadores ($) | D6: =+D3-D4-D5 -> 260427607511 | E6: =+E3-E4-E5 -> 265695762189 | F6: 244380683093 | G6: 249640890516 | H6: 271701855455 | I6: 268864147546 | J6: 261527874616 | K6: 304453187039 | L6: 305195590540 | M6: 309290382370 | N6: 286283066587 | O6: =+O3-O4-O5 -> 295326862432 | P6: 317455556144 | Q6: 3.295041029e+11 | R6: 327047280806 | S6: 326019109694 | T6: 322530001009 | U6: =+U3-U4-U5 -> 325456289750 | V6: 322472743529 | W6: =+W3-W4-W5 -> 291075408769 | X6: 307007672816 | Y6: =+Y3-Y4-Y5 -> 316726854170 | Z6: 343339122394 | AA6: =+AA3-AA4-AA5 -> 350811671341
A7: E | B7: Ingreso a Compensar ($) | D7: 121161451 | E7: 173374038 | F7: 533298835 | G7: 154040588 | H7: 66384618 | I7: 92068652 | J7: 49888918 | K7: 135787643 | L7: 63274470 | M7: 2279249448 | N7: 2259157459 | O7: 65449459 | P7: 131918275 | Q7: 213094385 | R7: 266662013 | S7: 176301193 | T7: 23652944 | U7: 56734076 | V7: 390678073 | W7: 150279539 | X7: 41664036 | Y7: 377526912 | Z7: 354432704 | AA7: 25397671325
A8: D - E = F | C8: Ingreso Regulado Neto que pagan los Participantes del Mercado ($) | D8: =+D6-D7 -> 260306446060 | E8: =+E6-E7 -> 265522388151 | F8: 243847384258 | G8: 249486849928 | H8: 271635470837 | I8: 268772078894 | J8: 261477985698 | K8: 304317399396 | L8: 305132316070 | M8: 3.070111329e+11 | N8: 2.840239091e+11 | O8: =+O6-O7 -> 295261412973 | P8: 317323637869 | Q8: 3.292910085e+11 | R8: 326780618793 | S8: 325842808501 | T8: 322506348065 | U8: =+U6-U7 -> 325399555674 | V8: 322082065456 | W8: =+W6-W7 -> 290925129230 | X8: 306966008780 | Y8: =+Y6-Y7 -> 316349327258 | Z8: 342984689690 | AA8: =+AA6-AA7 -> 325414000016
A9: G | B9: Energía del SIN (kWh) | D9: 6304195854 | E9: 6171462245 | F9: 5776857453 | G9: 6406091081 | H9: 6142778803 | I9: 6443179094 | J9: 6081113079 | K9: 6437445241 | L9: 6485641465 | M9: 6315318629 | N9: 6315318629 | O9: 6492606172 | P9: 6292788991 | Q9: 6479549068 | R9: 6539722802 | S9: 6064806612 | T9: 6521596164 | U9: 6228301368 | V9: 6718516261 | W9: 6439183260 | X9: 6666270553 | Y9: 6878657462 | Z9: 6994373245 | AA9: 6947126537
C10: Componente T SIN AJUSTES($/kWh) | D10: =+D8/D9 -> 41.29098335 | E10: =+E8/E9 -> 43.02422629 | F10: 42.21107864 | G10: 38.94525488 | H10: 44.22029175 | I10: 41.71420272 | J10: 42.99837584 | K10: 47.27300785 | L10: 47.04736112 | M10: =+M8/M9 -> 48.61372022 | N10: 44.97380509 | O10: 45.4765629 | P10: 50.42654987 | Q10: 50.82005014 | R10: 49.96857339 | S10: 53.72682583 | T10: =+T8/T9 -> 49.45205743 | U10: 52.2453132 | V10: =+V8/V9 -> 47.93946355 | W10: 45.18043943 | X10: =+X8/X9 -> 46.04763733 | Y10: 45.98998119 | Z10: =+Z8/Z9 -> 49.03723003 | AA10: 46.84152481
A11: H | B11: ∆T ($/kWh) | D11: 2.393013 | E11: 2.104776 | F11: 0.899746 | G11: 1.382548 | H11: -3.241419 | I11: 7.807595 | J11: -1.08595 | K11: 4.843337 | L11: 3.798718 | M11: 1.191931 | N11: 1.191931 | O11: 1.622273 | P11: -0.119599 | Q11: 1.15319 | R11: -1.260482 | S11: -1.359901 | T11: 4.068975 | U11: -3.713925 | V11: 2.763446 | W11: -4.310218 | X11: 0.914809 | Y11: 1.02953 | Z11: -0.437371 | AA11: -0.590538
A12: ( F / G ) + H | C12: Componente T ($/kWh) | D12: =+(D8/D9)+D11 -> 43.68399635 | E12: 45.12900229 | F12: 43.11082464 | G12: 40.32780288 | H12: 40.97887275 | I12: 49.52179772 | J12: 41.91242584 | K12: 52.11634485 | L12: 50.84607912 | M12: 49.80565122 | N12: 46.16573609 | O12: =+(O8/O9)+O11 -> 47.0988359 | P12: 50.30695087 | Q12: 51.97324014 | R12: 48.70809139 | S12: 52.36692483 | T12: 53.52103243 | U12: =+(U8/U9)+U11 -> 48.5313882 | V12: 50.70290955 | W12: =+(W8/W9)+W11 -> 40.87022143 | X12: 46.96244633 | Y12: =+(Y8/Y9)+Y11 -> 47.01951119 | Z12: 48.59985903 | AA12: =+(AA8/AA9)+AA11 -> 46.25098681
A13: Cargos estimados del STN que se trasladan al Costo Unitario de Prestación del Servicio | M13: =+N12-M12 -> -3.639915124
D33: 2022-01-01 | E33: 2022-02-01 | F33: 2022-03-01 | G33: 2022-04-01 | H33: 2022-05-01 | I33: 2022-06-01 | J33: 2022-07-01 | K33: 2022-08-01 | L33: 2022-09-01 | M33: 2022-10-01 | N33: 2022-11-01 | O33: 2022-12-01 | P33: 2023-01-01 | Q33: 2023-02-01 | R33: 2023-03-01 | S33: 2023-04-01 | T33: 2023-05-01 | U33: 2023-06-01 | V33: 2023-07-01 | W33: 2023-08-01 | X33: 2023-09-01 | Y33: 2023-10-01 | Z33: 2023-11-01
C34: T_011 | D34: =+D12 -> 43.68399635 | E34: =+E12 -> 45.12900229 | F34: 43.11082464 | G34: 40.32780288 | H34: 40.97887275 | I34: 49.52179772 | J34: 41.91242584 | K34: 52.11634485 | L34: 50.84607912 | M34: 49.80565122
C35: T_031 | L35: =+L12 -> 50.84607912 | M35: =+N12 -> 46.16573609 | N35: 47.0988359 | O35: 50.30695087 | P35: 51.97324014 | Q35: 48.70809139 | R35: 52.36692483 | S35: 53.52103243 | T35: 48.5313882 | U35: 50.70290955 | V35: 40.87022143 | W35: 46.96244633 | X35: 47.01951119 | Y35: 48.59985903 | Z35: 46.25098681

Sheet Distribución
A1: REGRESAR
A2: STR: Sistema de Transmisión Regional | B2: NT: Nivel de Tensión | E2: CAMBIO INDEXADOR OCTUBRE 2022 | H2: CÁLCULOS PREVIOS A LA MODIFICACIÓN DEL INDEXADOR | X2: VALORES PARA OCTUBRE 2022 POSTERIOR A LA APLICACIÓN DEL NUEVO INDEXADOR | AF2: VALORES PARA NOVIEMBRE 2022 POSTERIOR A LA APLICACIÓN DEL NUEVO INDEXADOR | AN2: VALORES PARA DICIEMBRE 2022 POSTERIOR A LA APLICACIÓN DEL NUEVO INDEXADOR | AV2: VALORES PARA ENERO 2023 POSTERIOR A LA APLICACIÓN DEL NUEVO INDEXADOR | BD2: VALORES PARA FEBRERO 2023 POSTERIOR A LA APLICACIÓN DEL NUEVO INDEXADOR | BL2: VALORES PARA MARZO 2023 POSTERIOR A LA APLICACIÓN DEL NUEVO INDEXADOR | BT2: VALORES PARA ABRIL 2023 POSTERIOR A LA APLICACIÓN DEL NUEVO INDEXADOR | CB2: VALORES PARA MAYO 2023 POSTERIOR A LA APLICACIÓN DEL NUEVO INDEXADOR | CJ2: VALORES PARA JUNIO 2023 POSTERIOR A LA APLICACIÓN DEL NUEVO INDEXADOR | CR2: VALORES PARA JUlIO 2023 POSTERIOR A LA APLICACIÓN DEL NUEVO INDEXADOR | CZ2: VALORES PARA AGOSTO 2023 POSTERIOR A LA APLICACIÓN DEL NUEVO INDEXADOR | DH2: VALORES PARA SEPTIEMBRE 2023 FINALIZA Y ÚLTIMO MES APLICACIÓN RES. CREG 101 031 2022 | DP2: VALORES PARA OCTUBRE 2023 | DX2: VALORES PARA NOVIEMBRE 2023
A3: SDL: Sistema de Distribución Local | B3: ADD: Área de Distribución
A4: OPERADOR DE RED | B4: SIGLA | C4: ADD | D4: ACOGIDO A LA RES. CREG 101 031 de 2022 | E4: Indexador CREG 015 de 2018 | F4: Indexador CREG 101 031 de 2022 | H4: RESOLUCIÓN CREG 015 de 2018 | X4: RESOLUCIÓN CREG 101 031 de 2022 | AF4: RESOLUCIÓN CREG 101 031 de 2022 | AN4: RESOLUCIÓN CREG 101 031 de 2022 | AV4: RESOLUCIÓN CREG 101 031 de 2022 | BD4: RESOLUCIÓN CREG 101 031 de 2022 | BL4: RESOLUCIÓN CREG 101 031 de 2022 | BT4: RESOLUCIÓN CREG 101 031 de 2022 | CB4: RESOLUCIÓN CREG 101 031 de 2022 | CJ4: RESOLUCIÓN CREG 101 031 de 2022 | CR4: RESOLUCIÓN CREG 101 031 de 2022 | CZ4: RESOLUCIÓN CREG 101 031 de 2022 | DH4: RESOLUCIÓN CREG 101 031 de 2022 | DP4: RESOLUCIÓN CREG 015 de 2018 | DX4: RESOLUCIÓN CREG 015 de 2018
H5: DEFINITIVO SEPTIEMRE 2022 | P5: PRELIMINAR OCTUBRE 2022 | X5: DEFINITIVO OCTUBRE 2022 | AF5: DEFINITIVO NOVIEMBRE 2022 | AN5: DEFINITIVO DICIEMBRE 2022 | AV5: DEFINITIVO ENERO 2023 | BD5: DEFINITIVO FEBRERO 2023 | BL5: DEFINITIVO MARZO 2023 | BT5: DEFINITIVO ABRIL 2023 | CB5: DEFINITIVO MAYO 2023 | CJ5: DEFINITIVO JUNIO 2023 | CR5: DEFINITIVO JULIO 2023 | CZ5: DEFINITIVO AGOSTO 2023 | DH5: DEFINITIVO SEPTIEMBRE 2023 | DP5: DEFINITIVO OCTUBRE 2023 | DX5: DEFINITIVO NOVIEMBRE 2023
H6: Cargos STR NT 4 ($/kWh) | I6: Cargos SDL ($/kWh) | L6: Cargos ADD ($/kWh) | P6: Cargos STR NT 4 ($/kWh) | Q6: Cargos SDL ($/kWh) | T6: Cargos ADD ($/kWh) | X6: Cargos STR NT 4 ($/kWh) | Y6: Cargos SDL ($/kWh) | AB6: Cargos ADD ($/kWh) | AF6: Cargos STR NT 4 ($/kWh) | AG6: Cargos SDL ($/kWh) | AJ6: Cargos ADD ($/kWh) | AN6: Cargos STR NT 4 ($/kWh) | AO6: Cargos SDL ($/kWh) | AR6: Cargos ADD ($/kWh) | AV6: Cargos STR NT 4 ($/kWh) | AW6: Cargos SDL ($/kWh) | AZ6: Cargos ADD ($/kWh) | BD6: Cargos STR NT 4 ($/kWh) | BE6: Cargos SDL ($/kWh) | BH6: Cargos ADD ($/kWh) | BL6: Cargos STR NT 4 ($/kWh) | BM6: Cargos SDL ($/kWh) | BP6: Cargos ADD ($/kWh) | BT6: Cargos STR NT 4 ($/kWh) | BU6: Cargos SDL ($/kWh) | BX6: Cargos ADD ($/kWh) | CB6: Cargos STR NT 4 ($/kWh) | CC6: Cargos SDL ($/kWh) | CF6: Cargos ADD ($/kWh) | CJ6: Cargos STR NT 4 ($/kWh) | CK6: Cargos SDL ($/kWh) | CN6: Cargos ADD ($/kWh) | CR6: Cargos STR NT 4 ($/kWh) | CS6: Cargos SDL ($/kWh) | CV6: Cargos ADD ($/kWh) | CZ6: Cargos STR NT 4 ($/kWh) | DA6: Cargos SDL ($/kWh) | DD6: Cargos ADD ($/kWh) | DH6: Cargos STR NT 4 ($/kWh) | DI6: Cargos SDL ($/kWh) | DL6: Cargos ADD ($/kWh) | DP6: Cargos STR NT 4 ($/kWh) | DQ6: Cargos SDL ($/kWh) | DT6: Cargos ADD ($/kWh) | DX6: Cargos STR NT 4 ($/kWh) | DY6: Cargos SDL ($/kWh) | EB6: Cargos ADD ($/kWh)
I7: NT 1 | J7: NT 2 | K7: NT 3 | L7: NT 1 | M7: NT 2 | N7: NT 3 | Q7: NT 1 | R7: NT 2 | S7: NT 3 | T7: NT 1 | U7: NT 2 | V7: NT 3 | Y7: NT 1 | Z7: NT 2 | AA7: NT 3 | AB7: NT 1 | AC7: NT 2 | AD7: NT 3 | AG7: NT 1 | AH7: NT 2 | AI7: NT 3 | AJ7: NT 1 | AK7: NT 2 | AL7: NT 3 | AO7: NT 1 | AP7: NT 2 | AQ7: NT 3 | AR7: NT 1 | AS7: NT 2 | AT7: NT 3 | AW7: NT 1 | AX7: NT 2 | AY7: NT 3 | AZ7: NT 1 | BA7: NT 2 | BB7: NT 3 | BE7: NT 1 | BF7: NT 2 | BG7: NT 3 | BH7: NT 1 | BI7: NT 2 | BJ7: NT 3 | BM7: NT 1 | BN7: NT 2 | BO7: NT 3 | BP7: NT 1 | BQ7: NT 2 | BR7: NT 3 | BU7: NT 1 | BV7: NT 2 | BW7: NT 3 | BX7: NT 1 | BY7: NT 2 | BZ7: NT 3 | CC7: NT 1 | CD7: NT 2 | CE7: NT 3 | CF7: NT 1 | CG7: NT 2 | CH7: NT 3 | CK7: NT 1 | CL7: NT 2 | CM7: NT 3 | CN7: NT 1 | CO7: NT 2 | CP7: NT 3 | CS7: NT 1 | CT7: NT 2 | CU7: NT 3 | CV7: NT 1 | CW7: NT 2 | CX7: NT 3 | DA7: NT 1 | DB7: NT 2 | DC7: NT 3 | DD7: NT 1 | DE7: NT 2 | DF7: NT 3 | DI7: NT 1 | DJ7: NT 2 | DK7: NT 3 | DL7: NT 1 | DM7: NT 2 | DN7: NT 3 | DQ7: NT 1 | DR7: NT 2 | DS7: NT 3 | DT7: NT 1 | DU7: NT 2 | DV7: NT 3 | DY7: NT 1 | DZ7: NT 2 | EA7: NT 3 | EB7: NT 1 | EC7: NT 2 | ED7: NT 3
A8: CENTRALES ELECTRICAS DEL NORTE DE SANTANDER S.A E.S.P | B8: CENS | C8: CENTRO | D8: NO | E8: 1.510096111 | F8: N/A | H8: 36.20671101 | I8: 292.4682052 | J8: 185.1140586 | K8: 97.51197459 | L8: 314.856799 | M8: 195.8330066 | N8: 85.75285116 | P8: 37.03594878 | Q8: 293.3791235 | R8: 185.8798899 | S8: 97.93339474 | T8: 304.2186062 | U8: 198.8877205 | V8: 85.47363568 | X8: 35.98120324 | Y8: 292.1474929 | Z8: 184.7940773 | AA8: 96.84450506 | AB8: 303.0020391 | AC8: 197.7901601 | AD8: 84.40408894 | AF8: 34.23649277 | AG8: 293.4333348 | AH8: 184.31883 | AI8: 83.82916292 | AJ8: 305.305733 | AK8: 191.5141205 | AL8: 93.48603338 | AN8: 34.66744158 | AO8: 298.3288684 | AP8: 187.295059 | AQ8: 94.47203687 | AR8: 307.6060121 | AS8: 190.904663 | AT8: 84.80403842 | AV8: 33.93930175 | AW8: 295.7642944 | AX8: 185.5414615 | AY8: 93.37342289 | AZ8: 289.2746975 | BA8: 182.9685295 | BB8: 81.07757549 | BD8: 35.56610076 | BE8: 301.2630905 | BF8: 189.2460204 | BG8: 95.7289769 | BH8: 294.9944568 | BI8: 188.6713589 | BJ8: 83.34489194 | BL8: 36.94521003 | BM8: 307.1163642 | BN8: 193.1412446 | BO8: 98.10820748 | BP8: 315.3362115 | BQ8: 199.587315 | BR8: 88.0058264 | BT8: 34.43007392 | BU8: 303.1810181 | BV8: 191.6590339 | BW8: 98.10455171 | BX8: 315.2550079 | BY8: 198.96826 | BZ8: 87.25284641 | CB8: 36.58224415 | CC8: 301.7616123 | CD8: 191.5259598 | CE8: 99.24111088 | CF8: 300.5938038 | CG8: 189.5702396 | CH8: 86.81133541 | CJ8: 33.49939 | CK8: 295.6536004 | CL8: 186.8506231 | CM8: 94.73949291 | CN8: 290.150344 | CO8: 184.4074209 | CP8: 80.76701904 | CR8: 34.7519832 | CS8: 292.6626689 | CT8: 185.5236236 | CU8: 95.21941057 | CV8: 300.0382587 | CW8: 191.2703761 | CX8: 81.32068631 | CZ8: 33.44628748 | DA8: 287.4304546 | DB8: 182.02431 | DC8: 93.28211317 | DD8: 299.0221003 | DE8: 189.5491325 | DF8: 82.3193713 | DH8: 32.75729456 | DI8: 287.8848411 | DJ8: 182.1383587 | DK8: 93.28786892 | DL8: 287.5999463 | DM8: 182.408184 | DN8: 82.20211053 | DP8: 34.34175868 | DQ8: 283.9512981 | DR8: 181.6258762 | DS8: 94.94367219 | DT8: 286.7896238 | DU8: 183.0772033 | DV8: 81.494402 | DX8: 33.72955322 | DY8: 281.9409492 | DZ8: 180.2368848 | EA8: 94.2800417 | EB8: 298.0834931 | EC8: 189.9773627 | ED8: 81.01092153
A9: CENTRAL HIDROELECTRICA DE CALDAS S.A E.S.P | B9: CHEC | D9: NO | E9: 1.510096111 | F9: N/A | I9: 394.0029167 | J9: 252.3212813 | K9: 95.05630932 | L9: 314.856799 | M9: 195.8330066 | N9: 85.75285116 | Q9: 396.2017221 | R9: 253.8968778 | S9: 96.06935435 | T9: 304.2186062 | U9: 198.8877205 | V9: 85.47363568 | Y9: 395.0215036 | Z9: 252.8078902 | AA9: 95.0000665 | AB9: 303.0020391 | AC9: 197.7901601 | AD9: 84.40408894 | AG9: 398.7639034 | AH9: 254.3717264 | AI9: 83.82916292 | AJ9: 305.305733 | AK9: 191.5141205 | AL9: 94.1665411 | AO9: 371.8412161 | AP9: 249.1404998 | AQ9: 90.79410279 | AR9: 307.6060121 | AS9: 190.904663 | AT9: 84.80403842 | AW9: 370.0386277 | AX9: 247.9839832 | AY9: 90.03544086 | AZ9: 289.2746975 | BA9: 182.9685295 | BB9: 81.07757549 | BE9: 376.043528 | BF9: 252.2934118 | BG9: 92.26659515 | BH9: 294.9944568 | BI9: 188.6713589 | BJ9: 83.34489194 | BM9: 382.577305 | BN9: 256.9395149 | BO9: 94.57969297 | BP9: 315.3362115 | BQ9: 199.587315 | BR9: 88.0058264 | BU9: 377.1803124 | BV9: 252.3574589 | BW9: 91.91972693 | BX9: 315.2550079 | BY9: 198.96826 | BZ9: 87.25284641 | CC9: 375.0234318 | CD9: 251.612701 | CE9: 93.34819836 | CF9: 300.5938038 | CG9: 189.5702396 | CH9: 86.81133541 | CK9: 358.4245978 | CL9: 238.8419633 | CM9: 86.58252827 | CN9: 290.150344 | CO9: 184.4074209 | CP9: 80.76701904 | CS9: 354.8221179 | CT9: 237.0101797 | CU9: 87.14177006 | CV9: 300.0382587 | CW9: 191.2703761 | CX9: 81.32068631 | DA9: 350.2828765 | DB9: 233.7226975 | DC9: 85.37121909 | DD9: 299.0221003 | DE9: 189.5491325 | DF9: 82.3193713 | DI9: 352.4925064 | DJ9: 234.8798518 | DK9: 85.16056241 | DL9: 287.5999463 | DM9: 182.408184 | DN9: 82.20211053 | DQ9: 356.1585374 | DR9: 237.7350774 | DS9: 87.04156798 | DT9: 286.7896238 | DU9: 183.0772033 | DV9: 81.494402 | DY9: 354.7643923 | DZ9: 236.6661291 | EA9: 86.1624968 | EB9: 298.0834931 | EC9: 189.9773627 | ED9: 81.01092153
